Workbook

Sheet Event Log
A1: MVHfH Joist End Moisture Monitoring | C1: MVHfH site generally open Wednesday, Thursday, and Saturday, from 8:30 AM onward
A2: Event Log
A4: 2012-11-01 | B4: Basement slab poured sometime around this time (between 10/17 and 11/20)
A5: 2012-12-12 | B5: Data collection starts
A6: 2013-01-17 | B6: Basement heat system up and running; warmed area includes BW1, BW2, BE1; remainder all in colder conditions (especially basement--open doors)
A7: 2013-01-24 | B7: Download; got pics of demising walls
A8: 2013-02-27 | B8: Download; expanding foam at BN1, froth pak at BE1, BW1, BW2. Fiberglass batt (2 layers ~R-26) at BN2; confirmed BN2 upper and lower joists swapped
A9: 2013-03-07 | B9: Lost BSMT-E2 channel--wire damaged
A10: 2013-03-14 | B10: Jeff repaired BSMT-E2 spliced damaged wire
A11: 2013-04-11 | B11: Jeff download trip--had to go back 4/10 and 4/11 due to serial cable issue; verified that repair is working
A12: 2013-05-16 | B12: Jeff download trip; BSMT-S spray foamed sometime in the previous window. Was BSMT-E sprayed in this window too? As a guess, a bit of a shift upwards around 5/3
A13: 2013-06-11 | B13: BSMT-E1 channels show drop in MCs--wire damage?
A14: 2013-07-03 | B14: Power outage, 7/3 through 7/6
A15: 2013-08-03 | B15: BSMT-E2 channels show drop in MCs--wire damage?
A16: 2013-08-15 | B16: Jeff download trip
A17: 2013-10-15 | B17: Daily shutdown issues started
A18: 2013-10-24 | B18: Jeff download trip
A19: 2014-01-09 | B19: Jeff download trip--lots of power outages between | D19: 2014-09-11 Chat with Emerson
A20: 2014-01-14 | B20: Spotty data issues seem to have stopped | D20: Most of front 7 units, committed owners
A21: 2014-01-29 | B21: Jeff download trip | D21: 1, 6, and 7--adopted and promised--by end of December
A22: 2014-02-19 | B22: Jeff download trip | D22: 10 is essentially done soon--drywalled and painted
A23: 2014-04-03 | B23: Jeff download trip | D23: Hoping 1 or 2 others will be done--but not full commitment for sponsors
A24: 2014-04-03 | B24: FIRST-N and FIRST-S foamed and insulated around this window? After 2014-02 Called it 3/26/2014, based on inflection points in graphs
A25: 2014-04-19 | B25: Volunteers sprayed left hand side of N3 uninsulated?? Not sure
A26: 2014-04-24 | B26: Jeff download trip | D26: Herb Grover--father in law
A27: 2014-04-26 | B27: Bruce removed foam from N3 joist
A28: 2014-05-21 | B28: Jeff download trip | D28: Reminder to Emerson about access to MVHfH
A29: 2014-05-22 | B29: Lost BSMT-W2-Joist Upper & Lower; 1 PM | D29: HfH will be management company
A30: 2014-07-10 | B30: Jeff download trip | D30: And wood beam sample
A31: 2014-07-18 | B31: Jeff repaired BSMT-W2 damage
A32: 2014-09-11 | B32: Kohta download trip | D32: When were FIRST-N and FIRST-S foamed and insulated? Done by 2014-09-11, was after 2014-02; possibly around 2014-04
A33: 2014-10-09 | B33: Jeff download trip
A34: 2014-11-12 | B34: Jeff download trip
A35: 2015-01-08 | B35: Jeff download trip: Still uninsulated: BSMT-E (although wall below is insulated), FIRST-E. Probably soon. All others have been insulated. Upper floors warm--70 F. Basement still chilly.
A36: 2015-01-30 | B36: Updated database to use Balsalm Fir correction
A37: 2015-02-26 | B37: Jeff download trip
A38: 2015-04-29 | B38: Jeff download trip

Sheet Data
A1: MVHfH Joist End Moisture Monitoring | J1: MCs | BV1: RHs | DI1: Ambient | DM1: Temperatures-Continued | ED1: Events | EF1: ASHRAE 160 Analysis | EJ1: =A17705-15 -> 2015-02-11T09:00:00 | EL1: =15*24 -> 360 | EM1: 6116 | EN1: =EM1-EL1 -> 5756 | FN1: ASHRAE 160 Graph Output
A3: MVHfH Data | B3: FIRST-N Pocket | C3: FIRST-N Cheek | D3: FIRST-E Pocket | E3: FIRST-E Cheek | F3: FIRST-S Pocket | G3: FIRST-S Cheek | H3: T Logger | I3: T Hallway | J3: BSMT-N1-Cheek | L3: BSMT-N1-Joist Upper | N3: BSMT-N1-Joist Lower | P3: BSMT-N2-Cheek | R3: BSMT-N2-Joist Lower | T3: BSMT-N2-Joist Upper | V3: BSMT-N3-Cheek | X3: BSMT-N3-Joist Upper | Z3: BSMT-N3-Joist Lower | AB3: BSMT-E1-Cheek | AD3: BSMT-E1-Joist Upper | AF3: BSMT-E1-Joist Lower | AH3: BSMT-E2-Cheek | AJ3: BSMT-E2-Joist Upper | AL3: BSMT-E2-Joist Lower | AN3: BSMT-S-Cheek | AP3: BSMT-S-JoistLeft | AR3: BSMT-S-JoistRight | AT3: BSMT-W1-Cheek | AV3: BSMT-W1-Joist Upper | AX3: BSMT-W1-Joist Lower | AZ3: BSMT-W2-Cheek | BB3: BSMT-W2-Joist Upper | BD3: BSMT-W2-Joist Lower | BF3: FIRST-N-Cheek | BH3: FIRST-N-JoistLeft | BJ3: FIRST-N-JoistRight | BL3: FIRST-E-Cheek | BN3: FIRST-E-Joist Upper | BP3: FIRST-E-Joist Lower | BR3: FIRST-S-JoistLeft | BT3: FIRST-S-JoistRight | BV3: BSMT-N1-RH | BY3: BSMT-N2-RH | CB3: BSMT-N3-RH | CE3: BSMT-E1-RH | CH3: BSMT-E2-RH | CK3: BSMT-S-RH | CN3: BSMT-W1-RH | CQ3: BSMT-W2-RH | CT3: FIRST-N-RH | CW3: FIRST-E-RH | CZ3: FIRST-S-RH | DD3: RH Logger | DE3: DewPt Logger | DG3: RH Hallway | DH3: DewPt Hall | DI3: T Ambient | DK3: RH Ambient | DL3: DewPt Ambient | DM3: BSMT-N1 Pocket | DN3: BSMT-N1 Cheek | DO3: BSMT-N2 Pocket | DP3: BSMT-N2 Cheek | DQ3: BSMT-N3 Pocket | DR3: BSMT-N3 Cheek | DS3: BSMT-E1 Pocket | DT3: BSMT-E1 Cheek | DU3: BSMT-E2 Pocket | DV3: BSMT-E2 Cheek | DW3: BSMT-S Pocket | DX3: BSMT-S Cheek | DY3: BSMT-W1 Pocket | DZ3: BSMT-W1 Cheek | EA3: BSMT-W2 Pocket | EB3: BSMT-W2 Cheek | FN3: 110 | FO3: 100 | FP3: 90 | FQ3: 80 | FR3: 70 | FS3: 60 | FT3: 50 | FU3: 40 | FV3: 30 | FW3: 20 | FX3: 10
A4: DateAndTime | B4: FN-TPocket | C4: FN-TCheek | D4: FE-TPocket | E4: FE-TCheek | F4: FS-TPocket | G4: FS-TCheek | H4: Tint1 | I4: Tint2 | J4: BN1-MCheek | K4: BN1-MCheek-MC | L4: BN1-MJoistUp | M4: BN1-MJoistUp-MC | N4: BN1-MJoistLo | O4: BN1-MJoistLo-MC | P4: BN2-MCheek | Q4: BN2-MCheek-MC | R4: BN2-MJoistUp | S4: BN2-MJoistUp-MC | T4: BN2-MJoistLo | U4: BN2-MJoistLo-MC | V4: BN3-MCheek | W4: BN3-MCheek-MC | X4: BN3-MJoistUp | Y4: BN3-MJoistUp-MC | Z4: BN3-MJoistLo | AA4: BN3-MJoistLo-MC | AB4: BE1-MCheek | AC4: BE1-MCheek-MC | AD4: BE1-MJoistUp | AE4: BE1-MJoistUp-MC | AF4: BE1-MJoistLo | AG4: BE1-MJoistLo-MC | AH4: BE2-MCheek | AI4: BE2-MCheek-MC | AJ4: BE2-MJoistUp | AK4: BE2-MJoistUp-MC | AL4: BE2-MJoistLo | AM4: BE2-MJoistLo-MC | AN4: BS-MCheek | AO4: BS-MCheek-MC | AP4: BS-MJoistLeft | AQ4: BS-MJoistLeft-MC | AR4: BS-MJoistRight | AS4: BS-MJoistRight-MC | AT4: BW1-MCheek | AU4: BW1-MCheek-MC | AV4: BW1-MJoistUp | AW4: BW1-MJoistUp-MC | AX4: BW1-MJoistLo | AY4: BW1-MJoistLo-MC | AZ4: BW2-MCheek | BA4: BW2-MCheek-MC | BB4: BW2-MJoistUp | BC4: BW2-MJoistUp-MC | BD4: BW2-MJoistLo | BE4: BW2-MJoistLo-MC | BF4: FN-MCheek | BG4: FN-MCheek-MC | BH4: FN-MJoistLeft | BI4: FN-MJoistLeft-MC | BJ4: FN-MJoistRight | BK4: FN-MJoistRight-MC | BL4: FE-MCheek | BM4: FE-MCheek-MC | BN4: FE-MJoistUp | BO4: FE-MJoistUp-MC | BP4: FE-MJoistLo | BQ4: FE-MJoistLo-MC | BR4: FS-MJoistLeft | BS4: FS-MJoistLeft-MC | BT4: FS-MJoistRight | BU4: FS-MJoistRight-MC | BV4: BN1-RPocket | BW4: BN1-RPocket-C | BX4: BN1-RPocket-DP | BY4: BN2-RPocket | BZ4: BN2-RPocket-C | CA4: BN2-RPocket-DP | CB4: BN3-RPocket | CC4: BN3-RPocket-C | CD4: BN3-RPocket-DP | CE4: BE1-RPocket | CF4: BE1-RPocket-C | CG4: BE1-RPocket-DP | CH4: BE2-RPocket | CI4: BE2-RPocket-C | CJ4: BE2-RPocket-DP | CK4: BS-RPocket | CL4: BS-RPocket-C | CM4: BS-RPocket-DP | CN4: BW1-RPocket | CO4: BW1-RPocket-C | CP4: BW1-RPocket-DP | CQ4: BW2-RPocket | CR4: BW2-RPocket-C | CS4: BW2-RPocket-DP | CT4: FN-RPocket | CU4: FN-RPocket-C | CV4: FN-RPocket-DP | CW4: FE-RPocket | CX4: FE-RPocket-C | CY4: FE-RPocket-DP | CZ4: FS-RPocket | DA4: FS-RPocket-C | DB4: FS-RPocket-DP | DC4: RHint1 | DD4: RHint1-C | DE4: RHint1-DP | DF4: RHint2 | DG4: RHint2-C | DH4: RHint2-DP | DI4: Tamb | DJ4: RHamb | DK4: RHamb-C | DL4: RHamb-DP | DM4: BN1-TPocket | DN4: BN1-TCheek | DO4: BN2-TPocket | DP4: BN2-TCheek | DQ4: BN3-TPocket | DR4: BN3-TCheek | DS4: BE1-TPocket | DT4: BE1-TCheek | DU4: BE2-TPocket | DV4: BE2-TCheek | DW4: BS-TPocket | DX4: BS-TCheek | DY4: BW1-TPocket | DZ4: BW1-TCheek | EA4: BW2-TPocket | EB4: BW2-TCheek | ED4: Events | EF4: =BV3&" 30 Day Avg" -> BSMT-N1-RH 30 Day Avg | EG4: =DM3&" T 30 Day Avg" -> BSMT-N1 Pocket T 30 Day Avg | EH4: Pass/Fail | EI4: =BY3&" 30 Day Avg" -> BSMT-N2-RH 30 Day Avg | EJ4: =DO3&" T 30 Day Avg" -> BSMT-N2 Pocket T 30 Day Avg | EK4: Pass/Fail | EL4: =CB3&" 30 Day Avg" -> BSMT-N3-RH 30 Day Avg | EM4: =DR3&" T 30 Day Avg" -> BSMT-N3 Cheek T 30 Day Avg | EN4: Pass/Fail | EO4: =CE3&" 30 Day Avg" -> BSMT-E1-RH 30 Day Avg | EP4: =DS3&" T 30 Day Avg" -> BSMT-E1 Pocket T 30 Day Avg | EQ4: Pass/Fail | ER4: =CH3&" 30 Day Avg" -> BSMT-E2-RH 30 Day Avg | ES4: =DU3&" T 30 Day Avg" -> BSMT-E2 Pocket T 30 Day Avg | ET4: Pass/Fail | EU4: =CK3&" 30 Day Avg" -> BSMT-S-RH 30 Day Avg | EV4: =DW3&" T 30 Day Avg" -> BSMT-S Pocket T 30 Day Avg | EW4: Pass/Fail | EX4: =CN3&" 30 Day Avg" -> BSMT-W1-RH 30 Day Avg | EY4: =DY3&" T 30 Day Avg" -> BSMT-W1 Pocket T 30 Day Avg | EZ4: Pass/Fail | FA4: =CQ3&" 30 Day Avg" -> BSMT-W2-RH 30 Day Avg | FB4: =EA3&" T 30 Day Avg" -> BSMT-W2 Pocket T 30 Day Avg | FC4: Pass/Fail | FD4: =CT3&" 30 Day Avg" -> FIRST-N-RH 30 Day Avg | FE4: =B3&" T 30 Day Avg" -> FIRST-N Pocket T 30 Day Avg | FF4: Pass/Fail | FG4: =CW3&" 30 Day Avg" -> FIRST-E-RH 30 Day Avg | FH4: =D3&" T 30 Day Avg" -> FIRST-E Pocket T 30 Day Avg | FI4: Pass/Fail | FJ4: =CZ3&" 30 Day Avg" -> FIRST-S-RH 30 Day Avg | FK4: =F3&" T 30 Day Avg" -> FIRST-S Pocket T 30 Day Avg | FL4: Pass/Fail | FN4: BSMT-N1 | FO4: BSMT-N2 | FP4: BSMT-N3 | FQ4: BSMT-E1 | FR4: BSMT-E2 | FS4: BSMT-S | FT4: BSMT-W1 | FU4: BSMT-W2 | FV4: FIRST-N | FW4: FIRST-E | FX4: FIRST-S | FY4: Exterior T Avg
A5: 2012-12-12T12:00:00 | J5: 144 | L5: 20.29 | N5: 4.412 | P5: 74.82 | R5: 0.697 | T5: 1.429 | V5: 114.4 | X5: 2.125 | Z5: 0.473
A6: 2012-12-12T13:00:00 | J6: 153.2 | K6: 13.3 | L6: 19.33 | M6: 17.9 | N6: 4.384 | O6: 21.7 | P6: 75.75 | Q6: 14.5 | R6: 0.737 | S6: 28.4 | T6: 1.467 | U6: 25.6 | V6: 136.9 | W6: 13.4 | X6: 2.24 | Y6: 24 | Z6: 0.519 | AA6: 30 | AB6: 60.11 | AD6: 1.054 | AF6: 0.07 | AH6: 110 | AJ6: 0.306 | AL6: 0.102 | AN6: 2171 | AP6: 794.9 | AR6: 1171 | BV6: 88.2 | BW6: 84.88 | BX6: 4.84 | BY6: 108.5 | BZ6: 100 | CA6: 6.33 | CB6: 107.8 | CC6: 100 | CD6: 6.45 | DM6: 7.196 | DN6: 13.72 | DO6: 6.304 | DP6: 13.39 | DQ6: 6.426 | DR6: 14.35
A7: 2012-12-12T14:00:00 | J7: 161.5 | K7: 13.2 | L7: 18.6 | M7: 17.9 | N7: 4.343 | O7: 21.7 | P7: 80 | Q7: 14.3 | R7: 0.769 | S7: 28.1 | T7: 1.516 | U7: 25.4 | V7: 159.1 | W7: 13.1 | X7: 2.406 | Y7: 23.7 | Z7: 0.554 | AA7: 29.6 | AB7: 60.02 | AC7: 15.7 | AD7: 1.053 | AE7: 27.2 | AF7: 0.069 | AG7: 43.1 | AH7: 111.8 | AI7: 14.3 | AJ7: 0.317 | AK7: 32.6 | AL7: 0.106 | AM7: 39.5 | AN7: 2227 | AO7: 10 | AP7: 746.6 | AQ7: 11.6 | AR7: 1106 | AS7: 11.2 | AT7: 286.5 | AV7: 49.17 | AX7: 26.51 | AZ7: 477.7 | BB7: 72.02 | BD7: 4.697 | BV7: 87.9 | BW7: 84.67 | BX7: 5.24 | BY7: 107.6 | BZ7: 100 | CA7: 6.72 | CB7: 107 | CC7: 100 | CD7: 6.83 | CE7: 112.8 | CF7: 100 | CG7: 4.52 | CH7: 120.2 | CI7: 100 | CJ7: 5.81 | CK7: 74.33 | CL7: 71.81 | CM7: 4.22 | DM7: 7.634 | DN7: 14.32 | DO7: 6.699 | DP7: 14.01 | DQ7: 6.805 | DR7: 14.88 | DS7: 4.509 | DT7: 6.414 | DU7: 5.793 | DV7: 9.24 | DW7: 9.02 | DX7: 13.99
A8: 2012-12-12T15:00:00 | J8: 170.3 | K8: 13 | L8: 18.11 | M8: 17.9 | N8: 4.162 | O8: 21.8 | P8: 85.6 | Q8: 14.1 | R8: 0.785 | S8: 28 | T8: 1.574 | U8: 25.2 | V8: 182.8 | W8: 12.9 | X8: 2.616 | Y8: 23.4 | Z8: 0.574 | AA8: 29.4 | AB8: 58.6 | AC8: 15.7 | AD8: 1.024 | AE8: 27.3 | AF8: 0.067 | AG8: 43.4 | AH8: 114.1 | AI8: 14.2 | AJ8: 0.317 | AK8: 32.6 | AL8: 0.109 | AM8: 39.2 | AN8: 2227 | AO8: 10 | AP8: 696.4 | AQ8: 11.7 | AR8: 1012 | AS8: 11.2 | AT8: 28.92 | AU8: 17.1 | AV8: 9.79 | AW8: 19.8 | AX8: 2.114 | AY8: 24.4 | AZ8: 38.51 | BA8: 16.5 | BB8: 3.55 | BC8: 22.7 | BD8: 0.267 | BE8: 33.7 | BF8: 7.326 | BH8: 0.014 | BJ8: 0.749 | BL8: 213.9 | BN8: 211.4 | BP8: 385.5 | BR8: 4093 | BT8: 717.5 | BV8: 87.7 | BW8: 84.54 | BX8: 5.57 | BY8: 107.2 | BZ8: 100 | CA8: 7.05 | CB8: 106.6 | CC8: 100 | CD8: 7.15 | CE8: 112.5 | CF8: 100 | CG8: 4.47 | CH8: 118.8 | CI8: 100 | CJ8: 6.11 | CK8: 74.39 | CL8: 71.93 | CM8: 4.64 | CN8: 100.7 | CO8: 96.57 | CP8: 4.98 | CQ8: 107.7 | CR8: 100 | CS8: 5.21 | DM8: 7.995 | DN8: 14.67 | DO8: 7.029 | DP8: 14.41 | DQ8: 7.128 | DR8: 15.18 | DS8: 4.459 | DT8: 6.62 | DU8: 6.088 | DV8: 9.72 | DW8: 9.43 | DX8: 14.29 | DY8: 5.465 | DZ8: 6.737 | EA8: 5.19 | EB8: 6.515
A9: 2012-12-12T16:00:00 | B9: 5.054 | C9: 12.37 | D9: 5.112 | E9: 8.51 | F9: 8.44 | H9: 8.91 | J9: 212.3 | K9: 12.7 | L9: 17.9 | M9: 17.9 | N9: 4.141 | O9: 21.8 | P9: 102.9 | Q9: 13.8 | R9: 0.81 | S9: 27.8 | T9: 1.653 | U9: 25 | V9: 243.3 | W9: 12.5 | X9: 2.906 | Y9: 23 | Z9: 0.599 | AA9: 29.1 | AB9: 58.24 | AC9: 15.7 | AD9: 1.013 | AE9: 27.4 | AF9: 0.066 | AG9: 43.5 | AH9: 126 | AI9: 14 | AJ9: 0.328 | AK9: 32.3 | AL9: 0.113 | AM9: 38.9 | AN9: 2696 | AO9: 9.8 | AP9: 709.1 | AQ9: 11.6 | AR9: 982 | AS9: 11.3 | AT9: 29.04 | AU9: 17.1 | AV9: 10.07 | AW9: 19.7 | AX9: 2.084 | AY9: 24.4 | AZ9: 39.64 | BA9: 16.5 | BB9: 3.586 | BC9: 22.7 | BD9: 0.281 | BE9: 33.4 | BF9: 7.953 | BG9: 19.3 | BH9: 0.014 | BI9: 59.5 | BJ9: 0.739 | BK9: 28.6 | BL9: 221.7 | BM9: 13.3 | BN9: 213.1 | BO9: 13.7 | BP9: 384.8 | BQ9: 12.9 | BR9: 4132 | BS9: 9.9 | BT9: 709.1 | BU9: 11.8 | BV9: 87.5 | BW9: 84.4 | BX9: 5.8 | BY9: 106.9 | BZ9: 100 | CA9: 7.33 | CB9: 106.4 | CC9: 100 | CD9: 7.42 | CE9: 112.3 | CF9: 100 | CG9: 4.41 | CH9: 118.4 | CI9: 100 | CJ9: 6.39 | CK9: 74.59 | CL9: 72.17 | CM9: 4.99 | CN9: 100.4 | CO9: 96.28 | CP9: 4.94 | CQ9: 107.5 | CR9: 100 | CS9: 5.2 | CT9: 109.3 | CU9: 100 | CV9: 5.07 | CW9: 83.7 | CX9: 80.21 | CY9: 1.98 | CZ9: 72.97 | DA9: 70.41 | DB9: 3.38 | DC9: 54.01 | DD9: 52.17 | DE9: -0.27 | DM9: 8.25 | DN9: 14.76 | DO9: 7.307 | DP9: 14.55 | DQ9: 7.392 | DR9: 15.15 | DS9: 4.399 | DT9: 6.716 | DU9: 6.366 | DV9: 10.04 | DW9: 9.74 | DX9: 14.32 | DY9: 5.466 | DZ9: 6.819 | EA9: 5.187 | EB9: 6.616
A10: 2012-12-12T17:00:00 | B10: 5.257 | C10: 11.32 | D10: 5.341 | E10: 8.22 | F10: 8.64 | H10: 6.673 | J10: 283 | K10: 12.6 | L10: 20.01 | M10: 17.7 | N10: 4.324 | O10: 21.7 | P10: 139.6 | Q10: 13.7 | R10: 0.85 | S10: 27.6 | T10: 1.833 | U10: 24.6 | V10: 301.3 | W10: 12.6 | X10: 3.533 | Y10: 22.4 | Z10: 0.63 | AA10: 28.9 | AB10: 59.83 | AC10: 15.7 | AD10: 1.003 | AE10: 27.4 | AF10: 0.065 | AG10: 43.6 | AH10: 145 | AI10: 13.9 | AJ10: 0.343 | AK10: 32.1 | AL10: 0.117 | AM10: 38.6 | AN10: 3308 | AO10: 9.8 | AP10: 784.4 | AQ10: 11.5 | AR10: 997 | AS10: 11.3 | AT10: 29.91 | AU10: 17 | AV10: 10.37 | AW10: 19.6 | AX10: 2.074 | AY10: 24.5 | AZ10: 41.32 | BA10: 16.4 | BB10: 3.649 | BC10: 22.6 | BD10: 0.292 | BE10: 33.2 | BF10: 9.09 | BG10: 19.1 | BH10: 0.014 | BI10: 59.4 | BJ10: 0.734 | BK10: 28.6 | BL10: 237.2 | BM10: 13.2 | BN10: 218.2 | BO10: 13.7 | BP10: 383.5 | BQ10: 12.9 | BR10: 4105 | BS10: 9.9 | BT10: 698.7 | BU10: 11.8 | BV10: 88.8 | BW10: 85.61 | BX10: 5.81 | BY10: 108 | BZ10: 100 | CA10: 7.38 | CB10: 107.6 | CC10: 100 | CD10: 7.39 | CE10: 112.3 | CF10: 100 | CG10: 4.37 | CH10: 119 | CI10: 100 | CJ10: 6.45 | CK10: 76.17 | CL10: 73.65 | CM10: 4.96 | CN10: 100.4 | CO10: 96.26 | CP10: 4.83 | CQ10: 107.4 | CR10: 100 | CS10: 5.19 | CT10: 109.4 | CU10: 100 | CV10: 5.28 | CW10: 84.2 | CX10: 80.72 | CY10: 2.3 | CZ10: 72.99 | DA10: 70.46 | DB10: 3.58 | DC10: 57.09 | DD10: 54.88 | DE10: -1.59 | DI10: 2.09 | DJ10: 58.96 | DK10: 58.96 | DL10: -4.79 | DM10: 8.05 | DN10: 11.5 | DO10: 7.357 | DP10: 11.75 | DQ10: 7.366 | DR10: 11.27 | DS10: 4.36 | DT10: 6.605 | DU10: 6.428 | DV10: 8.87 | DW10: 9.41 | DX10: 11.71 | DY10: 5.357 | DZ10: 6.744 | EA10: 5.173 | EB10: 6.526
A11: 2012-12-12T18:00:00 | B11: 5.347 | C11: 10.03 | D11: 5.429 | E11: 7.658 | F11: 8.62 | H11: 5.737 | J11: 336 | K11: 12.7 | L11: 22.44 | M11: 17.5 | N11: 4.559 | O11: 21.6 | P11: 165 | Q11: 13.7 | R11: 0.906 | S11: 27.4 | T11: 2.003 | U11: 24.3 | V11: 350.7 | W11: 12.6 | X11: 4.051 | Y11: 22 | Z11: 0.672 | AA11: 28.7 | AB11: 61.54 | AC11: 15.7 | AD11: 1.002 | AE11: 27.5 | AF11: 0.064 | AG11: 43.8 | AH11: 157.7 | AI11: 13.9 | AJ11: 0.371 | AK11: 31.7 | AL11: 0.122 | AM11: 38.4 | AN11: 3736 | AO11: 9.9 | AP11: 836 | AQ11: 11.5 | AR11: 1066 | AS11: 11.3 | AT11: 31.07 | AU11: 17 | AV11: 10.7 | AW11: 19.5 | AX11: 2.098 | AY11: 24.4 | AZ11: 42.73 | BA11: 16.3 | BB11: 3.719 | BC11: 22.6 | BD11: 0.301 | BE11: 33.1 | BF11: 10.04 | BG11: 19.1 | BH11: 0.014 | BI11: 59.4 | BJ11: 0.746 | BK11: 28.5 | BL11: 252.4 | BM11: 13.2 | BN11: 227.3 | BO11: 13.6 | BP11: 387.5 | BQ11: 12.8 | BR11: 4131 | BS11: 9.9 | BT11: 697.7 | BU11: 11.8 | BV11: 90.1 | BW11: 86.76 | BX11: 5.41 | BY11: 109.7 | BZ11: 100 | CA11: 7.06 | CB11: 109.6 | CC11: 100 | CD11: 6.93 | CE11: 112.3 | CF11: 100 | CG11: 4.3 | CH11: 119.3 | CI11: 100 | CJ11: 6.18 | CK11: 78.13 | CL11: 75.44 | CM11: 4.71 | CN11: 100.6 | CO11: 96.47 | CP11: 4.96 | CQ11: 107.5 | CR11: 100 | CS11: 5.15 | CT11: 109.7 | CU11: 100 | CV11: 5.37 | CW11: 84.8 | CX11: 81.31 | CY11: 2.49 | CZ11: 73.21 | DA11: 70.67 | DB11: 3.61 | DC11: 59.94 | DD11: 57.51 | DE11: -1.82 | DI11: 0.842 | DJ11: 67.24 | DK11: 67.24 | DL11: -4.26 | DM11: 7.447 | DN11: 9.06 | DO11: 7.03 | DP11: 9.33 | DQ11: 6.905 | DR11: 8.88 | DS11: 4.285 | DT11: 6.262 | DU11: 6.159 | DV11: 7.56 | DW11: 8.79 | DX11: 9.43 | DY11: 5.456 | DZ11: 6.558 | EA11: 5.132 | EB11: 6.306
A12: 2012-12-12T19:00:00 | B12: 5.331 | C12: 9.11 | D12: 5.396 | E12: 7.204 | F12: 8.46 | H12: 5.447 | J12: 370.6 | K12: 12.7 | L12: 24.28 | M12: 17.4 | N12: 4.756 | O12: 21.5 | P12: 178.6 | Q12: 13.7 | R12: 0.958 | S12: 27.2 | T12: 2.132 | U12: 24.2 | V12: 381.2 | W12: 12.6 | X12: 4.442 | Y12: 21.8 | Z12: 0.709 | AA12: 28.5 | AB12: 63.08 | AC12: 15.7 | AD12: 1.001 | AE12: 27.5 | AF12: 0.063 | AG12: 44 | AH12: 166.3 | AI12: 13.9 | AJ12: 0.391 | AK12: 31.5 | AL12: 0.127 | AM12: 38.2 | AN12: 3915 | AO12: 9.9 | AP12: 874 | AQ12: 11.5 | AR12: 1129 | AS12: 11.2 | AT12: 32.12 | AU12: 16.9 | AV12: 11.05 | AW12: 19.5 | AX12: 2.132 | AY12: 24.4 | AZ12: 43.99 | BA12: 16.3 | BB12: 3.785 | BC12: 22.5 | BD12: 0.308 | BE12: 33 | BF12: 10.89 | BG12: 19 | BH12: 0.014 | BI12: 59.4 | BJ12: 0.762 | BK12: 28.4 | BL12: 265.2 | BM12: 13.2 | BN12: 236.1 | BO12: 13.6 | BP12: 393.8 | BQ12: 12.8 | BR12: 4169 | BS12: 9.9 | BT12: 713.7 | BU12: 11.8 | BV12: 90.8 | BW12: 87.34 | BX12: 4.99 | BY12: 110.6 | BZ12: 100 | CA12: 6.66 | CB12: 110.7 | CC12: 100 | CD12: 6.47 | CE12: 112.4 | CF12: 100 | CG12: 4.21 | CH12: 119.3 | CI12: 100 | CJ12: 5.88 | CK12: 79.43 | CL12: 76.61 | CM12: 4.41 | CN12: 100.7 | CO12: 96.56 | CP12: 4.93 | CQ12: 107.7 | CR12: 100 | CS12: 5.09 | CT12: 109.9 | CU12: 100 | CV12: 5.35 | CW12: 85.2 | CX12: 81.69 | CY12: 2.52 | CZ12: 73.3 | DA12: 70.73 | DB12: 3.46 | DC12: 61.43 | DD12: 58.91 | DE12: -1.77 | DI12: 0.928 | DJ12: 67.06 | DK12: 67.06 | DL12: -4.21 | DM12: 6.926 | DN12: 7.869 | DO12: 6.637 | DP12: 8.02 | DQ12: 6.449 | DR12: 7.664 | DS12: 4.198 | DT12: 5.959 | DU12: 5.855 | DV12: 6.767 | DW12: 8.26 | DX12: 8.25 | DY12: 5.419 | DZ12: 6.389 | EA12: 5.071 | EB12: 6.106
A13: 2012-12-12T20:00:00 | B13: 5.266 | C13: 8.39 | D13: 5.297 | E13: 6.839 | F13: 8.24 | H13: 5.241 | J13: 396.3 | K13: 12.6 | L13: 25.75 | M13: 17.4 | N13: 4.921 | O13: 21.5 | P13: 202.8 | Q13: 13.6 | R13: 1.003 | S13: 27.1 | T13: 2.23 | U13: 24.1 | V13: 401.3 | W13: 12.6 | X13: 4.731 | Y13: 21.7 | Z13: 0.74 | AA13: 28.4 | AB13: 64.65 | AC13: 15.6 | AD13: 1.003 | AE13: 27.5 | AF13: 0.063 | AG13: 44 | AH13: 173.1 | AI13: 13.9 | AJ13: 0.413 | AK13: 31.3 | AL13: 0.131 | AM13: 38.1 | AN13: 4084 | AO13: 10 | AP13: 904 | AQ13: 11.5 | AR13: 1183 | AS13: 11.2 | AT13: 33.24 | AU13: 16.9 | AV13: 11.38 | AW13: 19.4 | AX13: 2.173 | AY13: 24.3 | AZ13: 45.22 | BA13: 16.3 | BB13: 3.846 | BC13: 22.5 | BD13: 0.314 | BE13: 32.9 | BF13: 11.65 | BG13: 18.9 | BH13: 0.014 | BI13: 59.4 | BJ13: 0.778 | BK13: 28.4 | BL13: 277.8 | BM13: 13.2 | BN13: 245 | BO13: 13.5 | BP13: 402.3 | BQ13: 12.8 | BR13: 4274 | BS13: 9.9 | BT13: 719.2 | BU13: 11.8 | BV13: 91.2 | BW13: 87.65 | BX13: 4.63 | BY13: 111.2 | BZ13: 100 | CA13: 6.3 | CB13: 111.4 | CC13: 100 | CD13: 6.09 | CE13: 112.6 | CF13: 100 | CG13: 4.12 | CH13: 119.5 | CI13: 100 | CJ13: 5.61 | CK13: 80.3 | CL13: 77.39 | CM13: 4.16 | CN13: 100.9 | CO13: 96.74 | CP13: 4.9 | CQ13: 108 | CR13: 100 | CS13: 5.02 | CT13: 110.2 | CU13: 100 | CV13: 5.28 | CW13: 85.4 | CX13: 81.87 | CY13: 2.45 | CZ13: 73.3 | DA13: 70.7 | DB13: 3.24 | DC13: 61.39 | DD13: 58.84 | DE13: -1.97 | DI13: 0.791 | DJ13: 66.13 | DK13: 66.13 | DL13: -4.52 | DM13: 6.513 | DN13: 7.131 | DO13: 6.279 | DP13: 7.203 | DQ13: 6.064 | DR13: 6.953 | DS13: 4.112 | DT13: 5.691 | DU13: 5.591 | DV13: 6.244 | DW13: 7.85 | DX13: 7.562 | DY13: 5.361 | DZ13: 6.229 | EA13: 5.006 | EB13: 5.922
A14: 2012-12-12T21:00:00 | B14: 5.152 | C14: 7.831 | D14: 5.166 | E14: 6.519 | F14: 7.971 | H14: 4.939 | J14: 418.6 | K14: 12.6 | L14: 27.01 | M14: 17.3 | N14: 5.066 | O14: 21.5 | P14: 215.4 | Q14: 13.6 | R14: 1.044 | S14: 27 | T14: 2.312 | U14: 24 | V14: 415.8 | W14: 12.6 | X14: 4.975 | Y14: 21.6 | Z14: 0.768 | AA14: 28.3 | AB14: 65.95 | AC14: 15.6 | AD14: 1.002 | AE14: 27.5 | AF14: 0.062 | AG14: 44.1 | AH14: 178 | AI14: 13.9 | AJ14: 0.427 | AK14: 31.2 | AL14: 0.134 | AM14: 38 | AN14: 4150 | AO14: 10 | AP14: 933 | AQ14: 11.5 | AR14: 1243 | AS14: 11.2 | AT14: 34.4 | AU14: 16.8 | AV14: 11.7 | AW14: 19.3 | AX14: 2.201 | AY14: 24.3 | AZ14: 46.31 | BA14: 16.3 | BB14: 3.903 | BC14: 22.5 | BD14: 0.319 | BE14: 32.8 | BF14: 12.29 | BG14: 18.9 | BH14: 0.014 | BI14: 59.5 | BJ14: 0.795 | BK14: 28.3 | BL14: 288.4 | BM14: 13.1 | BN14: 251.9 | BO14: 13.5 | BP14: 410.4 | BQ14: 12.8 | BR14: 4378 | BS14: 9.9 | BT14: 745 | BU14: 11.8 | BV14: 91.5 | BW14: 87.87 | BX14: 4.32 | BY14: 111.6 | BZ14: 100 | CA14: 5.97 | CB14: 111.9 | CC14: 100 | CD14: 5.74 | CE14: 112.7 | CF14: 100 | CG14: 4.03 | CH14: 119.6 | CI14: 100 | CJ14: 5.36 | CK14: 80.9 | CL14: 77.91 | CM14: 3.91 | CN14: 101 | CO14: 96.82 | CP14: 4.84 | CQ14: 108 | CR14: 100 | CS14: 4.94 | CT14: 110.4 | CU14: 100 | CV14: 5.17 | CW14: 85.4 | CX14: 81.84 | CY14: 2.32 | CZ14: 73.29 | DA14: 70.65 | DB14: 2.97 | DC14: 62.03 | DD14: 59.42 | DE14: -2.11 | DI14: 0.765 | DJ14: 66.47 | DK14: 66.47 | DL14: -4.48 | DM14: 6.163 | DN14: 6.602 | DO14: 5.952 | DP14: 6.602 | DQ14: 5.721 | DR14: 6.426 | DS14: 4.017 | DT14: 5.448 | DU14: 5.344 | DV14: 5.838 | DW14: 7.495 | DX14: 7.072 | DY14: 5.288 | DZ14: 6.076 | EA14: 4.919 | EB14: 5.751
A15: 2012-12-12T22:00:00 | B15: 5.028 | C15: 7.363 | D15: 5.009 | E15: 6.22 | F15: 7.687 | H15: 4.648 | J15: 435.5 | K15: 12.6 | L15: 28.11 | M15: 17.3 | N15: 5.202 | O15: 21.4 | P15: 220.5 | Q15: 13.6 | R15: 1.08 | S15: 26.9 | T15: 2.38 | U15: 23.9 | V15: 427.2 | W15: 12.7 | X15: 5.177 | Y15: 21.5 | Z15: 0.793 | AA15: 28.2 | AB15: 67.25 | AC15: 15.6 | AD15: 1.002 | AE15: 27.5 | AF15: 0.061 | AG15: 44.3 | AH15: 184 | AI15: 13.9 | AJ15: 0.44 | AK15: 31.1 | AL15: 0.138 | AM15: 37.8 | AN15: 4218 | AO15: 10 | AP15: 956 | AQ15: 11.5 | AR15: 1284 | AS15: 11.2 | AT15: 35.41 | AU15: 16.8 | AV15: 11.99 | AW15: 19.3 | AX15: 2.229 | AY15: 24.3 | AZ15: 47.32 | BA15: 16.2 | BB15: 3.952 | BC15: 22.4 | BD15: 0.323 | BE15: 32.8 | BF15: 12.88 | BG15: 18.8 | BH15: 0.014 | BI15: 59.5 | BJ15: 0.811 | BK15: 28.2 | BL15: 299 | BM15: 13.1 | BN15: 259.2 | BO15: 13.5 | BP15: 419.5 | BQ15: 12.8 | BR15: 4509 | BS15: 9.9 | BT15: 761.3 | BU15: 11.8 | BV15: 91.6 | BW15: 87.91 | BX15: 4.02 | BY15: 112 | BZ15: 100 | CA15: 5.68 | CB15: 112.2 | CC15: 100 | CD15: 5.44 | CE15: 112.9 | CF15: 100 | CG15: 3.92 | CH15: 119.7 | CI15: 100 | CJ15: 5.13 | CK15: 81.3 | CL15: 78.24 | CM15: 3.65 | CN15: 101.1 | CO15: 96.9 | CP15: 4.76 | CQ15: 108.1 | CR15: 100 | CS15: 4.84 | CT15: 110.5 | CU15: 100 | CV15: 5.04 | CW15: 85.5 | CX15: 81.91 | CY15: 2.18 | CZ15: 73.21 | DA15: 70.53 | DB15: 2.67 | DC15: 63.42 | DD15: 60.71 | DE15: -2.1 | DI15: 0.318 | DJ15: 70.87 | DK15: 70.87 | DL15: -4.07 | DM15: 5.858 | DN15: 6.177 | DO15: 5.662 | DP15: 6.136 | DQ15: 5.423 | DR15: 5.998 | DS15: 3.915 | DT15: 5.236 | DU15: 5.115 | DV15: 5.483 | DW15: 7.176 | DX15: 6.686 | DY15: 5.193 | DZ15: 5.921 | EA15: 4.826 | EB15: 5.588
A16: 2012-12-12T23:00:00 | B16: 4.886 | C16: 6.962 | D16: 4.837 | E16: 5.947 | F16: 7.393 | H16: 4.261 | J16: 451.9 | K16: 12.6 | L16: 29.14 | M16: 17.2 | N16: 5.332 | O16: 21.4 | P16: 236.3 | Q16: 13.5 | R16: 1.115 | S16: 26.8 | T16: 2.442 | U16: 23.9 | V16: 436.4 | W16: 12.7 | X16: 5.349 | Y16: 21.5 | Z16: 0.816 | AA16: 28.2 | AB16: 68.54 | AC16: 15.6 | AD16: 1 | AE16: 27.6 | AF16: 0.061 | AG16: 44.3 | AH16: 188.8 | AI16: 13.9 | AJ16: 0.453 | AK16: 31 | AL16: 0.141 | AM16: 37.7 | AN16: 4314 | AO16: 10 | AP16: 992 | AQ16: 11.5 | AR16: 1333 | AS16: 11.2 | AT16: 36.49 | AU16: 16.7 | AV16: 12.28 | AW16: 19.3 | AX16: 2.263 | AY16: 24.2 | AZ16: 48.24 | BA16: 16.2 | BB16: 4 | BC16: 22.4 | BD16: 0.327 | BE16: 32.7 | BF16: 13.42 | BG16: 18.8 | BH16: 0.014 | BI16: 59.6 | BJ16: 0.827 | BK16: 28.2 | BL16: 309.1 | BM16: 13.1 | BN16: 267.4 | BO16: 13.4 | BP16: 429.3 | BQ16: 12.8 | BR16: 4729 | BS16: 9.8 | BT16: 787.4 | BU16: 11.7 | BV16: 91.8 | BW16: 88.05 | BX16: 3.77 | BY16: 112.2 | BZ16: 100 | CA16: 5.41 | CB16: 112.4 | CC16: 100 | CD16: 5.17 | CE16: 112.9 | CF16: 100 | CG16: 3.82 | CH16: 119.9 | CI16: 100 | CJ16: 4.92 | CK16: 81.7 | CL16: 78.58 | CM16: 3.42 | CN16: 101 | CO16: 96.78 | CP16: 4.63 | CQ16: 108.2 | CR16: 100 | CS16: 4.74 | CT16: 110.7 | CU16: 100 | CV16: 4.9 | CW16: 85.5 | CX16: 81.88 | CY16: 2 | CZ16: 73.12 | DA16: 70.4 | DB16: 2.36 | DC16: 64.73 | DD16: 61.92 | DE16: -2.19 | DI16: -0.577 | DJ16: 75.57 | DK16: 75.57 | DL16: -4.15 | DM16: 5.58 | DN16: 5.789 | DO16: 5.393 | DP16: 5.733 | DQ16: 5.149 | DR16: 5.625 | DS16: 3.806 | DT16: 5.044 | DU16: 4.902 | DV16: 5.148 | DW16: 6.877 | DX16: 6.329 | DY16: 5.086 | DZ16: 5.771 | EA16: 4.725 | EB16: 5.437
A17: 2012-12-13 | B17: 4.723 | C17: 6.605 | D17: 4.667 | E17: 5.68 | F17: 7.092 | H17: 3.966 | J17: 465 | K17: 12.6 | L17: 30.08 | M17: 17.2 | N17: 5.441 | O17: 21.4 | P17: 248.6 | Q17: 13.5 | R17: 1.142 | S17: 26.8 | T17: 2.496 | U17: 23.9 | V17: 444.8 | W17: 12.7 | X17: 5.488 | Y17: 21.4 | Z17: 0.836 | AA17: 28.1 | AB17: 69.51 | AC17: 15.6 | AD17: 0.998 | AE17: 27.6 | AF17: 0.06 | AG17: 44.5 | AH17: 193.7 | AI17: 13.9 | AJ17: 0.463 | AK17: 30.9 | AL17: 0.143 | AM17: 37.7 | AN17: 4359 | AO17: 10 | AP17: 1010 | AQ17: 11.5 | AR17: 1376 | AS17: 11.2 | AT17: 37.4 | AU17: 16.7 | AV17: 12.52 | AW17: 19.2 | AX17: 2.285 | AY17: 24.2 | AZ17: 49.13 | BA17: 16.2 | BB17: 4.044 | BC17: 22.4 | BD17: 0.33 | BE17: 32.7 | BF17: 13.92 | BG17: 18.7 | BH17: 0.014 | BI17: 59.6 | BJ17: 0.842 | BK17: 28.1 | BL17: 318 | BM17: 13.1 | BN17: 273.7 | BO17: 13.4 | BP17: 438.6 | BQ17: 12.8 | BR17: 4843 | BS17: 9.8 | BT17: 808 | BU17: 11.7 | BV17: 91.9 | BW17: 88.1 | BX17: 3.52 | BY17: 112.4 | BZ17: 100 | CA17: 5.16 | CB17: 112.7 | CC17: 100 | CD17: 4.92 | CE17: 113 | CF17: 100 | CG17: 3.71 | CH17: 120 | CI17: 100 | CJ17: 4.71 | CK17: 82 | CL17: 78.82 | CM17: 3.19 | CN17: 101.1 | CO17: 96.85 | CP17: 4.52 | CQ17: 108.2 | CR17: 100 | CS17: 4.63 | CT17: 110.8 | CU17: 100 | CV17: 4.74 | CW17: 85.5 | CX17: 81.86 | CY17: 1.83 | CZ17: 73.04 | DA17: 70.28 | DB17: 2.05 | DC17: 65.49 | DD17: 62.61 | DE17: -2.32 | DI17: -0.979 | DJ17: 77.28 | DK17: 77.28 | DL17: -4.29 | DM17: 5.321 | DN17: 5.46 | DO17: 5.145 | DP17: 5.376 | DQ17: 4.901 | DR17: 5.296 | DS17: 3.703 | DT17: 4.86 | DU17: 4.696 | DV17: 4.827 | DW17: 6.595 | DX17: 5.995 | DY17: 4.964 | DZ17: 5.622 | EA17: 4.617 | EB17: 5.291
A18: 2012-12-13T01:00:00 | B18: 4.544 | C18: 6.28 | D18: 4.474 | E18: 5.421 | F18: 6.783 | H18: 3.725 | J18: 475.5 | K18: 12.6 | L18: 30.99 | M18: 17.1 | N18: 5.558 | O18: 21.4 | P18: 260.3 | Q18: 13.4 | R18: 1.171 | S18: 26.7 | T18: 2.548 | U18: 23.8 | V18: 453.1 | W18: 12.7 | X18: 5.635 | Y18: 21.4 | Z18: 0.854 | AA18: 28.1 | AB18: 70.49 | AC18: 15.6 | AD18: 0.996 | AE18: 27.6 | AF18: 0.059 | AG18: 44.7 | AH18: 196.8 | AI18: 13.9 | AJ18: 0.472 | AK18: 30.9 | AL18: 0.145 | AM18: 37.6 | AN18: 4445 | AO18: 10.1 | AP18: 1041 | AQ18: 11.5 | AR18: 1433 | AS18: 11.2 | AT18: 38.47 | AU18: 16.7 | AV18: 12.81 | AW18: 19.2 | AX18: 2.336 | AY18: 24.1 | AZ18: 50.07 | BA18: 16.2 | BB18: 4.088 | BC18: 22.4 | BD18: 0.334 | BE18: 32.6 | BF18: 14.43 | BG18: 18.7 | BH18: 0.014 | BI18: 59.7 | BJ18: 0.86 | BK18: 28.1 | BL18: 327.6 | BM18: 13.1 | BN18: 281.2 | BO18: 13.4 | BP18: 448.2 | BQ18: 12.8 | BR18: 5059 | BS18: 9.8 | BT18: 834 | BU18: 11.7 | BV18: 92 | BW18: 88.15 | BX18: 3.29 | BY18: 112.5 | BZ18: 100 | CA18: 4.93 | CB18: 112.8 | CC18: 100 | CD18: 4.68 | CE18: 113.1 | CF18: 100 | CG18: 3.6 | CH18: 120.2 | CI18: 100 | CJ18: 4.51 | CK18: 82.3 | CL18: 79.06 | CM18: 2.96 | CN18: 101.1 | CO18: 96.83 | CP18: 4.39 | CQ18: 108.3 | CR18: 100 | CS18: 4.52 | CT18: 111 | CU18: 100 | CV18: 4.56 | CW18: 85.5 | CX18: 81.82 | CY18: 1.63 | CZ18: 72.9 | DA18: 70.1 | DB18: 1.71 | DC18: 65.91 | DD18: 62.98 | DE18: -2.46 | DI18: -1.381 | DJ18: 79.02 | DK18: 79.02 | DL18: -4.43 | DM18: 5.08 | DN18: 5.157 | DO18: 4.909 | DP18: 5.059 | DQ18: 4.664 | DR18: 4.993 | DS18: 3.591 | DT18: 4.69 | DU18: 4.497 | DV18: 4.554 | DW18: 6.312 | DX18: 5.682 | DY18: 4.841 | DZ18: 5.471 | EA18: 4.503 | EB18: 5.143
A19: 2012-12-13T02:00:00 | B19: 4.349 | C19: 5.979 | D19: 4.271 | E19: 5.183 | F19: 6.473 | H19: 3.532 | J19: 487.4 | K19: 12.6 | L19: 31.83 | M19: 17.1 | N19: 5.663 | O19: 21.4 | P19: 261.6 | Q19: 13.5 | R19: 1.198 | S19: 26.7 | T19: 2.597 | U19: 23.8 | V19: 457.4 | W19: 12.7 | X19: 5.746 | Y19: 21.4 | Z19: 0.872 | AA19: 28 | AB19: 71.49 | AC19: 15.6 | AD19: 0.993 | AE19: 27.7 | AF19: 0.058 | AG19: 44.9 | AH19: 200.5 | AI19: 13.9 | AJ19: 0.479 | AK19: 30.8 | AL19: 0.147 | AM19: 37.6 | AN19: 4514 | AO19: 10.1 | AP19: 1069 | AQ19: 11.5 | AR19: 1477 | AS19: 11.1 | AT19: 40.14 | AU19: 16.6 | AV19: 13.06 | AW19: 19.2 | AX19: 2.366 | AY19: 24.1 | AZ19: 50.92 | BA19: 16.2 | BB19: 4.13 | BC19: 22.4 | BD19: 0.337 | BE19: 32.6 | BF19: 14.9 | BG19: 18.7 | BH19: 0.014 | BI19: 59.8 | BJ19: 0.876 | BK19: 28 | BL19: 336.4 | BM19: 13.1 | BN19: 288.7 | BO19: 13.4 | BP19: 457.9 | BQ19: 12.7 | BR19: 5274 | BS19: 9.8 | BT19: 858 | BU19: 11.7 | BV19: 92 | BW19: 88.11 | BX19: 3.06 | BY19: 112.6 | BZ19: 100 | CA19: 4.7 | CB19: 113 | CC19: 100 | CD19: 4.45 | CE19: 113.2 | CF19: 100 | CG19: 3.49 | CH19: 120.3 | CI19: 100 | CJ19: 4.31 | CK19: 82.6 | CL19: 79.31 | CM19: 2.75 | CN19: 101.1 | CO19: 96.8 | CP19: 4.25 | CQ19: 108.3 | CR19: 100 | CS19: 4.39 | CT19: 111.1 | CU19: 100 | CV19: 4.36 | CW19: 85.6 | CX19: 81.88 | CY19: 1.44 | CZ19: 72.77 | DA19: 69.93 | DB19: 1.38 | DC19: 66.53 | DD19: 63.55 | DE19: -2.52 | DI19: -1.488 | DJ19: 79.96 | DK19: 79.96 | DL19: -4.39 | DM19: 4.854 | DN19: 4.897 | DO19: 4.689 | DP19: 4.783 | DQ19: 4.439 | DR19: 4.734 | DS19: 3.483 | DT19: 4.524 | DU19: 4.297 | DV19: 4.306 | DW19: 6.055 | DX19: 5.417 | DY19: 4.701 | DZ19: 5.325 | EA19: 4.373 | EB19: 4.995
A20: 2012-12-13T03:00:00 | B20: 4.152 | C20: 5.704 | D20: 4.067 | E20: 4.95 | F20: 6.174 | H20: 3.288 | J20: 495.1 | K20: 12.6 | L20: 32.63 | M20: 17.1 | N20: 5.759 | O20: 21.3 | P20: 272 | Q20: 13.4 | R20: 1.224 | S20: 26.6 | T20: 2.644 | U20: 23.8 | V20: 462.3 | W20: 12.7 | X20: 5.865 | Y20: 21.3 | Z20: 0.889 | AA20: 28 | AB20: 72.44 | AC20: 15.6 | AD20: 0.993 | AE20: 27.7 | AF20: 0.058 | AG20: 44.9 | AH20: 204 | AI20: 13.9 | AJ20: 0.49 | AK20: 30.7 | AL20: 0.149 | AM20: 37.6 | AN20: 4558 | AO20: 10.1 | AP20: 1089 | AQ20: 11.5 | AR20: 1530 | AS20: 11.1 | AT20: 40.86 | AU20: 16.6 | AV20: 13.35 | AW20: 19.1 | AX20: 2.393 | AY20: 24.1 | AZ20: 51.81 | BA20: 16.2 | BB20: 4.175 | BC20: 22.4 | BD20: 0.339 | BE20: 32.6 | BF20: 15.37 | BG20: 18.6 | BH20: 0.014 | BI20: 59.8 | BJ20: 0.894 | BK20: 28 | BL20: 345.7 | BM20: 13.1 | BN20: 296.7 | BO20: 13.4 | BP20: 469.4 | BQ20: 12.7 | BR20: 5434 | BS20: 9.8 | BT20: 882 | BU20: 11.7 | BV20: 92.2 | BW20: 88.27 | BX20: 2.88 | BY20: 112.8 | BZ20: 100 | CA20: 4.49 | CB20: 113 | CC20: 100 | CD20: 4.24 | CE20: 113.3 | CF20: 100 | CG20: 3.38 | CH20: 120.4 | CI20: 100 | CJ20: 4.12 | CK20: 82.7 | CL20: 79.36 | CM20: 2.5 | CN20: 101.1 | CO20: 96.77 | CP20: 4.1 | CQ20: 108.3 | CR20: 100 | CS20: 4.26 | CT20: 111.1 | CU20: 100 | CV20: 4.16 | CW20: 85.5 | CX20: 81.75 | CY20: 1.22 | CZ20: 72.61 | DA20: 69.73 | DB20: 1.05 | DC20: 67.29 | DD20: 64.24 | DE20: -2.6 | DI20: -1.669 | DJ20: 81.2 | DK20: 81.2 | DL20: -4.39 | DM20: 4.646 | DN20: 4.664 | DO20: 4.479 | DP20: 4.535 | DQ20: 4.229 | DR20: 4.503 | DS20: 3.37 | DT20: 4.365 | DU20: 4.109 | DV20: 4.075 | DW20: 5.797 | DX20: 5.168 | DY20: 4.561 | DZ20: 5.182 | EA20: 4.245 | EB20: 4.852
A21: 2012-12-13T04:00:00 | B21: 3.947 | C21: 5.445 | D21: 3.862 | E21: 4.728 | F21: 5.876 | H21: 3.037 | J21: 505.5 | K21: 12.6 | L21: 33.41 | M21: 17.1 | N21: 5.872 | O21: 21.3 | P21: 271.6 | Q21: 13.5 | R21: 1.249 | S21: 26.6 | T21: 2.688 | U21: 23.8 | V21: 466.9 | W21: 12.7 | X21: 5.979 | Y21: 21.3 | Z21: 0.906 | AA21: 27.9 | AB21: 73.44 | AC21: 15.6 | AD21: 0.992 | AE21: 27.7 | AF21: 0.057 | AG21: 45.1 | AH21: 207.8 | AI21: 13.9 | AJ21: 0.496 | AK21: 30.7 | AL21: 0.152 | AM21: 37.5 | AN21: 4638 | AO21: 10.1 | AP21: 1112 | AQ21: 11.5 | AR21: 1576 | AS21: 11.1 | AT21: 42.39 | AU21: 16.5 | AV21: 13.63 | AW21: 19.1 | AX21: 2.436 | AY21: 24.1 | AZ21: 52.67 | BA21: 16.1 | BB21: 4.221 | BC21: 22.3 | BD21: 0.342 | BE21: 32.6 | BF21: 15.83 | BG21: 18.6 | BH21: 0.014 | BI21: 59.9 | BJ21: 0.912 | BK21: 27.9 | BL21: 355.1 | BM21: 13 | BN21: 303.6 | BO21: 13.4 | BP21: 481.6 | BQ21: 12.7 | BR21: 5578 | BS21: 9.8 | BT21: 911 | BU21: 11.7 | BV21: 92.2 | BW21: 88.23 | BX21: 2.67 | BY21: 112.9 | BZ21: 100 | CA21: 4.28 | CB21: 113.2 | CC21: 100 | CD21: 4.03 | CE21: 113.3 | CF21: 100 | CG21: 3.26 | CH21: 120.6 | CI21: 100 | CJ21: 3.93 | CK21: 82.8 | CL21: 79.42 | CM21: 2.28 | CN21: 101.1 | CO21: 96.74 | CP21: 3.96 | CQ21: 108.4 | CR21: 100 | CS21: 4.12 | CT21: 111.2 | CU21: 100 | CV21: 3.96 | CW21: 85.4 | CX21: 81.62 | CY21: 0.99 | CZ21: 72.52 | DA21: 69.6 | DB21: 0.73 | DC21: 68.1 | DD21: 64.98 | DE21: -2.68 | DI21: -2.166 | DJ21: 84 | DK21: 84 | DL21: -4.48 | DM21: 4.441 | DN21: 4.43 | DO21: 4.271 | DP21: 4.303 | DQ21: 4.019 | DR21: 4.27 | DS21: 3.253 | DT21: 4.212 | DU21: 3.922 | DV21: 3.857 | DW21: 5.555 | DX21: 4.925 | DY21: 4.417 | DZ21: 5.035 | EA21: 4.11 | EB21: 4.706
A22: 2012-12-13T05:00:00 | B22: 3.743 | C22: 5.191 | D22: 3.653 | E22: 4.502 | F22: 5.583 | H22: 2.804 | J22: 512.5 | K22: 12.6 | L22: 34.23 | M22: 17.1 | N22: 5.972 | O22: 21.3 | P22: 284.2 | Q22: 13.4 | R22: 1.273 | S22: 26.5 | T22: 2.732 | U22: 23.7 | V22: 471.9 | W22: 12.7 | X22: 6.07 | Y22: 21.3 | Z22: 0.922 | AA22: 27.9 | AB22: 74.46 | AC22: 15.6 | AD22: 0.992 | AE22: 27.7 | AF22: 0.057 | AG22: 45.1 | AH22: 210.3 | AI22: 13.9 | AJ22: 0.501 | AK22: 30.7 | AL22: 0.153 | AM22: 37.5 | AN22: 4653 | AO22: 10.1 | AP22: 1140 | AQ22: 11.5 | AR22: 1628 | AS22: 11.1 | AT22: 42.89 | AU22: 16.5 | AV22: 13.91 | AW22: 19.1 | AX22: 2.481 | AY22: 24 | AZ22: 53.51 | BA22: 16.1 | BB22: 4.267 | BC22: 22.3 | BD22: 0.345 | BE22: 32.6 | BF22: 16.33 | BG22: 18.5 | BH22: 0.014 | BI22: 60 | BJ22: 0.932 | BK22: 27.9 | BL22: 360 | BM22: 13 | BN22: 308.7 | BO22: 13.4 | BP22: 486 | BQ22: 12.7 | BR22: 5535 | BS22: 9.9 | BT22: 927 | BU22: 11.7 | BV22: 92.2 | BW22: 88.19 | BX22: 2.46 | BY22: 112.9 | BZ22: 100 | CA22: 4.08 | CB22: 113.3 | CC22: 100 | CD22: 3.82 | CE22: 113.3 | CF22: 100 | CG22: 3.14 | CH22: 120.7 | CI22: 100 | CJ22: 3.75 | CK22: 83 | CL22: 79.57 | CM22: 2.06 | CN22: 101.1 | CO22: 96.71 | CP22: 3.79 | CQ22: 108.4 | CR22: 100 | CS22: 3.98 | CT22: 111.3 | CU22: 100 | CV22: 3.75 | CW22: 85.4 | CX22: 81.59 | CY22: 0.78 | CZ22: 72.43 | DA22: 69.47 | DB22: 0.42 | DC22: 68.78 | DD22: 65.6 | DE22: -2.77 | DI22: -2.427 | DJ22: 85.1 | DK22: 85.1 | DL22: -4.6 | DM22: 4.235 | DN22: 4.203 | DO22: 4.069 | DP22: 4.066 | DQ22: 3.814 | DR22: 4.037 | DS22: 3.131 | DT22: 4.061 | DU22: 3.738 | DV22: 3.646 | DW22: 5.305 | DX22: 4.679 | DY22: 4.255 | DZ22: 4.882 | EA22: 3.973 | EB22: 4.555
A23: 2012-12-13T06:00:00 | B23: 3.534 | C23: 4.941 | D23: 3.435 | E23: 4.279 | F23: 5.297 | H23: 2.638 | J23: 521.2 | K23: 12.6 | L23: 34.98 | M23: 17 | N23: 6.075 | O23: 21.3 | P23: 286.8 | Q23: 13.4 | R23: 1.295 | S23: 26.5 | T23: 2.777 | U23: 23.7 | V23: 478.1 | W23: 12.7 | X23: 6.176 | Y23: 21.3 | Z23: 0.937 | AA23: 27.9 | AB23: 75.22 | AC23: 15.6 | AD23: 0.988 | AE23: 27.8 | AF23: 0.056 | AG23: 45.3 | AH23: 213.7 | AI23: 13.9 | AJ23: 0.513 | AK23: 30.6 | AL23: 0.155 | AM23: 37.4 | AN23: 4696 | AO23: 10.1 | AP23: 1167 | AQ23: 11.5 | AR23: 1672 | AS23: 11.1 | AT23: 43.33 | AU23: 16.5 | AV23: 14.2 | AW23: 19 | AX23: 2.528 | AY23: 24 | AZ23: 54.37 | BA23: 16.1 | BB23: 4.314 | BC23: 22.3 | BD23: 0.347 | BE23: 32.6 | BF23: 16.7 | BG23: 18.5 | BH23: 0.014 | BI23: 60.1 | BJ23: 0.947 | BK23: 27.8 | BL23: 372.6 | BM23: 13 | BN23: 320.1 | BO23: 13.3 | BP23: 504.2 | BQ23: 12.7 | BR23: 5948 | BS23: 9.8 | BT23: 965 | BU23: 11.7 | BV23: 92.3 | BW23: 88.25 | BX23: 2.26 | BY23: 113 | BZ23: 100 | CA23: 3.87 | CB23: 113.4 | CC23: 100 | CD23: 3.62 | CE23: 113.4 | CF23: 100 | CG23: 3.01 | CH23: 120.8 | CI23: 100 | CJ23: 3.56 | CK23: 83.2 | CL23: 79.72 | CM23: 1.84 | CN23: 101.1 | CO23: 96.68 | CP23: 3.62 | CQ23: 108.5 | CR23: 100 | CS23: 3.83 | CT23: 111.4 | CU23: 100 | CV23: 3.54 | CW23: 85.4 | CX23: 81.55 | CY23: 0.56 | CZ23: 72.28 | DA23: 69.29 | DB23: 0.11 | DC23: 68.8 | DD23: 65.59 | DE23: -2.93 | DI23: -2.39 | DJ23: 84.1 | DK23: 84.1 | DL23: -4.71 | DM23: 4.034 | DN23: 3.976 | DO23: 3.865 | DP23: 3.842 | DQ23: 3.614 | DR23: 3.818 | DS23: 3.01 | DT23: 3.91 | DU23: 3.556 | DV23: 3.449 | DW23: 5.06 | DX23: 4.436 | DY23: 4.094 | DZ23: 4.726 | EA23: 3.822 | EB23: 4.405
A24: 2012-12-13T07:00:00 | B24: 3.318 | C24: 4.709 | D24: 3.221 | E24: 4.061 | F24: 5.01 | H24: 2.407 | J24: 529.3 | K24: 12.6 | L24: 35.73 | M24: 17 | N24: 6.172 | O24: 21.3 | P24: 311.6 | Q24: 13.3 | R24: 1.32 | S24: 26.5 | T24: 2.822 | U24: 23.7 | V24: 480.5 | W24: 12.8 | X24: 6.277 | Y24: 21.3 | Z24: 0.953 | AA24: 27.8 | AB24: 75.97 | AC24: 15.6 | AD24: 0.985 | AE24: 27.8 | AF24: 0.055 | AG24: 45.5 | AH24: 217.8 | AI24: 13.9 | AJ24: 0.521 | AK24: 30.6 | AL24: 0.158 | AM24: 37.4 | AN24: 4798 | AO24: 10.1 | AP24: 1192 | AQ24: 11.5 | AR24: 1723 | AS24: 11.1 | AT24: 44.27 | AU24: 16.5 | AV24: 14.5 | AW24: 19 | AX24: 2.568 | AY24: 24 | AZ24: 55.32 | BA24: 16.1 | BB24: 4.365 | BC24: 22.3 | BD24: 0.35 | BE24: 32.6 | BF24: 17.13 | BG24: 18.5 | BH24: 0.014 | BI24: 60.1 | BJ24: 0.964 | BK24: 27.8 | BL24: 381.9 | BM24: 13 | BN24: 329.2 | BO24: 13.3 | BP24: 514.1 | BQ24: 12.7 | BR24: 6068 | BS24: 9.8 | BT24: 988 | BU24: 11.7 | BV24: 92.4 | BW24: 88.31 | BX24: 2.07 | BY24: 113.2 | BZ24: 100 | CA24: 3.68 | CB24: 113.5 | CC24: 100 | CD24: 3.42 | CE24: 113.5 | CF24: 100 | CG24: 2.88 | CH24: 120.9 | CI24: 100 | CJ24: 3.38 | CK24: 83.3 | CL24: 79.77 | CM24: 1.61 | CN24: 101.1 | CO24: 96.64 | CP24: 3.45 | CQ24: 108.6 | CR24: 100 | CS24: 3.68 | CT24: 111.5 | CU24: 100 | CV24: 3.32 | CW24: 85.4 | CX24: 81.52 | CY24: 0.34 | CZ24: 72.19 | DA24: 69.16 | DB24: -0.09 | DC24: 69.03 | DD24: 65.78 | DE24: -3.1 | DI24: -2.86 | DJ24: 85.8 | DK24: 85.8 | DL24: -4.96 | DM24: 3.833 | DN24: 3.765 | DO24: 3.668 | DP24: 3.626 | DQ24: 3.411 | DR24: 3.599 | DS24: 2.883 | DT24: 3.763 | DU24: 3.378 | DV24: 3.245 | DW24: 4.819 | DX24: 4.205 | DY24: 3.928 | DZ24: 4.56 | EA24: 3.674 | EB24: 4.246
A25: 2012-12-13T08:00:00 | B25: 3.103 | C25: 4.477 | D25: 3.002 | E25: 3.85 | F25: 4.733 | H25: 2.387 | J25: 532.8 | K25: 12.6 | L25: 36.48 | M25: 17 | N25: 6.268 | O25: 21.2 | P25: 302.4 | Q25: 13.4 | R25: 1.339 | S25: 26.4 | T25: 2.868 | U25: 23.7 | V25: 483 | W25: 12.8 | X25: 6.361 | Y25: 21.3 | Z25: 0.966 | AA25: 27.8 | AB25: 76.76 | AC25: 15.6 | AD25: 0.983 | AE25: 27.8 | AF25: 0.055 | AG25: 45.5 | AH25: 219.6 | AI25: 13.9 | AJ25: 0.53 | AK25: 30.5 | AL25: 0.16 | AM25: 37.3 | AN25: 4867 | AO25: 10.1 | AP25: 1213 | AQ25: 11.5 | AR25: 1769 | AS25: 11.1 | AT25: 45.24 | AU25: 16.5 | AV25: 14.79 | AW25: 19 | AX25: 2.622 | AY25: 23.9 | AZ25: 56.17 | BA25: 16.1 | BB25: 4.416 | BC25: 22.3 | BD25: 0.352 | BE25: 32.6 | BF25: 17.56 | BG25: 18.5 | BH25: 0.014 | BI25: 60.2 | BJ25: 0.983 | BK25: 27.8 | BL25: 391.3 | BM25: 13 | BN25: 337 | BO25: 13.3 | BP25: 526.2 | BQ25: 12.7 | BR25: 6078 | BS25: 9.8 | BT25: 1012 | BU25: 11.7 | BV25: 92.4 | BW25: 88.27 | BX25: 1.87 | BY25: 113.2 | BZ25: 100 | CA25: 3.48 | CB25: 113.5 | CC25: 100 | CD25: 3.22 | CE25: 113.6 | CF25: 100 | CG25: 2.76 | CH25: 121.1 | CI25: 100 | CJ25: 3.21 | CK25: 83.3 | CL25: 79.74 | CM25: 1.38 | CN25: 101.1 | CO25: 96.61 | CP25: 3.27 | CQ25: 108.5 | CR25: 100 | CS25: 3.52 | CT25: 111.5 | CU25: 100 | CV25: 3.11 | CW25: 85.4 | CX25: 81.48 | CY25: 0.12 | CZ25: 72.02 | DA25: 68.96 | DB25: -0.38 | DC25: 69.35 | DD25: 66.08 | DE25: -3.06 | DI25: -2.563 | DJ25: 84.6 | DK25: 84.6 | DL25: -4.82 | DM25: 3.638 | DN25: 3.588 | DO25: 3.472 | DP25: 3.44 | DQ25: 3.217 | DR25: 3.422 | DS25: 2.756 | DT25: 3.615 | DU25: 3.201 | DV25: 3.063 | DW25: 4.586 | DX25: 4.008 | DY25: 3.756 | DZ25: 4.402 | EA25: 3.513 | EB25: 4.088
A26: 2012-12-13T09:00:00 | B26: 2.916 | C26: 5.099 | D26: 2.808 | E26: 3.945 | F26: 4.525 | H26: 3.918 | J26: 346.2 | K26: 13 | L26: 34.3 | M26: 17.1 | N26: 6.197 | O26: 21.3 | P26: 215.4 | Q26: 13.7 | R26: 1.351 | S26: 26.4 | T26: 2.77 | U26: 23.8 | V26: 351.8 | W26: 13 | X26: 5.881 | Y26: 21.5 | Z26: 0.974 | AA26: 27.8 | AB26: 75.15 | AC26: 15.6 | AD26: 0.979 | AE26: 27.9 | AF26: 0.056 | AG26: 45.4 | AH26: 214.6 | AI26: 14 | AJ26: 0.57 | AK26: 30.2 | AL26: 0.162 | AM26: 37.3 | AN26: 3310 | AO26: 10.3 | AP26: 1042 | AQ26: 11.7 | AR26: 1789 | AS26: 11.1 | AT26: 45.48 | AU26: 16.5 | AV26: 14.93 | AW26: 19 | AX26: 2.532 | AY26: 24.1 | AZ26: 55.68 | BA26: 16.1 | BB26: 4.427 | BC26: 22.3 | BD26: 0.355 | BE26: 32.6 | BF26: 14.58 | BG26: 18.8 | BH26: 0.014 | BI26: 60.3 | BJ26: 0.998 | BK26: 27.7 | BL26: 374.6 | BM26: 13.1 | BN26: 340.2 | BO26: 13.3 | BP26: 534.7 | BQ26: 12.7 | BR26: 6172 | BS26: 9.9 | BT26: 1026 | BU26: 11.7 | BV26: 91.5 | BW26: 87.42 | BX26: 1.75 | BY26: 112.6 | BZ26: 100 | CA26: 3.41 | CB26: 113 | CC26: 100 | CD26: 3.16 | CE26: 113.5 | CF26: 100 | CG26: 2.63 | CH26: 121.2 | CI26: 100 | CJ26: 3.04 | CK26: 81 | CL26: 77.56 | CM26: 1.12 | CN26: 100.9 | CO26: 96.38 | CP26: 3.06 | CQ26: 108.6 | CR26: 100 | CS26: 3.38 | CT26: 111.5 | CU26: 100 | CV26: 2.92 | CW26: 85.2 | CX26: 81.26 | CY26: -0.01 | CZ26: 71.79 | DA26: 68.71 | DB26: -0.61 | DC26: 66.15 | DD26: 63.23 | DE26: -2.24 | DI26: -1.64 | DJ26: 80.5 | DK26: 80.5 | DL26: -4.47 | DM26: 3.65 | DN26: 5.451 | DO26: 3.399 | DP26: 5.029 | DQ26: 3.16 | DR26: 5.679 | DS26: 2.633 | DT26: 3.609 | DU26: 3.041 | DV26: 3.054 | DW26: 4.719 | DX26: 5.737 | DY26: 3.582 | DZ26: 4.347 | EA26: 3.373 | EB26: 4.038
A27: 2012-12-13T10:00:00 | B27: 2.812 | C27: 7.225 | D27: 2.739 | E27: 4.906 | F27: 4.574 | H27: 5.599 | J27: 287.2 | K27: 12.9 | L27: 29.55 | M27: 17.3 | N27: 5.922 | O27: 21.3 | P27: 170.2 | Q27: 13.7 | R27: 1.309 | S27: 26.5 | T27: 2.512 | U27: 24.1 | V27: 306.1 | W27: 12.7 | X27: 5.173 | Y27: 21.8 | Z27: 0.943 | AA27: 27.9 | AB27: 72.19 | AC27: 15.6 | AD27: 0.964 | AE27: 28 | AF27: 0.055 | AG27: 45.6 | AH27: 220 | AI27: 13.9 | AJ27: 0.56 | AK27: 30.3 | AL27: 0.163 | AM27: 37.3 | AN27: 2974 | AO27: 10.1 | AP27: 942 | AQ27: 11.7 | AR27: 1620 | AS27: 11.1 | AT27: 44.99 | AU27: 16.5 | AV27: 14.84 | AW27: 19 | AX27: 2.512 | AY27: 24.1 | AZ27: 53.76 | BA27: 16.1 | BB27: 4.355 | BC27: 22.4 | BD27: 0.359 | BE27: 32.5 | BF27: 12.58 | BG27: 18.9 | BH27: 0.014 | BI27: 60.3 | BJ27: 0.985 | BK27: 27.8 | BL27: 345.8 | BM27: 13.1 | BN27: 326 | BO27: 13.4 | BP27: 534 | BQ27: 12.7 | BR27: 6271 | BS27: 9.8 | BT27: 1030 | BU27: 11.7 | BV27: 89.5 | BW27: 85.62 | BX27: 2.11 | BY27: 110.8 | BZ27: 100 | CA27: 3.73 | CB27: 111.1 | CC27: 100 | CD27: 3.57 | CE27: 113.4 | CF27: 100 | CG27: 2.54 | CH27: 121.4 | CI27: 100 | CJ27: 2.94 | CK27: 77.32 | CL27: 74.18 | CM27: 1.42 | CN27: 100.6 | CO27: 96.07 | CP27: 2.89 | CQ27: 108.3 | CR27: 100 | CS27: 3.32 | CT27: 111.2 | CU27: 100 | CV27: 2.81 | CW27: 84.4 | CX27: 80.48 | CY27: -0.2 | CZ27: 70.98 | DA27: 67.94 | DB27: -0.71 | DC27: 63.02 | DD27: 60.45 | DE27: -1.3 | DI27: -0.303 | DJ27: 73.6 | DK27: 73.6 | DL27: -4.19 | DM27: 4.313 | DN27: 9.22 | DO27: 3.718 | DP27: 8.62 | DQ27: 3.564 | DR27: 9.82 | DS27: 2.542 | DT27: 4.024 | DU27: 2.933 | DV27: 3.207 | DW27: 5.661 | DX27: 9.71 | DY27: 3.454 | DZ27: 4.594 | EA27: 3.318 | EB27: 4.362
A28: 2012-12-13T11:00:00 | B28: 2.851 | C28: 8.83 | D28: 2.85 | E28: 5.956 | F28: 4.974 | H28: 7.144 | J28: 266.1 | K28: 12.7 | L28: 26.82 | M28: 17.5 | N28: 5.654 | O28: 21.3 | P28: 154 | Q28: 13.6 | R28: 1.257 | S28: 26.6 | T28: 2.324 | U28: 24.3 | V28: 297.3 | W28: 12.5 | X28: 4.789 | Y28: 22 | Z28: 0.911 | AA28: 27.9 | AB28: 68.43 | AC28: 15.7 | AD28: 0.956 | AE28: 28 | AF28: 0.054 | AG28: 45.8 | AH28: 214.7 | AI28: 13.9 | AJ28: 0.559 | AK28: 30.4 | AL28: 0.164 | AM28: 37.2 | AN28: 2611 | AO28: 10 | AP28: 810 | AQ28: 11.8 | AR28: 1251 | AS28: 11.3 | AT28: 43.87 | AU28: 16.4 | AV28: 14.53 | AW28: 19.1 | AX28: 2.513 | AY28: 24.1 | AZ28: 51.68 | BA28: 16.2 | BB28: 4.23 | BC28: 22.5 | BD28: 0.361 | BE28: 32.5 | BF28: 11.44 | BG28: 18.9 | BH28: 0.014 | BI28: 60.3 | BJ28: 0.952 | BK28: 28 | BL28: 324.8 | BM28: 13 | BN28: 307.7 | BO28: 13.4 | BP28: 525.3 | BQ28: 12.7 | BR28: 6059 | BS28: 9.8 | BT28: 984 | BU28: 11.7 | BV28: 88.1 | BW28: 84.41 | BX28: 2.61 | BY28: 109.2 | BZ28: 100 | CA28: 4.2 | CB28: 109.2 | CC28: 100 | CD28: 4.13 | CE28: 113.1 | CF28: 100 | CG28: 2.46 | CH28: 121.6 | CI28: 100 | CJ28: 2.84 | CK28: 76.16 | CL28: 73.25 | CM28: 2.41 | CN28: 100 | CO28: 95.49 | CP28: 2.76 | CQ28: 107.8 | CR28: 100 | CS28: 3.33 | CT28: 110.8 | CU28: 100 | CV28: 2.85 | CW28: 83.9 | CX28: 80.02 | CY28: -0.17 | CZ28: 70.61 | DA28: 67.64 | DB28: -0.41 | DC28: 61.17 | DD28: 58.86 | DE28: -0.27 | DI28: 1.788 | DJ28: 63.46 | DK28: 63.46 | DL28: -4.13 | DM28: 5.014 | DN28: 11.41 | DO28: 4.188 | DP28: 10.98 | DQ28: 4.123 | DR28: 12.02 | DS28: 2.465 | DT28: 4.653 | DU28: 2.841 | DV28: 3.301 | DW28: 6.866 | DX28: 12.61 | DY28: 3.407 | DZ28: 5.121 | EA28: 3.326 | EB28: 4.82
A29: 2012-12-13T12:00:00 | B29: 3.027 | C29: 9.92 | D29: 3.1 | E29: 6.749 | F29: 5.816 | H29: 7.884 | J29: 255 | K29: 12.7 | L29: 24.46 | M29: 17.6 | N29: 5.463 | O29: 21.3 | P29: 135.3 | Q29: 13.6 | R29: 1.214 | S29: 26.6 | T29: 2.261 | U29: 24.3 | V29: 293.9 | W29: 12.4 | X29: 4.572 | Y29: 22 | Z29: 0.872 | AA29: 28 | AB29: 64.39 | AC29: 15.7 | AD29: 0.927 | AE29: 28.1 | AF29: 0.053 | AG29: 45.9 | AH29: 201.9 | AI29: 14 | AJ29: 0.553 | AK29: 30.4 | AL29: 0.165 | AM29: 37.2 | AN29: 2509 | AO29: 9.9 | AP29: 726.4 | AQ29: 11.8 | AR29: 1095 | AS29: 11.3 | AT29: 42.14 | AU29: 16.4 | AV29: 14.05 | AW29: 19.2 | AX29: 2.512 | AY29: 24.1 | AZ29: 49.61 | BA29: 16.2 | BB29: 4.093 | BC29: 22.6 | BD29: 0.366 | BE29: 32.4 | BF29: 10.69 | BG29: 18.9 | BH29: 0.014 | BI29: 60.2 | BJ29: 0.918 | BK29: 28.1 | BL29: 292 | BM29: 13.1 | BN29: 292 | BO29: 13.5 | BP29: 510.3 | BQ29: 12.7 | BR29: 5324 | BS29: 9.9 | BT29: 883 | BU29: 11.8 | BV29: 87 | BW29: 83.46 | BX29: 3.06 | BY29: 108 | BZ29: 100 | CA29: 4.71 | CB29: 108 | CC29: 100 | CD29: 4.65 | CE29: 112.7 | CF29: 100 | CG29: 2.45 | CH29: 121.6 | CI29: 100 | CJ29: 2.84 | CK29: 75.89 | CL29: 73.15 | CM29: 3.41 | CN29: 99.4 | CO29: 94.92 | CP29: 2.71 | CQ29: 107.3 | CR29: 100 | CS29: 3.38 | CT29: 110.4 | CU29: 100 | CV29: 3.03 | CW29: 83.8 | CX29: 79.97 | CY29: 0.05 | CZ29: 71.07 | DA29: 68.2 | DB29: 0.39 | DC29: 59.37 | DD29: 57.22 | DE29: 0.02 | DI29: 3.349 | DJ29: 56.43 | DK29: 56.43 | DL29: -4.21 | DM29: 5.632 | DN29: 12.66 | DO29: 4.694 | DP29: 12.37 | DQ29: 4.639 | DR29: 13.14 | DS29: 2.447 | DT29: 5.282 | DU29: 2.835 | DV29: 3.689 | DW29: 7.908 | DX29: 14.19 | DY29: 3.444 | DZ29: 5.704 | EA29: 3.377 | EB29: 5.31
A30: 2012-12-13T13:00:00 | B30: 3.308 | C30: 10.82 | D30: 3.504 | E30: 7.991 | F30: 7.078 | H30: 8.69 | J30: 249.3 | K30: 12.6 | L30: 22.52 | M30: 17.7 | N30: 5.248 | O30: 21.4 | P30: 133.3 | Q30: 13.5 | R30: 1.179 | S30: 26.6 | T30: 2.207 | U30: 24.3 | V30: 307.1 | W30: 12.3 | X30: 4.579 | Y30: 21.9 | Z30: 0.868 | AA30: 27.9 | AB30: 61.55 | AC30: 15.7 | AD30: 0.919 | AE30: 28.2 | AF30: 0.054 | AG30: 45.8 | AH30: 184.9 | AI30: 14 | AJ30: 0.534 | AK30: 30.6 | AL30: 0.165 | AM30: 37.2 | AN30: 2500 | AO30: 9.8 | AP30: 663.1 | AQ30: 11.8 | AR30: 1025 | AS30: 11.3 | AT30: 40.76 | AU30: 16.4 | AV30: 13.65 | AW30: 19.2 | AX30: 2.589 | AY30: 24 | AZ30: 47.58 | BA30: 16.2 | BB30: 3.952 | BC30: 22.6 | BD30: 0.368 | BE30: 32.3 | BF30: 10.14 | BG30: 18.9 | BH30: 0.014 | BI30: 60.1 | BJ30: 0.881 | BK30: 28.2 | BL30: 272.8 | BM30: 13.1 | BN30: 269 | BO30: 13.6 | BP30: 482.7 | BQ30: 12.8 | BR30: 4990 | BS30: 9.8 | BT30: 762 | BU30: 11.8 | BV30: 86.5 | BW30: 83.08 | BX30: 3.56 | BY30: 107.1 | BZ30: 100 | CA30: 5.22 | CB30: 107.1 | CC30: 100 | CD30: 5.13 | CE30: 112.3 | CF30: 100 | CG30: 2.5 | CH30: 121.4 | CI30: 100 | CJ30: 2.95 | CK30: 75.35 | CL30: 72.76 | CM30: 4.19 | CN30: 98.8 | CO30: 94.37 | CP30: 2.7 | CQ30: 106.8 | CR30: 100 | CS30: 3.49 | CT30: 110 | CU30: 100 | CV30: 3.31 | CW30: 83.9 | CX30: 80.13 | CY30: 0.38 | CZ30: 72.42 | DA30: 69.68 | DB30: 1.91 | DC30: 60.25 | DD30: 58.17 | DE30: 0.92 | DI30: 4.257 | DJ30: 49.25 | DK30: 49.25 | DL30: -5.13 | DM30: 6.206 | DN30: 13.71 | DO30: 5.204 | DP30: 13.47 | DQ30: 5.11 | DR30: 14.11 | DS30: 2.5 | DT30: 5.931 | DU30: 2.946 | DV30: 4.556 | DW30: 8.79 | DX30: 15.39 | DY30: 3.522 | DZ30: 6.275 | EA30: 3.482 | EB30: 5.816
A31: 2012-12-13T14:00:00 | B31: 3.667 | C31: 11.64 | D31: 3.999 | E31: 8.81 | F31: 8.55 | H31: 9.17 | J31: 255.5 | K31: 12.5 | L31: 21.32 | M31: 17.7 | N31: 5.053 | O31: 21.4 | P31: 134.5 | Q31: 13.4 | R31: 1.147 | S31: 26.7 | T31: 2.196 | U31: 24.2 | V31: 330.1 | W31: 12.1 | X31: 4.606 | Y31: 21.8 | Z31: 0.849 | AA31: 27.9 | AB31: 59.25 | AC31: 15.7 | AD31: 0.891 | AE31: 28.3 | AF31: 0.054 | AG31: 45.7 | AH31: 183.9 | AI31: 13.9 | AJ31: 0.513 | AK31: 30.7 | AL31: 0.163 | AM31: 37.2 | AN31: 2659 | AO31: 9.6 | AP31: 625.6 | AQ31: 11.8 | AR31: 929 | AS31: 11.3 | AT31: 39.5 | AU31: 16.4 | AV31: 13.29 | AW31: 19.3 | AX31: 2.687 | AY31: 23.9 | AZ31: 45.9 | BA31: 16.2 | BB31: 3.831 | BC31: 22.7 | BD31: 0.369 | BE31: 32.3 | BF31: 10.04 | BG31: 18.8 | BH31: 0.014 | BI31: 60 | BJ31: 0.844 | BK31: 28.3 | BL31: 264.7 | BM31: 13 | BN31: 250.6 | BO31: 13.6 | BP31: 454.2 | BQ31: 12.8 | BR31: 4772 | BS31: 9.7 | BT31: 685.5 | BU31: 11.8 | BV31: 86 | BW31: 82.69 | BX31: 4.01 | BY31: 106.4 | BZ31: 100 | CA31: 5.69 | CB31: 106.5 | CC31: 100 | CD31: 5.58 | CE31: 111.8 | CF31: 100 | CG31: 2.55 | CH31: 121 | CI31: 100 | CJ31: 3.22 | CK31: 75.36 | CL31: 72.9 | CM31: 5.03 | CN31: 98.4 | CO31: 94.01 | CP31: 2.76 | CQ31: 106.2 | CR31: 100 | CS31: 3.62 | CT31: 109.8 | CU31: 100 | CV31: 3.68 | CW31: 84.3 | CX31: 80.6 | CY31: 0.95 | CZ31: 73.24 | DA31: 70.69 | DB31: 3.54 | DC31: 59.17 | DD31: 57.18 | DE31: 1.13 | DI31: 4.769 | DJ31: 47.73 | DK31: 47.73 | DL31: -5.07 | DM31: 6.736 | DN31: 14.53 | DO31: 5.674 | DP31: 14.26 | DQ31: 5.564 | DR31: 14.81 | DS31: 2.548 | DT31: 6.457 | DU31: 3.22 | DV31: 5.534 | DW31: 9.63 | DX31: 16.19 | DY31: 3.635 | DZ31: 6.767 | EA31: 3.611 | EB31: 6.27
A32: 2012-12-13T16:00:00 | B32: 4.507 | C32: 11.06 | D32: 4.987 | E32: 9.01 | F32: 10.72 | H32: 8.68 | J32: 384.8 | K32: 12.2 | L32: 21.86 | M32: 17.6 | N32: 4.82 | O32: 21.5 | P32: 194.2 | Q32: 13.1 | R32: 1.071 | S32: 26.8 | T32: 2.258 | U32: 24 | V32: 452.1 | W32: 12 | X32: 5.106 | Y32: 21.5 | Z32: 0.813 | AA32: 28 | AB32: 57.52 | AC32: 15.7 | AD32: 0.841 | AE32: 28.5 | AF32: 0.053 | AG32: 45.9 | AH32: 179.3 | AI32: 13.9 | AJ32: 0.477 | AK32: 31 | AL32: 0.152 | AM32: 37.5 | AN32: 4021 | AO32: 9.5 | AP32: 620.7 | AQ32: 11.7 | AR32: 853 | AS32: 11.3 | AT32: 35.86 | AU32: 16.6 | AV32: 12.15 | AW32: 19.4 | AX32: 2.652 | AY32: 23.9 | AZ32: 45.1 | BA32: 16.2 | BB32: 3.707 | BC32: 22.8 | BD32: 0.363 | BE32: 32.3 | BF32: 11.37 | BG32: 18.6 | BH32: 0.014 | BI32: 59.7 | BJ32: 0.779 | BK32: 28.5 | BL32: 259.9 | BM32: 13 | BN32: 230.6 | BO32: 13.6 | BP32: 404.6 | BQ32: 12.8 | BR32: 3929 | BS32: 9.7 | BT32: 600.1 | BU32: 11.7 | BV32: 86.9 | BW32: 83.63 | BX32: 4.64 | BY32: 107.2 | BZ32: 100 | CA32: 6.36 | CB32: 107.1 | CC32: 100 | CD32: 6.19 | CE32: 111.6 | CF32: 100 | CG32: 2.69 | CH32: 121.1 | CI32: 100 | CJ32: 3.66 | CK32: 77.97 | CL32: 75.55 | CM32: 6.35 | CN32: 98.4 | CO32: 94.08 | CP32: 3.14 | CQ32: 106 | CR32: 100 | CS32: 3.99 | CT32: 109.7 | CU32: 100 | CV32: 4.52 | CW32: 85.5 | CX32: 81.91 | CY32: 2.15 | CZ32: 73.14 | DA32: 70.91 | DB32: 5.68 | DC32: 51.58 | DD32: 49.79 | DE32: -1.08 | DI32: 4.908 | DJ32: 47.36 | DK32: 47.36 | DL32: -5.05 | DM32: 7.203 | DN32: 12.13 | DO32: 6.34 | DP32: 12.36 | DQ32: 6.168 | DR32: 11.68 | DS32: 2.687 | DT32: 6.946 | DU32: 3.651 | DV32: 5.579 | DW32: 10.46 | DX32: 13.67 | DY32: 4.001 | DZ32: 7.123 | EA32: 3.984 | EB32: 6.712
A33: 2012-12-13T17:00:00 | B33: 4.768 | C33: 10.05 | D33: 5.262 | E33: 8.67 | F33: 11.07 | H33: 7.101 | J33: 460.4 | K33: 12.2 | L33: 24.46 | M33: 17.4 | N33: 5.077 | O33: 21.4 | P33: 262.6 | Q33: 12.9 | R33: 1.14 | S33: 26.6 | T33: 2.567 | U33: 23.6 | V33: 532.1 | W33: 12 | X33: 6.016 | Y33: 21 | Z33: 0.85 | AA33: 27.9 | AB33: 59.59 | AC33: 15.7 | AD33: 0.841 | AE33: 28.5 | AF33: 0.053 | AG33: 45.9 | AH33: 188.7 | AI33: 13.9 | AJ33: 0.51 | AK33: 30.6 | AL33: 0.16 | AM33: 37.2 | AN33: 4477 | AO33: 9.6 | AP33: 674.9 | AQ33: 11.7 | AR33: 900 | AS33: 11.3 | AT33: 38.32 | AU33: 16.5 | AV33: 12.87 | AW33: 19.3 | AX33: 2.769 | AY33: 23.7 | AZ33: 45.92 | BA33: 16.2 | BB33: 3.731 | BC33: 22.7 | BD33: 0.36 | BE33: 32.3 | BF33: 12.39 | BG33: 18.5 | BH33: 0.014 | BI33: 59.6 | BJ33: 0.782 | BK33: 28.4 | BL33: 270.8 | BM33: 13 | BN33: 235.4 | BO33: 13.6 | BP33: 398.9 | BQ33: 12.8 | BR33: 3757 | BS33: 9.7 | BT33: 583.5 | BU33: 11.7 | BV33: 88.1 | BW33: 84.71 | BX33: 4.4 | BY33: 108.6 | BZ33: 100 | CA33: 6.2 | CB33: 108.8 | CC33: 100 | CD33: 5.93 | CE33: 111.5 | CF33: 100 | CG33: 2.73 | CH33: 121.2 | CI33: 100 | CJ33: 3.73 | CK33: 80.1 | CL33: 77.54 | CM33: 6.28 | CN33: 98.6 | CO33: 94.3 | CP33: 3.36 | CQ33: 106.1 | CR33: 100 | CS33: 4.13 | CT33: 109.9 | CU33: 100 | CV33: 4.78 | CW33: 85.9 | CX33: 82.34 | CY33: 2.5 | CZ33: 73.16 | DA33: 70.98 | DB33: 6.04 | DC33: 58.61 | DD33: 56.4 | DE33: -0.86 | DI33: 4.298 | DJ33: 51.26 | DK33: 51.26 | DL33: -4.58 | DM33: 6.774 | DN33: 9.86 | DO33: 6.18 | DP33: 10.13 | DQ33: 5.908 | DR33: 9.38 | DS33: 2.728 | DT33: 6.702 | DU33: 3.718 | DV33: 5.441 | DW33: 10 | DX33: 11.08 | DY33: 4.19 | DZ33: 6.995 | EA33: 4.12 | EB33: 6.589
A34: 2012-12-13T18:00:00 | B34: 4.962 | C34: 9.29 | D34: 5.474 | E34: 8.31 | F34: 11.21 | H34: 6.334 | J34: 514.3 | K34: 12.2 | L34: 26.56 | M34: 17.3 | N34: 5.241 | O34: 21.3 | P34: 284.6 | Q34: 12.9 | R34: 1.183 | S34: 26.5 | T34: 2.763 | U34: 23.4 | V34: 574 | W34: 12.1 | X34: 6.695 | Y34: 20.8 | Z34: 0.882 | AA34: 27.8 | AB34: 60.71 | AC34: 15.7 | AD34: 0.832 | AE34: 28.6 | AF34: 0.052 | AG34: 46 | AH34: 194.7 | AI34: 13.9 | AJ34: 0.524 | AK34: 30.5 | AL34: 0.164 | AM34: 37 | AN34: 4792 | AO34: 9.6 | AP34: 701 | AQ34: 11.7 | AR34: 955 | AS34: 11.3 | AT34: 39.78 | AU34: 16.4 | AV34: 13.29 | AW34: 19.2 | AX34: 2.813 | AY34: 23.6 | AZ34: 46.82 | BA34: 16.2 | BB34: 3.77 | BC34: 22.7 | BD34: 0.358 | BE34: 32.3 | BF34: 13.19 | BG34: 18.5 | BH34: 0.014 | BI34: 59.5 | BJ34: 0.788 | BK34: 28.4 | BL34: 280.2 | BM34: 13 | BN34: 239.1 | BO34: 13.5 | BP34: 394.3 | BQ34: 12.8 | BR34: 3667 | BS34: 9.8 | BT34: 578.6 | BU34: 11.7 | BV34: 89.1 | BW34: 85.6 | BX34: 4.12 | BY34: 109.7 | BZ34: 100 | CA34: 5.92 | CB34: 110.1 | CC34: 100 | CD34: 5.58 | CE34: 111.7 | CF34: 100 | CG34: 2.74 | CH34: 121.2 | CI34: 100 | CJ34: 3.79 | CK34: 81.9 | CL34: 79.21 | CM34: 6.14 | CN34: 99 | CO34: 94.73 | CP34: 3.65 | CQ34: 106.4 | CR34: 100 | CS34: 4.25 | CT34: 110.1 | CU34: 100 | CV34: 4.98 | CW34: 86.3 | CX34: 82.76 | CY34: 2.78 | CZ34: 73.11 | DA34: 70.95 | DB34: 6.16 | DC34: 61.13 | DD34: 58.73 | DE34: -1.02 | DI34: 2.839 | DJ34: 58.61 | DK34: 58.61 | DL34: -4.19 | DM34: 6.34 | DN34: 8.41 | DO34: 5.894 | DP34: 8.61 | DQ34: 5.564 | DR34: 8.01 | DS34: 2.741 | DT34: 6.342 | DU34: 3.778 | DV34: 5.298 | DW34: 9.54 | DX34: 9.52 | DY34: 4.415 | DZ34: 6.797 | EA34: 4.242 | EB34: 6.392
A35: 2012-12-13T19:00:00 | B35: 5.054 | C35: 8.71 | D35: 5.581 | E35: 7.945 | F35: 11.13 | H35: 5.587 | J35: 556.5 | K35: 12.2 | L35: 28.24 | M35: 17.2 | N35: 5.38 | O35: 21.3 | P35: 291 | Q35: 13 | R35: 1.217 | S35: 26.4 | T35: 2.903 | U35: 23.3 | V35: 601 | W35: 12.1 | X35: 7.133 | Y35: 20.6 | Z35: 0.906 | AA35: 27.7 | AB35: 61.96 | AC35: 15.7 | AD35: 0.826 | AE35: 28.6 | AF35: 0.051 | AG35: 46.2 | AH35: 199.1 | AI35: 13.8 | AJ35: 0.532 | AK35: 30.4 | AL35: 0.166 | AM35: 36.9 | AN35: 4970 | AO35: 9.7 | AP35: 726.1 | AQ35: 11.7 | AR35: 1002 | AS35: 11.3 | AT35: 40.89 | AU35: 16.4 | AV35: 13.62 | AW35: 19.1 | AX35: 2.843 | AY35: 23.5 | AZ35: 47.74 | BA35: 16.1 | BB35: 3.816 | BC35: 22.6 | BD35: 0.356 | BE35: 32.3 | BF35: 13.86 | BG35: 18.5 | BH35: 0.014 | BI35: 59.5 | BJ35: 0.796 | BK35: 28.3 | BL35: 289.6 | BM35: 13 | BN35: 243.1 | BO35: 13.5 | BP35: 393.5 | BQ35: 12.8 | BR35: 3590 | BS35: 9.8 | BT35: 579.2 | BU35: 11.8 | BV35: 89.7 | BW35: 86.11 | BX35: 3.86 | BY35: 110.4 | BZ35: 100 | CA35: 5.63 | CB35: 111 | CC35: 100 | CD35: 5.28 | CE35: 111.9 | CF35: 100 | CG35: 2.73 | CH35: 121.3 | CI35: 100 | CJ35: 3.8 | CK35: 83.2 | CL35: 80.4 | CM35: 6 | CN35: 99.7 | CO35: 95.44 | CP35: 3.95 | CQ35: 106.8 | CR35: 100 | CS35: 4.35 | CT35: 110.3 | CU35: 100 | CV35: 5.07 | CW35: 86.5 | CX35: 82.97 | CY35: 2.92 | CZ35: 72.92 | DA35: 70.76 | DB35: 6.05 | DC35: 63.12 | DD35: 60.54 | DE35: -1.29 | DI35: 1.583 | DJ35: 66.34 | DK35: 66.34 | DL35: -3.75 | DM35: 5.994 | DN35: 7.508 | DO35: 5.615 | DP35: 7.612 | DQ35: 5.262 | DR35: 7.151 | DS35: 2.73 | DT35: 6.015 | DU35: 3.792 | DV35: 5.078 | DW35: 9.17 | DX35: 8.59 | DY35: 4.608 | DZ35: 6.569 | EA35: 4.338 | EB35: 6.178
A36: 2012-12-13T20:00:00 | B36: 5.065 | C36: 8.24 | D36: 5.609 | E36: 7.598 | F36: 10.92 | H36: 5.12 | J36: 589.5 | K36: 12.2 | L36: 29.64 | M36: 17.2 | N36: 5.501 | O36: 21.3 | P36: 327.1 | Q36: 12.9 | R36: 1.245 | S36: 26.4 | T36: 3.008 | U36: 23.2 | V36: 618.7 | W36: 12.1 | X36: 7.464 | Y36: 20.6 | Z36: 0.927 | AA36: 27.7 | AB36: 63.18 | AC36: 15.7 | AD36: 0.822 | AE36: 28.6 | AF36: 0.051 | AG36: 46.2 | AH36: 203.1 | AI36: 13.8 | AJ36: 0.537 | AK36: 30.4 | AL36: 0.167 | AM36: 36.9 | AN36: 5134 | AO36: 9.7 | AP36: 750 | AQ36: 11.7 | AR36: 1053 | AS36: 11.3 | AT36: 41.59 | AU36: 16.4 | AV36: 13.8 | AW36: 19 | AX36: 2.822 | AY36: 23.5 | AZ36: 48.64 | BA36: 16.1 | BB36: 3.863 | BC36: 22.6 | BD36: 0.354 | BE36: 32.3 | BF36: 14.45 | BG36: 18.4 | BH36: 0.014 | BI36: 59.5 | BJ36: 0.807 | BK36: 28.2 | BL36: 298.3 | BM36: 13 | BN36: 247.3 | BO36: 13.5 | BP36: 395.1 | BQ36: 12.8 | BR36: 3619 | BS36: 9.8 | BT36: 588.7 | BU36: 11.8 | BV36: 90.1 | BW36: 86.44 | BX36: 3.62 | BY36: 111 | BZ36: 100 | CA36: 5.38 | CB36: 111.6 | CC36: 100 | CD36: 5.02 | CE36: 112.2 | CF36: 100 | CG36: 2.73 | CH36: 121.3 | CI36: 100 | CJ36: 3.78 | CK36: 84.1 | CL36: 81.22 | CM36: 5.83 | CN36: 100.2 | CO36: 95.95 | CP36: 4.19 | CQ36: 107.1 | CR36: 100 | CS36: 4.42 | CT36: 110.4 | CU36: 100 | CV36: 5.08 | CW36: 86.6 | CX36: 83.07 | CY36: 2.97 | CZ36: 72.8 | DA36: 70.61 | DB36: 5.81 | DC36: 64.16 | DD36: 61.48 | DE36: -1.51 | DI36: 0.674 | DJ36: 72.35 | DK36: 72.35 | DL36: -3.48 | DM36: 5.699 | DN36: 6.845 | DO36: 5.357 | DP36: 6.893 | DQ36: 5.004 | DR36: 6.534 | DS36: 2.725 | DT36: 5.692 | DU36: 3.774 | DV36: 4.864 | DW36: 8.85 | DX36: 7.955 | DY36: 4.77 | DZ36: 6.354 | EA36: 4.408 | EB36: 5.973
A37: 2012-12-13T21:00:00 | B37: 5.016 | C37: 7.824 | D37: 5.567 | E37: 7.26 | F37: 10.61 | H37: 4.682 | J37: 615.3 | K37: 12.2 | L37: 30.88 | M37: 17.1 | N37: 5.598 | O37: 21.3 | P37: 364.7 | Q37: 12.8 | R37: 1.271 | S37: 26.3 | T37: 3.086 | U37: 23.2 | V37: 625 | W37: 12.2 | X37: 7.722 | Y37: 20.5 | Z37: 0.944 | AA37: 27.6 | AB37: 64.36 | AC37: 15.7 | AD37: 0.817 | AE37: 28.6 | AF37: 0.05 | AG37: 46.4 | AH37: 206.9 | AI37: 13.8 | AJ37: 0.54 | AK37: 30.3 | AL37: 0.168 | AM37: 36.9 | AN37: 5201 | AO37: 9.7 | AP37: 771.5 | AQ37: 11.7 | AR37: 1103 | AS37: 11.2 | AT37: 42.32 | AU37: 16.4 | AV37: 13.95 | AW37: 19 | AX37: 2.795 | AY37: 23.5 | AZ37: 49.47 | BA37: 16.1 | BB37: 3.904 | BC37: 22.5 | BD37: 0.352 | BE37: 32.4 | BF37: 15.03 | BG37: 18.4 | BH37: 0.014 | BI37: 59.5 | BJ37: 0.817 | BK37: 28.2 | BL37: 307 | BM37: 13 | BN37: 252.4 | BO37: 13.4 | BP37: 398.6 | BQ37: 12.8 | BR37: 3608 | BS37: 9.8 | BT37: 599.3 | BU37: 11.8 | BV37: 90.5 | BW37: 86.78 | BX37: 3.43 | BY37: 111.4 | BZ37: 100 | CA37: 5.14 | CB37: 112 | CC37: 100 | CD37: 4.78 | CE37: 112.4 | CF37: 100 | CG37: 2.7 | CH37: 121.4 | CI37: 100 | CJ37: 3.75 | CK37: 84.8 | CL37: 81.84 | CM37: 5.66 | CN37: 100.7 | CO37: 96.45 | CP37: 4.38 | CQ37: 107.3 | CR37: 100 | CS37: 4.46 | CT37: 110.6 | CU37: 100 | CV37: 5.03 | CW37: 86.8 | CX37: 83.26 | CY37: 2.96 | CZ37: 72.58 | DA37: 70.35 | DB37: 5.46 | DC37: 65.07 | DD37: 62.3 | DE37: -1.74 | DI37: -0.022 | DJ37: 75.49 | DK37: 75.49 | DL37: -3.57 | DM37: 5.443 | DN37: 6.304 | DO37: 5.127 | DP37: 6.331 | DQ37: 4.767 | DR37: 6.037 | DS37: 2.697 | DT37: 5.388 | DU37: 3.741 | DV37: 4.667 | DW37: 8.56 | DX37: 7.476 | DY37: 4.883 | DZ37: 6.169 | EA37: 4.446 | EB37: 5.788
A38: 2012-12-13T22:00:00 | B38: 4.914 | C38: 7.443 | D38: 5.469 | E38: 6.924 | F38: 10.23 | H38: 4.34 | J38: 635.1 | K38: 12.2 | L38: 31.95 | M38: 17.1 | N38: 5.7 | O38: 21.3 | P38: 380.1 | Q38: 12.8 | R38: 1.292 | S38: 26.3 | T38: 3.148 | U38: 23.1 | V38: 632.7 | W38: 12.2 | X38: 7.938 | Y38: 20.5 | Z38: 0.96 | AA38: 27.6 | AB38: 65.55 | AC38: 15.7 | AD38: 0.814 | AE38: 28.7 | AF38: 0.05 | AG38: 46.4 | AH38: 211 | AI38: 13.8 | AJ38: 0.546 | AK38: 30.3 | AL38: 0.168 | AM38: 36.9 | AN38: 5308 | AO38: 9.8 | AP38: 794.5 | AQ38: 11.6 | AR38: 1153 | AS38: 11.2 | AT38: 42.96 | AU38: 16.4 | AV38: 14.06 | AW38: 18.9 | AX38: 2.781 | AY38: 23.5 | AZ38: 50.22 | BA38: 16.1 | BB38: 3.943 | BC38: 22.5 | BD38: 0.351 | BE38: 32.4 | BF38: 15.61 | BG38: 18.3 | BH38: 0.014 | BI38: 59.6 | BJ38: 0.829 | BK38: 28.2 | BL38: 315.6 | BM38: 13 | BN38: 257.8 | BO38: 13.4 | BP38: 405.1 | BQ38: 12.8 | BR38: 3713 | BS38: 9.8 | BT38: 617.7 | BU38: 11.8 | BV38: 90.7 | BW38: 86.93 | BX38: 3.21 | BY38: 111.7 | BZ38: 100 | CA38: 4.92 | CB38: 112.4 | CC38: 100 | CD38: 4.56 | CE38: 112.6 | CF38: 100 | CG38: 2.65 | CH38: 121.5 | CI38: 100 | CJ38: 3.69 | CK38: 85.2 | CL38: 82.18 | CM38: 5.42 | CN38: 101 | CO38: 96.75 | CP38: 4.48 | CQ38: 107.5 | CR38: 100 | CS38: 4.47 | CT38: 110.7 | CU38: 100 | CV38: 4.93 | CW38: 86.8 | CX38: 83.24 | CY38: 2.86 | CZ38: 72.38 | DA38: 70.1 | DB38: 5.04 | DC38: 65.62 | DD38: 62.78 | DE38: -1.95 | DI38: -0.478 | DJ38: 78.04 | DK38: 78.04 | DL38: -3.63 | DM38: 5.2 | DN38: 5.845 | DO38: 4.906 | DP38: 5.855 | DQ38: 4.55 | DR38: 5.613 | DS38: 2.649 | DT38: 5.105 | DU38: 3.68 | DV38: 4.457 | DW38: 8.26 | DX38: 7.06 | DY38: 4.94 | DZ38: 5.999 | EA38: 4.453 | EB38: 5.611
A39: 2012-12-13T23:00:00 | B39: 4.779 | C39: 7.084 | D39: 5.326 | E39: 6.598 | F39: 9.81 | H39: 4.039 | J39: 654.8 | K39: 12.2 | L39: 32.96 | M39: 17 | N39: 5.796 | O39: 21.3 | P39: 381.6 | Q39: 12.9 | R39: 1.312 | S39: 26.3 | T39: 3.202 | U39: 23.1 | V39: 639.1 | W39: 12.2 | X39: 8.1 | Y39: 20.4 | Z39: 0.973 | AA39: 27.6 | AB39: 66.76 | AC39: 15.7 | AD39: 0.811 | AE39: 28.7 | AF39: 0.05 | AG39: 46.4 | AH39: 214.5 | AI39: 13.8 | AJ39: 0.543 | AK39: 30.3 | AL39: 0.168 | AM39: 36.9 | AN39: 5412 | AO39: 9.8 | AP39: 821 | AQ39: 11.6 | AR39: 1214 | AS39: 11.2 | AT39: 43.56 | AU39: 16.4 | AV39: 14.16 | AW39: 18.9 | AX39: 2.772 | AY39: 23.5 | AZ39: 50.92 | BA39: 16.1 | BB39: 3.982 | BC39: 22.5 | BD39: 0.35 | BE39: 32.4 | BF39: 16.17 | BG39: 18.3 | BH39: 0.014 | BI39: 59.6 | BJ39: 0.842 | BK39: 28.1 | BL39: 324.2 | BM39: 13 | BN39: 264 | BO39: 13.4 | BP39: 411.3 | BQ39: 12.8 | BR39: 3827 | BS39: 9.8 | BT39: 639.7 | BU39: 11.8 | BV39: 91 | BW39: 87.18 | BX39: 3.02 | BY39: 112 | BZ39: 100 | CA39: 4.71 | CB39: 112.6 | CC39: 100 | CD39: 4.35 | CE39: 112.7 | CF39: 100 | CG39: 2.6 | CH39: 121.6 | CI39: 100 | CJ39: 3.62 | CK39: 85.5 | CL39: 82.42 | CM39: 5.17 | CN39: 101.3 | CO39: 97.04 | CP39: 4.54 | CQ39: 107.6 | CR39: 100 | CS39: 4.45 | CT39: 110.7 | CU39: 100 | CV39: 4.79 | CW39: 86.8 | CX39: 83.21 | CY39: 2.71 | CZ39: 72.15 | DA39: 69.82 | DB39: 4.58 | DC39: 66.25 | DD39: 63.34 | DE39: -2.1 | DI39: -0.88 | DJ39: 79.57 | DK39: 79.57 | DL39: -3.81 | DM39: 4.971 | DN39: 5.456 | DO39: 4.693 | DP39: 5.448 | DQ39: 4.334 | DR39: 5.243 | DS39: 2.6 | DT39: 4.848 | DU39: 3.608 | DV39: 4.237 | DW39: 7.955 | DX39: 6.686 | DY39: 4.958 | DZ39: 5.855 | EA39: 4.436 | EB39: 5.453
A40: 2012-12-14 | B40: 4.617 | C40: 6.737 | D40: 5.148 | E40: 6.282 | F40: 9.37 | H40: 3.708 | J40: 666.5 | K40: 12.2 | L40: 33.91 | M40: 17 | N40: 5.881 | O40: 21.3 | P40: 389.6 | Q40: 12.9 | R40: 1.332 | S40: 26.3 | T40: 3.246 | U40: 23.1 | V40: 641.2 | W40: 12.2 | X40: 8.25 | Y40: 20.4 | Z40: 0.986 | AA40: 27.6 | AB40: 67.9 | AC40: 15.7 | AD40: 0.811 | AE40: 28.7 | AF40: 0.05 | AG40: 46.4 | AH40: 218.5 | AI40: 13.8 | AJ40: 0.552 | AK40: 30.3 | AL40: 0.169 | AM40: 36.9 | AN40: 5297 | AO40: 9.8 | AP40: 844 | AQ40: 11.6 | AR40: 1264 | AS40: 11.2 | AT40: 44.15 | AU40: 16.4 | AV40: 14.26 | AW40: 18.9 | AX40: 2.766 | AY40: 23.6 | AZ40: 51.74 | BA40: 16.1 | BB40: 4.018 | BC40: 22.4 | BD40: 0.35 | BE40: 32.4 | BF40: 16.7 | BG40: 18.3 | BH40: 0.014 | BI40: 59.7 | BJ40: 0.856 | BK40: 28.1 | BL40: 334 | BM40: 13 | BN40: 270.4 | BO40: 13.4 | BP40: 420.9 | BQ40: 12.8 | BR40: 3891 | BS40: 9.9 | BT40: 661.2 | BU40: 11.8 | BV40: 91.2 | BW40: 87.33 | BX40: 2.84 | BY40: 112.2 | BZ40: 100 | CA40: 4.5 | CB40: 112.8 | CC40: 100 | CD40: 4.14 | CE40: 112.8 | CF40: 100 | CG40: 2.53 | CH40: 121.6 | CI40: 100 | CJ40: 3.53 | CK40: 85.8 | CL40: 82.65 | CM40: 4.91 | CN40: 101.3 | CO40: 97.04 | CP40: 4.52 | CQ40: 107.8 | CR40: 100 | CS40: 4.4 | CT40: 110.8 | CU40: 100 | CV40: 4.63 | CW40: 86.8 | CX40: 83.18 | CY40: 2.53 | CZ40: 71.87 | DA40: 69.48 | DB40: 4.09 | DC40: 66.58 | DD40: 63.62 | DE40: -2.35 | DI40: -1.542 | DJ40: 81.8 | DK40: 81.8 | DL40: -4.16 | DM40: 4.759 | DN40: 5.109 | DO40: 4.484 | DP40: 5.072 | DQ40: 4.127 | DR40: 4.905 | DS40: 2.531 | DT40: 4.62 | DU40: 3.521 | DV40: 4.026 | DW40: 7.651 | DX40: 6.338 | DY40: 4.937 | DZ40: 5.719 | EA40: 4.388 | EB40: 5.297
A41: 2012-12-14T01:00:00 | B41: 4.426 | C41: 6.404 | D41: 4.942 | E41: 5.975 | F41: 8.91 | H41: 3.543 | J41: 675.8 | K41: 12.2 | L41: 34.78 | M41: 17 | N41: 5.972 | O41: 21.2 | P41: 385 | Q41: 12.9 | R41: 1.353 | S41: 26.3 | T41: 3.293 | U41: 23.1 | V41: 643.6 | W41: 12.3 | X41: 8.38 | Y41: 20.4 | Z41: 0.998 | AA41: 27.5 | AB41: 69.17 | AC41: 15.7 | AD41: 0.811 | AE41: 28.7 | AF41: 0.049 | AG41: 46.6 | AH41: 221.8 | AI41: 13.8 | AJ41: 0.558 | AK41: 30.3 | AL41: 0.17 | AM41: 36.9 | AN41: 5508 | AO41: 9.8 | AP41: 874 | AQ41: 11.6 | AR41: 1324 | AS41: 11.1 | AT41: 44.78 | AU41: 16.3 | AV41: 14.39 | AW41: 18.9 | AX41: 2.767 | AY41: 23.6 | AZ41: 52.46 | BA41: 16.1 | BB41: 4.057 | BC41: 22.4 | BD41: 0.35 | BE41: 32.4 | BF41: 17.23 | BG41: 18.3 | BH41: 0.014 | BI41: 59.7 | BJ41: 0.871 | BK41: 28 | BL41: 343.6 | BM41: 13 | BN41: 278.2 | BO41: 13.4 | BP41: 432.1 | BQ41: 12.8 | BR41: 4119 | BS41: 9.8 | BT41: 691.9 | BU41: 11.7 | BV41: 91.3 | BW41: 87.39 | BX41: 2.65 | BY41: 112.3 | BZ41: 100 | CA41: 4.29 | CB41: 113 | CC41: 100 | CD41: 3.94 | CE41: 113 | CF41: 100 | CG41: 2.46 | CH41: 121.7 | CI41: 100 | CJ41: 3.43 | CK41: 85.9 | CL41: 82.7 | CM41: 4.62 | CN41: 101.4 | CO41: 97.12 | CP41: 4.47 | CQ41: 108 | CR41: 100 | CS41: 4.33 | CT41: 110.9 | CU41: 100 | CV41: 4.44 | CW41: 86.7 | CX41: 83.05 | CY41: 2.31 | CZ41: 71.61 | DA41: 69.16 | DB41: 3.58 | DC41: 66.38 | DD41: 63.4 | DE41: -2.54 | DI41: -1.508 | DJ41: 80.5 | DK41: 80.5 | DL41: -4.33 | DM41: 4.556 | DN41: 4.818 | DO41: 4.277 | DP41: 4.76 | DQ41: 3.926 | DR41: 4.615 | DS41: 2.464 | DT41: 4.395 | DU41: 3.419 | DV41: 3.814 | DW41: 7.346 | DX41: 6.021 | DY41: 4.873 | DZ41: 5.583 | EA41: 4.32 | EB41: 5.143
A42: 2012-12-14T02:00:00 | B42: 4.234 | C42: 6.102 | D42: 4.725 | E42: 5.69 | F42: 8.45 | H42: 3.357 | J42: 687 | K42: 12.2 | L42: 35.61 | M42: 17 | N42: 6.062 | O42: 21.2 | P42: 431.8 | Q42: 12.8 | R42: 1.373 | S42: 26.2 | T42: 3.329 | U42: 23.1 | V42: 645.5 | W42: 12.3 | X42: 8.5 | Y42: 20.4 | Z42: 1.012 | AA42: 27.5 | AB42: 70.22 | AC42: 15.7 | AD42: 0.812 | AE42: 28.7 | AF42: 0.049 | AG42: 46.7 | AH42: 224.6 | AI42: 13.8 | AJ42: 0.562 | AK42: 30.2 | AL42: 0.171 | AM42: 36.9 | AN42: 5594 | AO42: 9.8 | AP42: 903 | AQ42: 11.6 | AR42: 1374 | AS42: 11.1 | AT42: 45.38 | AU42: 16.3 | AV42: 14.53 | AW42: 18.9 | AX42: 2.779 | AY42: 23.6 | AZ42: 53.24 | BA42: 16.1 | BB42: 4.096 | BC42: 22.4 | BD42: 0.35 | BE42: 32.4 | BF42: 17.75 | BG42: 18.2 | BH42: 0.014 | BI42: 59.8 | BJ42: 0.886 | BK42: 28 | BL42: 352.1 | BM42: 13 | BN42: 286 | BO42: 13.3 | BP42: 440.9 | BQ42: 12.7 | BR42: 4440 | BS42: 9.8 | BT42: 727.8 | BU42: 11.7 | BV42: 91.4 | BW42: 87.45 | BX42: 2.46 | BY42: 112.5 | BZ42: 100 | CA42: 4.09 | CB42: 113.1 | CC42: 100 | CD42: 3.74 | CE42: 113.1 | CF42: 100 | CG42: 2.38 | CH42: 121.7 | CI42: 100 | CJ42: 3.32 | CK42: 86 | CL42: 82.74 | CM42: 4.32 | CN42: 101.5 | CO42: 97.2 | CP42: 4.4 | CQ42: 108 | CR42: 100 | CS42: 4.25 | CT42: 111 | CU42: 100 | CV42: 4.25 | CW42: 86.7 | CX42: 83.01 | CY42: 2.08 | CZ42: 71.37 | DA42: 68.87 | DB42: 3.07 | DC42: 66.28 | DD42: 63.28 | DE42: -2.73 | DI42: -1.896 | DJ42: 80.7 | DK42: 80.7 | DL42: -4.71 | DM42: 4.355 | DN42: 4.57 | DO42: 4.082 | DP42: 4.485 | DQ42: 3.736 | DR42: 4.364 | DS42: 2.386 | DT42: 4.2 | DU42: 3.31 | DV42: 3.637 | DW42: 7.041 | DX42: 5.743 | DY42: 4.795 | DZ42: 5.452 | EA42: 4.234 | EB42: 4.993
A43: 2012-12-14T03:00:00 | B43: 4.032 | C43: 5.828 | D43: 4.503 | E43: 5.413 | F43: 8.01 | H43: 3.103 | J43: 694.4 | K43: 12.2 | L43: 36.42 | M43: 16.9 | N43: 6.153 | O43: 21.2 | P43: 411.8 | Q43: 12.9 | R43: 1.391 | S43: 26.2 | T43: 3.367 | U43: 23.1 | V43: 649.7 | W43: 12.3 | X43: 8.6 | Y43: 20.4 | Z43: 1.023 | AA43: 27.5 | AB43: 71.26 | AC43: 15.7 | AD43: 0.812 | AE43: 28.7 | AF43: 0.049 | AG43: 46.7 | AH43: 227.1 | AI43: 13.8 | AJ43: 0.563 | AK43: 30.3 | AL43: 0.171 | AM43: 36.9 | AN43: 5526 | AO43: 9.9 | AP43: 922 | AQ43: 11.6 | AR43: 1425 | AS43: 11.1 | AT43: 46.08 | AU43: 16.3 | AV43: 14.7 | AW43: 18.9 | AX43: 2.799 | AY43: 23.6 | AZ43: 54.01 | BA43: 16.1 | BB43: 4.139 | BC43: 22.4 | BD43: 0.351 | BE43: 32.5 | BF43: 18.27 | BG43: 18.2 | BH43: 0.014 | BI43: 59.9 | BJ43: 0.903 | BK43: 28 | BL43: 361.3 | BM43: 12.9 | BN43: 293.2 | BO43: 13.3 | BP43: 450.2 | BQ43: 12.7 | BR43: 4397 | BS43: 9.9 | BT43: 751.1 | BU43: 11.7 | BV43: 91.6 | BW43: 87.61 | BX43: 2.3 | BY43: 112.6 | BZ43: 100 | CA43: 3.9 | CB43: 113.2 | CC43: 100 | CD43: 3.55 | CE43: 113.2 | CF43: 100 | CG43: 2.3 | CH43: 121.8 | CI43: 100 | CJ43: 3.2 | CK43: 86 | CL43: 82.69 | CM43: 4.02 | CN43: 101.5 | CO43: 97.18 | CP43: 4.29 | CQ43: 108.1 | CR43: 100 | CS43: 4.15 | CT43: 111 | CU43: 100 | CV43: 4.04 | CW43: 86.6 | CX43: 82.88 | CY43: 1.84 | CZ43: 71.09 | DA43: 68.53 | DB43: 2.58 | DC43: 66.71 | DD43: 63.66 | DE43: -2.89 | DI43: -2.21 | DJ43: 82.5 | DK43: 82.5 | DL43: -4.76 | DM43: 4.168 | DN43: 4.337 | DO43: 3.889 | DP43: 4.23 | DQ43: 3.542 | DR43: 4.119 | DS43: 2.3 | DT43: 4.01 | DU43: 3.2 | DV43: 3.454 | DW43: 6.744 | DX43: 5.468 | DY43: 4.691 | DZ43: 5.317 | EA43: 4.135 | EB43: 4.849
A44: 2012-12-14T04:00:00 | B44: 3.82 | C44: 5.564 | D44: 4.272 | E44: 5.133 | F44: 7.568 | H44: 2.838 | J44: 703.2 | K44: 12.2 | L44: 37.21 | M44: 16.9 | N44: 6.243 | O44: 21.2 | P44: 447.9 | Q44: 12.8 | R44: 1.41 | S44: 26.2 | T44: 3.403 | U44: 23.1 | V44: 653.9 | W44: 12.3 | X44: 8.71 | Y44: 20.4 | Z44: 1.036 | AA44: 27.5 | AB44: 72.31 | AC44: 15.7 | AD44: 0.814 | AE44: 28.8 | AF44: 0.049 | AG44: 46.7 | AH44: 229 | AI44: 13.8 | AJ44: 0.567 | AK44: 30.2 | AL44: 0.171 | AM44: 36.9 | AN44: 5613 | AO44: 9.9 | AP44: 951 | AQ44: 11.6 | AR44: 1491 | AS44: 11.1 | AT44: 46.83 | AU44: 16.3 | AV44: 14.89 | AW44: 18.9 | AX44: 2.827 | AY44: 23.5 | AZ44: 54.9 | BA44: 16.1 | BB44: 4.184 | BC44: 22.4 | BD44: 0.352 | BE44: 32.5 | BF44: 18.86 | BG44: 18.2 | BH44: 0.014 | BI44: 60 | BJ44: 0.922 | BK44: 27.9 | BL44: 367.7 | BM44: 13 | BN44: 298.3 | BO44: 13.3 | BP44: 455.7 | BQ44: 12.8 | BR44: 4513 | BS44: 9.9 | BT44: 779.4 | BU44: 11.7 | BV44: 91.6 | BW44: 87.57 | BX44: 2.1 | BY44: 112.7 | BZ44: 100 | CA44: 3.71 | CB44: 113.3 | CC44: 100 | CD44: 3.36 | CE44: 113.2 | CF44: 100 | CG44: 2.21 | CH44: 121.9 | CI44: 100 | CJ44: 3.08 | CK44: 86 | CL44: 82.64 | CM44: 3.71 | CN44: 101.5 | CO44: 97.16 | CP44: 4.17 | CQ44: 108.2 | CR44: 100 | CS44: 4.03 | CT44: 111.1 | CU44: 100 | CV44: 3.83 | CW44: 86.6 | CX44: 82.84 | CY44: 1.61 | CZ44: 70.9 | DA44: 68.29 | DB44: 2.1 | DC44: 67.01 | DD44: 63.91 | DE44: -3.08 | DI44: -2.422 | DJ44: 82.6 | DK44: 82.6 | DL44: -4.97 | DM44: 3.976 | DN44: 4.103 | DO44: 3.699 | DP44: 3.985 | DQ44: 3.357 | DR44: 3.882 | DS44: 2.213 | DT44: 3.829 | DU44: 3.076 | DV44: 3.266 | DW44: 6.436 | DX44: 5.183 | DY44: 4.574 | DZ44: 5.175 | EA44: 4.016 | EB44: 4.696
A45: 2012-12-14T05:00:00 | B45: 3.607 | C45: 5.299 | D45: 4.035 | E45: 4.868 | F45: 7.146 | H45: 2.643 | J45: 711.7 | K45: 12.2 | L45: 38.03 | M45: 16.9 | N45: 6.335 | O45: 21.2 | P45: 440.8 | Q45: 12.9 | R45: 1.428 | S45: 26.2 | T45: 3.445 | U45: 23.1 | V45: 657 | W45: 12.3 | X45: 8.79 | Y45: 20.4 | Z45: 1.049 | AA45: 27.5 | AB45: 73.42 | AC45: 15.7 | AD45: 0.816 | AE45: 28.8 | AF45: 0.049 | AG45: 46.7 | AH45: 231.2 | AI45: 13.8 | AJ45: 0.571 | AK45: 30.2 | AL45: 0.173 | AM45: 36.9 | AN45: 5693 | AO45: 9.9 | AP45: 982 | AQ45: 11.6 | AR45: 1546 | AS45: 11.1 | AT45: 47.54 | AU45: 16.3 | AV45: 15.1 | AW45: 18.8 | AX45: 2.838 | AY45: 23.6 | AZ45: 55.71 | BA45: 16.1 | BB45: 4.228 | BC45: 22.4 | BD45: 0.353 | BE45: 32.5 | BF45: 19.39 | BG45: 18.1 | BH45: 0.014 | BI45: 60 | BJ45: 0.938 | BK45: 27.9 | BL45: 377.3 | BM45: 12.9 | BN45: 307.2 | BO45: 13.3 | BP45: 466.9 | BQ45: 12.7 | BR45: 4828 | BS45: 9.8 | BT45: 816 | BU45: 11.7 | BV45: 91.8 | BW45: 87.73 | BX45: 1.93 | BY45: 112.9 | BZ45: 100 | CA45: 3.51 | CB45: 113.3 | CC45: 100 | CD45: 3.18 | CE45: 113.2 | CF45: 100 | CG45: 2.12 | CH45: 122 | CI45: 100 | CJ45: 2.95 | CK45: 86.1 | CL45: 82.68 | CM45: 3.41 | CN45: 101.4 | CO45: 97.03 | CP45: 4.02 | CQ45: 108.3 | CR45: 100 | CS45: 3.9 | CT45: 111.2 | CU45: 100 | CV45: 3.61 | CW45: 86.5 | CX45: 82.71 | CY45: 1.35 | CZ45: 70.71 | DA45: 68.05 | DB45: 1.64 | DC45: 66.81 | DD45: 63.7 | DE45: -3.3 | DI45: -2.608 | DJ45: 82.5 | DK45: 82.5 | DL45: -5.19 | DM45: 3.781 | DN45: 3.871 | DO45: 3.508 | DP45: 3.742 | DQ45: 3.171 | DR45: 3.651 | DS45: 2.126 | DT45: 3.658 | DU45: 2.95 | DV45: 3.082 | DW45: 6.124 | DX45: 4.892 | DY45: 4.438 | DZ45: 5.027 | EA45: 3.889 | EB45: 4.538
A46: 2012-12-14T06:00:00 | B46: 3.385 | C46: 5.037 | D46: 3.796 | E46: 4.624 | F46: 6.739 | H46: 2.579 | J46: 715.5 | K46: 12.2 | L46: 38.75 | M46: 16.9 | N46: 6.411 | O46: 21.2 | P46: 421.1 | Q46: 12.9 | R46: 1.443 | S46: 26.2 | T46: 3.479 | U46: 23.1 | V46: 661.5 | W46: 12.4 | X46: 8.86 | Y46: 20.4 | Z46: 1.058 | AA46: 27.5 | AB46: 74.44 | AC46: 15.6 | AD46: 0.818 | AE46: 28.8 | AF46: 0.049 | AG46: 46.8 | AH46: 232.6 | AI46: 13.8 | AJ46: 0.575 | AK46: 30.2 | AL46: 0.174 | AM46: 36.9 | AN46: 5719 | AO46: 9.9 | AP46: 1008 | AQ46: 11.6 | AR46: 1603 | AS46: 11.1 | AT46: 48.17 | AU46: 16.3 | AV46: 15.26 | AW46: 18.8 | AX46: 2.87 | AY46: 23.5 | AZ46: 56.53 | BA46: 16 | BB46: 4.274 | BC46: 22.4 | BD46: 0.354 | BE46: 32.5 | BF46: 19.93 | BG46: 18.1 | BH46: 0.014 | BI46: 60.1 | BJ46: 0.956 | BK46: 27.8 | BL46: 386 | BM46: 12.9 | BN46: 314.5 | BO46: 13.3 | BP46: 477.8 | BQ46: 12.7 | BR46: 5031 | BS46: 9.8 | BT46: 844 | BU46: 11.7 | BV46: 91.8 | BW46: 87.69 | BX46: 1.74 | BY46: 112.9 | BZ46: 100 | CA46: 3.33 | CB46: 113.5 | CC46: 100 | CD46: 2.99 | CE46: 113.3 | CF46: 100 | CG46: 2.03 | CH46: 122 | CI46: 100 | CJ46: 2.82 | CK46: 86 | CL46: 82.53 | CM46: 3.09 | CN46: 101.4 | CO46: 97 | CP46: 3.86 | CQ46: 108.3 | CR46: 100 | CS46: 3.76 | CT46: 111.3 | CU46: 100 | CV46: 3.39 | CW46: 86.5 | CX46: 82.66 | CY46: 1.11 | CZ46: 70.53 | DA46: 67.81 | DB46: 1.2 | DC46: 67.07 | DD46: 63.94 | DE46: -3.31 | DI46: -2.226 | DJ46: 81 | DK46: 81 | DL46: -5.01 | DM46: 3.596 | DN46: 3.675 | DO46: 3.325 | DP46: 3.547 | DQ46: 2.986 | DR46: 3.461 | DS46: 2.032 | DT46: 3.509 | DU46: 2.817 | DV46: 2.92 | DW46: 5.83 | DX46: 4.665 | DY46: 4.282 | DZ46: 4.875 | EA46: 3.75 | EB46: 4.381
A47: 2012-12-14T07:00:00 | B47: 3.165 | C47: 4.785 | D47: 3.556 | E47: 4.393 | F47: 6.343 | H47: 2.441 | J47: 722.1 | K47: 12.2 | L47: 39.4 | M47: 16.9 | N47: 6.507 | O47: 21.2 | P47: 476.5 | Q47: 12.8 | R47: 1.463 | S47: 26.2 | T47: 3.51 | U47: 23.1 | V47: 663.9 | W47: 12.4 | X47: 8.97 | Y47: 20.4 | Z47: 1.072 | AA47: 27.5 | AB47: 75.42 | AC47: 15.6 | AD47: 0.821 | AE47: 28.8 | AF47: 0.049 | AG47: 46.8 | AH47: 234.7 | AI47: 13.8 | AJ47: 0.583 | AK47: 30.2 | AL47: 0.177 | AM47: 36.8 | AN47: 5802 | AO47: 9.9 | AP47: 1036 | AQ47: 11.6 | AR47: 1659 | AS47: 11.1 | AT47: 49.02 | AU47: 16.3 | AV47: 15.49 | AW47: 18.8 | AX47: 2.91 | AY47: 23.5 | AZ47: 57.43 | BA47: 16 | BB47: 4.322 | BC47: 22.3 | BD47: 0.356 | BE47: 32.5 | BF47: 20.45 | BG47: 18.1 | BH47: 0.014 | BI47: 60.2 | BJ47: 0.974 | BK47: 27.8 | BL47: 396.6 | BM47: 12.9 | BN47: 323.2 | BO47: 13.3 | BP47: 490.1 | BQ47: 12.7 | BR47: 5094 | BS47: 9.9 | BT47: 882 | BU47: 11.7 | BV47: 91.9 | BW47: 87.76 | BX47: 1.58 | BY47: 113 | BZ47: 100 | CA47: 3.15 | CB47: 113.6 | CC47: 100 | CD47: 2.81 | CE47: 113.3 | CF47: 100 | CG47: 1.92 | CH47: 122.1 | CI47: 100 | CJ47: 2.68 | CK47: 85.9 | CL47: 82.39 | CM47: 2.79 | CN47: 101.4 | CO47: 96.97 | CP47: 3.7 | CQ47: 108.3 | CR47: 100 | CS47: 3.61 | CT47: 111.4 | CU47: 100 | CV47: 3.17 | CW47: 86.3 | CX47: 82.43 | CY47: 0.83 | CZ47: 70.27 | DA47: 67.51 | DB47: 0.76 | DC47: 67.6 | DD47: 64.42 | DE47: -3.34 | DI47: -2.572 | DJ47: 82.6 | DK47: 82.6 | DL47: -5.13 | DM47: 3.42 | DN47: 3.539 | DO47: 3.145 | DP47: 3.377 | DQ47: 2.807 | DR47: 3.288 | DS47: 1.926 | DT47: 3.352 | DU47: 2.683 | DV47: 2.78 | DW47: 5.546 | DX47: 4.46 | DY47: 4.127 | DZ47: 4.72 | EA47: 3.607 | EB47: 4.231
A48: 2012-12-14T08:00:00 | B48: 2.952 | C48: 4.551 | D48: 3.32 | E48: 4.173 | F48: 5.976 | H48: 2.361 | J48: 724.5 | K48: 12.2 | L48: 40.1 | M48: 16.9 | N48: 6.607 | O48: 21.2 | P48: 439.8 | Q48: 12.9 | R48: 1.481 | S48: 26.1 | T48: 3.547 | U48: 23.1 | V48: 664.6 | W48: 12.4 | X48: 9.06 | Y48: 20.4 | Z48: 1.084 | AA48: 27.4 | AB48: 76.25 | AC48: 15.6 | AD48: 0.822 | AE48: 28.8 | AF48: 0.049 | AG48: 46.8 | AH48: 236.6 | AI48: 13.9 | AJ48: 0.588 | AK48: 30.2 | AL48: 0.179 | AM48: 36.7 | AN48: 5869 | AO48: 9.9 | AP48: 1062 | AQ48: 11.6 | AR48: 1705 | AS48: 11.1 | AT48: 49.87 | AU48: 16.3 | AV48: 15.75 | AW48: 18.8 | AX48: 2.932 | AY48: 23.5 | AZ48: 58.29 | BA48: 16 | BB48: 4.373 | BC48: 22.3 | BD48: 0.357 | BE48: 32.5 | BF48: 20.96 | BG48: 18.1 | BH48: 0.014 | BI48: 60.3 | BJ48: 0.992 | BK48: 27.8 | BL48: 406 | BM48: 12.9 | BN48: 331.8 | BO48: 13.3 | BP48: 502.4 | BQ48: 12.7 | BR48: 5409 | BS48: 9.8 | BT48: 911 | BU48: 11.7 | BV48: 91.9 | BW48: 87.73 | BX48: 1.4 | BY48: 113 | BZ48: 100 | CA48: 2.97 | CB48: 113.6 | CC48: 100 | CD48: 2.63 | CE48: 113.5 | CF48: 100 | CG48: 1.82 | CH48: 122.2 | CI48: 100 | CJ48: 2.55 | CK48: 85.8 | CL48: 82.25 | CM48: 2.49 | CN48: 101.4 | CO48: 96.94 | CP48: 3.53 | CQ48: 108.4 | CR48: 100 | CS48: 3.47 | CT48: 111.4 | CU48: 100 | CV48: 2.95 | CW48: 86.3 | CX48: 82.39 | CY48: 0.59 | CZ48: 70.12 | DA48: 67.31 | DB48: 0.36 | DC48: 68 | DD48: 64.79 | DE48: -3.34 | DI48: -2.45 | DJ48: 82.8 | DK48: 82.8 | DL48: -4.97 | DM48: 3.249 | DN48: 3.392 | DO48: 2.968 | DP48: 3.223 | DQ48: 2.635 | DR48: 3.12 | DS48: 1.828 | DT48: 3.21 | DU48: 2.548 | DV48: 2.635 | DW48: 5.27 | DX48: 4.254 | DY48: 3.964 | DZ48: 4.563 | EA48: 3.463 | EB48: 4.075
A49: 2012-12-14T09:00:00 | B49: 2.776 | C49: 5.445 | D49: 3.117 | E49: 4.272 | F49: 5.704 | H49: 4.476 | J49: 430.9 | K49: 12.7 | L49: 36.59 | M49: 17 | N49: 6.411 | O49: 21.2 | P49: 279.9 | Q49: 13.3 | R49: 1.48 | S49: 26.1 | T49: 3.33 | U49: 23.3 | V49: 431.2 | W49: 12.6 | X49: 7.771 | Y49: 20.8 | Z49: 1.08 | AA49: 27.5 | AB49: 73.49 | AC49: 15.7 | AD49: 0.82 | AE49: 28.8 | AF49: 0.049 | AG49: 46.9 | AH49: 224.5 | AI49: 13.9 | AJ49: 0.595 | AK49: 30.1 | AL49: 0.18 | AM49: 36.7 | AN49: 3714 | AO49: 10.1 | AP49: 921 | AQ49: 11.7 | AR49: 1711 | AS49: 11 | AT49: 49.88 | AU49: 16.3 | AV49: 15.82 | AW49: 18.8 | AX49: 2.898 | AY49: 23.6 | AZ49: 57.07 | BA49: 16.1 | BB49: 4.37 | BC49: 22.4 | BD49: 0.358 | BE49: 32.5 | BF49: 16.59 | BG49: 18.5 | BH49: 0.014 | BI49: 60.3 | BJ49: 1.007 | BK49: 27.7 | BL49: 393.3 | BM49: 12.9 | BN49: 336 | BO49: 13.3 | BP49: 512.3 | BQ49: 12.7 | BR49: 5425 | BS49: 9.9 | BT49: 939 | BU49: 11.7 | BV49: 90.9 | BW49: 86.79 | BX49: 1.34 | BY49: 112.3 | BZ49: 100 | CA49: 2.94 | CB49: 112.9 | CC49: 100 | CD49: 2.66 | CE49: 113.5 | CF49: 100 | CG49: 1.75 | CH49: 122.2 | CI49: 100 | CJ49: 2.43 | CK49: 82 | CL49: 78.66 | CM49: 2.18 | CN49: 101.4 | CO49: 96.9 | CP49: 3.36 | CQ49: 108.3 | CR49: 100 | CS49: 3.34 | CT49: 111.4 | CU49: 100 | CV49: 2.78 | CW49: 86 | CX49: 82.07 | CY49: 0.33 | CZ49: 69.4 | DA49: 66.58 | DB49: 0.04 | DC49: 64.29 | DD49: 61.53 | DE49: -2.08 | DI49: -0.753 | DJ49: 77.35 | DK49: 77.35 | DL49: -4.03 | DM49: 3.336 | DN49: 5.833 | DO49: 2.938 | DP49: 5.308 | DQ49: 2.655 | DR49: 6.262 | DS49: 1.761 | DT49: 3.306 | DU49: 2.435 | DV49: 2.696 | DW49: 5.6 | DX49: 7.002 | DY49: 3.801 | DZ49: 4.522 | EA49: 3.338 | EB49: 4.079
A50: 2012-12-14T10:00:00 | B50: 2.718 | C50: 7.866 | D50: 3.043 | E50: 5.155 | F50: 5.762 | H50: 6.774 | J50: 355.4 | K50: 12.5 | L50: 30.45 | M50: 17.3 | N50: 6.055 | O50: 21.3 | P50: 207.3 | Q50: 13.3 | R50: 1.414 | S50: 26.2 | T50: 2.922 | U50: 23.6 | V50: 385.3 | W50: 12.3 | X50: 6.74 | Y50: 21.1 | Z50: 1.033 | AA50: 27.5 | AB50: 68.91 | AC50: 15.7 | AD50: 0.818 | AE50: 28.8 | AF50: 0.048 | AG50: 47 | AH50: 207.9 | AI50: 14 | AJ50: 0.582 | AK50: 30.3 | AL50: 0.179 | AM50: 36.8 | AN50: 3321 | AO50: 9.8 | AP50: 821 | AQ50: 11.7 | AR50: 1527 | AS50: 11 | AT50: 48.96 | AU50: 16.3 | AV50: 15.62 | AW50: 18.9 | AX50: 2.747 | AY50: 23.8 | AZ50: 55 | BA50: 16.1 | BB50: 4.281 | BC50: 22.4 | BD50: 0.358 | BE50: 32.5 | BF50: 14.17 | BG50: 18.5 | BH50: 0.014 | BI50: 60.4 | BJ50: 0.982 | BK50: 27.8 | BL50: 367 | BM50: 13 | BN50: 322.9 | BO50: 13.4 | BP50: 510 | BQ50: 12.7 | BR50: 5477 | BS50: 9.9 | BT50: 937 | BU50: 11.7 | BV50: 88.6 | BW50: 84.74 | BX50: 1.82 | BY50: 110.3 | BZ50: 100 | CA50: 3.35 | CB50: 110.5 | CC50: 100 | CD50: 3.23 | CE50: 113.2 | CF50: 100 | CG50: 1.74 | CH50: 122 | CI50: 100 | CJ50: 2.43 | CK50: 77.74 | CL50: 74.76 | CM50: 2.65 | CN50: 101 | CO50: 96.5 | CP50: 3.18 | CQ50: 107.9 | CR50: 100 | CS50: 3.31 | CT50: 111 | CU50: 100 | CV50: 2.72 | CW50: 85.3 | CX50: 81.39 | CY50: 0.14 | CZ50: 68.22 | DA50: 65.46 | DB50: -0.12 | DC50: 61.31 | DD50: 58.95 | DE50: -0.58 | DI50: 1.677 | DJ50: 66.06 | DK50: 66.06 | DL50: -3.72 | DM50: 4.162 | DN50: 10.03 | DO50: 3.348 | DP50: 9.31 | DQ50: 3.23 | DR50: 10.89 | DS50: 1.747 | DT50: 3.977 | DU50: 2.433 | DV50: 3.497 | DW50: 6.807 | DX50: 11.48 | DY50: 3.676 | DZ50: 4.854 | EA50: 3.301 | EB50: 4.442
A51: 2012-12-14T11:00:00 | B51: 2.842 | C51: 9.7 | D51: 3.136 | E51: 5.81 | F51: 6.179 | H51: 8.04 | J51: 319 | K51: 12.4 | L51: 26.47 | M51: 17.5 | N51: 5.763 | O51: 21.3 | P51: 189.8 | Q51: 13.2 | R51: 1.345 | S51: 26.3 | T51: 2.69 | U51: 23.8 | V51: 373.6 | W51: 12.1 | X51: 6.128 | Y51: 21.3 | Z51: 0.989 | AA51: 27.6 | AB51: 64.79 | AC51: 15.8 | AD51: 0.801 | AE51: 28.9 | AF51: 0.048 | AG51: 47 | AH51: 195.3 | AI51: 14 | AJ51: 0.563 | AK51: 30.4 | AL51: 0.177 | AM51: 36.8 | AN51: 3342 | AO51: 9.6 | AP51: 767.4 | AQ51: 11.7 | AR51: 1356 | AS51: 11.1 | AT51: 47.18 | AU51: 16.3 | AV51: 15.11 | AW51: 18.9 | AX51: 2.646 | AY51: 23.9 | AZ51: 53.03 | BA51: 16.1 | BB51: 4.158 | BC51: 22.5 | BD51: 0.361 | BE51: 32.5 | BF51: 12.6 | BG51: 18.5 | BH51: 0.014 | BI51: 60.3 | BJ51: 0.94 | BK51: 28 | BL51: 351.3 | BM51: 12.9 | BN51: 312.2 | BO51: 13.4 | BP51: 502.6 | BQ51: 12.7 | BR51: 5133 | BS51: 9.9 | BT51: 875 | BU51: 11.7 | BV51: 87.6 | BW51: 83.94 | BX51: 2.58 | BY51: 108.4 | BZ51: 100 | CA51: 3.99 | CB51: 108.4 | CC51: 100 | CD51: 3.92 | CE51: 112.8 | CF51: 100 | CG51: 1.81 | CH51: 121.7 | CI51: 100 | CJ51: 2.56 | CK51: 75.56 | CL51: 72.81 | CM51: 3.23 | CN51: 100.2 | CO51: 95.73 | CP51: 3.03 | CQ51: 107.5 | CR51: 100 | CS51: 3.33 | CT51: 110.5 | CU51: 100 | CV51: 2.84 | CW51: 85.1 | CX51: 81.22 | CY51: 0.21 | CZ51: 67.96 | DA51: 65.27 | DB51: 0.13 | DC51: 58.92 | DD51: 56.8 | DE51: 0.06 | DI51: 3.057 | DJ51: 58.94 | DK51: 58.94 | DL51: -3.92 | DM51: 5.064 | DN51: 12.29 | DO51: 3.981 | DP51: 11.71 | DQ51: 3.913 | DR51: 13.04 | DS51: 1.816 | DT51: 4.724 | DU51: 2.56 | DV51: 4.332 | DW51: 7.798 | DX51: 13.45 | DY51: 3.644 | DZ51: 5.345 | EA51: 3.324 | EB51: 4.923
A52: 2012-12-14T12:00:00 | B52: 3.097 | C52: 10.37 | D52: 3.341 | E52: 6.29 | F52: 6.964 | H52: 8.8 | J52: 317.1 | K52: 12.4 | L52: 25.38 | M52: 17.5 | N52: 5.546 | O52: 21.3 | P52: 201.9 | Q52: 13.1 | R52: 1.296 | S52: 26.4 | T52: 2.694 | U52: 23.7 | V52: 377 | W52: 12.1 | X52: 6.206 | Y52: 21.1 | Z52: 0.96 | AA52: 27.6 | AB52: 62 | AC52: 15.8 | AD52: 0.784 | AE52: 29 | AF52: 0.047 | AG52: 47.2 | AH52: 188.4 | AI52: 13.9 | AJ52: 0.552 | AK52: 30.4 | AL52: 0.174 | AM52: 36.9 | AN52: 3404 | AO52: 9.7 | AP52: 742.9 | AQ52: 11.7 | AR52: 1269 | AS52: 11.1 | AT52: 45.82 | AU52: 16.3 | AV52: 14.91 | AW52: 19 | AX52: 2.617 | AY52: 24 | AZ52: 51.35 | BA52: 16.1 | BB52: 4.06 | BC52: 22.6 | BD52: 0.364 | BE52: 32.4 | BF52: 12.12 | BG52: 18.6 | BH52: 0.014 | BI52: 60.2 | BJ52: 0.899 | BK52: 28.1 | BL52: 338.8 | BM52: 12.9 | BN52: 301.6 | BO52: 13.4 | BP52: 489.2 | BQ52: 12.8 | BR52: 4882 | BS52: 9.9 | BT52: 762.3 | BU52: 11.8 | BV52: 87.8 | BW52: 84.24 | BX52: 3.26 | BY52: 107.5 | BZ52: 100 | CA52: 4.56 | CB52: 107.3 | CC52: 100 | CD52: 4.51 | CE52: 112.2 | CF52: 100 | CG52: 1.91 | CH52: 121.4 | CI52: 100 | CJ52: 2.75 | CK52: 75.4 | CL52: 72.73 | CM52: 3.66 | CN52: 99.7 | CO52: 95.25 | CP52: 2.96 | CQ52: 107.2 | CR52: 100 | CS52: 3.37 | CT52: 110.1 | CU52: 100 | CV52: 3.1 | CW52: 85 | CX52: 81.15 | CY52: 0.4 | CZ52: 68.48 | DA52: 65.87 | DB52: 1.01 | DC52: 58.74 | DD52: 56.72 | DE52: 0.67 | DI52: 4.421 | DJ52: 53.07 | DK52: 53.07 | DL52: -4.03 | DM52: 5.708 | DN52: 12.53 | DO52: 4.543 | DP52: 12.21 | DQ52: 4.494 | DR52: 12.84 | DS52: 1.917 | DT52: 5.267 | DU52: 2.749 | DV52: 4.949 | DW52: 8.25 | DX52: 13.2 | DY52: 3.645 | DZ52: 5.806 | EA52: 3.361 | EB52: 5.25
A53: 2012-12-14T13:00:00 | B53: 3.434 | C53: 11.16 | D53: 3.63 | E53: 6.764 | F53: 8.1 | H53: 9.83 | J53: 299.6 | K53: 12.3 | L53: 23.44 | M53: 17.6 | N53: 5.334 | O53: 21.3 | P53: 179 | Q53: 13.1 | R53: 1.261 | S53: 26.4 | T53: 2.603 | U53: 23.8 | V53: 383.4 | W53: 12 | X53: 5.904 | Y53: 21.2 | Z53: 0.938 | AA53: 27.6 | AB53: 59.81 | AC53: 15.8 | AD53: 0.769 | AE53: 29 | AF53: 0.047 | AG53: 47.2 | AH53: 179.9 | AI53: 14 | AJ53: 0.547 | AK53: 30.4 | AL53: 0.172 | AM53: 36.9 | AN53: 3243 | AO53: 9.6 | AP53: 690.6 | AQ53: 11.8 | AR53: 1169 | AS53: 11.2 | AT53: 44.79 | AU53: 16.3 | AV53: 14.85 | AW53: 19 | AX53: 2.778 | AY53: 23.8 | AZ53: 50.31 | BA53: 16.1 | BB53: 3.992 | BC53: 22.6 | BD53: 0.366 | BE53: 32.4 | BF53: 11.38 | BG53: 18.6 | BH53: 0.014 | BI53: 60.1 | BJ53: 0.866 | BK53: 28.2 | BL53: 323.8 | BM53: 13 | BN53: 289.7 | BO53: 13.4 | BP53: 470.2 | BQ53: 12.8 | BR53: 4669 | BS53: 9.8 | BT53: 640.5 | BU53: 11.9 | BV53: 87.6 | BW53: 84.13 | BX53: 3.74 | BY53: 106.9 | BZ53: 100 | CA53: 5.02 | CB53: 106.7 | CC53: 100 | CD53: 4.94 | CE53: 111.8 | CF53: 100 | CG53: 2.03 | CH53: 121 | CI53: 100 | CJ53: 2.95 | CK53: 74.8 | CL53: 72.21 | CM53: 3.97 | CN53: 99.5 | CO53: 95.06 | CP53: 2.94 | CQ53: 106.9 | CR53: 100 | CS53: 3.42 | CT53: 109.9 | CU53: 100 | CV53: 3.44 | CW53: 85.1 | CX53: 81.3 | CY53: 0.71 | CZ53: 68.74 | DA53: 66.28 | DB53: 2.19 | DC53: 58.23 | DD53: 56.35 | DE53: 1.55 | DI53: 5.949 | DJ53: 43.49 | DK53: 43.49 | DL53: -5.22 | DM53: 6.205 | DN53: 13.76 | DO53: 5 | DP53: 13.32 | DQ53: 4.926 | DR53: 14.36 | DS53: 2.04 | DT53: 5.669 | DU53: 2.95 | DV53: 5.395 | DW53: 8.68 | DX53: 13.92 | DY53: 3.658 | DZ53: 6.018 | EA53: 3.411 | EB53: 5.502
A54: 2012-12-14T14:00:00 | B54: 3.835 | C54: 12.2 | D54: 3.98 | E54: 7.324 | F54: 9.43 | H54: 10.58 | J54: 296.8 | K54: 12.2 | L54: 22.24 | M54: 17.6 | N54: 5.123 | O54: 21.4 | P54: 175 | Q54: 13 | R54: 1.219 | S54: 26.4 | T54: 2.514 | U54: 23.8 | V54: 398.5 | W54: 11.8 | X54: 5.684 | Y54: 21.2 | Z54: 0.91 | AA54: 27.6 | AB54: 57.64 | AC54: 15.8 | AD54: 0.759 | AE54: 29.1 | AF54: 0.047 | AG54: 47.1 | AH54: 173.5 | AI54: 14 | AJ54: 0.537 | AK54: 30.5 | AL54: 0.17 | AM54: 36.9 | AN54: 3157 | AO54: 9.6 | AP54: 642.6 | AQ54: 11.8 | AR54: 1011 | AS54: 11.3 | AT54: 43.05 | AU54: 16.3 | AV54: 14.63 | AW54: 19.1 | AX54: 2.648 | AY54: 24 | AZ54: 48.71 | BA54: 16.2 | BB54: 3.922 | BC54: 22.7 | BD54: 0.367 | BE54: 32.4 | BF54: 10.7 | BG54: 18.6 | BH54: 0.014 | BI54: 59.9 | BJ54: 0.825 | BK54: 28.4 | BL54: 307.8 | BM54: 13 | BN54: 275.7 | BO54: 13.5 | BP54: 449.1 | BQ54: 12.8 | BR54: 4128 | BS54: 9.8 | BT54: 589.9 | BU54: 11.9 | BV54: 86.9 | BW54: 83.56 | BX54: 4.18 | BY54: 106.2 | BZ54: 100 | CA54: 5.5 | CB54: 105.8 | CC54: 100 | CD54: 5.51 | CE54: 111.6 | CF54: 100 | CG54: 2.05 | CH54: 120.6 | CI54: 100 | CJ54: 3.2 | CK54: 75.07 | CL54: 72.58 | CM54: 4.76 | CN54: 99.9 | CO54: 95.33 | CP54: 2.41 | CQ54: 106.7 | CR54: 100 | CS54: 3.49 | CT54: 109.7 | CU54: 100 | CV54: 3.84 | CW54: 85.3 | CX54: 81.55 | CY54: 1.1 | CZ54: 68.64 | DA54: 66.37 | DB54: 3.49 | DC54: 54.91 | DD54: 53.22 | DE54: 1.45 | DI54: 7.663 | DJ54: 32.94 | DK54: 32.94 | DL54: -7.26 | DM54: 6.757 | DN54: 14.97 | DO54: 5.483 | DP54: 14.54 | DQ54: 5.486 | DR54: 15.74 | DS54: 2.055 | DT54: 5.963 | DU54: 3.195 | DV54: 5.924 | DW54: 9.42 | DX54: 15.23 | DY54: 3.083 | DZ54: 6.312 | EA54: 3.479 | EB54: 5.733
A55: 2012-12-14T15:00:00 | B55: 4.316 | C55: 12.97 | D55: 4.404 | E55: 7.876 | F55: 10.6 | H55: 11.06 | J55: 306.1 | K55: 12.1 | L55: 21.4 | M55: 17.7 | N55: 4.945 | O55: 21.4 | P55: 169.9 | Q55: 13 | R55: 1.18 | S55: 26.5 | T55: 2.484 | U55: 23.7 | V55: 429.9 | W55: 11.6 | X55: 5.742 | Y55: 21.1 | Z55: 0.884 | AA55: 27.7 | AB55: 56.99 | AC55: 15.8 | AD55: 0.748 | AE55: 29.2 | AF55: 0.047 | AG55: 47.1 | AH55: 167.2 | AI55: 14 | AJ55: 0.529 | AK55: 30.5 | AL55: 0.168 | AM55: 36.9 | AN55: 3153 | AO55: 9.5 | AP55: 595.7 | AQ55: 11.8 | AR55: 878 | AS55: 11.3 | AT55: 40.97 | AU55: 16.4 | AV55: 14.32 | AW55: 19 | AX55: 3.053 | AY55: 23.4 | AZ55: 46.56 | BA55: 16.2 | BB55: 3.835 | BC55: 22.7 | BD55: 0.357 | BE55: 32.5 | BF55: 10.37 | BG55: 18.6 | BH55: 0.014 | BI55: 59.8 | BJ55: 0.784 | BK55: 28.5 | BL55: 295.9 | BM55: 13 | BN55: 262.4 | BO55: 13.5 | BP55: 426.8 | BQ55: 12.8 | BR55: 3768 | BS55: 9.8 | BT55: 573.7 | BU55: 11.8 | BV55: 86.3 | BW55: 83.07 | BX55: 4.61 | BY55: 105.6 | BZ55: 100 | CA55: 6.02 | CB55: 105.1 | CC55: 100 | CD55: 6.06 | CE55: 111.5 | CF55: 100 | CG55: 2.08 | CH55: 120.3 | CI55: 100 | CJ55: 3.48 | CK55: 75.47 | CL55: 73.09 | CM55: 5.64 | CN55: 100.1 | CO55: 95.67 | CP55: 3.22 | CQ55: 106.5 | CR55: 100 | CS55: 3.62 | CT55: 109.5 | CU55: 100 | CV55: 4.33 | CW55: 85.3 | CX55: 81.62 | CY55: 1.53 | CZ55: 68.51 | DA55: 66.4 | DB55: 4.62 | DC55: 53.45 | DD55: 51.86 | DE55: 1.54 | DI55: 7.89 | DJ55: 33.38 | DK55: 33.38 | DL55: -6.89 | DM55: 7.279 | DN55: 15.65 | DO55: 6.003 | DP55: 15.33 | DQ55: 6.041 | DR55: 16.41 | DS55: 2.089 | DT55: 6.174 | DU55: 3.476 | DV55: 6.435 | DW55: 10.22 | DX55: 16.04 | DY55: 3.847 | DZ55: 6.594 | EA55: 3.612 | EB55: 5.951
A56: 2012-12-14T16:00:00 | B56: 4.814 | C56: 12.76 | D56: 4.858 | E56: 8.21 | F56: 11.41 | H56: 10.52 | J56: 421.3 | K56: 11.8 | L56: 22.32 | M56: 17.5 | N56: 4.847 | O56: 21.4 | P56: 233.6 | Q56: 12.6 | R56: 1.161 | S56: 26.5 | T56: 2.579 | U56: 23.6 | V56: 581 | W56: 11.4 | X56: 6.474 | Y56: 20.7 | Z56: 0.869 | AA56: 27.7 | AB56: 55.78 | AC56: 15.8 | AD56: 0.74 | AE56: 29.2 | AF56: 0.046 | AG56: 47.3 | AH56: 170.5 | AI56: 13.9 | AJ56: 0.517 | AK56: 30.6 | AL56: 0.166 | AM56: 36.9 | AN56: 4132 | AO56: 9.3 | AP56: 613.3 | AQ56: 11.7 | AR56: 808 | AS56: 11.4 | AT56: 41.27 | AU56: 16.4 | AV56: 14.3 | AW56: 19.1 | AX56: 3.038 | AY56: 23.4 | AZ56: 46.01 | BA56: 16.2 | BB56: 3.78 | BC56: 22.7 | BD56: 0.353 | BE56: 32.5 | BF56: 11.9 | BG56: 18.3 | BH56: 0.014 | BI56: 59.6 | BJ56: 0.75 | BK56: 28.6 | BL56: 293.3 | BM56: 12.9 | BN56: 251.1 | BO56: 13.5 | BP56: 405.9 | BQ56: 12.8 | BR56: 3487 | BS56: 9.8 | BT56: 558.2 | BU56: 11.8 | BV56: 86 | BW56: 82.83 | BX56: 4.84 | BY56: 105.7 | BZ56: 100 | CA56: 6.42 | CB56: 105.3 | CC56: 100 | CD56: 6.47 | CE56: 111.5 | CF56: 100 | CG56: 2.07 | CH56: 120 | CI56: 100 | CJ56: 3.78 | CK56: 76.94 | CL56: 74.59 | CM56: 6.42 | CN56: 100.6 | CO56: 96.14 | CP56: 3.25 | CQ56: 106.4 | CR56: 100 | CS56: 3.81 | CT56: 109.4 | CU56: 100 | CV56: 4.83 | CW56: 85.6 | CX56: 81.98 | CY56: 2.04 | CZ56: 68.57 | DA56: 66.58 | DB56: 5.43 | DC56: 55.01 | DD56: 53.31 | DE56: 1.42 | DI56: 7.861 | DJ56: 33.91 | DK56: 33.91 | DL56: -6.71 | DM56: 7.553 | DN56: 14.59 | DO56: 6.401 | DP56: 14.58 | DQ56: 6.449 | DR56: 14.83 | DS56: 2.075 | DT56: 6.323 | DU56: 3.767 | DV56: 6.762 | DW56: 10.72 | DX56: 15.37 | DY56: 3.806 | DZ56: 6.728 | EA56: 3.802 | EB56: 6.145
A57: 2012-12-14T17:00:00 | B57: 5.239 | C57: 11.1 | D57: 5.262 | E57: 8.1 | F57: 11.78 | H57: 8.57 | J57: 516.2 | K57: 11.9 | L57: 24.65 | M57: 17.4 | N57: 4.989 | O57: 21.4 | P57: 280.4 | Q57: 12.7 | R57: 1.18 | S57: 26.4 | T57: 2.845 | U57: 23.2 | V57: 684.8 | W57: 11.6 | X57: 7.46 | Y57: 20.4 | Z57: 0.887 | AA57: 27.6 | AB57: 56.19 | AC57: 15.8 | AD57: 0.729 | AE57: 29.2 | AF57: 0.046 | AG57: 47.3 | AH57: 176.7 | AI57: 13.9 | AJ57: 0.518 | AK57: 30.5 | AL57: 0.165 | AM57: 36.9 | AN57: 4744 | AO57: 9.4 | AP57: 634.4 | AQ57: 11.7 | AR57: 835 | AS57: 11.4 | AT57: 41.4 | AU57: 16.4 | AV57: 14.32 | AW57: 19 | AX57: 3.019 | AY57: 23.4 | AZ57: 46.22 | BA57: 16.2 | BB57: 3.755 | BC57: 22.7 | BD57: 0.348 | BE57: 32.5 | BF57: 13.38 | BG57: 18.2 | BH57: 0.014 | BI57: 59.4 | BJ57: 0.743 | BK57: 28.6 | BL57: 296.9 | BM57: 12.9 | BN57: 247.5 | BO57: 13.5 | BP57: 389.7 | BQ57: 12.9 | BR57: 3328 | BS57: 9.8 | BT57: 542.1 | BU57: 11.8 | BV57: 87.4 | BW57: 84.12 | BX57: 4.74 | BY57: 107.5 | BZ57: 100 | CA57: 6.44 | CB57: 107.4 | CC57: 100 | CD57: 6.37 | CE57: 111.6 | CF57: 100 | CG57: 2.21 | CH57: 120.4 | CI57: 100 | CJ57: 3.98 | CK57: 79.59 | CL57: 77.11 | CM57: 6.58 | CN57: 100.9 | CO57: 96.53 | CP57: 3.82 | CQ57: 106.6 | CR57: 100 | CS57: 4.02 | CT57: 109.7 | CU57: 100 | CV57: 5.26 | CW57: 86 | CX57: 82.44 | CY57: 2.52 | CZ57: 69.38 | DA57: 67.41 | DB57: 5.97 | DC57: 56.39 | DD57: 54.43 | DE57: -0.02 | DI57: 6.866 | DJ57: 39.4 | DK57: 39.4 | DL57: -5.67 | DM57: 7.228 | DN57: 11.2 | DO57: 6.419 | DP57: 11.48 | DQ57: 6.343 | DR57: 10.89 | DS57: 2.213 | DT57: 6.332 | DU57: 3.973 | DV57: 6.438 | DW57: 10.39 | DX57: 12.17 | DY57: 4.309 | DZ57: 6.603 | EA57: 4.013 | EB57: 6.164
A58: 2012-12-14T18:00:00 | B58: 5.53 | C58: 9.97 | D58: 5.571 | E58: 7.85 | F58: 11.85 | H58: 8.06 | J58: 582 | K58: 11.9 | L58: 27.19 | M58: 17.2 | N58: 5.126 | O58: 21.3 | P58: 334 | Q58: 12.6 | R58: 1.208 | S58: 26.4 | T58: 3.013 | U58: 23.1 | V58: 748.1 | W58: 11.6 | X58: 8.25 | Y58: 20.1 | Z58: 0.908 | AA58: 27.6 | AB58: 57.52 | AC58: 15.8 | AD58: 0.726 | AE58: 29.3 | AF58: 0.046 | AG58: 47.3 | AH58: 182.3 | AI58: 13.9 | AJ58: 0.519 | AK58: 30.5 | AL58: 0.164 | AM58: 36.9 | AN58: 5033 | AO58: 9.5 | AP58: 654.4 | AQ58: 11.7 | AR58: 865 | AS58: 11.4 | AT58: 41.53 | AU58: 16.4 | AV58: 14.33 | AW58: 18.9 | AX58: 2.969 | AY58: 23.4 | AZ58: 46.76 | BA58: 16.2 | BB58: 3.768 | BC58: 22.7 | BD58: 0.344 | BE58: 32.5 | BF58: 14.52 | BG58: 18.2 | BH58: 0.014 | BI58: 59.3 | BJ58: 0.747 | BK58: 28.5 | BL58: 304.8 | BM58: 12.9 | BN58: 246.8 | BO58: 13.5 | BP58: 380 | BQ58: 12.9 | BR58: 3285 | BS58: 9.8 | BT58: 547.8 | BU58: 11.7 | BV58: 88.4 | BW58: 85.01 | BX58: 4.47 | BY58: 108.9 | BZ58: 100 | CA58: 6.23 | CB58: 109.2 | CC58: 100 | CD58: 6.04 | CE58: 111.9 | CF58: 100 | CG58: 2.24 | CH58: 120.7 | CI58: 100 | CJ58: 4.11 | CK58: 80.6 | CL58: 78.03 | CM58: 6.38 | CN58: 101.9 | CO58: 97.55 | CP58: 4.27 | CQ58: 107 | CR58: 100 | CS58: 4.21 | CT58: 110.1 | CU58: 100 | CV58: 5.55 | CW58: 86.3 | CX58: 82.78 | CY58: 2.88 | CZ58: 69.61 | DA58: 67.65 | DB58: 6.09 | DC58: 56.93 | DD58: 54.89 | DE58: -0.36 | DI58: 6.206 | DJ58: 44.55 | DK58: 44.55 | DL58: -4.68 | DM58: 6.797 | DN58: 9.51 | DO58: 6.207 | DP58: 9.69 | DQ58: 6.014 | DR58: 9.12 | DS58: 2.246 | DT58: 5.99 | DU58: 4.097 | DV58: 6.124 | DW58: 10.01 | DX58: 10.52 | DY58: 4.61 | DZ58: 6.479 | EA58: 4.201 | EB58: 6.023
A59: 2012-12-14T19:00:00 | B59: 5.703 | C59: 9.24 | D59: 5.77 | E59: 7.667 | F59: 11.74 | H59: 7.469 | J59: 621.5 | K59: 11.9 | L59: 28.39 | M59: 17.2 | N59: 5.211 | O59: 21.3 | P59: 353 | Q59: 12.6 | R59: 1.229 | S59: 26.3 | T59: 3.148 | U59: 23 | V59: 778 | W59: 11.7 | X59: 8.77 | Y59: 20 | Z59: 0.924 | AA59: 27.5 | AB59: 58.07 | AC59: 15.8 | AD59: 0.72 | AE59: 29.3 | AF59: 0.045 | AG59: 47.5 | AH59: 188 | AI59: 13.8 | AJ59: 0.526 | AK59: 30.4 | AL59: 0.165 | AM59: 36.9 | AN59: 5141 | AO59: 9.6 | AP59: 669.5 | AQ59: 11.7 | AR59: 902 | AS59: 11.4 | AT59: 41.62 | AU59: 16.4 | AV59: 14.33 | AW59: 18.9 | AX59: 2.934 | AY59: 23.4 | AZ59: 46.91 | BA59: 16.2 | BB59: 3.775 | BC59: 22.6 | BD59: 0.339 | BE59: 32.6 | BF59: 15.37 | BG59: 18.1 | BH59: 0.014 | BI59: 59.3 | BJ59: 0.754 | BK59: 28.4 | BL59: 310.5 | BM59: 12.9 | BN59: 246.7 | BO59: 13.4 | BP59: 374 | BQ59: 12.9 | BR59: 3255 | BS59: 9.8 | BT59: 546 | BU59: 11.8 | BV59: 89.1 | BW59: 85.62 | BX59: 4.26 | BY59: 109.8 | BZ59: 100 | CA59: 6.02 | CB59: 110.4 | CC59: 100 | CD59: 5.76 | CE59: 112.1 | CF59: 100 | CG59: 2.38 | CH59: 120.9 | CI59: 100 | CJ59: 4.19 | CK59: 81.9 | CL59: 79.24 | CM59: 6.33 | CN59: 102.5 | CO59: 98.17 | CP59: 4.63 | CQ59: 107.2 | CR59: 100 | CS59: 4.38 | CT59: 110.4 | CU59: 100 | CV59: 5.72 | CW59: 86.5 | CX59: 83 | CY59: 3.11 | CZ59: 69.65 | DA59: 67.67 | DB59: 5.99 | DC59: 57.45 | DD59: 55.32 | DE59: -0.78 | DI59: 5.288 | DJ59: 49.24 | DK59: 49.24 | DL59: -4.21 | DM59: 6.485 | DN59: 8.54 | DO59: 5.997 | DP59: 8.63 | DQ59: 5.735 | DR59: 8.12 | DS59: 2.384 | DT59: 5.714 | DU59: 4.183 | DV59: 5.878 | DW59: 9.73 | DX59: 9.62 | DY59: 4.879 | DZ59: 6.378 | EA59: 4.368 | EB59: 5.931
A60: 2012-12-14T20:00:00 | B60: 5.798 | C60: 8.75 | D60: 5.894 | E60: 7.527 | F60: 11.53 | H60: 6.955 | J60: 657.2 | K60: 11.9 | L60: 29.51 | M60: 17.1 | N60: 5.295 | O60: 21.3 | P60: 354.6 | Q60: 12.7 | R60: 1.248 | S60: 26.3 | T60: 3.248 | U60: 22.9 | V60: 790.5 | W60: 11.7 | X60: 9.14 | Y60: 19.9 | Z60: 0.938 | AA60: 27.5 | AB60: 58.79 | AC60: 15.8 | AD60: 0.716 | AE60: 29.3 | AF60: 0.045 | AG60: 47.4 | AH60: 192.7 | AI60: 13.8 | AJ60: 0.53 | AK60: 30.3 | AL60: 0.165 | AM60: 36.9 | AN60: 5332 | AO60: 9.6 | AP60: 688.2 | AQ60: 11.7 | AR60: 943 | AS60: 11.3 | AT60: 41.9 | AU60: 16.4 | AV60: 14.36 | AW60: 18.9 | AX60: 2.946 | AY60: 23.3 | AZ60: 47.13 | BA60: 16.2 | BB60: 3.778 | BC60: 22.6 | BD60: 0.336 | BE60: 32.6 | BF60: 16.05 | BG60: 18.1 | BH60: 0.014 | BI60: 59.2 | BJ60: 0.761 | BK60: 28.4 | BL60: 316.4 | BM60: 12.9 | BN60: 247.3 | BO60: 13.4 | BP60: 371.1 | BQ60: 12.9 | BR60: 3318 | BS60: 9.8 | BT60: 551.9 | BU60: 11.8 | BV60: 89.7 | BW60: 86.16 | BX60: 4.14 | BY60: 110.4 | BZ60: 100 | CA60: 5.84 | CB60: 111.1 | CC60: 100 | CD60: 5.53 | CE60: 112.3 | CF60: 100 | CG60: 2.47 | CH60: 121.1 | CI60: 100 | CJ60: 4.25 | CK60: 82.9 | CL60: 80.17 | CM60: 6.29 | CN60: 102.3 | CO60: 98.02 | CP60: 4.81 | CQ60: 107.5 | CR60: 100 | CS60: 4.54 | CT60: 110.6 | CU60: 100 | CV60: 5.82 | CW60: 86.7 | CX60: 83.22 | CY60: 3.27 | CZ60: 69.67 | DA60: 67.66 | DB60: 5.78 | DC60: 58.38 | DD60: 56.16 | DE60: -1.04 | DI60: 4.243 | DJ60: 53.52 | DK60: 53.52 | DL60: -4.08 | DM60: 6.266 | DN60: 7.919 | DO60: 5.819 | DP60: 7.946 | DQ60: 5.512 | DR60: 7.487 | DS60: 2.473 | DT60: 5.489 | DU60: 4.238 | DV60: 5.67 | DW60: 9.51 | DX60: 9.06 | DY60: 5.081 | DZ60: 6.327 | EA60: 4.525 | EB60: 5.87
A61: 2012-12-14T21:00:00 | B61: 5.82 | C61: 8.36 | D61: 5.954 | E61: 7.376 | F61: 11.24 | H61: 6.616 | J61: 680 | K61: 11.9 | L61: 30.46 | M61: 17.1 | N61: 5.36 | O61: 21.3 | P61: 366.7 | Q61: 12.7 | R61: 1.265 | S61: 26.3 | T61: 3.329 | U61: 22.8 | V61: 794.8 | W61: 11.8 | X61: 9.45 | Y61: 19.9 | Z61: 0.948 | AA61: 27.5 | AB61: 59.32 | AC61: 15.8 | AD61: 0.712 | AE61: 29.3 | AF61: 0.044 | AG61: 47.6 | AH61: 196.2 | AI61: 13.8 | AJ61: 0.533 | AK61: 30.3 | AL61: 0.165 | AM61: 36.9 | AN61: 5436 | AO61: 9.6 | AP61: 705 | AQ61: 11.7 | AR61: 986 | AS61: 11.3 | AT61: 42.29 | AU61: 16.4 | AV61: 14.4 | AW61: 18.8 | AX61: 2.897 | AY61: 23.4 | AZ61: 47.39 | BA61: 16.2 | BB61: 3.781 | BC61: 22.6 | BD61: 0.333 | BE61: 32.6 | BF61: 16.61 | BG61: 18.1 | BH61: 0.014 | BI61: 59.2 | BJ61: 0.769 | BK61: 28.3 | BL61: 321.6 | BM61: 12.9 | BN61: 248.1 | BO61: 13.4 | BP61: 369.4 | BQ61: 12.9 | BR61: 3297 | BS61: 9.8 | BT61: 563.4 | BU61: 11.8 | BV61: 90 | BW61: 86.42 | BX61: 3.99 | BY61: 110.8 | BZ61: 100 | CA61: 5.68 | CB61: 111.6 | CC61: 100 | CD61: 5.35 | CE61: 112.4 | CF61: 100 | CG61: 2.54 | CH61: 121.3 | CI61: 100 | CJ61: 4.28 | CK61: 83.7 | CL61: 80.91 | CM61: 6.22 | CN61: 102.3 | CO61: 98.06 | CP61: 4.97 | CQ61: 107.7 | CR61: 100 | CS61: 4.66 | CT61: 110.7 | CU61: 100 | CV61: 5.84 | CW61: 86.7 | CX61: 83.23 | CY61: 3.34 | CZ61: 69.61 | DA61: 67.56 | DB61: 5.48 | DC61: 59.06 | DD61: 56.77 | DE61: -1.2 | DI61: 3.502 | DJ61: 57.48 | DK61: 57.48 | DL61: -3.84 | DM61: 6.076 | DN61: 7.452 | DO61: 5.663 | DP61: 7.438 | DQ61: 5.328 | DR61: 7.041 | DS61: 2.543 | DT61: 5.308 | DU61: 4.27 | DV61: 5.498 | DW61: 9.3 | DX61: 8.66 | DY61: 5.238 | DZ61: 6.276 | EA61: 4.647 | EB61: 5.805
A62: 2012-12-14T22:00:00 | B62: 5.793 | C62: 8.02 | D62: 5.968 | E62: 7.224 | F62: 10.9 | H62: 6.209 | J62: 698.7 | K62: 11.9 | L62: 31.19 | M62: 17 | N62: 5.413 | O62: 21.3 | P62: 390.5 | Q62: 12.7 | R62: 1.281 | S62: 26.2 | T62: 3.383 | U62: 22.8 | V62: 797.7 | W62: 11.8 | X62: 9.65 | Y62: 19.8 | Z62: 0.956 | AA62: 27.5 | AB62: 60.11 | AC62: 15.8 | AD62: 0.708 | AE62: 29.3 | AF62: 0.044 | AG62: 47.6 | AH62: 199 | AI62: 13.8 | AJ62: 0.535 | AK62: 30.3 | AL62: 0.165 | AM62: 36.9 | AN62: 5436 | AO62: 9.6 | AP62: 721.7 | AQ62: 11.7 | AR62: 1020 | AS62: 11.3 | AT62: 42.81 | AU62: 16.4 | AV62: 14.43 | AW62: 18.8 | AX62: 2.898 | AY62: 23.3 | AZ62: 47.65 | BA62: 16.2 | BB62: 3.783 | BC62: 22.6 | BD62: 0.331 | BE62: 32.6 | BF62: 17.15 | BG62: 18.1 | BH62: 0.014 | BI62: 59.2 | BJ62: 0.777 | BK62: 28.3 | BL62: 326.9 | BM62: 12.9 | BN62: 250 | BO62: 13.4 | BP62: 370.6 | BQ62: 12.9 | BR62: 3397 | BS62: 9.8 | BT62: 577.7 | BU62: 11.8 | BV62: 90.3 | BW62: 86.68 | BX62: 3.88 | BY62: 111.1 | BZ62: 100 | CA62: 5.54 | CB62: 112 | CC62: 100 | CD62: 5.18 | CE62: 112.6 | CF62: 100 | CG62: 2.58 | CH62: 121.3 | CI62: 100 | CJ62: 4.3 | CK62: 84.1 | CL62: 81.26 | CM62: 6.09 | CN62: 102.3 | CO62: 98.08 | CP62: 5.1 | CQ62: 107.8 | CR62: 100 | CS62: 4.75 | CT62: 110.8 | CU62: 100 | CV62: 5.81 | CW62: 86.7 | CX62: 83.23 | CY62: 3.35 | CZ62: 69.47 | DA62: 67.38 | DB62: 5.12 | DC62: 60.52 | DD62: 58.13 | DE62: -1.26 | DI62: 2.818 | DJ62: 61.27 | DK62: 61.27 | DL62: -3.64 | DM62: 5.921 | DN62: 7.087 | DO62: 5.522 | DP62: 7.049 | DQ62: 5.167 | DR62: 6.676 | DS62: 2.58 | DT62: 5.146 | DU62: 4.285 | DV62: 5.357 | DW62: 9.11 | DX62: 8.34 | DY62: 5.36 | DZ62: 6.232 | EA62: 4.738 | EB62: 5.758
A63: 2012-12-14T23:00:00 | B63: 5.725 | C63: 7.736 | D63: 5.942 | E63: 7.056 | F63: 10.52 | H63: 5.768 | J63: 716.1 | K63: 11.9 | L63: 31.82 | M63: 17 | N63: 5.454 | O63: 21.3 | P63: 397.1 | Q63: 12.7 | R63: 1.289 | S63: 26.2 | T63: 3.418 | U63: 22.8 | V63: 797.3 | W63: 11.8 | X63: 9.79 | Y63: 19.8 | Z63: 0.96 | AA63: 27.5 | AB63: 60.68 | AC63: 15.8 | AD63: 0.705 | AE63: 29.3 | AF63: 0.044 | AG63: 47.6 | AH63: 202.4 | AI63: 13.8 | AJ63: 0.535 | AK63: 30.3 | AL63: 0.165 | AM63: 36.8 | AN63: 5478 | AO63: 9.7 | AP63: 737 | AQ63: 11.7 | AR63: 1060 | AS63: 11.2 | AT63: 43.37 | AU63: 16.3 | AV63: 14.47 | AW63: 18.8 | AX63: 2.849 | AY63: 23.4 | AZ63: 47.96 | BA63: 16.2 | BB63: 3.783 | BC63: 22.6 | BD63: 0.329 | BE63: 32.7 | BF63: 17.6 | BG63: 18 | BH63: 0.014 | BI63: 59.3 | BJ63: 0.786 | BK63: 28.2 | BL63: 332 | BM63: 12.9 | BN63: 252.5 | BO63: 13.4 | BP63: 373 | BQ63: 12.8 | BR63: 3530 | BS63: 9.8 | BT63: 596 | BU63: 11.8 | BV63: 90.6 | BW63: 86.94 | BX63: 3.79 | BY63: 111.4 | BZ63: 100 | CA63: 5.41 | CB63: 112.3 | CC63: 100 | CD63: 5.04 | CE63: 112.8 | CF63: 100 | CG63: 2.6 | CH63: 121.4 | CI63: 100 | CJ63: 4.3 | CK63: 84.4 | CL63: 81.52 | CM63: 5.93 | CN63: 102.3 | CO63: 98.1 | CP63: 5.18 | CQ63: 107.9 | CR63: 100 | CS63: 4.81 | CT63: 110.8 | CU63: 100 | CV63: 5.75 | CW63: 86.7 | CX63: 83.22 | CY63: 3.32 | CZ63: 69.23 | DA63: 67.09 | DB63: 4.69 | DC63: 61.93 | DD63: 59.43 | DE63: -1.37 | DI63: 2.043 | DJ63: 65.16 | DK63: 65.16 | DL63: -3.56 | DM63: 5.783 | DN63: 6.764 | DO63: 5.395 | DP63: 6.716 | DQ63: 5.023 | DR63: 6.343 | DS63: 2.605 | DT63: 4.995 | DU63: 4.292 | DV63: 5.224 | DW63: 8.9 | DX63: 8.02 | DY63: 5.435 | DZ63: 6.181 | EA63: 4.798 | EB63: 5.704
A64: 2012-12-15 | B64: 5.632 | C64: 7.481 | D64: 5.875 | E64: 6.88 | F64: 10.13 | H64: 5.351 | J64: 730 | K64: 11.9 | L64: 32.46 | M64: 17 | N64: 5.511 | O64: 21.3 | P64: 415.3 | Q64: 12.7 | R64: 1.301 | S64: 26.2 | T64: 3.449 | U64: 22.8 | V64: 794 | W64: 11.9 | X64: 9.95 | Y64: 19.8 | Z64: 0.967 | AA64: 27.5 | AB64: 61.32 | AC64: 15.8 | AD64: 0.703 | AE64: 29.3 | AF64: 0.044 | AG64: 47.6 | AH64: 205.5 | AI64: 13.8 | AJ64: 0.538 | AK64: 30.3 | AL64: 0.165 | AM64: 36.9 | AN64: 5569 | AO64: 9.7 | AP64: 755.1 | AQ64: 11.7 | AR64: 1104 | AS64: 11.2 | AT64: 43.87 | AU64: 16.3 | AV64: 14.48 | AW64: 18.8 | AX64: 2.837 | AY64: 23.4 | AZ64: 48.35 | BA64: 16.2 | BB64: 3.792 | BC64: 22.6 | BD64: 0.327 | BE64: 32.7 | BF64: 18.05 | BG64: 18 | BH64: 0.014 | BI64: 59.3 | BJ64: 0.796 | BK64: 28.2 | BL64: 337.6 | BM64: 12.9 | BN64: 255.4 | BO64: 13.4 | BP64: 376.2 | BQ64: 12.8 | BR64: 3601 | BS64: 9.9 | BT64: 616.7 | BU64: 11.8 | BV64: 90.8 | BW64: 87.11 | BX64: 3.68 | BY64: 111.6 | BZ64: 100 | CA64: 5.29 | CB64: 112.5 | CC64: 100 | CD64: 4.9 | CE64: 112.9 | CF64: 100 | CG64: 2.63 | CH64: 121.5 | CI64: 100 | CJ64: 4.29 | CK64: 84.8 | CL64: 81.87 | CM64: 5.78 | CN64: 102.5 | CO64: 98.3 | CP64: 5.26 | CQ64: 108.1 | CR64: 100 | CS64: 4.85 | CT64: 110.9 | CU64: 100 | CV64: 5.65 | CW64: 86.7 | CX64: 83.21 | CY64: 3.25 | CZ64: 69.06 | DA64: 66.87 | DB64: 4.27 | DC64: 62.59 | DD64: 60.01 | DE64: -1.62 | DI64: 1.647 | DJ64: 67.29 | DK64: 67.29 | DL64: -3.51 | DM64: 5.645 | DN64: 6.467 | DO64: 5.268 | DP64: 6.416 | DQ64: 4.887 | DR64: 6.061 | DS64: 2.633 | DT64: 4.865 | DU64: 4.278 | DV64: 5.078 | DW64: 8.68 | DX64: 7.704 | DY64: 5.484 | DZ64: 6.131 | EA64: 4.836 | EB64: 5.649
A65: 2012-12-15T01:00:00 | B65: 5.506 | C65: 7.234 | D65: 5.772 | E65: 6.677 | F65: 9.74 | H65: 4.958 | J65: 746.3 | K65: 11.9 | L65: 33.12 | M65: 17 | N65: 5.55 | O65: 21.3 | P65: 415.7 | Q65: 12.7 | R65: 1.314 | S65: 26.2 | T65: 3.482 | U65: 22.8 | V65: 793 | W65: 11.9 | X65: 10.07 | Y65: 19.8 | Z65: 0.975 | AA65: 27.5 | AB65: 61.95 | AC65: 15.8 | AD65: 0.701 | AE65: 29.3 | AF65: 0.043 | AG65: 47.8 | AH65: 208.1 | AI65: 13.8 | AJ65: 0.537 | AK65: 30.3 | AL65: 0.164 | AM65: 36.9 | AN65: 5659 | AO65: 9.7 | AP65: 774 | AQ65: 11.7 | AR65: 1151 | AS65: 11.2 | AT65: 44.45 | AU65: 16.3 | AV65: 14.52 | AW65: 18.8 | AX65: 2.833 | AY65: 23.4 | AZ65: 48.72 | BA65: 16.2 | BB65: 3.799 | BC65: 22.5 | BD65: 0.326 | BE65: 32.7 | BF65: 18.51 | BG65: 18 | BH65: 0.014 | BI65: 59.3 | BJ65: 0.807 | BK65: 28.2 | BL65: 343.9 | BM65: 12.9 | BN65: 258.9 | BO65: 13.4 | BP65: 381.2 | BQ65: 12.8 | BR65: 3696 | BS65: 9.9 | BT65: 637.3 | BU65: 11.8 | BV65: 91.1 | BW65: 87.37 | BX65: 3.58 | BY65: 111.8 | BZ65: 100 | CA65: 5.15 | CB65: 112.7 | CC65: 100 | CD65: 4.76 | CE65: 113 | CF65: 100 | CG65: 2.64 | CH65: 121.6 | CI65: 100 | CJ65: 4.26 | CK65: 85.2 | CL65: 82.21 | CM65: 5.61 | CN65: 102.6 | CO65: 98.39 | CP65: 5.27 | CQ65: 108.1 | CR65: 100 | CS65: 4.86 | CT65: 110.9 | CU65: 100 | CV65: 5.53 | CW65: 86.6 | CX65: 83.1 | CY65: 3.13 | CZ65: 68.95 | DA65: 66.71 | DB65: 3.86 | DC65: 63.51 | DD65: 60.84 | DE65: -1.79 | DI65: 0.686 | DJ65: 72.18 | DK65: 72.18 | DL65: -3.49 | DM65: 5.499 | DN65: 6.127 | DO65: 5.131 | DP65: 6.092 | DQ65: 4.745 | DR65: 5.779 | DS65: 2.636 | DT65: 4.74 | DU65: 4.248 | DV65: 4.926 | DW65: 8.44 | DX65: 7.378 | DY65: 5.489 | DZ65: 6.061 | EA65: 4.845 | EB65: 5.579
A66: 2012-12-15T02:00:00 | B66: 5.359 | C66: 6.982 | D66: 5.637 | E66: 6.47 | F66: 9.34 | H66: 4.708 | J66: 758.9 | K66: 11.9 | L66: 33.71 | M66: 16.9 | N66: 5.614 | O66: 21.3 | P66: 429.4 | Q66: 12.7 | R66: 1.325 | S66: 26.2 | T66: 3.515 | U66: 22.8 | V66: 791.2 | W66: 11.9 | X66: 10.18 | Y66: 19.8 | Z66: 0.981 | AA66: 27.5 | AB66: 62.56 | AC66: 15.8 | AD66: 0.699 | AE66: 29.4 | AF66: 0.043 | AG66: 47.8 | AH66: 211.1 | AI66: 13.8 | AJ66: 0.539 | AK66: 30.3 | AL66: 0.164 | AM66: 36.9 | AN66: 5769 | AO66: 9.7 | AP66: 794.7 | AQ66: 11.7 | AR66: 1199 | AS66: 11.2 | AT66: 45.1 | AU66: 16.3 | AV66: 14.63 | AW66: 18.8 | AX66: 2.839 | AY66: 23.4 | AZ66: 49.15 | BA66: 16.2 | BB66: 3.817 | BC66: 22.5 | BD66: 0.326 | BE66: 32.7 | BF66: 18.95 | BG66: 18 | BH66: 0.014 | BI66: 59.4 | BJ66: 0.818 | BK66: 28.1 | BL66: 350.3 | BM66: 12.9 | BN66: 263.9 | BO66: 13.4 | BP66: 387.3 | BQ66: 12.8 | BR66: 3825 | BS66: 9.9 | BT66: 659.5 | BU66: 11.8 | BV66: 91.2 | BW66: 87.44 | BX66: 3.44 | BY66: 111.9 | BZ66: 100 | CA66: 5.01 | CB66: 112.8 | CC66: 100 | CD66: 4.62 | CE66: 113.1 | CF66: 100 | CG66: 2.63 | CH66: 121.6 | CI66: 100 | CJ66: 4.22 | CK66: 85.5 | CL66: 82.46 | CM66: 5.4 | CN66: 102.5 | CO66: 98.29 | CP66: 5.23 | CQ66: 108.1 | CR66: 100 | CS66: 4.84 | CT66: 111 | CU66: 100 | CV66: 5.38 | CW66: 86.6 | CX66: 83.08 | CY66: 3 | CZ66: 68.76 | DA66: 66.47 | DB66: 3.43 | DC66: 64.53 | DD66: 61.78 | DE66: -1.82 | DI66: 0.493 | DJ66: 74.37 | DK66: 74.37 | DL66: -3.29 | DM66: 5.352 | DN66: 5.85 | DO66: 4.996 | DP66: 5.82 | DQ66: 4.601 | DR66: 5.529 | DS66: 2.633 | DT66: 4.617 | DU66: 4.205 | DV66: 4.775 | DW66: 8.19 | DX66: 7.086 | DY66: 5.461 | DZ66: 5.992 | EA66: 4.826 | EB66: 5.504
A67: 2012-12-15T03:00:00 | B67: 5.193 | C67: 6.743 | D67: 5.484 | E67: 6.26 | F67: 8.94 | H67: 4.458 | J67: 767.8 | K67: 11.9 | L67: 34.3 | M67: 16.9 | N67: 5.672 | O67: 21.3 | P67: 445.5 | Q67: 12.6 | R67: 1.334 | S67: 26.2 | T67: 3.542 | U67: 22.8 | V67: 789.8 | W67: 11.9 | X67: 10.25 | Y67: 19.8 | Z67: 0.987 | AA67: 27.5 | AB67: 63.27 | AC67: 15.8 | AD67: 0.698 | AE67: 29.4 | AF67: 0.043 | AG67: 47.8 | AH67: 214.3 | AI67: 13.8 | AJ67: 0.542 | AK67: 30.2 | AL67: 0.165 | AM67: 36.9 | AN67: 5775 | AO67: 9.7 | AP67: 817 | AQ67: 11.6 | AR67: 1247 | AS67: 11.2 | AT67: 45.73 | AU67: 16.3 | AV67: 14.69 | AW67: 18.8 | AX67: 2.844 | AY67: 23.4 | AZ67: 49.63 | BA67: 16.2 | BB67: 3.833 | BC67: 22.5 | BD67: 0.325 | BE67: 32.7 | BF67: 19.38 | BG67: 17.9 | BH67: 0.014 | BI67: 59.4 | BJ67: 0.83 | BK67: 28.1 | BL67: 357 | BM67: 12.9 | BN67: 268 | BO67: 13.4 | BP67: 394.4 | BQ67: 12.8 | BR67: 3881 | BS67: 9.9 | BT67: 688.3 | BU67: 11.8 | BV67: 91.4 | BW67: 87.6 | BX67: 3.32 | BY67: 112.1 | BZ67: 100 | CA67: 4.87 | CB67: 112.9 | CC67: 100 | CD67: 4.47 | CE67: 113.1 | CF67: 100 | CG67: 2.61 | CH67: 121.7 | CI67: 100 | CJ67: 4.15 | CK67: 85.6 | CL67: 82.51 | CM67: 5.16 | CN67: 102.5 | CO67: 98.28 | CP67: 5.18 | CQ67: 108.3 | CR67: 100 | CS67: 4.8 | CT67: 111 | CU67: 100 | CV67: 5.21 | CW67: 86.5 | CX67: 82.95 | CY67: 2.82 | CZ67: 68.63 | DA67: 66.29 | DB67: 3 | DC67: 65.48 | DD67: 62.66 | DE67: -1.86 | DI67: -0.113 | DJ67: 77.08 | DK67: 77.08 | DL67: -3.4 | DM67: 5.203 | DN67: 5.602 | DO67: 4.853 | DP67: 5.579 | DQ67: 4.458 | DR67: 5.307 | DS67: 2.607 | DT67: 4.491 | DU67: 4.142 | DV67: 4.634 | DW67: 7.936 | DX67: 6.806 | DY67: 5.407 | DZ67: 5.908 | EA67: 4.784 | EB67: 5.419
A68: 2012-12-15T04:00:00 | B68: 5.016 | C68: 6.512 | D68: 5.306 | E68: 6.041 | F68: 8.54 | H68: 4.061 | J68: 777.1 | K68: 12 | L68: 34.92 | M68: 16.9 | N68: 5.725 | O68: 21.3 | P68: 423.1 | Q68: 12.7 | R68: 1.348 | S68: 26.2 | T68: 3.563 | U68: 22.8 | V68: 786.9 | W68: 12 | X68: 10.36 | Y68: 19.8 | Z68: 0.994 | AA68: 27.5 | AB68: 63.94 | AC68: 15.8 | AD68: 0.698 | AE68: 29.4 | AF68: 0.043 | AG68: 47.8 | AH68: 216.7 | AI68: 13.8 | AJ68: 0.544 | AK68: 30.2 | AL68: 0.165 | AM68: 36.9 | AN68: 5840 | AO68: 9.7 | AP68: 835 | AQ68: 11.6 | AR68: 1298 | AS68: 11.1 | AT68: 46.28 | AU68: 16.3 | AV68: 14.78 | AW68: 18.8 | AX68: 2.855 | AY68: 23.4 | AZ68: 50.14 | BA68: 16.2 | BB68: 3.851 | BC68: 22.5 | BD68: 0.325 | BE68: 32.7 | BF68: 19.79 | BG68: 17.9 | BH68: 0.014 | BI68: 59.5 | BJ68: 0.842 | BK68: 28.1 | BL68: 365 | BM68: 12.9 | BN68: 274.2 | BO68: 13.3 | BP68: 403.4 | BQ68: 12.8 | BR68: 4168 | BS68: 9.9 | BT68: 713.4 | BU68: 11.7 | BV68: 91.5 | BW68: 87.67 | BX68: 3.17 | BY68: 112.2 | BZ68: 100 | CA68: 4.72 | CB68: 113 | CC68: 100 | CD68: 4.32 | CE68: 113.1 | CF68: 100 | CG68: 2.58 | CH68: 121.8 | CI68: 100 | CJ68: 4.09 | CK68: 85.8 | CL68: 82.66 | CM68: 4.93 | CN68: 102.5 | CO68: 98.26 | CP68: 5.09 | CQ68: 108.2 | CR68: 100 | CS68: 4.74 | CT68: 111.1 | CU68: 100 | CV68: 5.03 | CW68: 86.4 | CX68: 82.83 | CY68: 2.63 | CZ68: 68.48 | DA68: 66.09 | DB68: 2.58 | DC68: 66.19 | DD68: 63.29 | DE68: -2.09 | DI68: -0.939 | DJ68: 80.7 | DK68: 80.7 | DL68: -3.69 | DM68: 5.043 | DN68: 5.326 | DO68: 4.706 | DP68: 5.317 | DQ68: 4.31 | DR68: 5.069 | DS68: 2.579 | DT68: 4.376 | DU68: 4.075 | DV68: 4.482 | DW68: 7.674 | DX68: 6.507 | DY68: 5.325 | DZ68: 5.823 | EA68: 4.725 | EB68: 5.326
A69: 2012-12-15T05:00:00 | B69: 4.822 | C69: 6.288 | D69: 5.112 | E69: 5.813 | F69: 8.15 | H69: 3.81 | J69: 789.3 | K69: 12 | L69: 35.53 | M69: 16.9 | N69: 5.79 | O69: 21.3 | P69: 452.3 | Q69: 12.7 | R69: 1.36 | S69: 26.2 | T69: 3.591 | U69: 22.8 | V69: 788.1 | W69: 12 | X69: 10.43 | Y69: 19.8 | Z69: 1.002 | AA69: 27.5 | AB69: 64.6 | AC69: 15.8 | AD69: 0.698 | AE69: 29.4 | AF69: 0.043 | AG69: 47.8 | AH69: 219.5 | AI69: 13.8 | AJ69: 0.548 | AK69: 30.2 | AL69: 0.166 | AM69: 36.9 | AN69: 5897 | AO69: 9.7 | AP69: 858 | AQ69: 11.6 | AR69: 1351 | AS69: 11.1 | AT69: 46.82 | AU69: 16.2 | AV69: 14.9 | AW69: 18.8 | AX69: 2.867 | AY69: 23.4 | AZ69: 50.7 | BA69: 16.2 | BB69: 3.875 | BC69: 22.5 | BD69: 0.325 | BE69: 32.8 | BF69: 20.23 | BG69: 17.9 | BH69: 0.014 | BI69: 59.6 | BJ69: 0.855 | BK69: 28 | BL69: 373.8 | BM69: 12.9 | BN69: 280.5 | BO69: 13.3 | BP69: 412.5 | BQ69: 12.8 | BR69: 4281 | BS69: 9.9 | BT69: 743 | BU69: 11.7 | BV69: 91.6 | BW69: 87.74 | BX69: 3.03 | BY69: 112.3 | BZ69: 100 | CA69: 4.57 | CB69: 113.1 | CC69: 100 | CD69: 4.17 | CE69: 113.3 | CF69: 100 | CG69: 2.53 | CH69: 121.8 | CI69: 100 | CJ69: 4 | CK69: 86 | CL69: 82.8 | CM69: 4.69 | CN69: 102.4 | CO69: 98.15 | CP69: 4.98 | CQ69: 108.3 | CR69: 100 | CS69: 4.67 | CT69: 111 | CU69: 100 | CV69: 4.84 | CW69: 86.4 | CX69: 82.79 | CY69: 2.43 | CZ69: 68.31 | DA69: 65.87 | DB69: 2.15 | DC69: 66.43 | DD69: 63.49 | DE69: -2.28 | DI69: -1.37 | DJ69: 82.1 | DK69: 82.1 | DL69: -3.93 | DM69: 4.884 | DN69: 5.081 | DO69: 4.552 | DP69: 5.073 | DQ69: 4.159 | DR69: 4.836 | DS69: 2.536 | DT69: 4.242 | DU69: 3.992 | DV69: 4.323 | DW69: 7.402 | DX69: 6.214 | DY69: 5.229 | DZ69: 5.718 | EA69: 4.651 | EB69: 5.222
A70: 2012-12-15T06:00:00 | B70: 4.617 | C70: 6.059 | D70: 4.908 | E70: 5.588 | F70: 7.762 | H70: 3.988 | J70: 779.4 | K70: 12 | L70: 36.12 | M70: 16.9 | N70: 5.851 | O70: 21.3 | P70: 423 | Q70: 12.8 | R70: 1.373 | S70: 26.2 | T70: 3.614 | U70: 22.8 | V70: 783.4 | W70: 12 | X70: 10.47 | Y70: 19.8 | Z70: 1.008 | AA70: 27.5 | AB70: 65.38 | AC70: 15.8 | AD70: 0.699 | AE70: 29.4 | AF70: 0.043 | AG70: 47.8 | AH70: 222.5 | AI70: 13.8 | AJ70: 0.55 | AK70: 30.2 | AL70: 0.166 | AM70: 36.9 | AN70: 5966 | AO70: 9.8 | AP70: 875 | AQ70: 11.6 | AR70: 1402 | AS70: 11.1 | AT70: 47.36 | AU70: 16.2 | AV70: 15.02 | AW70: 18.8 | AX70: 2.892 | AY70: 23.4 | AZ70: 51.26 | BA70: 16.1 | BB70: 3.895 | BC70: 22.5 | BD70: 0.326 | BE70: 32.8 | BF70: 20.65 | BG70: 17.9 | BH70: 0.014 | BI70: 59.7 | BJ70: 0.869 | BK70: 28 | BL70: 381.8 | BM70: 12.9 | BN70: 287.3 | BO70: 13.3 | BP70: 421.6 | BQ70: 12.8 | BR70: 4478 | BS70: 9.9 | BT70: 771.8 | BU70: 11.7 | BV70: 91.7 | BW70: 87.8 | BX70: 2.87 | BY70: 112.4 | BZ70: 100 | CA70: 4.41 | CB70: 113.1 | CC70: 100 | CD70: 4.01 | CE70: 113.3 | CF70: 100 | CG70: 2.48 | CH70: 121.9 | CI70: 100 | CJ70: 3.91 | CK70: 85.7 | CL70: 82.47 | CM70: 4.36 | CN70: 102.4 | CO70: 98.13 | CP70: 4.86 | CQ70: 108.4 | CR70: 100 | CS70: 4.57 | CT70: 111.1 | CU70: 100 | CV70: 4.63 | CW70: 86.3 | CX70: 82.66 | CY70: 2.21 | CZ70: 68.16 | DA70: 65.68 | DB70: 1.74 | DC70: 65.2 | DD70: 62.33 | DE70: -2.36 | DI70: -0.484 | DJ70: 73.96 | DK70: 73.96 | DL70: -4.32 | DM70: 4.72 | DN70: 4.904 | DO70: 4.397 | DP70: 4.879 | DQ70: 4.002 | DR70: 4.661 | DS70: 2.485 | DT70: 4.121 | DU70: 3.897 | DV70: 4.172 | DW70: 7.125 | DX70: 5.979 | DY70: 5.112 | DZ70: 5.606 | EA70: 4.558 | EB70: 5.107
A71: 2012-12-15T07:00:00 | B71: 4.402 | C71: 5.831 | D71: 4.694 | E71: 5.38 | F71: 7.389 | H71: 4.411 | J71: 776.5 | K71: 12 | L71: 36.59 | M71: 16.9 | N71: 5.914 | O71: 21.3 | P71: 430.1 | Q71: 12.8 | R71: 1.384 | S71: 26.2 | T71: 3.625 | U71: 22.8 | V71: 781.4 | W71: 12 | X71: 10.54 | Y71: 19.8 | Z71: 1.016 | AA71: 27.5 | AB71: 66.07 | AC71: 15.8 | AD71: 0.7 | AE71: 29.4 | AF71: 0.043 | AG71: 47.9 | AH71: 225.3 | AI71: 13.8 | AJ71: 0.553 | AK71: 30.2 | AL71: 0.167 | AM71: 36.9 | AN71: 5936 | AO71: 9.8 | AP71: 896 | AQ71: 11.6 | AR71: 1446 | AS71: 11.1 | AT71: 47.96 | AU71: 16.2 | AV71: 15.18 | AW71: 18.8 | AX71: 2.923 | AY71: 23.4 | AZ71: 51.9 | BA71: 16.1 | BB71: 3.923 | BC71: 22.5 | BD71: 0.327 | BE71: 32.8 | BF71: 21.05 | BG71: 17.9 | BH71: 0.014 | BI71: 59.7 | BJ71: 0.884 | BK71: 28 | BL71: 390.1 | BM71: 12.8 | BN71: 294 | BO71: 13.3 | BP71: 431.2 | BQ71: 12.8 | BR71: 4731 | BS71: 9.8 | BT71: 799.6 | BU71: 11.7 | BV71: 91.8 | BW71: 87.87 | BX71: 2.75 | BY71: 112.4 | BZ71: 100 | CA71: 4.26 | CB71: 113.1 | CC71: 100 | CD71: 3.87 | CE71: 113.3 | CF71: 100 | CG71: 2.42 | CH71: 121.9 | CI71: 100 | CJ71: 3.81 | CK71: 84.9 | CL71: 81.66 | CM71: 3.99 | CN71: 102.4 | CO71: 98.1 | CP71: 4.72 | CQ71: 108.4 | CR71: 100 | CS71: 4.47 | CT71: 111.2 | CU71: 100 | CV71: 4.42 | CW71: 86.2 | CX71: 82.53 | CY71: 1.97 | CZ71: 67.99 | DA71: 65.46 | DB71: 1.33 | DC71: 62.76 | DD71: 60.05 | DE71: -2.45 | DI71: 1.045 | DJ71: 61.86 | DK71: 61.86 | DL71: -5.14 | DM71: 4.584 | DN71: 4.87 | DO71: 4.252 | DP71: 4.793 | DQ71: 3.856 | DR71: 4.574 | DS71: 2.423 | DT71: 4.01 | DU71: 3.8 | DV71: 4.04 | DW71: 6.895 | DX71: 5.921 | DY71: 4.979 | DZ71: 5.483 | EA71: 4.452 | EB71: 4.99
A72: 2012-12-15T08:00:00 | B72: 4.204 | C72: 5.691 | D72: 4.494 | E72: 5.369 | F72: 7.051 | H72: 4.447 | J72: 751.3 | K72: 12 | L72: 37.01 | M72: 16.9 | N72: 5.926 | O72: 21.3 | P72: 431 | Q72: 12.8 | R72: 1.399 | S72: 26.2 | T72: 3.641 | U72: 22.8 | V72: 765.6 | W72: 12.1 | X72: 10.63 | Y72: 19.8 | Z72: 1.025 | AA72: 27.5 | AB72: 60.36 | AC72: 16 | AD72: 0.7 | AE72: 29.4 | AF72: 0.043 | AG72: 47.9 | AH72: 223.4 | AI72: 13.8 | AJ72: 0.554 | AK72: 30.2 | AL72: 0.167 | AM72: 36.9 | AN72: 5065 | AO72: 9.9 | AP72: 911 | AQ72: 11.6 | AR72: 1489 | AS72: 11.1 | AT72: 45.84 | AU72: 16.3 | AV72: 15.17 | AW72: 18.8 | AX72: 2.745 | AY72: 23.6 | AZ72: 48.9 | BA72: 16.2 | BB72: 3.915 | BC72: 22.5 | BD72: 0.325 | BE72: 32.8 | BF72: 20.74 | BG72: 17.9 | BH72: 0.014 | BI72: 59.8 | BJ72: 0.902 | BK72: 27.9 | BL72: 372.7 | BM72: 12.9 | BN72: 296.2 | BO72: 13.3 | BP72: 434.6 | BQ72: 12.8 | BR72: 4750 | BS72: 9.9 | BT72: 815 | BU72: 11.7 | BV72: 91.9 | BW72: 87.94 | BX72: 2.63 | BY72: 112.4 | BZ72: 100 | CA72: 4.12 | CB72: 113.2 | CC72: 100 | CD72: 3.72 | CE72: 113.3 | CF72: 100 | CG72: 2.36 | CH72: 122 | CI72: 100 | CJ72: 3.71 | CK72: 84.5 | CL72: 81.24 | CM72: 3.71 | CN72: 102.2 | CO72: 97.88 | CP72: 4.57 | CQ72: 108.4 | CR72: 100 | CS72: 4.37 | CT72: 111.2 | CU72: 100 | CV72: 4.22 | CW72: 86.1 | CX72: 82.4 | CY72: 1.75 | CZ72: 67.74 | DA72: 65.17 | DB72: 0.94 | DC72: 62.04 | DD72: 59.37 | DE72: -2.57 | DI72: 1.003 | DJ72: 60.55 | DK72: 60.55 | DL72: -5.45 | DM72: 4.452 | DN72: 4.869 | DO72: 4.11 | DP72: 4.746 | DQ72: 3.713 | DR72: 4.521 | DS72: 2.367 | DT72: 4.172 | DU72: 3.703 | DV72: 3.954 | DW72: 6.684 | DX72: 5.864 | DY72: 4.865 | DZ72: 5.58 | EA72: 4.362 | EB72: 5.057
A73: 2012-12-15T09:00:00 | B73: 4.038 | C73: 6.006 | D73: 4.402 | E73: 6.343 | F73: 6.872 | H73: 4.879 | J73: 719 | K73: 12.1 | L73: 37.21 | M73: 16.9 | N73: 5.95 | O73: 21.3 | P73: 411 | Q73: 12.8 | R73: 1.407 | S73: 26.2 | T73: 3.595 | U73: 22.9 | V73: 736.1 | W73: 12.1 | X73: 10.61 | Y73: 19.8 | Z73: 1.031 | AA73: 27.5 | AB73: 54.71 | AC73: 15.9 | AD73: 0.678 | AE73: 29.5 | AF73: 0.042 | AG73: 48.1 | AH73: 218.2 | AI73: 13.8 | AJ73: 0.556 | AK73: 30.2 | AL73: 0.168 | AM73: 36.9 | AN73: 5783 | AO73: 9.8 | AP73: 922 | AQ73: 11.6 | AR73: 1524 | AS73: 11.1 | AT73: 44.14 | AU73: 16.2 | AV73: 13.94 | AW73: 19 | AX73: 2.506 | AY73: 23.9 | AZ73: 44.4 | BA73: 16.3 | BB73: 3.582 | BC73: 22.8 | BD73: 0.325 | BE73: 32.8 | BF73: 19.68 | BG73: 18 | BH73: 0.014 | BI73: 59.9 | BJ73: 0.914 | BK73: 27.9 | BL73: 342.7 | BM73: 12.9 | BN73: 284.4 | BO73: 13.4 | BP73: 436.7 | BQ73: 12.8 | BR73: 4744 | BS73: 9.9 | BT73: 834 | BU73: 11.7 | BV73: 91.7 | BW73: 87.74 | BX73: 2.52 | BY73: 112.3 | BZ73: 100 | CA73: 4.01 | CB73: 113 | CC73: 100 | CD73: 3.62 | CE73: 112.8 | CF73: 100 | CG73: 2.4 | CH73: 122 | CI73: 100 | CJ73: 3.65 | CK73: 84.1 | CL73: 80.83 | CM73: 3.48 | CN73: 100.7 | CO73: 96.46 | CP73: 4.44 | CQ73: 107 | CR73: 100 | CS73: 4.56 | CT73: 111.2 | CU73: 100 | CV73: 4.05 | CW73: 85.3 | CX73: 81.62 | CY73: 1.53 | CZ73: 67.31 | DA73: 64.74 | DB73: 0.68 | DC73: 64.1 | DD73: 61.39 | DE73: -1.75 | DI73: 1.156 | DJ73: 58.57 | DK73: 58.57 | DL73: -5.73 | DM73: 4.372 | DN73: 5.207 | DO73: 4 | DP73: 5.062 | DQ73: 3.608 | DR73: 4.766 | DS73: 2.406 | DT73: 6.08 | DU73: 3.645 | DV73: 4.16 | DW73: 6.529 | DX73: 6.049 | DY73: 4.945 | DZ73: 7.033 | EA73: 4.546 | EB73: 6.406
A74: 2012-12-15T10:00:00 | B74: 3.933 | C74: 6.424 | D74: 4.459 | E74: 7.219 | F74: 6.9 | H74: 5.594 | J74: 692.4 | K74: 12.1 | L74: 37.63 | M74: 16.8 | N74: 5.988 | O74: 21.3 | P74: 375.6 | Q74: 12.9 | R74: 1.409 | S74: 26.2 | T74: 3.516 | U74: 22.9 | V74: 701.1 | W74: 12.1 | X74: 10.37 | Y74: 19.9 | Z74: 1.016 | AA74: 27.5 | AB74: 51.84 | AC74: 15.9 | AD74: 0.649 | AE74: 29.7 | AF74: 0.041 | AG74: 48.3 | AH74: 214.2 | AI74: 13.8 | AJ74: 0.55 | AK74: 30.3 | AL74: 0.167 | AM74: 36.9 | AN74: 5594 | AO74: 9.8 | AP74: 928 | AQ74: 11.6 | AR74: 1549 | AS74: 11.1 | AT74: 45.4 | AU74: 16 | AV74: 13.38 | AW74: 19 | AX74: 2.644 | AY74: 23.7 | AZ74: 41.73 | BA74: 16.2 | BB74: 3.344 | BC74: 23 | BD74: 0.317 | BE74: 32.8 | BF74: 19.03 | BG74: 18 | BH74: 0.014 | BI74: 59.9 | BJ74: 0.918 | BK74: 27.9 | BL74: 328.4 | BM74: 12.9 | BN74: 272 | BO74: 13.4 | BP74: 431.7 | BQ74: 12.8 | BR74: 4795 | BS74: 9.9 | BT74: 843 | BU74: 11.7 | BV74: 91.5 | BW74: 87.54 | BX74: 2.43 | BY74: 112.1 | BZ74: 100 | CA74: 3.95 | CB74: 112.9 | CC74: 100 | CD74: 3.55 | CE74: 112.3 | CF74: 100 | CG74: 2.4 | CH74: 121.9 | CI74: 100 | CJ74: 3.65 | CK74: 82.8 | CL74: 79.56 | CM74: 3.17 | CN74: 98.7 | CO74: 94.6 | CP74: 4.46 | CQ74: 105.7 | CR74: 100 | CS74: 4.85 | CT74: 111.2 | CU74: 100 | CV74: 3.94 | CW74: 84.7 | CX74: 81.06 | CY74: 1.49 | CZ74: 66.81 | DA74: 64.26 | DB74: 0.6 | DC74: 63.81 | DD74: 61.21 | DE74: -1.14 | DI74: 1.849 | DJ74: 52.16 | DK74: 52.16 | DL74: -6.58 | DM74: 4.32 | DN74: 5.591 | DO74: 3.935 | DP74: 5.587 | DQ74: 3.545 | DR74: 5.264 | DS74: 2.406 | DT74: 7.21 | DU74: 3.644 | DV74: 4.437 | DW74: 6.438 | DX74: 6.385 | DY74: 5.237 | DZ74: 8.04 | EA74: 4.837 | EB74: 7.544
A75: 2012-12-15T11:00:00 | B75: 3.892 | C75: 6.639 | D75: 4.645 | E75: 7.826 | F75: 7.183 | H75: 5.995 | J75: 670.4 | K75: 12.1 | L75: 37.47 | M75: 16.9 | N75: 5.999 | O75: 21.3 | P75: 383.5 | Q75: 12.8 | R75: 1.408 | S75: 26.2 | T75: 3.457 | U75: 23 | V75: 674.7 | W75: 12.1 | X75: 10.42 | Y75: 19.9 | Z75: 1.033 | AA75: 27.5 | AB75: 52.01 | AC75: 15.8 | AD75: 0.63 | AE75: 29.8 | AF75: 0.042 | AG75: 48 | AH75: 210.6 | AI75: 13.8 | AJ75: 0.54 | AK75: 30.4 | AL75: 0.166 | AM75: 37 | AN75: 5546 | AO75: 9.8 | AP75: 937 | AQ75: 11.6 | AR75: 1544 | AS75: 11.1 | AT75: 48.12 | AU75: 15.9 | AV75: 13.22 | AW75: 19 | AX75: 2.707 | AY75: 23.6 | AZ75: 42.11 | BA75: 16.1 | BB75: 3.239 | BC75: 23 | BD75: 0.322 | BE75: 32.7 | BF75: 18.55 | BG75: 18.1 | BH75: 0.014 | BI75: 59.9 | BJ75: 0.918 | BK75: 27.9 | BL75: 312.7 | BM75: 12.9 | BN75: 264.6 | BO75: 13.5 | BP75: 424.6 | BQ75: 12.8 | BR75: 4770 | BS75: 9.9 | BT75: 816 | BU75: 11.7 | BV75: 91.2 | BW75: 87.25 | BX75: 2.38 | BY75: 111.8 | BZ75: 100 | CA75: 3.94 | CB75: 112.7 | CC75: 100 | CD75: 3.53 | CE75: 111.7 | CF75: 100 | CG75: 2.58 | CH75: 121.8 | CI75: 100 | CJ75: 3.68 | CK75: 82 | CL75: 78.79 | CM75: 2.99 | CN75: 98.5 | CO75: 94.42 | CP75: 4.49 | CQ75: 105.1 | CR75: 100 | CS75: 5.09 | CT75: 111.1 | CU75: 100 | CV75: 3.9 | CW75: 84.6 | CX75: 80.99 | CY75: 1.66 | CZ75: 67.22 | DA75: 64.69 | DB75: 0.97 | DC75: 62.89 | DD75: 60.38 | DE75: -0.96 | DI75: 2.316 | DJ75: 48.11 | DK75: 48.11 | DL75: -7.18 | DM75: 4.315 | DN75: 5.992 | DO75: 3.927 | DP75: 6.075 | DQ75: 3.518 | DR75: 5.601 | DS75: 2.578 | DT75: 7.879 | DU75: 3.672 | DV75: 4.644 | DW75: 6.399 | DX75: 6.725 | DY75: 5.297 | DZ75: 8.48 | EA75: 5.074 | EB75: 8.13
A76: 2012-12-15T12:00:00 | B76: 3.916 | C76: 6.831 | D76: 4.859 | E76: 8.23 | F76: 7.853 | H76: 6.16 | J76: 642.6 | K76: 12.1 | L76: 37.42 | M76: 16.9 | N76: 5.975 | O76: 21.3 | P76: 377 | Q76: 12.8 | R76: 1.405 | S76: 26.2 | T76: 3.439 | U76: 23 | V76: 651.7 | W76: 12.1 | X76: 10.4 | Y76: 19.9 | Z76: 1.035 | AA76: 27.5 | AB76: 49.78 | AC76: 15.8 | AD76: 0.618 | AE76: 29.9 | AF76: 0.042 | AG76: 48 | AH76: 203.1 | AI76: 13.8 | AJ76: 0.543 | AK76: 30.3 | AL76: 0.166 | AM76: 36.9 | AN76: 5459 | AO76: 9.8 | AP76: 936 | AQ76: 11.6 | AR76: 1535 | AS76: 11.1 | AT76: 46.39 | AU76: 15.9 | AV76: 12.82 | AW76: 19.1 | AX76: 2.851 | AY76: 23.4 | AZ76: 39.41 | BA76: 16.2 | BB76: 3.117 | BC76: 23.1 | BD76: 0.327 | BE76: 32.6 | BF76: 17.85 | BG76: 18.1 | BH76: 0.014 | BI76: 59.9 | BJ76: 0.918 | BK76: 27.9 | BL76: 296.9 | BM76: 12.9 | BN76: 255.2 | BO76: 13.5 | BP76: 414.6 | BQ76: 12.8 | BR76: 4541 | BS76: 9.8 | BT76: 752.4 | BU76: 11.8 | BV76: 91 | BW76: 87.06 | BX76: 2.34 | BY76: 111.7 | BZ76: 100 | CA76: 3.94 | CB76: 112.6 | CC76: 100 | CD76: 3.51 | CE76: 111.2 | CF76: 100 | CG76: 2.7 | CH76: 121.7 | CI76: 100 | CJ76: 3.72 | CK76: 82.2 | CL76: 78.97 | CM76: 2.98 | CN76: 98.1 | CO76: 94.05 | CP76: 4.5 | CQ76: 104.7 | CR76: 100 | CS76: 5.25 | CT76: 111 | CU76: 100 | CV76: 3.93 | CW76: 84.6 | CX76: 81.03 | CY76: 1.88 | CZ76: 68.32 | DA76: 65.84 | DB76: 1.86 | DC76: 61.99 | DD76: 59.53 | DE76: -1 | DI76: 2.792 | DJ76: 44.89 | DK76: 44.89 | DL76: -7.63 | DM76: 4.306 | DN76: 6.053 | DO76: 3.931 | DP76: 6.154 | DQ76: 3.504 | DR76: 5.655 | DS76: 2.704 | DT76: 8.18 | DU76: 3.707 | DV76: 4.833 | DW76: 6.352 | DX76: 6.746 | DY76: 5.364 | DZ76: 8.8 | EA76: 5.234 | EB76: 8.44
A77: 2012-12-15T13:00:00 | B77: 3.986 | C77: 7.209 | D77: 5.13 | E77: 8.92 | F77: 8.92 | H77: 6.558 | J77: 619.3 | K77: 12.1 | L77: 37.11 | M77: 16.9 | N77: 5.959 | O77: 21.3 | P77: 352.7 | Q77: 12.9 | R77: 1.405 | S77: 26.2 | T77: 3.429 | U77: 23 | V77: 626.2 | W77: 12.2 | X77: 10.29 | Y77: 19.9 | Z77: 1.033 | AA77: 27.5 | AB77: 49.13 | AC77: 15.7 | AD77: 0.6 | AE77: 30 | AF77: 0.042 | AG77: 47.9 | AH77: 196.4 | AI77: 13.9 | AJ77: 0.538 | AK77: 30.4 | AL77: 0.166 | AM77: 36.9 | AN77: 5380 | AO77: 9.8 | AP77: 934 | AQ77: 11.6 | AR77: 1531 | AS77: 11.1 | AT77: 47.85 | AU77: 15.7 | AV77: 12.61 | AW77: 19.1 | AX77: 2.896 | AY77: 23.3 | AZ77: 39.12 | BA77: 16.2 | BB77: 3.01 | BC77: 23.2 | BD77: 0.329 | BE77: 32.5 | BF77: 17.09 | BG77: 18.2 | BH77: 0.014 | BI77: 59.9 | BJ77: 0.914 | BK77: 27.9 | BL77: 283.8 | BM77: 12.9 | BN77: 245 | BO77: 13.5 | BP77: 402.7 | BQ77: 12.8 | BR77: 4333 | BS77: 9.8 | BT77: 665.6 | BU77: 11.8 | BV77: 90.7 | BW77: 86.77 | BX77: 2.33 | BY77: 111.5 | BZ77: 100 | CA77: 3.95 | CB77: 112.5 | CC77: 100 | CD77: 3.52 | CE77: 110.5 | CF77: 100 | CG77: 2.94 | CH77: 121.6 | CI77: 100 | CJ77: 3.79 | CK77: 82.4 | CL77: 79.16 | CM77: 3 | CN77: 97.4 | CO77: 93.42 | CP77: 4.57 | CQ77: 103.8 | CR77: 99.55 | CS77: 5.45 | CT77: 111 | CU77: 100 | CV77: 4 | CW77: 84.6 | CX77: 81.07 | CY77: 2.15 | CZ77: 69.42 | DA77: 67.05 | DB77: 3.15 | DC77: 62.48 | DD77: 60.05 | DE77: -0.53 | DI77: 3.27 | DJ77: 43.02 | DK77: 43.02 | DL77: -7.74 | DM77: 4.337 | DN77: 6.391 | DO77: 3.941 | DP77: 6.402 | DQ77: 3.516 | DR77: 5.931 | DS77: 2.939 | DT77: 9.09 | DU77: 3.78 | DV77: 5.121 | DW77: 6.34 | DX77: 6.878 | DY77: 5.535 | DZ77: 9.6 | EA77: 5.495 | EB77: 9.17
A78: 2012-12-15T14:00:00 | B78: 4.095 | C78: 7.571 | D78: 5.448 | E78: 9.53 | F78: 10.17 | H78: 6.784 | J78: 599.6 | K78: 12.2 | L78: 36.96 | M78: 16.9 | N78: 5.949 | O78: 21.3 | P78: 353.9 | Q78: 12.8 | R78: 1.403 | S78: 26.2 | T78: 3.411 | U78: 23 | V78: 602.6 | W78: 12.2 | X78: 10.17 | Y78: 19.9 | Z78: 1.031 | AA78: 27.5 | AB78: 48.63 | AC78: 15.7 | AD78: 0.585 | AE78: 30.1 | AF78: 0.042 | AG78: 47.9 | AH78: 190.7 | AI78: 13.9 | AJ78: 0.534 | AK78: 30.4 | AL78: 0.166 | AM78: 36.9 | AN78: 5314 | AO78: 9.8 | AP78: 928 | AQ78: 11.6 | AR78: 1495 | AS78: 11.1 | AT78: 49.25 | AU78: 15.6 | AV78: 12.41 | AW78: 19.1 | AX78: 2.977 | AY78: 23.2 | AZ78: 38.4 | BA78: 16.1 | BB78: 2.918 | BC78: 23.2 | BD78: 0.327 | BE78: 32.5 | BF78: 16.37 | BG78: 18.2 | BH78: 0.014 | BI78: 59.9 | BJ78: 0.905 | BK78: 27.9 | BL78: 270.2 | BM78: 12.9 | BN78: 233.7 | BO78: 13.6 | BP78: 387.5 | BQ78: 12.8 | BR78: 3930 | BS78: 9.8 | BT78: 601.2 | BU78: 11.8 | BV78: 90.6 | BW78: 86.69 | BX78: 2.35 | BY78: 111.4 | BZ78: 100 | CA78: 3.99 | CB78: 112.5 | CC78: 100 | CD78: 3.56 | CE78: 110 | CF78: 100 | CG78: 3.09 | CH78: 121.4 | CI78: 100 | CJ78: 3.89 | CK78: 82.7 | CL78: 79.47 | CM78: 3.17 | CN78: 96.8 | CO78: 92.88 | CP78: 4.69 | CQ78: 103.2 | CR78: 99.02 | CS78: 5.63 | CT78: 110.9 | CU78: 100 | CV78: 4.11 | CW78: 84.7 | CX78: 81.22 | CY78: 2.49 | CZ78: 69.9 | DA78: 67.69 | DB78: 4.48 | DC78: 62.99 | DD78: 60.57 | DE78: -0.22 | DI78: 3.757 | DJ78: 39.66 | DK78: 39.66 | DL78: -8.34 | DM78: 4.375 | DN78: 6.612 | DO78: 3.975 | DP78: 6.717 | DQ78: 3.557 | DR78: 6.229 | DS78: 3.086 | DT78: 9.66 | DU78: 3.881 | DV78: 5.416 | DW78: 6.457 | DX78: 7.054 | DY78: 5.734 | DZ78: 10.15 | EA78: 5.757 | EB78: 9.66
A79: 2012-12-15T15:00:00 | B79: 4.234 | C79: 7.723 | D79: 5.759 | E79: 9.52 | F79: 11.21 | H79: 6.353 | J79: 629.7 | K79: 12.1 | L79: 37.24 | M79: 16.9 | N79: 5.96 | O79: 21.3 | P79: 349.6 | Q79: 12.9 | R79: 1.401 | S79: 26.2 | T79: 3.409 | U79: 23 | V79: 601.6 | W79: 12.2 | X79: 10.15 | Y79: 19.9 | Z79: 1.022 | AA79: 27.5 | AB79: 54.12 | AC79: 15.6 | AD79: 0.581 | AE79: 30.1 | AF79: 0.042 | AG79: 47.9 | AH79: 193.3 | AI79: 13.8 | AJ79: 0.529 | AK79: 30.4 | AL79: 0.164 | AM79: 37 | AN79: 5306 | AO79: 9.8 | AP79: 910 | AQ79: 11.6 | AR79: 1457 | AS79: 11.1 | AT79: 55.28 | AU79: 15.5 | AV79: 13.18 | AW79: 19 | AX79: 3.098 | AY79: 23 | AZ79: 42.42 | BA79: 16 | BB79: 3.025 | BC79: 23.1 | BD79: 0.328 | BE79: 32.4 | BF79: 16.41 | BG79: 18.2 | BH79: 0.014 | BI79: 59.8 | BJ79: 0.893 | BK79: 28 | BL79: 274.6 | BM79: 12.9 | BN79: 229.9 | BO79: 13.6 | BP79: 375.7 | BQ79: 12.9 | BR79: 3599 | BS79: 9.8 | BT79: 543.6 | BU79: 11.8 | BV79: 90.6 | BW79: 86.69 | BX79: 2.36 | BY79: 111.3 | BZ79: 100 | CA79: 4.02 | CB79: 112.5 | CC79: 100 | CD79: 3.61 | CE79: 110 | CF79: 100 | CG79: 3.12 | CH79: 121.4 | CI79: 100 | CJ79: 3.98 | CK79: 82.9 | CL79: 79.69 | CM79: 3.41 | CN79: 96.9 | CO79: 93 | CP79: 4.85 | CQ79: 103.5 | CR79: 99.34 | CS79: 5.84 | CT79: 110.8 | CU79: 100 | CV79: 4.25 | CW79: 84.9 | CX79: 81.47 | CY79: 2.84 | CZ79: 69.62 | DA79: 67.57 | DB79: 5.46 | DC79: 57.65 | DD79: 55.39 | DE79: -1.76 | DI79: 3.963 | DJ79: 37.29 | DK79: 37.29 | DL79: -8.94 | DM79: 4.38 | DN79: 6.393 | DO79: 4.011 | DP79: 6.573 | DQ79: 3.599 | DR79: 6.1 | DS79: 3.114 | DT79: 9.04 | DU79: 3.969 | DV79: 5.409 | DW79: 6.658 | DX79: 7.019 | DY79: 5.879 | DZ79: 9.58 | EA79: 5.911 | EB79: 9.31
A80: 2012-12-15T16:00:00 | B80: 4.376 | C80: 7.544 | D80: 6.008 | E80: 9.17 | F80: 11.85 | H80: 5.941 | J80: 636.2 | K80: 12.1 | L80: 37.64 | M80: 16.8 | N80: 5.955 | O80: 21.3 | P80: 355.4 | Q80: 12.9 | R80: 1.402 | S80: 26.2 | T80: 3.448 | U80: 23 | V80: 605.1 | W80: 12.2 | X80: 10.23 | Y80: 19.9 | Z80: 1.032 | AA80: 27.5 | AB80: 57.91 | AC80: 15.5 | AD80: 0.588 | AE80: 30.1 | AF80: 0.042 | AG80: 47.9 | AH80: 196.2 | AI80: 13.9 | AJ80: 0.53 | AK80: 30.4 | AL80: 0.165 | AM80: 36.9 | AN80: 5434 | AO80: 9.8 | AP80: 912 | AQ80: 11.6 | AR80: 1440 | AS80: 11.1 | AT80: 58.54 | AU80: 15.4 | AV80: 13.92 | AW80: 18.8 | AX80: 3.21 | AY80: 22.9 | AZ80: 45.39 | BA80: 15.9 | BB80: 3.178 | BC80: 22.9 | BD80: 0.329 | BE80: 32.4 | BF80: 16.64 | BG80: 18.2 | BH80: 0.014 | BI80: 59.7 | BJ80: 0.886 | BK80: 28 | BL80: 278.5 | BM80: 12.9 | BN80: 231.5 | BO80: 13.5 | BP80: 369.2 | BQ80: 12.9 | BR80: 3370 | BS80: 9.8 | BT80: 526.4 | BU80: 11.8 | BV80: 90.7 | BW80: 86.77 | BX80: 2.32 | BY80: 111.5 | BZ80: 100 | CA80: 4.02 | CB80: 112.7 | CC80: 100 | CD80: 3.62 | CE80: 110.4 | CF80: 100 | CG80: 3.16 | CH80: 121.6 | CI80: 100 | CJ80: 4 | CK80: 83.4 | CL80: 80.21 | CM80: 3.69 | CN80: 97.9 | CO80: 93.95 | CP80: 4.95 | CQ80: 104.3 | CR80: 100 | CS80: 5.92 | CT80: 110.9 | CU80: 100 | CV80: 4.39 | CW80: 85.5 | CX80: 82.08 | CY80: 3.19 | CZ80: 69.16 | DA80: 67.21 | DB80: 5.99 | DC80: 53.73 | DD80: 51.58 | DE80: -3.04 | DI80: 3.943 | DJ80: 34.96 | DK80: 34.96 | DL80: -9.77 | DM80: 4.333 | DN80: 6.004 | DO80: 4.013 | DP80: 6.182 | DQ80: 3.616 | DR80: 5.7 | DS80: 3.157 | DT80: 8.18 | DU80: 3.988 | DV80: 5.156 | DW80: 6.848 | DX80: 6.843 | DY80: 5.834 | DZ80: 8.84 | EA80: 5.899 | EB80: 8.64
A81: 2012-12-15T17:00:00 | B81: 4.482 | C81: 7.378 | D81: 6.148 | E81: 8.74 | F81: 12.15 | H81: 5.523 | J81: 646.1 | K81: 12.1 | L81: 37.89 | M81: 16.8 | N81: 5.962 | O81: 21.3 | P81: 365.2 | Q81: 12.9 | R81: 1.404 | S81: 26.2 | T81: 3.483 | U81: 23 | V81: 608.6 | W81: 12.2 | X81: 10.32 | Y81: 19.9 | Z81: 1.032 | AA81: 27.5 | AB81: 61.13 | AC81: 15.5 | AD81: 0.595 | AE81: 30 | AF81: 0.042 | AG81: 47.9 | AH81: 199.6 | AI81: 13.8 | AJ81: 0.537 | AK81: 30.3 | AL81: 0.165 | AM81: 36.9 | AN81: 5561 | AO81: 9.7 | AP81: 903 | AQ81: 11.6 | AR81: 1413 | AS81: 11.1 | AT81: 60.92 | AU81: 15.4 | AV81: 14.42 | AW81: 18.7 | AX81: 3.25 | AY81: 22.9 | AZ81: 47.76 | BA81: 15.9 | BB81: 3.295 | BC81: 22.8 | BD81: 0.328 | BE81: 32.4 | BF81: 16.78 | BG81: 18.2 | BH81: 0.014 | BI81: 59.7 | BJ81: 0.88 | BK81: 28 | BL81: 287.7 | BM81: 12.9 | BN81: 235.2 | BO81: 13.5 | BP81: 365.3 | BQ81: 12.9 | BR81: 3257 | BS81: 9.8 | BT81: 520.4 | BU81: 11.8 | BV81: 90.9 | BW81: 86.96 | BX81: 2.31 | BY81: 111.7 | BZ81: 100 | CA81: 4.01 | CB81: 112.8 | CC81: 100 | CD81: 3.61 | CE81: 110.8 | CF81: 100 | CG81: 3.16 | CH81: 121.7 | CI81: 100 | CJ81: 3.99 | CK81: 84.8 | CL81: 81.58 | CM81: 4.11 | CN81: 98.5 | CO81: 94.54 | CP81: 5.09 | CQ81: 104.9 | CR81: 100 | CS81: 5.89 | CT81: 110.9 | CU81: 100 | CV81: 4.5 | CW81: 85.9 | CX81: 82.49 | CY81: 3.4 | CZ81: 68.91 | DA81: 67.01 | DB81: 6.24 | DC81: 56.42 | DD81: 54.11 | DE81: -2.8 | DI81: 3.055 | DJ81: 44.71 | DK81: 44.71 | DL81: -7.45 | DM81: 4.29 | DN81: 5.794 | DO81: 3.997 | DP81: 5.943 | DQ81: 3.607 | DR81: 5.489 | DS81: 3.152 | DT81: 7.527 | DU81: 3.975 | DV81: 4.963 | DW81: 7.032 | DX81: 6.79 | DY81: 5.879 | DZ81: 8.35 | EA81: 5.872 | EB81: 8.14
A82: 2012-12-15T18:00:00 | B82: 4.538 | C82: 7.208 | D82: 6.199 | E82: 8.27 | F82: 12.18 | H82: 4.981 | J82: 656.4 | K82: 12.1 | L82: 38.24 | M82: 16.8 | N82: 5.977 | O82: 21.3 | P82: 390.8 | Q82: 12.8 | R82: 1.407 | S82: 26.2 | T82: 3.512 | U82: 22.9 | V82: 611.4 | W82: 12.3 | X82: 10.4 | Y82: 19.9 | Z82: 1.034 | AA82: 27.5 | AB82: 64.16 | AC82: 15.5 | AD82: 0.602 | AE82: 30 | AF82: 0.042 | AG82: 47.9 | AH82: 203.8 | AI82: 13.8 | AJ82: 0.541 | AK82: 30.3 | AL82: 0.165 | AM82: 36.9 | AN82: 5476 | AO82: 9.8 | AP82: 891 | AQ82: 11.6 | AR82: 1412 | AS82: 11.1 | AT82: 62.83 | AU82: 15.4 | AV82: 14.8 | AW82: 18.7 | AX82: 3.224 | AY82: 22.9 | AZ82: 49.79 | BA82: 15.9 | BB82: 3.403 | BC82: 22.7 | BD82: 0.327 | BE82: 32.5 | BF82: 17.06 | BG82: 18.2 | BH82: 0.014 | BI82: 59.7 | BJ82: 0.878 | BK82: 28 | BL82: 298 | BM82: 12.9 | BN82: 240.6 | BO82: 13.4 | BP82: 364.2 | BQ82: 12.9 | BR82: 3225 | BS82: 9.8 | BT82: 524.5 | BU82: 11.8 | BV82: 91 | BW82: 87.04 | BX82: 2.28 | BY82: 111.8 | BZ82: 100 | CA82: 3.99 | CB82: 112.9 | CC82: 100 | CD82: 3.6 | CE82: 111.2 | CF82: 100 | CG82: 3.12 | CH82: 121.8 | CI82: 100 | CJ82: 3.96 | CK82: 86 | CL82: 82.76 | CM82: 4.44 | CN82: 99.5 | CO82: 95.52 | CP82: 5.33 | CQ82: 105.5 | CR82: 100 | CS82: 5.87 | CT82: 110.9 | CU82: 100 | CV82: 4.55 | CW82: 86.2 | CX82: 82.79 | CY82: 3.5 | CZ82: 68.68 | DA82: 66.79 | DB82: 6.22 | DC82: 59.27 | DD82: 56.78 | DE82: -2.66 | DI82: 1.501 | DJ82: 56.55 | DK82: 56.55 | DL82: -5.86 | DM82: 4.241 | DN82: 5.593 | DO82: 3.976 | DP82: 5.704 | DQ82: 3.596 | DR82: 5.279 | DS82: 3.116 | DT82: 6.974 | DU82: 3.946 | DV82: 4.799 | DW82: 7.161 | DX82: 6.708 | DY82: 5.972 | DZ82: 7.905 | EA82: 5.85 | EB82: 7.699
A83: 2012-12-15T19:00:00 | B83: 4.541 | C83: 7.003 | D83: 6.162 | E83: 7.82 | F83: 12 | H83: 4.537 | J83: 666.4 | K83: 12.1 | L83: 38.6 | M83: 16.8 | N83: 6.003 | O83: 21.3 | P83: 400.2 | Q83: 12.8 | R83: 1.411 | S83: 26.2 | T83: 3.54 | U83: 22.9 | V83: 613.5 | W83: 12.3 | X83: 10.47 | Y83: 19.9 | Z83: 1.035 | AA83: 27.5 | AB83: 66.74 | AC83: 15.5 | AD83: 0.608 | AE83: 29.9 | AF83: 0.042 | AG83: 47.9 | AH83: 208.6 | AI83: 13.8 | AJ83: 0.545 | AK83: 30.3 | AL83: 0.165 | AM83: 36.9 | AN83: 5595 | AO83: 9.8 | AP83: 891 | AQ83: 11.6 | AR83: 1420 | AS83: 11.1 | AT83: 64.18 | AU83: 15.4 | AV83: 15.07 | AW83: 18.6 | AX83: 3.187 | AY83: 22.9 | AZ83: 51.58 | BA83: 15.9 | BB83: 3.501 | BC83: 22.7 | BD83: 0.327 | BE83: 32.5 | BF83: 17.41 | BG83: 18.2 | BH83: 0.014 | BI83: 59.7 | BJ83: 0.878 | BK83: 28 | BL83: 309.5 | BM83: 12.9 | BN83: 246.6 | BO83: 13.4 | BP83: 368.9 | BQ83: 12.8 | BR83: 3224 | BS83: 9.8 | BT83: 536.9 | BU83: 11.8 | BV83: 91.1 | BW83: 87.13 | BX83: 2.25 | BY83: 111.9 | BZ83: 100 | CA83: 3.95 | CB83: 113.1 | CC83: 100 | CD83: 3.58 | CE83: 111.5 | CF83: 100 | CG83: 3.07 | CH83: 121.9 | CI83: 100 | CJ83: 3.91 | CK83: 86.8 | CL83: 83.54 | CM83: 4.63 | CN83: 100.3 | CO83: 96.31 | CP83: 5.55 | CQ83: 106 | CR83: 100 | CS83: 5.83 | CT83: 111 | CU83: 100 | CV83: 4.56 | CW83: 86.5 | CX83: 83.07 | CY83: 3.51 | CZ83: 68.37 | DA83: 66.46 | DB83: 5.97 | DC83: 59.91 | DD83: 57.34 | DE83: -2.93 | DI83: 0.796 | DJ83: 61.02 | DK83: 61.02 | DL83: -5.54 | DM83: 4.196 | DN83: 5.411 | DO83: 3.942 | DP83: 5.489 | DQ83: 3.569 | DR83: 5.083 | DS83: 3.069 | DT83: 6.486 | DU83: 3.904 | DV83: 4.623 | DW83: 7.218 | DX83: 6.571 | DY83: 6.074 | DZ83: 7.532 | EA83: 5.814 | EB83: 7.314
A84: 2012-12-15T20:00:00 | B84: 4.491 | C84: 6.772 | D84: 6.053 | E84: 7.406 | F84: 11.68 | H84: 4.258 | J84: 672.6 | K84: 12.1 | L84: 38.94 | M84: 16.8 | N84: 6.03 | O84: 21.3 | P84: 425.8 | Q84: 12.7 | R84: 1.414 | S84: 26.2 | T84: 3.559 | U84: 22.9 | V84: 617.7 | W84: 12.3 | X84: 10.53 | Y84: 19.9 | Z84: 1.038 | AA84: 27.5 | AB84: 69.15 | AC84: 15.5 | AD84: 0.614 | AE84: 29.9 | AF84: 0.042 | AG84: 47.9 | AH84: 214.2 | AI84: 13.8 | AJ84: 0.549 | AK84: 30.2 | AL84: 0.166 | AM84: 36.9 | AN84: 5586 | AO84: 9.8 | AP84: 892 | AQ84: 11.6 | AR84: 1436 | AS84: 11.1 | AT84: 64.76 | AU84: 15.5 | AV84: 15.2 | AW84: 18.6 | AX84: 3.146 | AY84: 22.9 | AZ84: 53.09 | BA84: 15.8 | BB84: 3.585 | BC84: 22.6 | BD84: 0.327 | BE84: 32.5 | BF84: 17.79 | BG84: 18.1 | BH84: 0.014 | BI84: 59.7 | BJ84: 0.881 | BK84: 28 | BL84: 321.4 | BM84: 12.9 | BN84: 253.5 | BO84: 13.4 | BP84: 375.1 | BQ84: 12.8 | BR84: 3233 | BS84: 9.8 | BT84: 553.4 | BU84: 11.8 | BV84: 91.2 | BW84: 87.22 | BX84: 2.2 | BY84: 112.1 | BZ84: 100 | CA84: 3.91 | CB84: 113.2 | CC84: 100 | CD84: 3.54 | CE84: 111.8 | CF84: 100 | CG84: 3.01 | CH84: 122 | CI84: 100 | CJ84: 3.86 | CK84: 87.2 | CL84: 83.92 | CM84: 4.69 | CN84: 101.1 | CO84: 97.09 | CP84: 5.75 | CQ84: 106.4 | CR84: 100 | CS84: 5.79 | CT84: 111 | CU84: 100 | CV84: 4.5 | CW84: 86.6 | CX84: 83.15 | CY84: 3.42 | CZ84: 67.95 | DA84: 66.01 | DB84: 5.57 | DC84: 60.82 | DD84: 58.18 | DE84: -3 | DI84: 0.312 | DJ84: 63.47 | DK84: 63.47 | DL84: -5.49 | DM84: 4.136 | DN84: 5.25 | DO84: 3.899 | DP84: 5.313 | DQ84: 3.529 | DR84: 4.912 | DS84: 3.002 | DT84: 6.062 | DU84: 3.846 | DV84: 4.451 | DW84: 7.211 | DX84: 6.432 | DY84: 6.153 | DZ84: 7.241 | EA84: 5.771 | EB84: 6.986
A85: 2012-12-15T21:00:00 | B85: 4.408 | C85: 6.553 | D85: 5.892 | E85: 7.042 | F85: 11.26 | H85: 4.087 | J85: 678 | K85: 12.2 | L85: 39.33 | M85: 16.8 | N85: 6.052 | O85: 21.3 | P85: 401.6 | Q85: 12.8 | R85: 1.419 | S85: 26.1 | T85: 3.575 | U85: 22.9 | V85: 621.7 | W85: 12.3 | X85: 10.59 | Y85: 19.9 | Z85: 1.04 | AA85: 27.5 | AB85: 71.35 | AC85: 15.5 | AD85: 0.62 | AE85: 29.9 | AF85: 0.043 | AG85: 47.7 | AH85: 219.2 | AI85: 13.8 | AJ85: 0.551 | AK85: 30.2 | AL85: 0.166 | AM85: 36.9 | AN85: 5612 | AO85: 9.8 | AP85: 893 | AQ85: 11.6 | AR85: 1461 | AS85: 11.1 | AT85: 65.01 | AU85: 15.5 | AV85: 15.31 | AW85: 18.6 | AX85: 3.12 | AY85: 23 | AZ85: 54.38 | BA85: 15.8 | BB85: 3.665 | BC85: 22.5 | BD85: 0.326 | BE85: 32.5 | BF85: 18.15 | BG85: 18.1 | BH85: 0.014 | BI85: 59.7 | BJ85: 0.886 | BK85: 28 | BL85: 332.6 | BM85: 12.9 | BN85: 259.6 | BO85: 13.4 | BP85: 382 | BQ85: 12.8 | BR85: 3274 | BS85: 9.9 | BT85: 574.6 | BU85: 11.7 | BV85: 91.3 | BW85: 87.3 | BX85: 2.15 | BY85: 112.1 | BZ85: 100 | CA85: 3.85 | CB85: 113.2 | CC85: 100 | CD85: 3.48 | CE85: 112 | CF85: 100 | CG85: 2.94 | CH85: 122.1 | CI85: 100 | CJ85: 3.78 | CK85: 87.4 | CL85: 84.11 | CM85: 4.66 | CN85: 101.4 | CO85: 97.38 | CP85: 5.82 | CQ85: 106.7 | CR85: 100 | CS85: 5.72 | CT85: 111 | CU85: 100 | CV85: 4.42 | CW85: 86.8 | CX85: 83.31 | CY85: 3.29 | CZ85: 67.58 | DA85: 65.59 | DB85: 5.07 | DC85: 61.56 | DD85: 58.87 | DE85: -3 | DI85: 0.114 | DJ85: 65.47 | DK85: 65.47 | DL85: -5.27 | DM85: 4.076 | DN85: 5.103 | DO85: 3.844 | DP85: 5.155 | DQ85: 3.469 | DR85: 4.758 | DS85: 2.936 | DT85: 5.693 | DU85: 3.772 | DV85: 4.264 | DW85: 7.149 | DX85: 6.288 | DY85: 6.187 | DZ85: 7.015 | EA85: 5.701 | EB85: 6.709
A86: 2012-12-15T22:00:00 | B86: 4.29 | C86: 6.323 | D86: 5.694 | E86: 6.719 | F86: 10.8 | H86: 3.975 | J86: 686.2 | K86: 12.2 | L86: 39.73 | M86: 16.8 | N86: 6.089 | O86: 21.3 | P86: 432.8 | Q86: 12.7 | R86: 1.426 | S86: 26.1 | T86: 3.584 | U86: 22.9 | V86: 624.9 | W86: 12.3 | X86: 10.65 | Y86: 19.9 | Z86: 1.043 | AA86: 27.5 | AB86: 73.34 | AC86: 15.5 | AD86: 0.627 | AE86: 29.8 | AF86: 0.043 | AG86: 47.7 | AH86: 224.9 | AI86: 13.8 | AJ86: 0.555 | AK86: 30.2 | AL86: 0.166 | AM86: 37 | AN86: 5719 | AO86: 9.8 | AP86: 900 | AQ86: 11.6 | AR86: 1504 | AS86: 11 | AT86: 65.17 | AU86: 15.5 | AV86: 15.45 | AW86: 18.5 | AX86: 3.116 | AY86: 23 | AZ86: 55.58 | BA86: 15.8 | BB86: 3.736 | BC86: 22.5 | BD86: 0.326 | BE86: 32.5 | BF86: 18.56 | BG86: 18.1 | BH86: 0.014 | BI86: 59.8 | BJ86: 0.894 | BK86: 27.9 | BL86: 344.8 | BM86: 12.9 | BN86: 267.1 | BO86: 13.3 | BP86: 391 | BQ86: 12.8 | BR86: 3393 | BS86: 9.9 | BT86: 600.8 | BU86: 11.7 | BV86: 91.4 | BW86: 87.38 | BX86: 2.1 | BY86: 112.2 | BZ86: 100 | CA86: 3.79 | CB86: 113.3 | CC86: 100 | CD86: 3.4 | CE86: 112.2 | CF86: 100 | CG86: 2.85 | CH86: 122.2 | CI86: 100 | CJ86: 3.69 | CK86: 87.4 | CL86: 84.09 | CM86: 4.57 | CN86: 101.7 | CO86: 97.67 | CP86: 5.85 | CQ86: 106.9 | CR86: 100 | CS86: 5.63 | CT86: 111 | CU86: 100 | CV86: 4.3 | CW86: 86.8 | CX86: 83.28 | CY86: 3.09 | CZ86: 67.17 | DA86: 65.13 | DB86: 4.53 | DC86: 62.42 | DD86: 59.67 | DE86: -2.93 | DI86: -0.158 | DJ86: 67.3 | DK86: 67.3 | DL86: -5.19 | DM86: 4.006 | DN86: 4.949 | DO86: 3.781 | DP86: 5.01 | DQ86: 3.395 | DR86: 4.587 | DS86: 2.852 | DT86: 5.367 | DU86: 3.682 | DV86: 4.091 | DW86: 7.052 | DX86: 6.159 | DY86: 6.173 | DZ86: 6.82 | EA86: 5.613 | EB86: 6.47
A87: 2012-12-15T23:00:00 | B87: 4.161 | C87: 6.08 | D87: 5.485 | E87: 6.425 | F87: 10.31 | H87: 3.773 | J87: 696.5 | K87: 12.2 | L87: 40.4 | M87: 16.8 | N87: 6.139 | O87: 21.3 | P87: 427 | Q87: 12.8 | R87: 1.434 | S87: 26.1 | T87: 3.59 | U87: 22.9 | V87: 635.5 | W87: 12.3 | X87: 10.69 | Y87: 19.9 | Z87: 1.048 | AA87: 27.5 | AB87: 75.45 | AC87: 15.4 | AD87: 0.632 | AE87: 29.8 | AF87: 0.043 | AG87: 47.8 | AH87: 233.1 | AI87: 13.7 | AJ87: 0.563 | AK87: 30.2 | AL87: 0.168 | AM87: 36.9 | AN87: 5774 | AO87: 9.8 | AP87: 917 | AQ87: 11.6 | AR87: 1546 | AS87: 11 | AT87: 65.33 | AU87: 15.5 | AV87: 15.64 | AW87: 18.5 | AX87: 3.132 | AY87: 23 | AZ87: 56.7 | BA87: 15.8 | BB87: 3.806 | BC87: 22.4 | BD87: 0.326 | BE87: 32.6 | BF87: 18.96 | BG87: 18.1 | BH87: 0.014 | BI87: 59.8 | BJ87: 0.902 | BK87: 27.9 | BL87: 355.7 | BM87: 12.9 | BN87: 274 | BO87: 13.3 | BP87: 400.5 | BQ87: 12.8 | BR87: 3477 | BS87: 9.9 | BT87: 629.7 | BU87: 11.7 | BV87: 91.5 | BW87: 87.47 | BX87: 2.03 | BY87: 112.3 | BZ87: 100 | CA87: 3.71 | CB87: 113.4 | CC87: 100 | CD87: 3.31 | CE87: 112.4 | CF87: 100 | CG87: 2.74 | CH87: 122.2 | CI87: 100 | CJ87: 3.59 | CK87: 87.1 | CL87: 83.78 | CM87: 4.37 | CN87: 101.8 | CO87: 97.75 | CP87: 5.8 | CQ87: 107 | CR87: 100 | CS87: 5.53 | CT87: 111.1 | CU87: 100 | CV87: 4.17 | CW87: 86.8 | CX87: 83.24 | CY87: 2.87 | CZ87: 66.72 | DA87: 64.63 | DB87: 3.95 | DC87: 60.78 | DD87: 58.08 | DE87: -3.46 | DI87: -0.854 | DJ87: 63.51 | DK87: 63.51 | DL87: -6.66 | DM87: 3.921 | DN87: 4.74 | DO87: 3.697 | DP87: 4.816 | DQ87: 3.309 | DR87: 4.343 | DS87: 2.742 | DT87: 5.074 | DU87: 3.584 | DV87: 3.88 | DW87: 6.911 | DX87: 6 | DY87: 6.113 | DZ87: 6.642 | EA87: 5.507 | EB87: 6.257
A88: 2012-12-16 | B88: 4.024 | C88: 5.818 | D88: 5.251 | E88: 6.108 | F88: 9.8 | H88: 3.612 | J88: 707.3 | K88: 12.2 | L88: 41.07 | M88: 16.7 | N88: 6.187 | O88: 21.3 | P88: 421.5 | Q88: 12.8 | R88: 1.444 | S88: 26.1 | T88: 3.603 | U88: 22.9 | V88: 642.9 | W88: 12.3 | X88: 10.76 | Y88: 19.9 | Z88: 1.057 | AA88: 27.4 | AB88: 77.03 | AC88: 15.4 | AD88: 0.638 | AE88: 29.8 | AF88: 0.043 | AG88: 47.8 | AH88: 240.2 | AI88: 13.7 | AJ88: 0.569 | AK88: 30.2 | AL88: 0.168 | AM88: 36.9 | AN88: 5828 | AO88: 9.8 | AP88: 927 | AQ88: 11.6 | AR88: 1588 | AS88: 11 | AT88: 64.82 | AU88: 15.5 | AV88: 15.76 | AW88: 18.5 | AX88: 3.138 | AY88: 23 | AZ88: 57.74 | BA88: 15.8 | BB88: 3.872 | BC88: 22.4 | BD88: 0.327 | BE88: 32.6 | BF88: 19.39 | BG88: 18.1 | BH88: 0.014 | BI88: 59.9 | BJ88: 0.912 | BK88: 27.9 | BL88: 369.1 | BM88: 12.8 | BN88: 282.7 | BO88: 13.3 | BP88: 411.2 | BQ88: 12.8 | BR88: 3656 | BS88: 9.9 | BT88: 658.5 | BU88: 11.7 | BV88: 91.6 | BW88: 87.54 | BX88: 1.93 | BY88: 112.4 | BZ88: 100 | CA88: 3.61 | CB88: 113.4 | CC88: 100 | CD88: 3.21 | CE88: 112.6 | CF88: 100 | CG88: 2.64 | CH88: 122.3 | CI88: 100 | CJ88: 3.46 | CK88: 86.8 | CL88: 83.46 | CM88: 4.15 | CN88: 101.6 | CO88: 97.54 | CP88: 5.68 | CQ88: 107.2 | CR88: 100 | CS88: 5.4 | CT88: 111.1 | CU88: 100 | CV88: 4.03 | CW88: 86.9 | CX88: 83.3 | CY88: 2.65 | CZ88: 66.25 | DA88: 64.11 | DB88: 3.35 | DC88: 58.91 | DD88: 56.28 | DE88: -4.01 | DI88: -1.272 | DJ88: 61.04 | DK88: 61.04 | DL88: -7.6 | DM88: 3.81 | DN88: 4.494 | DO88: 3.601 | DP88: 4.585 | DQ88: 3.203 | DR88: 4.104 | DS88: 2.645 | DT88: 4.791 | DU88: 3.456 | DV88: 3.609 | DW88: 6.742 | DX88: 5.798 | DY88: 6.024 | DZ88: 6.468 | EA88: 5.381 | EB88: 6.033
A89: 2012-12-16T01:00:00 | B89: 3.873 | C89: 5.566 | D89: 5.003 | E89: 5.812 | F89: 9.3 | H89: 3.504 | J89: 716.3 | K89: 12.2 | L89: 41.98 | M89: 16.7 | N89: 6.243 | O89: 21.2 | P89: 469.5 | Q89: 12.7 | R89: 1.453 | S89: 26.1 | T89: 3.606 | U89: 22.9 | V89: 655.5 | W89: 12.3 | X89: 10.79 | Y89: 19.9 | Z89: 1.063 | AA89: 27.4 | AB89: 78.83 | AC89: 15.4 | AD89: 0.643 | AE89: 29.8 | AF89: 0.043 | AG89: 47.8 | AH89: 248.9 | AI89: 13.7 | AJ89: 0.575 | AK89: 30.1 | AL89: 0.169 | AM89: 36.9 | AN89: 5888 | AO89: 9.8 | AP89: 950 | AQ89: 11.6 | AR89: 1630 | AS89: 11 | AT89: 65.21 | AU89: 15.6 | AV89: 16.08 | AW89: 18.5 | AX89: 3.188 | AY89: 22.9 | AZ89: 58.99 | BA89: 15.8 | BB89: 3.947 | BC89: 22.4 | BD89: 0.329 | BE89: 32.6 | BF89: 19.81 | BG89: 18.1 | BH89: 0.014 | BI89: 59.9 | BJ89: 0.923 | BK89: 27.9 | BL89: 382.3 | BM89: 12.8 | BN89: 291.7 | BO89: 13.3 | BP89: 424.4 | BQ89: 12.8 | BR89: 3809 | BS89: 9.9 | BT89: 691.8 | BU89: 11.7 | BV89: 91.7 | BW89: 87.61 | BX89: 1.82 | BY89: 112.5 | BZ89: 100 | CA89: 3.5 | CB89: 113.5 | CC89: 100 | CD89: 3.1 | CE89: 112.8 | CF89: 100 | CG89: 2.52 | CH89: 122.4 | CI89: 100 | CJ89: 3.32 | CK89: 86.3 | CL89: 82.94 | CM89: 3.87 | CN89: 101.6 | CO89: 97.52 | CP89: 5.56 | CQ89: 107.3 | CR89: 100 | CS89: 5.26 | CT89: 111.2 | CU89: 100 | CV89: 3.88 | CW89: 87 | CX89: 83.35 | CY89: 2.42 | CZ89: 65.77 | DA89: 63.58 | DB89: 2.75 | DC89: 57.7 | DD89: 55.11 | DE89: -4.37 | DI89: -1.456 | DJ89: 59.14 | DK89: 59.14 | DL89: -8.2 | DM89: 3.692 | DN89: 4.285 | DO89: 3.493 | DP89: 4.36 | DQ89: 3.097 | DR89: 3.909 | DS89: 2.526 | DT89: 4.512 | DU89: 3.315 | DV89: 3.356 | DW89: 6.548 | DX89: 5.622 | DY89: 5.904 | DZ89: 6.285 | EA89: 5.245 | EB89: 5.819
A90: 2012-12-16T02:00:00 | B90: 3.702 | C90: 5.301 | D90: 4.722 | E90: 5.498 | F90: 8.81 | H90: 3.286 | J90: 728.4 | K90: 12.2 | L90: 42.91 | M90: 16.7 | N90: 6.31 | O90: 21.2 | P90: 481.4 | Q90: 12.7 | R90: 1.46 | S90: 26.1 | T90: 3.611 | U90: 22.9 | V90: 668.6 | W90: 12.3 | X90: 10.76 | Y90: 19.9 | Z90: 1.067 | AA90: 27.4 | AB90: 79.9 | AC90: 15.4 | AD90: 0.647 | AE90: 29.8 | AF90: 0.043 | AG90: 47.9 | AH90: 256.6 | AI90: 13.7 | AJ90: 0.58 | AK90: 30.1 | AL90: 0.17 | AM90: 36.9 | AN90: 6017 | AO90: 9.8 | AP90: 965 | AQ90: 11.6 | AR90: 1671 | AS90: 11 | AT90: 66.08 | AU90: 15.6 | AV90: 16.4 | AW90: 18.5 | AX90: 3.259 | AY90: 22.9 | AZ90: 60.13 | BA90: 15.8 | BB90: 4.021 | BC90: 22.3 | BD90: 0.33 | BE90: 32.6 | BF90: 20.24 | BG90: 18 | BH90: 0.014 | BI90: 60 | BJ90: 0.933 | BK90: 27.9 | BL90: 397 | BM90: 12.8 | BN90: 301.7 | BO90: 13.3 | BP90: 438 | BQ90: 12.8 | BR90: 4021 | BS90: 9.9 | BT90: 728 | BU90: 11.7 | BV90: 91.7 | BW90: 87.59 | BX90: 1.69 | BY90: 112.6 | BZ90: 100 | CA90: 3.38 | CB90: 113.6 | CC90: 100 | CD90: 2.98 | CE90: 113 | CF90: 100 | CG90: 2.42 | CH90: 122.5 | CI90: 100 | CJ90: 3.17 | CK90: 85.8 | CL90: 82.43 | CM90: 3.58 | CN90: 101.4 | CO90: 97.3 | CP90: 5.38 | CQ90: 107.4 | CR90: 100 | CS90: 5.11 | CT90: 111.3 | CU90: 100 | CV90: 3.71 | CW90: 87 | CX90: 83.3 | CY90: 2.13 | CZ90: 65.18 | DA90: 62.94 | DB90: 2.14 | DC90: 56.2 | DD90: 53.65 | DE90: -4.91 | DI90: -1.981 | DJ90: 56.96 | DK90: 56.96 | DL90: -9.23 | DM90: 3.565 | DN90: 4.061 | DO90: 3.375 | DP90: 4.135 | DQ90: 2.98 | DR90: 3.71 | DS90: 2.426 | DT90: 4.247 | DU90: 3.161 | DV90: 3.095 | DW90: 6.346 | DX90: 5.439 | DY90: 5.752 | DZ90: 6.066 | EA90: 5.09 | EB90: 5.605
A91: 2012-12-16T03:00:00 | B91: 3.518 | C91: 5.032 | D91: 4.422 | E91: 5.148 | F91: 8.33 | H91: 3.016 | J91: 735.6 | K91: 12.2 | L91: 43.76 | M91: 16.7 | N91: 6.361 | O91: 21.2 | P91: 459.2 | Q91: 12.8 | R91: 1.467 | S91: 26.1 | T91: 3.617 | U91: 23 | V91: 677.8 | W91: 12.3 | X91: 10.74 | Y91: 19.9 | Z91: 1.069 | AA91: 27.5 | AB91: 81.3 | AC91: 15.4 | AD91: 0.651 | AE91: 29.7 | AF91: 0.043 | AG91: 47.9 | AH91: 264.9 | AI91: 13.7 | AJ91: 0.582 | AK91: 30.1 | AL91: 0.17 | AM91: 37 | AN91: 6065 | AO91: 9.8 | AP91: 982 | AQ91: 11.6 | AR91: 1724 | AS91: 11 | AT91: 66.8 | AU91: 15.6 | AV91: 16.63 | AW91: 18.4 | AX91: 3.311 | AY91: 22.9 | AZ91: 61.23 | BA91: 15.8 | BB91: 4.087 | BC91: 22.3 | BD91: 0.331 | BE91: 32.6 | BF91: 20.67 | BG91: 18 | BH91: 0.014 | BI91: 60.1 | BJ91: 0.947 | BK91: 27.8 | BL91: 409.9 | BM91: 12.8 | BN91: 311.6 | BO91: 13.3 | BP91: 450.3 | BQ91: 12.8 | BR91: 4185 | BS91: 9.9 | BT91: 761.8 | BU91: 11.7 | BV91: 91.7 | BW91: 87.57 | BX91: 1.55 | BY91: 112.7 | BZ91: 100 | CA91: 3.25 | CB91: 113.7 | CC91: 100 | CD91: 2.86 | CE91: 113.1 | CF91: 100 | CG91: 2.33 | CH91: 122.6 | CI91: 100 | CJ91: 3 | CK91: 86 | CL91: 82.58 | CM91: 3.38 | CN91: 101.5 | CO91: 97.37 | CP91: 5.25 | CQ91: 107.5 | CR91: 100 | CS91: 4.95 | CT91: 111.3 | CU91: 100 | CV91: 3.53 | CW91: 87 | CX91: 83.25 | CY91: 1.83 | CZ91: 64.86 | DA91: 62.57 | DB91: 1.6 | DC91: 56.16 | DD91: 53.58 | DE91: -5.17 | DI91: -2.138 | DJ91: 57.37 | DK91: 57.37 | DL91: -9.31 | DM91: 3.426 | DN91: 3.839 | DO91: 3.242 | DP91: 3.918 | DQ91: 2.854 | DR91: 3.502 | DS91: 2.332 | DT91: 3.999 | DU91: 2.993 | DV91: 2.862 | DW91: 6.115 | DX91: 5.192 | DY91: 5.62 | DZ91: 5.892 | EA91: 4.935 | EB91: 5.399
A92: 2012-12-16T04:00:00 | B92: 3.312 | C92: 4.773 | D92: 4.096 | E92: 4.833 | F92: 7.872 | H92: 2.756 | J92: 749.3 | K92: 12.2 | L92: 44.79 | M92: 16.6 | N92: 6.449 | O92: 21.2 | P92: 489.9 | Q92: 12.7 | R92: 1.483 | S92: 26.1 | T92: 3.639 | U92: 23 | V92: 695.1 | W92: 12.3 | X92: 10.75 | Y92: 19.9 | Z92: 1.078 | AA92: 27.5 | AB92: 82.5 | AC92: 15.4 | AD92: 0.657 | AE92: 29.7 | AF92: 0.043 | AG92: 47.9 | AH92: 272.9 | AI92: 13.6 | AJ92: 0.588 | AK92: 30.1 | AL92: 0.171 | AM92: 37 | AN92: 6148 | AO92: 9.8 | AP92: 1009 | AQ92: 11.6 | AR92: 1774 | AS92: 11 | AT92: 68.21 | AU92: 15.5 | AV92: 17.03 | AW92: 18.4 | AX92: 3.374 | AY92: 22.8 | AZ92: 62.29 | BA92: 15.8 | BB92: 4.156 | BC92: 22.3 | BD92: 0.334 | BE92: 32.6 | BF92: 21.15 | BG92: 18 | BH92: 0.014 | BI92: 60.1 | BJ92: 0.962 | BK92: 27.8 | BL92: 425.4 | BM92: 12.8 | BN92: 322.9 | BO92: 13.2 | BP92: 466.5 | BQ92: 12.7 | BR92: 4400 | BS92: 9.9 | BT92: 799.8 | BU92: 11.7 | BV92: 91.7 | BW92: 87.54 | BX92: 1.41 | BY92: 112.8 | BZ92: 100 | CA92: 3.11 | CB92: 113.7 | CC92: 100 | CD92: 2.72 | CE92: 113.2 | CF92: 100 | CG92: 2.2 | CH92: 122.6 | CI92: 100 | CJ92: 2.82 | CK92: 85.8 | CL92: 82.35 | CM92: 3.11 | CN92: 101.4 | CO92: 97.24 | CP92: 5.06 | CQ92: 107.5 | CR92: 100 | CS92: 4.79 | CT92: 111.4 | CU92: 100 | CV92: 3.32 | CW92: 87 | CX92: 83.19 | CY92: 1.49 | CZ92: 64.47 | DA92: 62.13 | DB92: 1.06 | DC92: 55.49 | DD92: 52.92 | DE92: -5.57 | DI92: -2.47 | DJ92: 56.6 | DK92: 56.6 | DL92: -9.83 | DM92: 3.286 | DN92: 3.616 | DO92: 3.106 | DP92: 3.683 | DQ92: 2.721 | DR92: 3.291 | DS92: 2.205 | DT92: 3.768 | DU92: 2.814 | DV92: 2.622 | DW92: 5.875 | DX92: 4.961 | DY92: 5.448 | DZ92: 5.669 | EA92: 4.776 | EB92: 5.209
A93: 2012-12-16T05:00:00 | B93: 3.106 | C93: 4.521 | D93: 3.771 | E93: 4.521 | F93: 7.428 | H93: 2.705 | J93: 755.8 | K93: 12.2 | L93: 46.04 | M93: 16.6 | N93: 6.529 | O93: 21.2 | P93: 485.3 | Q93: 12.7 | R93: 1.497 | S93: 26.1 | T93: 3.645 | U93: 23 | V93: 709.5 | W93: 12.3 | X93: 10.75 | Y93: 19.9 | Z93: 1.088 | AA93: 27.4 | AB93: 83.8 | AC93: 15.4 | AD93: 0.662 | AE93: 29.7 | AF93: 0.043 | AG93: 48 | AH93: 281.4 | AI93: 13.6 | AJ93: 0.591 | AK93: 30.1 | AL93: 0.172 | AM93: 37 | AN93: 6287 | AO93: 9.8 | AP93: 1032 | AQ93: 11.6 | AR93: 1825 | AS93: 11 | AT93: 70.62 | AU93: 15.5 | AV93: 17.52 | AW93: 18.4 | AX93: 3.492 | AY93: 22.8 | AZ93: 63.35 | BA93: 15.8 | BB93: 4.23 | BC93: 22.3 | BD93: 0.335 | BE93: 32.6 | BF93: 21.64 | BG93: 18 | BH93: 0.014 | BI93: 60.2 | BJ93: 0.979 | BK93: 27.8 | BL93: 437.6 | BM93: 12.8 | BN93: 332 | BO93: 13.2 | BP93: 478.4 | BQ93: 12.7 | BR93: 4527 | BS93: 9.9 | BT93: 832 | BU93: 11.7 | BV93: 91.7 | BW93: 87.51 | BX93: 1.24 | BY93: 112.8 | BZ93: 100 | CA93: 2.96 | CB93: 113.8 | CC93: 100 | CD93: 2.57 | CE93: 113.4 | CF93: 100 | CG93: 2.07 | CH93: 122.8 | CI93: 100 | CJ93: 2.63 | CK93: 85.3 | CL93: 81.83 | CM93: 2.77 | CN93: 101 | CO93: 96.81 | CP93: 4.8 | CQ93: 107.6 | CR93: 100 | CS93: 4.62 | CT93: 111.5 | CU93: 100 | CV93: 3.11 | CW93: 87.1 | CX93: 83.23 | CY93: 1.18 | CZ93: 64.11 | DA93: 61.73 | DB93: 0.55 | DC93: 54.96 | DD93: 52.4 | DE93: -5.74 | DI93: -2.71 | DJ93: 56.84 | DK93: 56.84 | DL93: -10.04 | DM93: 3.128 | DN93: 3.426 | DO93: 2.962 | DP93: 3.493 | DQ93: 2.575 | DR93: 3.106 | DS93: 2.08 | DT93: 3.543 | DU93: 2.627 | DV93: 2.391 | DW93: 5.626 | DX93: 4.777 | DY93: 5.249 | DZ93: 5.447 | EA93: 4.605 | EB93: 5.015
A94: 2012-12-16T06:00:00 | B94: 2.892 | C94: 4.26 | D94: 3.429 | E94: 4.187 | F94: 7.005 | H94: 2.586 | J94: 765.6 | K94: 12.2 | L94: 47.28 | M94: 16.6 | N94: 6.611 | O94: 21.2 | P94: 569.6 | Q94: 12.6 | R94: 1.51 | S94: 26.1 | T94: 3.656 | U94: 23 | V94: 727.3 | W94: 12.3 | X94: 10.77 | Y94: 20 | Z94: 1.097 | AA94: 27.4 | AB94: 84.6 | AC94: 15.4 | AD94: 0.668 | AE94: 29.7 | AF94: 0.043 | AG94: 48 | AH94: 289.9 | AI94: 13.6 | AJ94: 0.601 | AK94: 30.1 | AL94: 0.174 | AM94: 37 | AN94: 6309 | AO94: 9.8 | AP94: 1058 | AQ94: 11.6 | AR94: 1869 | AS94: 11 | AT94: 73.22 | AU94: 15.5 | AV94: 18.01 | AW94: 18.3 | AX94: 3.593 | AY94: 22.7 | AZ94: 64.45 | BA94: 15.8 | BB94: 4.309 | BC94: 22.2 | BD94: 0.338 | BE94: 32.6 | BF94: 22.12 | BG94: 18 | BH94: 0.014 | BI94: 60.3 | BJ94: 0.994 | BK94: 27.8 | BL94: 455.2 | BM94: 12.8 | BN94: 344.5 | BO94: 13.2 | BP94: 495.2 | BQ94: 12.7 | BR94: 4683 | BS94: 9.9 | BT94: 870 | BU94: 11.7 | BV94: 91.6 | BW94: 87.39 | BX94: 1.07 | BY94: 113 | BZ94: 100 | CA94: 2.81 | CB94: 113.9 | CC94: 100 | CD94: 2.43 | CE94: 113.5 | CF94: 100 | CG94: 1.94 | CH94: 122.9 | CI94: 100 | CJ94: 2.43 | CK94: 84.6 | CL94: 81.11 | CM94: 2.4 | CN94: 100.1 | CO94: 95.91 | CP94: 4.46 | CQ94: 107.7 | CR94: 100 | CS94: 4.44 | CT94: 111.5 | CU94: 100 | CV94: 2.89 | CW94: 87.2 | CX94: 83.27 | CY94: 0.85 | CZ94: 63.66 | DA94: 61.24 | DB94: 0.03 | DC94: 54.7 | DD94: 52.14 | DE94: -5.91 | DI94: -2.999 | DJ94: 57.83 | DK94: 57.83 | DL94: -10.13 | DM94: 2.972 | DN94: 3.247 | DO94: 2.809 | DP94: 3.304 | DQ94: 2.433 | DR94: 2.91 | DS94: 1.945 | DT94: 3.329 | DU94: 2.433 | DV94: 2.146 | DW94: 5.382 | DX94: 4.596 | DY94: 5.046 | DZ94: 5.221 | EA94: 4.425 | EB94: 4.826
A95: 2012-12-16T07:00:00 | B95: 2.67 | C95: 3.985 | D95: 3.1 | E95: 3.866 | F95: 6.6 | H95: 2.333 | J95: 773.8 | K95: 12.2 | L95: 48.45 | M95: 16.5 | N95: 6.701 | O95: 21.2 | P95: 537.1 | Q95: 12.7 | R95: 1.524 | S95: 26.1 | T95: 3.671 | U95: 23 | V95: 744.6 | W95: 12.3 | X95: 10.78 | Y95: 20 | Z95: 1.106 | AA95: 27.4 | AB95: 85.6 | AC95: 15.4 | AD95: 0.674 | AE95: 29.7 | AF95: 0.043 | AG95: 48 | AH95: 298.3 | AI95: 13.6 | AJ95: 0.609 | AK95: 30.1 | AL95: 0.175 | AM95: 37 | AN95: 6365 | AO95: 9.8 | AP95: 1092 | AQ95: 11.6 | AR95: 1948 | AS95: 10.9 | AT95: 75.58 | AU95: 15.4 | AV95: 18.39 | AW95: 18.3 | AX95: 3.693 | AY95: 22.6 | AZ95: 65.36 | BA95: 15.7 | BB95: 4.377 | BC95: 22.2 | BD95: 0.34 | BE95: 32.6 | BF95: 22.63 | BG95: 18 | BH95: 0.014 | BI95: 60.4 | BJ95: 1.012 | BK95: 27.7 | BL95: 473.5 | BM95: 12.7 | BN95: 357.2 | BO95: 13.2 | BP95: 512.6 | BQ95: 12.7 | BR95: 4838 | BS95: 9.9 | BT95: 909 | BU95: 11.6 | BV95: 91.5 | BW95: 87.27 | BX95: 0.9 | BY95: 113.1 | BZ95: 100 | CA95: 2.66 | CB95: 113.9 | CC95: 100 | CD95: 2.28 | CE95: 113.6 | CF95: 100 | CG95: 1.83 | CH95: 123 | CI95: 100 | CJ95: 2.23 | CK95: 84.6 | CL95: 81.07 | CM95: 2.16 | CN95: 100.1 | CO95: 95.87 | CP95: 4.28 | CQ95: 107.7 | CR95: 100 | CS95: 4.26 | CT95: 111.6 | CU95: 100 | CV95: 2.67 | CW95: 87.1 | CX95: 83.12 | CY95: 0.49 | CZ95: 63.37 | DA95: 60.91 | DB95: -0.31 | DC95: 55.04 | DD95: 52.44 | DE95: -6.07 | DI95: -3.107 | DJ95: 57.85 | DK95: 57.85 | DL95: -10.24 | DM95: 2.819 | DN95: 3.057 | DO95: 2.658 | DP95: 3.12 | DQ95: 2.281 | DR95: 2.728 | DS95: 1.838 | DT95: 3.13 | DU95: 2.232 | DV95: 1.933 | DW95: 5.136 | DX95: 4.382 | DY95: 4.871 | DZ95: 5.032 | EA95: 4.251 | EB95: 4.631
A96: 2012-12-16T08:00:00 | B96: 2.446 | C96: 3.735 | D96: 2.76 | E96: 3.566 | F96: 6.216 | H96: 2.21 | J96: 784.7 | K96: 12.2 | L96: 49.71 | M96: 16.5 | N96: 6.794 | O96: 21.2 | P96: 535.9 | Q96: 12.7 | R96: 1.535 | S96: 26.1 | T96: 3.683 | U96: 23 | V96: 761.5 | W96: 12.3 | X96: 10.79 | Y96: 20 | Z96: 1.114 | AA96: 27.4 | AB96: 86.4 | AC96: 15.5 | AD96: 0.68 | AE96: 29.7 | AF96: 0.044 | AG96: 47.9 | AH96: 306.4 | AI96: 13.6 | AJ96: 0.619 | AK96: 30 | AL96: 0.177 | AM96: 36.9 | AN96: 6492 | AO96: 9.8 | AP96: 1114 | AQ96: 11.6 | AR96: 1993 | AS96: 10.9 | AT96: 78.27 | AU96: 15.4 | AV96: 18.86 | AW96: 18.3 | AX96: 3.802 | AY96: 22.6 | AZ96: 66.3 | BA96: 15.7 | BB96: 4.456 | BC96: 22.2 | BD96: 0.342 | BE96: 32.6 | BF96: 23.07 | BG96: 18 | BH96: 0.014 | BI96: 60.5 | BJ96: 1.027 | BK96: 27.7 | BL96: 497.1 | BM96: 12.7 | BN96: 373 | BO96: 13.2 | BP96: 536 | BQ96: 12.7 | BR96: 5225 | BS96: 9.9 | BT96: 951 | BU96: 11.6 | BV96: 91.3 | BW96: 87.05 | BX96: 0.7 | BY96: 113.1 | BZ96: 100 | CA96: 2.5 | CB96: 114 | CC96: 100 | CD96: 2.12 | CE96: 113.6 | CF96: 100 | CG96: 1.7 | CH96: 123.1 | CI96: 100 | CJ96: 2.03 | CK96: 84.2 | CL96: 80.65 | CM96: 1.84 | CN96: 99.6 | CO96: 95.36 | CP96: 4 | CQ96: 107.6 | CR96: 100 | CS96: 4.08 | CT96: 111.7 | CU96: 100 | CV96: 2.44 | CW96: 87.2 | CX96: 83.16 | CY96: 0.16 | CZ96: 63.07 | DA96: 60.58 | DB96: -0.72 | DC96: 54.62 | DD96: 52.03 | DE96: -6.28 | DI96: -3.26 | DJ96: 57.54 | DK96: 57.54 | DL96: -10.47 | DM96: 2.653 | DN96: 2.88 | DO96: 2.502 | DP96: 2.939 | DQ96: 2.122 | DR96: 2.553 | DS96: 1.708 | DT96: 2.941 | DU96: 2.036 | DV96: 1.729 | DW96: 4.89 | DX96: 4.172 | DY96: 4.672 | DZ96: 4.836 | EA96: 4.072 | EB96: 4.442
A97: 2012-12-16T09:00:00 | B97: 2.227 | C97: 3.485 | D97: 2.455 | E97: 3.301 | F97: 5.854 | H97: 2.068 | J97: 795.1 | K97: 12.2 | L97: 51.01 | M97: 16.5 | N97: 6.893 | O97: 21.2 | P97: 543.3 | Q97: 12.7 | R97: 1.552 | S97: 26.1 | T97: 3.709 | U97: 23 | V97: 781.4 | W97: 12.3 | X97: 10.83 | Y97: 20 | Z97: 1.127 | AA97: 27.4 | AB97: 87.3 | AC97: 15.5 | AD97: 0.686 | AE97: 29.6 | AF97: 0.044 | AG97: 47.9 | AH97: 313.2 | AI97: 13.6 | AJ97: 0.624 | AK97: 30 | AL97: 0.179 | AM97: 36.9 | AN97: 6673 | AO97: 9.8 | AP97: 1140 | AQ97: 11.6 | AR97: 2061 | AS97: 10.9 | AT97: 80.8 | AU97: 15.4 | AV97: 19.3 | AW97: 18.3 | AX97: 3.897 | AY97: 22.5 | AZ97: 67.21 | BA97: 15.7 | BB97: 4.533 | BC97: 22.2 | BD97: 0.344 | BE97: 32.6 | BF97: 23.58 | BG97: 17.9 | BH97: 0.014 | BI97: 60.5 | BJ97: 1.046 | BK97: 27.7 | BL97: 516.8 | BM97: 12.7 | BN97: 387.3 | BO97: 13.2 | BP97: 554.3 | BQ97: 12.7 | BR97: 5303 | BS97: 9.9 | BT97: 973 | BU97: 11.6 | BV97: 91.2 | BW97: 86.92 | BX97: 0.52 | BY97: 113.2 | BZ97: 100 | CA97: 2.34 | CB97: 114 | CC97: 100 | CD97: 1.96 | CE97: 113.7 | CF97: 100 | CG97: 1.59 | CH97: 123.1 | CI97: 100 | CJ97: 1.83 | CK97: 84.1 | CL97: 80.51 | CM97: 1.57 | CN97: 99.6 | CO97: 95.32 | CP97: 3.81 | CQ97: 107.7 | CR97: 100 | CS97: 3.9 | CT97: 111.7 | CU97: 100 | CV97: 2.22 | CW97: 87.2 | CX97: 83.1 | CY97: -0.04 | CZ97: 62.88 | DA97: 60.35 | DB97: -1.09 | DC97: 54.96 | DD97: 52.34 | DE97: -6.33 | DI97: -3.172 | DJ97: 57.77 | DK97: 57.77 | DL97: -10.32 | DM97: 2.492 | DN97: 2.701 | DO97: 2.343 | DP97: 2.769 | DQ97: 1.968 | DR97: 2.392 | DS97: 1.6 | DT97: 2.759 | DU97: 1.842 | DV97: 1.548 | DW97: 4.643 | DX97: 3.968 | DY97: 4.481 | DZ97: 4.654 | EA97: 3.894 | EB97: 4.261
A98: 2012-12-16T10:00:00 | B98: 2.008 | C98: 3.256 | D98: 2.168 | E98: 3.065 | F98: 5.508 | H98: 2.047 | J98: 803 | K98: 12.2 | L98: 52.32 | M98: 16.5 | N98: 6.996 | O98: 21.1 | P98: 564.2 | Q98: 12.6 | R98: 1.569 | S98: 26.1 | T98: 3.722 | U98: 23 | V98: 794.1 | W98: 12.2 | X98: 10.88 | Y98: 20 | Z98: 1.139 | AA98: 27.4 | AB98: 88.1 | AC98: 15.5 | AD98: 0.692 | AE98: 29.6 | AF98: 0.044 | AG98: 47.9 | AH98: 319.2 | AI98: 13.6 | AJ98: 0.628 | AK98: 30 | AL98: 0.18 | AM98: 36.9 | AN98: 6492 | AO98: 9.9 | AP98: 1160 | AQ98: 11.6 | AR98: 2093 | AS98: 10.9 | AT98: 83.5 | AU98: 15.3 | AV98: 19.8 | AW98: 18.2 | AX98: 4.01 | AY98: 22.5 | AZ98: 68.17 | BA98: 15.7 | BB98: 4.614 | BC98: 22.1 | BD98: 0.347 | BE98: 32.6 | BF98: 24.14 | BG98: 17.9 | BH98: 0.014 | BI98: 60.6 | BJ98: 1.067 | BK98: 27.6 | BL98: 525.8 | BM98: 12.7 | BN98: 393 | BO98: 13.2 | BP98: 558 | BQ98: 12.7 | BR98: 5158 | BS98: 9.9 | BT98: 997 | BU98: 11.6 | BV98: 91.1 | BW98: 86.8 | BX98: 0.34 | BY98: 113.2 | BZ98: 100 | CA98: 2.18 | CB98: 114.1 | CC98: 100 | CD98: 1.81 | CE98: 113.8 | CF98: 100 | CG98: 1.46 | CH98: 123.2 | CI98: 100 | CJ98: 1.65 | CK98: 83.8 | CL98: 80.18 | CM98: 1.28 | CN98: 99.1 | CO98: 94.8 | CP98: 3.53 | CQ98: 107.8 | CR98: 100 | CS98: 3.73 | CT98: 111.8 | CU98: 100 | CV98: 2 | CW98: 87.3 | CX98: 83.15 | CY98: -0.3 | CZ98: 62.71 | DA98: 60.14 | DB98: -1.45 | DC98: 55.32 | DD98: 52.68 | DE98: -6.27 | DI98: -3.044 | DJ98: 58.17 | DK98: 58.17 | DL98: -10.1 | DM98: 2.334 | DN98: 2.566 | DO98: 2.189 | DP98: 2.628 | DQ98: 1.817 | DR98: 2.268 | DS98: 1.476 | DT98: 2.604 | DU98: 1.66 | DV98: 1.389 | DW98: 4.405 | DX98: 3.803 | DY98: 4.28 | DZ98: 4.472 | EA98: 3.717 | EB98: 4.087
A99: 2012-12-16T11:00:00 | B99: 1.808 | C99: 3.035 | D99: 1.916 | E99: 2.86 | F99: 5.191 | H99: 1.993 | J99: 810 | K99: 12.2 | L99: 53.29 | M99: 16.4 | N99: 7.096 | O99: 21.1 | P99: 537.4 | Q99: 12.7 | R99: 1.588 | S99: 26 | T99: 3.756 | U99: 23 | V99: 805 | W99: 12.2 | X99: 10.93 | Y99: 20 | Z99: 1.151 | AA99: 27.4 | AB99: 89 | AC99: 15.5 | AD99: 0.699 | AE99: 29.6 | AF99: 0.044 | AG99: 48 | AH99: 323.5 | AI99: 13.5 | AJ99: 0.63 | AK99: 30.1 | AL99: 0.182 | AM99: 36.9 | AN99: 6551 | AO99: 9.9 | AP99: 1192 | AQ99: 11.6 | AR99: 2154 | AS99: 10.9 | AT99: 85.4 | AU99: 15.3 | AV99: 20.1 | AW99: 18.2 | AX99: 4.09 | AY99: 22.4 | AZ99: 69.27 | BA99: 15.7 | BB99: 4.692 | BC99: 22.1 | BD99: 0.349 | BE99: 32.6 | BF99: 24.62 | BG99: 17.9 | BH99: 0.014 | BI99: 60.7 | BJ99: 1.086 | BK99: 27.6 | BL99: 540.6 | BM99: 12.7 | BN99: 404.7 | BO99: 13.2 | BP99: 570.1 | BQ99: 12.7 | BR99: 5383 | BS99: 9.9 | BT99: 1036 | BU99: 11.6 | BV99: 90.9 | BW99: 86.58 | BX99: 0.15 | BY99: 113.2 | BZ99: 100 | CA99: 2.03 | CB99: 114.1 | CC99: 100 | CD99: 1.66 | CE99: 113.8 | CF99: 100 | CG99: 1.37 | CH99: 123.3 | CI99: 100 | CJ99: 1.48 | CK99: 83.5 | CL99: 79.86 | CM99: 1 | CN99: 99.3 | CO99: 94.96 | CP99: 3.38 | CQ99: 107.8 | CR99: 100 | CS99: 3.55 | CT99: 111.9 | CU99: 100 | CV99: 1.8 | CW99: 87.4 | CX99: 83.2 | CY99: -0.53 | CZ99: 62.56 | DA99: 59.96 | DB99: -1.77 | DC99: 55.96 | DD99: 53.28 | DE99: -6.17 | DI99: -2.794 | DJ99: 59.2 | DK99: 59.2 | DL99: -9.61 | DM99: 2.18 | DN99: 2.433 | DO99: 2.034 | DP99: 2.505 | DQ99: 1.668 | DR99: 2.156 | DS99: 1.385 | DT99: 2.461 | DU99: 1.49 | DV99: 1.254 | DW99: 4.178 | DX99: 3.635 | DY99: 4.104 | DZ99: 4.323 | EA99: 3.543 | EB99: 3.901
A100: 2012-12-16T12:00:00 | B100: 1.621 | C100: 2.84 | D100: 1.701 | E100: 2.696 | F100: 4.903 | H100: 2.019 | J100: 813 | K100: 12.2 | L100: 54.27 | M100: 16.4 | N100: 7.194 | O100: 21.1 | P100: 540.9 | Q100: 12.7 | R100: 1.599 | S100: 26 | T100: 3.781 | U100: 23 | V100: 816 | W100: 12.2 | X100: 10.98 | Y100: 20 | Z100: 1.161 | AA100: 27.4 | AB100: 89.7 | AC100: 15.5 | AD100: 0.705 | AE100: 29.6 | AF100: 0.044 | AG100: 48 | AH100: 328 | AI100: 13.5 | AJ100: 0.64 | AK100: 30 | AL100: 0.184 | AM100: 36.9 | AN100: 6492 | AO100: 9.9 | AP100: 1212 | AQ100: 11.6 | AR100: 2202 | AS100: 10.9 | AT100: 87 | AU100: 15.3 | AV100: 20.44 | AW100: 18.2 | AX100: 4.174 | AY100: 22.4 | AZ100: 70.43 | BA100: 15.7 | BB100: 4.773 | BC100: 22.1 | BD100: 0.352 | BE100: 32.6 | BF100: 25.06 | BG100: 17.9 | BH100: 0.014 | BI100: 60.8 | BJ100: 1.104 | BK100: 27.6 | BL100: 552.6 | BM100: 12.7 | BN100: 413.4 | BO100: 13.2 | BP100: 583 | BQ100: 12.7 | BR100: 5464 | BS100: 9.9 | BT100: 1059 | BU100: 11.6 | BV100: 90.8 | BW100: 86.46 | BX100: 0.08 | BY100: 113.3 | BZ100: 100 | CA100: 1.88 | CB100: 114.1 | CC100: 100 | CD100: 1.52 | CE100: 113.9 | CF100: 100 | CG100: 1.28 | CH100: 123.4 | CI100: 100 | CJ100: 1.32 | CK100: 83.3 | CL100: 79.63 | CM100: 0.74 | CN100: 99.3 | CO100: 94.92 | CP100: 3.19 | CQ100: 107.7 | CR100: 100 | CS100: 3.37 | CT100: 112 | CU100: 100 | CV100: 1.61 | CW100: 87.3 | CX100: 83.07 | CY100: -0.75 | CZ100: 62.51 | DA100: 59.87 | DB100: -2.05 | DC100: 57.41 | DD100: 54.66 | DE100: -5.82 | DI100: -2.42 | DJ100: 63.34 | DK100: 63.34 | DL100: -8.35 | DM100: 2.036 | DN100: 2.344 | DO100: 1.892 | DP100: 2.409 | DQ100: 1.527 | DR100: 2.081 | DS100: 1.289 | DT100: 2.349 | DU100: 1.335 | DV100: 1.175 | DW100: 3.957 | DX100: 3.498 | DY100: 3.922 | DZ100: 4.175 | EA100: 3.369 | EB100: 3.722
A101: 2012-12-16T13:00:00 | B101: 1.465 | C101: 2.68 | D101: 1.529 | E101: 2.578 | F101: 4.649 | H101: 2.01 | J101: 822 | K101: 12.2 | L101: 55.13 | M101: 16.4 | N101: 7.262 | O101: 21.1 | P101: 550.5 | Q101: 12.7 | R101: 1.614 | S101: 26 | T101: 3.801 | U101: 23 | V101: 818 | W101: 12.2 | X101: 11.05 | Y101: 20 | Z101: 1.172 | AA101: 27.4 | AB101: 90.5 | AC101: 15.5 | AD101: 0.71 | AE101: 29.6 | AF101: 0.044 | AG101: 48 | AH101: 331.4 | AI101: 13.5 | AJ101: 0.644 | AK101: 30 | AL101: 0.186 | AM101: 36.8 | AN101: 6612 | AO101: 9.9 | AP101: 1229 | AQ101: 11.6 | AR101: 2234 | AS101: 10.9 | AT101: 87.7 | AU101: 15.3 | AV101: 20.73 | AW101: 18.2 | AX101: 4.234 | AY101: 22.4 | AZ101: 71.57 | BA101: 15.7 | BB101: 4.852 | BC101: 22.1 | BD101: 0.353 | BE101: 32.6 | BF101: 25.47 | BG101: 17.9 | BH101: 0.014 | BI101: 60.8 | BJ101: 1.121 | BK101: 27.5 | BL101: 567.2 | BM101: 12.6 | BN101: 424.1 | BO101: 13.1 | BP101: 597.6 | BQ101: 12.7 | BR101: 5143 | BS101: 10 | BT101: 1049 | BU101: 11.7 | BV101: 90.7 | BW101: 86.34 | BX101: -0.06 | BY101: 113.3 | BZ101: 100 | CA101: 1.75 | CB101: 114.2 | CC101: 100 | CD101: 1.39 | CE101: 113.9 | CF101: 100 | CG101: 1.19 | CH101: 123.4 | CI101: 100 | CJ101: 1.19 | CK101: 83.2 | CL101: 79.5 | CM101: 0.52 | CN101: 99.5 | CO101: 95.08 | CP101: 3.05 | CQ101: 107.7 | CR101: 100 | CS101: 3.21 | CT101: 112.1 | CU101: 100 | CV101: 1.45 | CW101: 87.3 | CX101: 83.04 | CY101: -0.91 | CZ101: 62.51 | DA101: 59.84 | DB101: -2.28 | DC101: 59.32 | DD101: 56.48 | DE101: -5.41 | DI101: -2.317 | DJ101: 67.22 | DK101: 67.22 | DL101: -7.49 | DM101: 1.905 | DN101: 2.267 | DO101: 1.758 | DP101: 2.333 | DQ101: 1.403 | DR101: 2.014 | DS101: 1.206 | DT101: 2.261 | DU101: 1.205 | DV101: 1.125 | DW101: 3.753 | DX101: 3.378 | DY101: 3.759 | DZ101: 4.058 | EA101: 3.204 | EB101: 3.559
A102: 2012-12-16T14:00:00 | B102: 1.322 | C102: 2.541 | D102: 1.385 | E102: 2.479 | F102: 4.413 | H102: 1.912 | J102: 827 | K102: 12.2 | L102: 55.9 | M102: 16.4 | N102: 7.366 | O102: 21.1 | P102: 555.4 | Q102: 12.7 | R102: 1.627 | S102: 26 | T102: 3.825 | U102: 23 | V102: 821 | W102: 12.2 | X102: 11.1 | Y102: 20.1 | Z102: 1.181 | AA102: 27.3 | AB102: 91.2 | AC102: 15.4 | AD102: 0.715 | AE102: 29.6 | AF102: 0.044 | AG102: 48 | AH102: 335.7 | AI102: 13.5 | AJ102: 0.65 | AK102: 30 | AL102: 0.186 | AM102: 36.8 | AN102: 6587 | AO102: 9.9 | AP102: 1259 | AQ102: 11.6 | AR102: 2287 | AS102: 10.9 | AT102: 88.6 | AU102: 15.3 | AV102: 21.09 | AW102: 18.2 | AX102: 4.281 | AY102: 22.4 | AZ102: 72.59 | BA102: 15.7 | BB102: 4.922 | BC102: 22 | BD102: 0.356 | BE102: 32.6 | BF102: 25.77 | BG102: 17.9 | BH102: 0.014 | BI102: 60.9 | BJ102: 1.136 | BK102: 27.5 | BL102: 572.8 | BM102: 12.6 | BN102: 430.7 | BO102: 13.1 | BP102: 601.3 | BQ102: 12.7 | BR102: 5456 | BS102: 10 | BT102: 1093 | BU102: 11.6 | BV102: 90.6 | BW102: 86.22 | BX102: -0.19 | BY102: 113.3 | BZ102: 100 | CA102: 1.63 | CB102: 114.2 | CC102: 100 | CD102: 1.27 | CE102: 114 | CF102: 100 | CG102: 1.11 | CH102: 123.5 | CI102: 100 | CJ102: 1.08 | CK102: 83.2 | CL102: 79.47 | CM102: 0.32 | CN102: 99.6 | CO102: 95.14 | CP102: 2.89 | CQ102: 107.8 | CR102: 100 | CS102: 3.05 | CT102: 112.2 | CU102: 100 | CV102: 1.31 | CW102: 87.2 | CX102: 82.92 | CY102: -1.06 | CZ102: 62.5 | DA102: 59.8 | DB102: -2.51 | DC102: 62.25 | DD102: 59.26 | DE102: -4.89 | DI102: -2.627 | DJ102: 77.58 | DK102: 77.58 | DL102: -5.99 | DM102: 1.78 | DN102: 2.186 | DO102: 1.638 | DP102: 2.253 | DQ102: 1.287 | DR102: 1.924 | DS102: 1.123 | DT102: 2.188 | DU102: 1.093 | DV102: 1.074 | DW102: 3.556 | DX102: 3.249 | DY102: 3.596 | DZ102: 3.932 | EA102: 3.051 | EB102: 3.421
A103: 2012-12-16T15:00:00 | B103: 1.202 | C103: 2.421 | D103: 1.265 | E103: 2.361 | F103: 4.206 | H103: 1.781 | J103: 834 | K103: 12.2 | L103: 56.68 | M103: 16.4 | N103: 7.424 | O103: 21.1 | P103: 563.3 | Q103: 12.7 | R103: 1.641 | S103: 26 | T103: 3.84 | U103: 23.1 | V103: 822 | W103: 12.2 | X103: 11.11 | Y103: 20.1 | Z103: 1.19 | AA103: 27.3 | AB103: 91.8 | AC103: 15.4 | AD103: 0.719 | AE103: 29.5 | AF103: 0.044 | AG103: 48.1 | AH103: 340.1 | AI103: 13.5 | AJ103: 0.653 | AK103: 30 | AL103: 0.188 | AM103: 36.8 | AN103: 6723 | AO103: 9.9 | AP103: 1287 | AQ103: 11.6 | AR103: 2327 | AS103: 10.9 | AT103: 89.3 | AU103: 15.3 | AV103: 21.36 | AW103: 18.2 | AX103: 4.296 | AY103: 22.4 | AZ103: 73.52 | BA103: 15.7 | BB103: 4.986 | BC103: 22 | BD103: 0.356 | BE103: 32.6 | BF103: 26.04 | BG103: 17.9 | BH103: 0.014 | BI103: 60.9 | BJ103: 1.148 | BK103: 27.5 | BL103: 580.2 | BM103: 12.6 | BN103: 436.1 | BO103: 13.1 | BP103: 606.3 | BQ103: 12.7 | BR103: 5498 | BS103: 10 | BT103: 1119 | BU103: 11.6 | BV103: 90.5 | BW103: 86.11 | BX103: -0.32 | BY103: 113.3 | BZ103: 100 | CA103: 1.52 | CB103: 114.3 | CC103: 100 | CD103: 1.17 | CE103: 114 | CF103: 100 | CG103: 1.02 | CH103: 123.6 | CI103: 100 | CJ103: 0.97 | CK103: 83 | CL103: 79.25 | CM103: 0.1 | CN103: 99.3 | CO103: 94.83 | CP103: 2.68 | CQ103: 107.9 | CR103: 100 | CS103: 2.91 | CT103: 112.2 | CU103: 100 | CV103: 1.19 | CW103: 87.4 | CX103: 83.09 | CY103: -1.15 | CZ103: 62.4 | DA103: 59.68 | DB103: -2.72 | DC103: 64.98 | DD103: 61.84 | DE103: -4.47 | DI103: -3.147 | DJ103: 84.9 | DK103: 84.9 | DL103: -5.4 | DM103: 1.661 | DN103: 2.098 | DO103: 1.528 | DP103: 2.169 | DQ103: 1.183 | DR103: 1.833 | DS103: 1.036 | DT103: 2.11 | DU103: 0.983 | DV103: 0.995 | DW103: 3.376 | DX103: 3.132 | DY103: 3.431 | DZ103: 3.776 | EA103: 2.908 | EB103: 3.304
A104: 2012-12-16T16:00:00 | B104: 1.094 | C104: 2.302 | D104: 1.162 | E104: 2.276 | F104: 4.007 | H104: 1.617 | J104: 840 | K104: 12.2 | L104: 57.3 | M104: 16.4 | N104: 7.485 | O104: 21.1 | P104: 581.9 | Q104: 12.7 | R104: 1.652 | S104: 26 | T104: 3.863 | U104: 23 | V104: 821 | W104: 12.3 | X104: 11.15 | Y104: 20.1 | Z104: 1.198 | AA104: 27.3 | AB104: 92.2 | AC104: 15.4 | AD104: 0.722 | AE104: 29.5 | AF104: 0.044 | AG104: 48.1 | AH104: 344.3 | AI104: 13.5 | AJ104: 0.659 | AK104: 30 | AL104: 0.189 | AM104: 36.8 | AN104: 6685 | AO104: 9.9 | AP104: 1328 | AQ104: 11.5 | AR104: 2381 | AS104: 10.9 | AT104: 90.1 | AU104: 15.3 | AV104: 21.62 | AW104: 18.2 | AX104: 4.314 | AY104: 22.4 | AZ104: 74.35 | BA104: 15.7 | BB104: 5.042 | BC104: 22 | BD104: 0.358 | BE104: 32.6 | BF104: 26.19 | BG104: 17.9 | BH104: 0.014 | BI104: 61 | BJ104: 1.156 | BK104: 27.5 | BL104: 585.3 | BM104: 12.6 | BN104: 443.4 | BO104: 13.1 | BP104: 612.1 | BQ104: 12.7 | BR104: 5953 | BS104: 9.9 | BT104: 1176 | BU104: 11.6 | BV104: 90.4 | BW104: 85.99 | BX104: -0.44 | BY104: 113.4 | BZ104: 100 | CA104: 1.42 | CB104: 114.3 | CC104: 100 | CD104: 1.07 | CE104: 114 | CF104: 100 | CG104: 0.95 | CH104: 123.6 | CI104: 100 | CJ104: 0.87 | CK104: 83.1 | CL104: 79.32 | CM104: 0.03 | CN104: 99.8 | CO104: 95.28 | CP104: 2.61 | CQ104: 107.9 | CR104: 100 | CS104: 2.78 | CT104: 112.3 | CU104: 100 | CV104: 1.08 | CW104: 87.4 | CX104: 83.07 | CY104: -1.25 | CZ104: 62.34 | DA104: 59.6 | DB104: -2.91 | DC104: 66.45 | DD104: 63.22 | DE104: -4.33 | DI104: -3.209 | DJ104: 87.7 | DK104: 87.7 | DL104: -5.05 | DM104: 1.553 | DN104: 1.989 | DO104: 1.429 | DP104: 2.07 | DQ104: 1.09 | DR104: 1.732 | DS104: 0.967 | DT104: 2.045 | DU104: 0.884 | DV104: 0.911 | DW104: 3.194 | DX104: 2.98 | DY104: 3.291 | DZ104: 3.651 | EA104: 2.782 | EB104: 3.199
A105: 2012-12-16T17:00:00 | B105: 0.971 | C105: 2.191 | D105: 1.059 | E105: 2.15 | F105: 3.828 | H105: 1.554 | J105: 844 | K105: 12.2 | L105: 57.86 | M105: 16.4 | N105: 7.542 | O105: 21.1 | P105: 593.2 | Q105: 12.6 | R105: 1.658 | S105: 26 | T105: 3.874 | U105: 23.1 | V105: 814 | W105: 12.3 | X105: 11.12 | Y105: 20.1 | Z105: 1.201 | AA105: 27.3 | AB105: 92.4 | AC105: 15.5 | AD105: 0.725 | AE105: 29.5 | AF105: 0.045 | AG105: 47.9 | AH105: 345.7 | AI105: 13.5 | AJ105: 0.66 | AK105: 30 | AL105: 0.19 | AM105: 36.8 | AN105: 6710 | AO105: 9.9 | AP105: 1328 | AQ105: 11.6 | AR105: 2403 | AS105: 10.9 | AT105: 91.1 | AU105: 15.3 | AV105: 21.93 | AW105: 18.2 | AX105: 4.36 | AY105: 22.4 | AZ105: 75.29 | BA105: 15.7 | BB105: 5.104 | BC105: 22 | BD105: 0.358 | BE105: 32.7 | BF105: 26.5 | BG105: 17.9 | BH105: 0.014 | BI105: 61 | BJ105: 1.167 | BK105: 27.5 | BL105: 592.3 | BM105: 12.6 | BN105: 448.2 | BO105: 13.1 | BP105: 618.6 | BQ105: 12.7 | BR105: 5725 | BS105: 10 | BT105: 1173 | BU105: 11.6 | BV105: 90.5 | BW105: 86.07 | BX105: -0.52 | BY105: 113.4 | BZ105: 100 | CA105: 1.32 | CB105: 114.4 | CC105: 100 | CD105: 0.99 | CE105: 114.1 | CF105: 100 | CG105: 0.87 | CH105: 123.6 | CI105: 100 | CJ105: 0.77 | CK105: 82.8 | CL105: 79 | CM105: -0.17 | CN105: 99.7 | CO105: 95.15 | CP105: 2.43 | CQ105: 107.9 | CR105: 100 | CS105: 2.66 | CT105: 112.4 | CU105: 100 | CV105: 0.95 | CW105: 87.6 | CX105: 83.25 | CY105: -1.31 | CZ105: 62.38 | DA105: 59.62 | DB105: -3.07 | DC105: 67.14 | DD105: 63.87 | DE105: -4.26 | DI105: -3.28 | DJ105: 88.6 | DK105: 88.6 | DL105: -5 | DM105: 1.449 | DN105: 1.898 | DO105: 1.332 | DP105: 1.971 | DQ105: 1.002 | DR105: 1.631 | DS105: 0.887 | DT105: 1.97 | DU105: 0.789 | DV105: 0.808 | DW105: 3.024 | DX105: 2.853 | DY105: 3.137 | DZ105: 3.516 | EA105: 2.658 | EB105: 3.09
A106: 2012-12-16T18:00:00 | B106: 0.854 | C106: 2.08 | D106: 0.967 | E106: 2.072 | F106: 3.649 | H106: 1.434 | J106: 849 | K106: 12.2 | L106: 58.41 | M106: 16.4 | N106: 7.597 | O106: 21.1 | P106: 595.3 | Q106: 12.7 | R106: 1.67 | S106: 26 | T106: 3.898 | U106: 23.1 | V106: 808 | W106: 12.3 | X106: 11.14 | Y106: 20.1 | Z106: 1.21 | AA106: 27.3 | AB106: 92.7 | AC106: 15.5 | AD106: 0.728 | AE106: 29.5 | AF106: 0.045 | AG106: 47.9 | AH106: 347.9 | AI106: 13.5 | AJ106: 0.663 | AK106: 30 | AL106: 0.192 | AM106: 36.7 | AN106: 6673 | AO106: 9.9 | AP106: 1340 | AQ106: 11.6 | AR106: 2444 | AS106: 10.9 | AT106: 92.2 | AU106: 15.3 | AV106: 22.25 | AW106: 18.1 | AX106: 4.395 | AY106: 22.4 | AZ106: 76.2 | BA106: 15.7 | BB106: 5.166 | BC106: 22 | BD106: 0.36 | BE106: 32.7 | BF106: 26.71 | BG106: 17.9 | BH106: 0.014 | BI106: 61.1 | BJ106: 1.179 | BK106: 27.4 | BL106: 594.2 | BM106: 12.6 | BN106: 454.6 | BO106: 13.1 | BP106: 620.2 | BQ106: 12.7 | BR106: 5828 | BS106: 10 | BT106: 1190 | BU106: 11.6 | BV106: 90.4 | BW106: 85.96 | BX106: -0.63 | BY106: 113.4 | BZ106: 100 | CA106: 1.22 | CB106: 114.4 | CC106: 100 | CD106: 0.9 | CE106: 114.1 | CF106: 100 | CG106: 0.81 | CH106: 123.7 | CI106: 100 | CJ106: 0.67 | CK106: 83 | CL106: 79.17 | CM106: -0.3 | CN106: 99.9 | CO106: 95.31 | CP106: 2.32 | CQ106: 108 | CR106: 100 | CS106: 2.54 | CT106: 112.4 | CU106: 100 | CV106: 0.84 | CW106: 87.5 | CX106: 83.13 | CY106: -1.42 | CZ106: 62.35 | DA106: 59.57 | DB106: -3.24 | DC106: 68.55 | DD106: 65.19 | DE106: -4.11 | DI106: -3.106 | DJ106: 89.2 | DK106: 89.2 | DL106: -4.73 | DM106: 1.345 | DN106: 1.799 | DO106: 1.238 | DP106: 1.883 | DQ106: 0.917 | DR106: 1.539 | DS106: 0.826 | DT106: 1.899 | DU106: 0.694 | DV106: 0.738 | DW106: 2.858 | DX106: 2.705 | DY106: 3 | DZ106: 3.387 | EA106: 2.545 | EB106: 2.993
A107: 2012-12-16T19:00:00 | B107: 0.741 | C107: 1.985 | D107: 0.877 | E107: 1.992 | F107: 3.477 | H107: 1.433 | J107: 850 | K107: 12.2 | L107: 58.93 | M107: 16.4 | N107: 7.664 | O107: 21 | P107: 584.2 | Q107: 12.7 | R107: 1.679 | S107: 26 | T107: 3.911 | U107: 23.1 | V107: 803 | W107: 12.3 | X107: 11.17 | Y107: 20.1 | Z107: 1.215 | AA107: 27.3 | AB107: 93.1 | AC107: 15.5 | AD107: 0.732 | AE107: 29.5 | AF107: 0.045 | AG107: 47.9 | AH107: 349.4 | AI107: 13.5 | AJ107: 0.666 | AK107: 30 | AL107: 0.193 | AM107: 36.7 | AN107: 6761 | AO107: 9.9 | AP107: 1375 | AQ107: 11.6 | AR107: 2478 | AS107: 10.9 | AT107: 93.5 | AU107: 15.3 | AV107: 22.58 | AW107: 18.1 | AX107: 4.406 | AY107: 22.4 | AZ107: 77.03 | BA107: 15.7 | BB107: 5.224 | BC107: 22 | BD107: 0.361 | BE107: 32.7 | BF107: 26.87 | BG107: 17.9 | BH107: 0.014 | BI107: 61.1 | BJ107: 1.188 | BK107: 27.4 | BL107: 599.3 | BM107: 12.6 | BN107: 459.4 | BO107: 13.1 | BP107: 630.7 | BQ107: 12.7 | BR107: 6116 | BS107: 10 | BT107: 1220 | BU107: 11.6 | BV107: 90.4 | BW107: 85.94 | BX107: -0.72 | BY107: 113.5 | BZ107: 100 | CA107: 1.14 | CB107: 114.5 | CC107: 100 | CD107: 0.81 | CE107: 114.2 | CF107: 100 | CG107: 0.75 | CH107: 123.7 | CI107: 100 | CJ107: 0.59 | CK107: 82.9 | CL107: 79.05 | CM107: -0.46 | CN107: 100 | CO107: 95.38 | CP107: 2.19 | CQ107: 107.9 | CR107: 100 | CS107: 2.43 | CT107: 112.5 | CU107: 100 | CV107: 0.72 | CW107: 87.4 | CX107: 83.02 | CY107: -1.52 | CZ107: 62.33 | DA107: 59.53 | DB107: -3.41 | DC107: 69.29 | DD107: 65.9 | DE107: -3.97 | DI107: -2.944 | DJ107: 89.8 | DK107: 89.8 | DL107: -4.47 | DM107: 1.254 | DN107: 1.724 | DO107: 1.152 | DP107: 1.809 | DQ107: 0.829 | DR107: 1.448 | DS107: 0.767 | DT107: 1.829 | DU107: 0.613 | DV107: 0.674 | DW107: 2.704 | DX107: 2.599 | DY107: 2.86 | DZ107: 3.259 | EA107: 2.435 | EB107: 2.9
A108: 2012-12-16T20:00:00 | B108: 0.64 | C108: 1.896 | D108: 0.799 | E108: 1.924 | F108: 3.309 | H108: 1.428 | J108: 854 | K108: 12.2 | L108: 59.36 | M108: 16.4 | N108: 7.715 | O108: 21 | P108: 590.8 | Q108: 12.7 | R108: 1.69 | S108: 26 | T108: 3.929 | U108: 23.1 | V108: 795.6 | W108: 12.3 | X108: 11.18 | Y108: 20.1 | Z108: 1.22 | AA108: 27.3 | AB108: 93.4 | AC108: 15.5 | AD108: 0.735 | AE108: 29.5 | AF108: 0.045 | AG108: 48 | AH108: 350.5 | AI108: 13.5 | AJ108: 0.67 | AK108: 30 | AL108: 0.194 | AM108: 36.7 | AN108: 6723 | AO108: 10 | AP108: 1387 | AQ108: 11.6 | AR108: 2523 | AS108: 10.9 | AT108: 94.8 | AU108: 15.3 | AV108: 22.91 | AW108: 18.1 | AX108: 4.407 | AY108: 22.4 | AZ108: 77.78 | BA108: 15.7 | BB108: 5.282 | BC108: 21.9 | BD108: 0.362 | BE108: 32.7 | BF108: 27.05 | BG108: 17.9 | BH108: 0.014 | BI108: 61.1 | BJ108: 1.199 | BK108: 27.4 | BL108: 601.5 | BM108: 12.6 | BN108: 462.8 | BO108: 13.1 | BP108: 632.9 | BQ108: 12.7 | BR108: 5983 | BS108: 10 | BT108: 1232 | BU108: 11.6 | BV108: 90.4 | BW108: 85.92 | BX108: -0.81 | BY108: 113.5 | BZ108: 100 | CA108: 1.05 | CB108: 114.6 | CC108: 100 | CD108: 0.73 | CE108: 114.2 | CF108: 100 | CG108: 0.68 | CH108: 123.7 | CI108: 100 | CJ108: 0.52 | CK108: 82.8 | CL108: 78.93 | CM108: -0.62 | CN108: 100 | CO108: 95.35 | CP108: 2.05 | CQ108: 108 | CR108: 100 | CS108: 2.32 | CT108: 112.5 | CU108: 100 | CV108: 0.62 | CW108: 87.4 | CX108: 83.01 | CY108: -1.59 | CZ108: 62.33 | DA108: 59.51 | DB108: -3.57 | DC108: 69.8 | DD108: 66.38 | DE108: -3.88 | DI108: -2.877 | DJ108: 90 | DK108: 90 | DL108: -4.36 | DM108: 1.163 | DN108: 1.659 | DO108: 1.069 | DP108: 1.739 | DQ108: 0.75 | DR108: 1.369 | DS108: 0.696 | DT108: 1.766 | DU108: 0.542 | DV108: 0.619 | DW108: 2.555 | DX108: 2.499 | DY108: 2.721 | DZ108: 3.137 | EA108: 2.327 | EB108: 2.81
A109: 2012-12-16T21:00:00 | B109: 0.551 | C109: 1.8 | D109: 0.724 | E109: 1.821 | F109: 3.15 | H109: 1.381 | J109: 857 | K109: 12.2 | L109: 59.96 | M109: 16.3 | N109: 7.78 | O109: 21 | P109: 585.7 | Q109: 12.7 | R109: 1.703 | S109: 26 | T109: 3.937 | U109: 23.1 | V109: 791.8 | W109: 12.3 | X109: 11.22 | Y109: 20.1 | Z109: 1.23 | AA109: 27.3 | AB109: 93.9 | AC109: 15.5 | AD109: 0.739 | AE109: 29.5 | AF109: 0.045 | AG109: 48 | AH109: 353.7 | AI109: 13.5 | AJ109: 0.676 | AK109: 29.9 | AL109: 0.195 | AM109: 36.7 | AN109: 6698 | AO109: 10 | AP109: 1441 | AQ109: 11.5 | AR109: 2577 | AS109: 10.9 | AT109: 96.7 | AU109: 15.2 | AV109: 23.43 | AW109: 18.1 | AX109: 4.491 | AY109: 22.4 | AZ109: 78.79 | BA109: 15.6 | BB109: 5.35 | BC109: 21.9 | BD109: 0.363 | BE109: 32.7 | BF109: 27.07 | BG109: 17.9 | BH109: 0.014 | BI109: 61.2 | BJ109: 1.205 | BK109: 27.4 | BL109: 607.2 | BM109: 12.6 | BN109: 469 | BO109: 13.1 | BP109: 638.9 | BQ109: 12.7 | BR109: 6516 | BS109: 9.9 | BT109: 1307 | BU109: 11.6 | BV109: 90.4 | BW109: 85.91 | BX109: -0.89 | BY109: 113.5 | BZ109: 100 | CA109: 0.97 | CB109: 114.6 | CC109: 100 | CD109: 0.65 | CE109: 114.3 | CF109: 100 | CG109: 0.59 | CH109: 123.8 | CI109: 100 | CJ109: 0.45 | CK109: 82.4 | CL109: 78.52 | CM109: -0.81 | CN109: 99.5 | CO109: 94.85 | CP109: 1.82 | CQ109: 108 | CR109: 100 | CS109: 2.22 | CT109: 112.6 | CU109: 100 | CV109: 0.53 | CW109: 87.7 | CX109: 83.28 | CY109: -1.62 | CZ109: 62.36 | DA109: 59.52 | DB109: -3.71 | DC109: 69.89 | DD109: 66.46 | DE109: -3.91 | DI109: -3.12 | DJ109: 89.9 | DK109: 89.9 | DL109: -4.64 | DM109: 1.077 | DN109: 1.579 | DO109: 0.985 | DP109: 1.66 | DQ109: 0.672 | DR109: 1.29 | DS109: 0.612 | DT109: 1.689 | DU109: 0.47 | DV109: 0.545 | DW109: 2.418 | DX109: 2.4 | DY109: 2.564 | DZ109: 3.01 | EA109: 2.219 | EB109: 2.713
A110: 2012-12-16T22:00:00 | B110: 0.477 | C110: 1.692 | D110: 0.646 | E110: 1.685 | F110: 2.994 | H110: 1.32 | J110: 859 | K110: 12.2 | L110: 60.35 | M110: 16.3 | N110: 7.794 | O110: 21 | P110: 578.1 | Q110: 12.7 | R110: 1.702 | S110: 26 | T110: 3.935 | U110: 23.1 | V110: 784.5 | W110: 12.4 | X110: 11.14 | Y110: 20.1 | Z110: 1.229 | AA110: 27.3 | AB110: 93.9 | AC110: 15.5 | AD110: 0.74 | AE110: 29.5 | AF110: 0.045 | AG110: 48 | AH110: 354.4 | AI110: 13.5 | AJ110: 0.679 | AK110: 29.9 | AL110: 0.195 | AM110: 36.7 | AN110: 6761 | AO110: 10 | AP110: 1432 | AQ110: 11.5 | AR110: 2596 | AS110: 10.9 | AT110: 99 | AU110: 15.2 | AV110: 23.93 | AW110: 18.1 | AX110: 4.608 | AY110: 22.3 | AZ110: 79.45 | BA110: 15.6 | BB110: 5.411 | BC110: 21.9 | BD110: 0.364 | BE110: 32.7 | BF110: 27.22 | BG110: 17.9 | BH110: 0.014 | BI110: 61.2 | BJ110: 1.212 | BK110: 27.4 | BL110: 614.2 | BM110: 12.6 | BN110: 474.9 | BO110: 13.1 | BP110: 643.1 | BQ110: 12.7 | BR110: 6480 | BS110: 9.9 | BT110: 1295 | BU110: 11.6 | BV110: 90.4 | BW110: 85.89 | BX110: -0.97 | BY110: 113.5 | BZ110: 100 | CA110: 0.9 | CB110: 114.7 | CC110: 100 | CD110: 0.58 | CE110: 114.3 | CF110: 100 | CG110: 0.52 | CH110: 123.9 | CI110: 100 | CJ110: 0.38 | CK110: 81.9 | CL110: 78.02 | CM110: -1.02 | CN110: 99 | CO110: 94.34 | CP110: 1.59 | CQ110: 107.9 | CR110: 100 | CS110: 2.1 | CT110: 112.6 | CU110: 100 | CV110: 0.45 | CW110: 88.1 | CX110: 83.65 | CY110: -1.64 | CZ110: 62.33 | DA110: 59.47 | DB110: -3.86 | DC110: 69.62 | DD110: 66.19 | DE110: -4.02 | DI110: -3.359 | DJ110: 89.7 | DK110: 89.7 | DL110: -4.93 | DM110: 0.995 | DN110: 1.495 | DO110: 0.913 | DP110: 1.573 | DQ110: 0.598 | DR110: 1.208 | DS110: 0.54 | DT110: 1.595 | DU110: 0.4 | DV110: 0.439 | DW110: 2.282 | DX110: 2.304 | DY110: 2.416 | DZ110: 2.886 | EA110: 2.107 | EB110: 2.612
A111: 2012-12-16T23:00:00 | B111: 0.402 | C111: 1.57 | D111: 0.56 | E111: 1.536 | F111: 2.844 | H111: 1.17 | J111: 861 | K111: 12.2 | L111: 60.76 | M111: 16.3 | N111: 7.83 | O111: 21 | P111: 591.9 | Q111: 12.7 | R111: 1.707 | S111: 26 | T111: 3.942 | U111: 23.1 | V111: 781.8 | W111: 12.4 | X111: 11.09 | Y111: 20.2 | Z111: 1.232 | AA111: 27.3 | AB111: 93.7 | AC111: 15.5 | AD111: 0.741 | AE111: 29.5 | AF111: 0.045 | AG111: 48 | AH111: 356.5 | AI111: 13.5 | AJ111: 0.678 | AK111: 30 | AL111: 0.195 | AM111: 36.7 | AN111: 6761 | AO111: 10 | AP111: 1452 | AQ111: 11.5 | AR111: 2609 | AS111: 10.9 | AT111: 101.3 | AU111: 15.2 | AV111: 24.46 | AW111: 18 | AX111: 4.764 | AY111: 22.3 | AZ111: 80.4 | BA111: 15.6 | BB111: 5.478 | BC111: 21.9 | BD111: 0.366 | BE111: 32.7 | BF111: 27.34 | BG111: 17.9 | BH111: 0.014 | BI111: 61.2 | BJ111: 1.218 | BK111: 27.4 | BL111: 619 | BM111: 12.6 | BN111: 480.8 | BO111: 13.1 | BP111: 647.3 | BQ111: 12.7 | BR111: 6516 | BS111: 10 | BT111: 1328 | BU111: 11.6 | BV111: 90.4 | BW111: 85.88 | BX111: -1.05 | BY111: 113.6 | BZ111: 100 | CA111: 0.82 | CB111: 114.7 | CC111: 100 | CD111: 0.5 | CE111: 114.4 | CF111: 100 | CG111: 0.45 | CH111: 123.9 | CI111: 100 | CJ111: 0.29 | CK111: 81.5 | CL111: 77.62 | CM111: -1.21 | CN111: 97.8 | CO111: 93.17 | CP111: 1.28 | CQ111: 107.9 | CR111: 100 | CS111: 1.99 | CT111: 112.7 | CU111: 100 | CV111: 0.38 | CW111: 88.4 | CX111: 83.92 | CY111: -1.67 | CZ111: 62.37 | DA111: 59.49 | DB111: -3.99 | DC111: 69.59 | DD111: 66.15 | DE111: -4.16 | DI111: -3.652 | DJ111: 88.9 | DK111: 88.9 | DL111: -5.36 | DM111: 0.911 | DN111: 1.374 | DO111: 0.835 | DP111: 1.464 | DQ111: 0.527 | DR111: 1.109 | DS111: 0.47 | DT111: 1.494 | DU111: 0.319 | DV111: 0.316 | DW111: 2.152 | DX111: 2.19 | DY111: 2.281 | DZ111: 2.768 | EA111: 1.997 | EB111: 2.505
A112: 2012-12-17 | B112: 0.323 | C112: 1.454 | D112: 0.464 | E112: 1.382 | F112: 2.689 | H112: 1.109 | J112: 867 | K112: 12.2 | L112: 61.31 | M112: 16.3 | N112: 7.921 | O112: 21 | P112: 625.7 | Q112: 12.6 | R112: 1.721 | S112: 26 | T112: 3.95 | U112: 23.1 | V112: 780.7 | W112: 12.4 | X112: 11.12 | Y112: 20.2 | Z112: 1.242 | AA112: 27.3 | AB112: 93.8 | AC112: 15.5 | AD112: 0.745 | AE112: 29.5 | AF112: 0.045 | AG112: 48 | AH112: 361 | AI112: 13.5 | AJ112: 0.686 | AK112: 29.9 | AL112: 0.197 | AM112: 36.7 | AN112: 6905 | AO112: 10 | AP112: 1490 | AQ112: 11.5 | AR112: 2665 | AS112: 10.9 | AT112: 104.5 | AU112: 15.2 | AV112: 25.19 | AW112: 18 | AX112: 4.992 | AY112: 22.1 | AZ112: 81.4 | BA112: 15.6 | BB112: 5.554 | BC112: 21.9 | BD112: 0.369 | BE112: 32.7 | BF112: 27.47 | BG112: 17.9 | BH112: 0.014 | BI112: 61.3 | BJ112: 1.225 | BK112: 27.4 | BL112: 628.9 | BM112: 12.6 | BN112: 489.6 | BO112: 13.1 | BP112: 655.8 | BQ112: 12.7 | BR112: 6493 | BS112: 10 | BT112: 1362 | BU112: 11.6 | BV112: 90.4 | BW112: 85.87 | BX112: -1.13 | BY112: 113.7 | BZ112: 100 | CA112: 0.74 | CB112: 114.8 | CC112: 100 | CD112: 0.43 | CE112: 114.5 | CF112: 100 | CG112: 0.37 | CH112: 124 | CI112: 100 | CJ112: 0.21 | CK112: 81.1 | CL112: 77.22 | CM112: -1.4 | CN112: 97.1 | CO112: 92.48 | CP112: 1.04 | CQ112: 107.8 | CR112: 100 | CS112: 1.88 | CT112: 112.7 | CU112: 100 | CV112: 0.3 | CW112: 88.7 | CX112: 84.19 | CY112: -1.72 | CZ112: 62.35 | DA112: 59.45 | DB112: -4.14 | DC112: 69.52 | DD112: 66.07 | DE112: -4.24 | DI112: -3.682 | DJ112: 89.1 | DK112: 89.1 | DL112: -5.36 | DM112: 0.829 | DN112: 1.269 | DO112: 0.76 | DP112: 1.353 | DQ112: 0.456 | DR112: 1.012 | DS112: 0.395 | DT112: 1.387 | DU112: 0.238 | DV112: 0.197 | DW112: 2.016 | DX112: 2.068 | DY112: 2.147 | DZ112: 2.652 | EA112: 1.891 | EB112: 2.398
A113: 2012-12-17T01:00:00 | B113: 0.239 | C113: 1.327 | D113: 0.354 | E113: 1.208 | F113: 2.537 | H113: 1.011 | J113: 870 | K113: 12.2 | L113: 61.82 | M113: 16.3 | N113: 7.97 | O113: 21 | P113: 590.9 | Q113: 12.7 | R113: 1.729 | S113: 26 | T113: 3.959 | U113: 23.1 | V113: 780.9 | W113: 12.4 | X113: 11.08 | Y113: 20.2 | Z113: 1.245 | AA113: 27.3 | AB113: 93.3 | AC113: 15.5 | AD113: 0.747 | AE113: 29.5 | AF113: 0.045 | AG113: 48.1 | AH113: 364.4 | AI113: 13.5 | AJ113: 0.69 | AK113: 29.9 | AL113: 0.198 | AM113: 36.7 | AN113: 6839 | AO113: 10 | AP113: 1532 | AQ113: 11.5 | AR113: 2698 | AS113: 10.9 | AT113: 107.6 | AU113: 15.1 | AV113: 25.93 | AW113: 17.9 | AX113: 5.256 | AY113: 22 | AZ113: 82.4 | BA113: 15.6 | BB113: 5.629 | BC113: 21.8 | BD113: 0.371 | BE113: 32.7 | BF113: 27.6 | BG113: 17.9 | BH113: 0.014 | BI113: 61.3 | BJ113: 1.233 | BK113: 27.4 | BL113: 636.3 | BM113: 12.6 | BN113: 497.3 | BO113: 13.1 | BP113: 660.3 | BQ113: 12.7 | BR113: 6775 | BS113: 9.9 | BT113: 1394 | BU113: 11.6 | BV113: 90.4 | BW113: 85.85 | BX113: -1.21 | BY113: 113.7 | BZ113: 100 | CA113: 0.66 | CB113: 114.8 | CC113: 100 | CD113: 0.35 | CE113: 114.6 | CF113: 100 | CG113: 0.3 | CH113: 124 | CI113: 100 | CJ113: 0.13 | CK113: 80.6 | CL113: 76.72 | CM113: -1.6 | CN113: 96 | CO113: 91.41 | CP113: 0.74 | CQ113: 107.7 | CR113: 100 | CS113: 1.77 | CT113: 112.7 | CU113: 100 | CV113: 0.21 | CW113: 89.1 | CX113: 84.55 | CY113: -1.77 | CZ113: 62.31 | DA113: 59.39 | DB113: -4.29 | DC113: 69.73 | DD113: 66.26 | DE113: -4.29 | DI113: -3.585 | DJ113: 89.4 | DK113: 89.4 | DL113: -5.21 | DM113: 0.741 | DN113: 1.167 | DO113: 0.678 | DP113: 1.255 | DQ113: 0.379 | DR113: 0.917 | DS113: 0.323 | DT113: 1.279 | DU113: 0.156 | DV113: 0.073 | DW113: 1.887 | DX113: 1.961 | DY113: 2.013 | DZ113: 2.528 | EA113: 1.776 | EB113: 2.286
A114: 2012-12-17T02:00:00 | B114: 0.158 | C114: 1.21 | D114: 0.233 | E114: 1.071 | F114: 2.382 | H114: 1.008 | J114: 870 | K114: 12.3 | L114: 62.18 | M114: 16.3 | N114: 7.976 | O114: 21 | P114: 594.7 | Q114: 12.7 | R114: 1.731 | S114: 26 | T114: 3.951 | U114: 23.1 | V114: 773.1 | W114: 12.4 | X114: 11.01 | Y114: 20.2 | Z114: 1.245 | AA114: 27.3 | AB114: 92.8 | AC114: 15.5 | AD114: 0.749 | AE114: 29.5 | AF114: 0.045 | AG114: 48.1 | AH114: 362 | AI114: 13.5 | AJ114: 0.69 | AK114: 29.9 | AL114: 0.198 | AM114: 36.7 | AN114: 6787 | AO114: 10 | AP114: 1541 | AQ114: 11.5 | AR114: 2718 | AS114: 10.9 | AT114: 111.2 | AU114: 15.1 | AV114: 26.72 | AW114: 17.9 | AX114: 5.577 | AY114: 21.9 | AZ114: 83.3 | BA114: 15.6 | BB114: 5.704 | BC114: 21.8 | BD114: 0.374 | BE114: 32.6 | BF114: 27.7 | BG114: 17.9 | BH114: 0.014 | BI114: 61.3 | BJ114: 1.241 | BK114: 27.4 | BL114: 638.3 | BM114: 12.6 | BN114: 506.1 | BO114: 13 | BP114: 668.1 | BQ114: 12.7 | BR114: 7138 | BS114: 9.9 | BT114: 1421 | BU114: 11.5 | BV114: 90.3 | BW114: 85.74 | BX114: -1.31 | BY114: 113.7 | BZ114: 100 | CA114: 0.57 | CB114: 114.9 | CC114: 100 | CD114: 0.28 | CE114: 114.7 | CF114: 100 | CG114: 0.23 | CH114: 124.1 | CI114: 100 | CJ114: 0.05 | CK114: 80.1 | CL114: 76.23 | CM114: -1.8 | CN114: 94.6 | CO114: 90.05 | CP114: 0.41 | CQ114: 107.6 | CR114: 100 | CS114: 1.66 | CT114: 112.8 | CU114: 100 | CV114: 0.13 | CW114: 89.6 | CX114: 85 | CY114: -1.81 | CZ114: 62.36 | DA114: 59.42 | DB114: -4.43 | DC114: 70.59 | DD114: 67.07 | DE114: -4.14 | DI114: -3.375 | DJ114: 90.4 | DK114: 90.4 | DL114: -4.84 | DM114: 0.658 | DN114: 1.089 | DO114: 0.595 | DP114: 1.17 | DQ114: 0.309 | DR114: 0.831 | DS114: 0.259 | DT114: 1.178 | DU114: 0.077 | DV114: -0.016 | DW114: 1.763 | DX114: 1.857 | DY114: 1.892 | DZ114: 2.418 | EA114: 1.674 | EB114: 2.178
A115: 2012-12-17T03:00:00 | B115: 0.073 | C115: 1.087 | D115: 0.115 | E115: 0.957 | F115: 2.237 | H115: 0.995 | J115: 867 | K115: 12.3 | L115: 62.48 | M115: 16.3 | N115: 8.03 | O115: 21 | P115: 616.8 | Q115: 12.7 | R115: 1.734 | S115: 26 | T115: 3.957 | U115: 23.1 | V115: 771.1 | W115: 12.4 | X115: 10.95 | Y115: 20.2 | Z115: 1.247 | AA115: 27.3 | AB115: 92.1 | AC115: 15.6 | AD115: 0.751 | AE115: 29.5 | AF115: 0.045 | AG115: 48.1 | AH115: 364.2 | AI115: 13.5 | AJ115: 0.691 | AK115: 29.9 | AL115: 0.199 | AM115: 36.7 | AN115: 6826 | AO115: 10 | AP115: 1565 | AQ115: 11.5 | AR115: 2753 | AS115: 10.9 | AT115: 113.9 | AU115: 15.1 | AV115: 27.37 | AW115: 17.8 | AX115: 5.812 | AY115: 21.8 | AZ115: 84.2 | BA115: 15.6 | BB115: 5.771 | BC115: 21.8 | BD115: 0.376 | BE115: 32.6 | BF115: 27.82 | BG115: 17.9 | BH115: 0.014 | BI115: 61.4 | BJ115: 1.25 | BK115: 27.3 | BL115: 641.6 | BM115: 12.7 | BN115: 511.7 | BO115: 13 | BP115: 673.4 | BQ115: 12.7 | BR115: 7068 | BS115: 9.9 | BT115: 1448 | BU115: 11.5 | BV115: 90.3 | BW115: 85.73 | BX115: -1.38 | BY115: 113.8 | BZ115: 100 | CA115: 0.49 | CB115: 114.9 | CC115: 100 | CD115: 0.21 | CE115: 114.7 | CF115: 100 | CG115: 0.16 | CH115: 124.1 | CI115: 100 | CJ115: 0.07 | CK115: 79.72 | CL115: 75.85 | CM115: -1.97 | CN115: 94.3 | CO115: 89.74 | CP115: 0.25 | CQ115: 107.6 | CR115: 100 | CS115: 1.56 | CT115: 112.8 | CU115: 100 | CV115: 0.04 | CW115: 89.8 | CX115: 85.17 | CY115: -1.9 | CZ115: 62.32 | DA115: 59.37 | DB115: -4.57 | DC115: 70.98 | DD115: 67.44 | DE115: -4.08 | DI115: -3.199 | DJ115: 90.2 | DK115: 90.2 | DL115: -4.68 | DM115: 0.58 | DN115: 1.015 | DO115: 0.516 | DP115: 1.097 | DQ115: 0.235 | DR115: 0.75 | DS115: 0.186 | DT115: 1.095 | DU115: -0.001 | DV115: -0.085 | DW115: 1.646 | DX115: 1.766 | DY115: 1.778 | DZ115: 2.312 | EA115: 1.575 | EB115: 2.087
A116: 2012-12-17T04:00:00 | B116: -0.021 | C116: 0.975 | D116: -0.001 | E116: 0.865 | F116: 2.096 | H116: 0.954 | J116: 868 | K116: 12.3 | L116: 62.82 | M116: 16.3 | N116: 8.07 | O116: 21 | P116: 656.6 | Q116: 12.6 | R116: 1.741 | S116: 26 | T116: 3.965 | U116: 23.1 | V116: 765.2 | W116: 12.5 | X116: 10.93 | Y116: 20.3 | Z116: 1.252 | AA116: 27.3 | AB116: 91.9 | AC116: 15.6 | AD116: 0.753 | AE116: 29.5 | AF116: 0.045 | AG116: 48.1 | AH116: 362.6 | AI116: 13.5 | AJ116: 0.688 | AK116: 30 | AL116: 0.199 | AM116: 36.7 | AN116: 6826 | AO116: 10 | AP116: 1589 | AQ116: 11.5 | AR116: 2790 | AS116: 10.9 | AT116: 116.6 | AU116: 15 | AV116: 28.02 | AW116: 17.8 | AX116: 6.069 | AY116: 21.6 | AZ116: 84.8 | BA116: 15.6 | BB116: 5.839 | BC116: 21.8 | BD116: 0.378 | BE116: 32.6 | BF116: 27.89 | BG116: 17.9 | BH116: 0.014 | BI116: 61.4 | BJ116: 1.26 | BK116: 27.3 | BL116: 644.4 | BM116: 12.7 | BN116: 519.2 | BO116: 13 | BP116: 678.2 | BQ116: 12.7 | BR116: 7373 | BS116: 9.9 | BT116: 1486 | BU116: 11.5 | BV116: 90.3 | BW116: 85.71 | BX116: -1.45 | BY116: 113.8 | BZ116: 100 | CA116: 0.42 | CB116: 114.9 | CC116: 100 | CD116: 0.14 | CE116: 114.7 | CF116: 100 | CG116: 0.1 | CH116: 124.1 | CI116: 100 | CJ116: 0 | CK116: 79.62 | CL116: 75.73 | CM116: -2.1 | CN116: 94.1 | CO116: 89.53 | CP116: 0.11 | CQ116: 107.5 | CR116: 100 | CS116: 1.47 | CT116: 112.8 | CU116: 100 | CV116: 0.05 | CW116: 90 | CX116: 85.34 | CY116: -1.97 | CZ116: 62.4 | DA116: 59.42 | DB116: -4.69 | DC116: 71.59 | DD116: 68.02 | DE116: -4.01 | DI116: -3.086 | DJ116: 90.8 | DK116: 90.8 | DL116: -4.48 | DM116: 0.506 | DN116: 0.956 | DO116: 0.445 | DP116: 1.025 | DQ116: 0.165 | DR116: 0.668 | DS116: 0.13 | DT116: 1.023 | DU116: -0.074 | DV116: -0.151 | DW116: 1.528 | DX116: 1.677 | DY116: 1.669 | DZ116: 2.213 | EA116: 1.484 | EB116: 1.99
A117: 2012-12-17T05:00:00 | B117: -0.116 | C117: 0.881 | D117: -0.111 | E117: 0.767 | F117: 1.963 | H117: 0.924 | J117: 866 | K117: 12.3 | L117: 63.08 | M117: 16.3 | N117: 8.13 | O117: 21 | P117: 611.5 | Q117: 12.7 | R117: 1.749 | S117: 26 | T117: 3.974 | U117: 23.1 | V117: 763 | W117: 12.5 | X117: 10.93 | Y117: 20.3 | Z117: 1.257 | AA117: 27.3 | AB117: 91.4 | AC117: 15.6 | AD117: 0.757 | AE117: 29.5 | AF117: 0.045 | AG117: 48.2 | AH117: 364.4 | AI117: 13.5 | AJ117: 0.699 | AK117: 29.9 | AL117: 0.201 | AM117: 36.7 | AN117: 6839 | AO117: 10 | AP117: 1633 | AQ117: 11.5 | AR117: 2816 | AS117: 10.9 | AT117: 119 | AU117: 15 | AV117: 28.67 | AW117: 17.8 | AX117: 6.336 | AY117: 21.5 | AZ117: 85.7 | BA117: 15.6 | BB117: 5.907 | BC117: 21.8 | BD117: 0.381 | BE117: 32.6 | BF117: 27.95 | BG117: 17.9 | BH117: 0.014 | BI117: 61.4 | BJ117: 1.269 | BK117: 27.3 | BL117: 645.8 | BM117: 12.7 | BN117: 525.1 | BO117: 13 | BP117: 687.6 | BQ117: 12.7 | BR117: 7607 | BS117: 9.9 | BT117: 1512 | BU117: 11.5 | BV117: 90.3 | BW117: 85.7 | BX117: -1.52 | BY117: 113.8 | BZ117: 100 | CA117: 0.35 | CB117: 115 | CC117: 100 | CD117: 0.07 | CE117: 114.7 | CF117: 100 | CG117: 0.03 | CH117: 124.2 | CI117: 100 | CJ117: -0.06 | CK117: 79.29 | CL117: 75.4 | CM117: -2.25 | CN117: 93.4 | CO117: 88.85 | CP117: -0.01 | CQ117: 107.4 | CR117: 100 | CS117: 1.38 | CT117: 112.9 | CU117: 100 | CV117: -0.05 | CW117: 90.2 | CX117: 85.51 | CY117: -2.07 | CZ117: 62.46 | DA117: 59.47 | DB117: -4.8 | DC117: 72.11 | DD117: 68.51 | DE117: -3.94 | DI117: -2.995 | DJ117: 90.5 | DK117: 90.5 | DL117: -4.42 | DM117: 0.435 | DN117: 0.897 | DO117: 0.374 | DP117: 0.964 | DQ117: 0.096 | DR117: 0.599 | DS117: 0.063 | DT117: 0.951 | DU117: -0.131 | DV117: -0.194 | DW117: 1.421 | DX117: 1.601 | DY117: 1.558 | DZ117: 2.12 | EA117: 1.392 | EB117: 1.905
A118: 2012-12-17T06:00:00 | B118: -0.203 | C118: 0.797 | D118: -0.205 | E118: 0.708 | F118: 1.839 | H118: 0.968 | J118: 867 | K118: 12.3 | L118: 63.25 | M118: 16.3 | N118: 8.12 | O118: 21 | P118: 611.9 | Q118: 12.7 | R118: 1.751 | S118: 26 | T118: 3.969 | U118: 23.1 | V118: 753.5 | W118: 12.5 | X118: 10.87 | Y118: 20.3 | Z118: 1.258 | AA118: 27.3 | AB118: 91.1 | AC118: 15.6 | AD118: 0.759 | AE118: 29.5 | AF118: 0.045 | AG118: 48.2 | AH118: 361 | AI118: 13.6 | AJ118: 0.701 | AK118: 29.9 | AL118: 0.201 | AM118: 36.7 | AN118: 6810 | AO118: 10 | AP118: 1625 | AQ118: 11.5 | AR118: 2820 | AS118: 10.9 | AT118: 121.4 | AU118: 15 | AV118: 29.3 | AW118: 17.7 | AX118: 6.585 | AY118: 21.4 | AZ118: 86.1 | BA118: 15.6 | BB118: 5.969 | BC118: 21.7 | BD118: 0.383 | BE118: 32.6 | BF118: 28.02 | BG118: 17.9 | BH118: 0.014 | BI118: 61.5 | BJ118: 1.279 | BK118: 27.3 | BL118: 650.7 | BM118: 12.7 | BN118: 531.8 | BO118: 13 | BP118: 695.3 | BQ118: 12.7 | BR118: 6985 | BS118: 10 | BT118: 1487 | BU118: 11.5 | BV118: 90.3 | BW118: 85.69 | BX118: -1.58 | BY118: 113.9 | BZ118: 100 | CA118: 0.29 | CB118: 115 | CC118: 100 | CD118: 0 | CE118: 114.8 | CF118: 100 | CG118: 0.07 | CH118: 124.2 | CI118: 100 | CJ118: -0.12 | CK118: 79.16 | CL118: 75.26 | CM118: -2.37 | CN118: 93.3 | CO118: 88.74 | CP118: -0.11 | CQ118: 107.4 | CR118: 100 | CS118: 1.29 | CT118: 113 | CU118: 100 | CV118: -0.14 | CW118: 90.2 | CX118: 85.49 | CY118: -2.17 | CZ118: 62.49 | DA118: 59.48 | DB118: -4.91 | DC118: 72.41 | DD118: 68.8 | DE118: -3.85 | DI118: -2.669 | DJ118: 89.6 | DK118: 89.6 | DL118: -4.2 | DM118: 0.373 | DN118: 0.852 | DO118: 0.311 | DP118: 0.914 | DQ118: 0.03 | DR118: 0.528 | DS118: 0.005 | DT118: 0.892 | DU118: -0.185 | DV118: -0.223 | DW118: 1.318 | DX118: 1.527 | DY118: 1.467 | DZ118: 2.04 | EA118: 1.306 | EB118: 1.83
A119: 2012-12-17T07:00:00 | B119: -0.283 | C119: 0.713 | D119: -0.292 | E119: 0.633 | F119: 1.726 | H119: 0.921 | J119: 865 | K119: 12.3 | L119: 63.45 | M119: 16.3 | N119: 8.17 | O119: 21 | P119: 605.7 | Q119: 12.7 | R119: 1.762 | S119: 26 | T119: 3.982 | U119: 23.1 | V119: 749.6 | W119: 12.5 | X119: 10.85 | Y119: 20.3 | Z119: 1.262 | AA119: 27.3 | AB119: 90.7 | AC119: 15.6 | AD119: 0.762 | AE119: 29.5 | AF119: 0.045 | AG119: 48.2 | AH119: 360.7 | AI119: 13.6 | AJ119: 0.7 | AK119: 29.9 | AL119: 0.202 | AM119: 36.6 | AN119: 6746 | AO119: 10 | AP119: 1661 | AQ119: 11.5 | AR119: 2861 | AS119: 10.9 | AT119: 123.8 | AU119: 15 | AV119: 29.96 | AW119: 17.7 | AX119: 6.83 | AY119: 21.4 | AZ119: 86.7 | BA119: 15.6 | BB119: 6.031 | BC119: 21.7 | BD119: 0.386 | BE119: 32.6 | BF119: 28.07 | BG119: 17.9 | BH119: 0.014 | BI119: 61.5 | BJ119: 1.289 | BK119: 27.3 | BL119: 651.3 | BM119: 12.7 | BN119: 535.2 | BO119: 13 | BP119: 699.8 | BQ119: 12.7 | BR119: 7283 | BS119: 10 | BT119: 1504 | BU119: 11.5 | BV119: 90.3 | BW119: 85.68 | BX119: -1.64 | BY119: 113.9 | BZ119: 100 | CA119: 0.22 | CB119: 115.1 | CC119: 100 | CD119: 0.04 | CE119: 114.8 | CF119: 100 | CG119: 0.03 | CH119: 124.2 | CI119: 100 | CJ119: -0.17 | CK119: 78.92 | CL119: 75.02 | CM119: -2.49 | CN119: 92.6 | CO119: 88.05 | CP119: -0.3 | CQ119: 107.3 | CR119: 100 | CS119: 1.21 | CT119: 113 | CU119: 100 | CV119: -0.23 | CW119: 90.4 | CX119: 85.67 | CY119: -2.23 | CZ119: 62.56 | DA119: 59.53 | DB119: -5 | DC119: 72.86 | DD119: 69.22 | DE119: -3.81 | DI119: -2.717 | DJ119: 90.5 | DK119: 90.5 | DL119: -4.12 | DM119: 0.31 | DN119: 0.795 | DO119: 0.245 | DP119: 0.855 | DQ119: -0.03 | DR119: 0.462 | DS119: -0.043 | DT119: 0.841 | DU119: -0.23 | DV119: -0.254 | DW119: 1.231 | DX119: 1.463 | DY119: 1.365 | DZ119: 1.968 | EA119: 1.222 | EB119: 1.758
A120: 2012-12-17T08:00:00 | B120: -0.356 | C120: 0.643 | D120: -0.369 | E120: 0.584 | F120: 1.62 | H120: 0.951 | J120: 863 | K120: 12.3 | L120: 63.58 | M120: 16.3 | N120: 8.2 | O120: 21 | P120: 570.1 | Q120: 12.8 | R120: 1.766 | S120: 26 | T120: 3.986 | U120: 23.2 | V120: 747.9 | W120: 12.5 | X120: 10.81 | Y120: 20.3 | Z120: 1.265 | AA120: 27.3 | AB120: 90.2 | AC120: 15.6 | AD120: 0.766 | AE120: 29.5 | AF120: 0.045 | AG120: 48.2 | AH120: 360.6 | AI120: 13.6 | AJ120: 0.701 | AK120: 29.9 | AL120: 0.202 | AM120: 36.7 | AN120: 6775 | AO120: 10 | AP120: 1690 | AQ120: 11.5 | AR120: 2872 | AS120: 10.9 | AT120: 125.9 | AU120: 14.9 | AV120: 30.58 | AW120: 17.7 | AX120: 7.049 | AY120: 21.3 | AZ120: 87.3 | BA120: 15.6 | BB120: 6.089 | BC120: 21.7 | BD120: 0.388 | BE120: 32.6 | BF120: 28.13 | BG120: 17.9 | BH120: 0.014 | BI120: 61.5 | BJ120: 1.298 | BK120: 27.3 | BL120: 652.5 | BM120: 12.7 | BN120: 540.5 | BO120: 13 | BP120: 705 | BQ120: 12.7 | BR120: 7388 | BS120: 10 | BT120: 1536 | BU120: 11.5 | BV120: 90.3 | BW120: 85.67 | BX120: -1.69 | BY120: 113.9 | BZ120: 100 | CA120: 0.17 | CB120: 115.1 | CC120: 100 | CD120: -0.02 | CE120: 114.8 | CF120: 100 | CG120: -0.02 | CH120: 124.2 | CI120: 100 | CJ120: -0.21 | CK120: 78.76 | CL120: 74.86 | CM120: -2.59 | CN120: 92.5 | CO120: 87.94 | CP120: -0.4 | CQ120: 107.2 | CR120: 100 | CS120: 1.13 | CT120: 113 | CU120: 100 | CV120: -0.31 | CW120: 90.4 | CX120: 85.65 | CY120: -2.32 | CZ120: 62.63 | DA120: 59.59 | DB120: -5.09 | DC120: 73.22 | DD120: 69.56 | DE120: -3.72 | DI120: -2.355 | DJ120: 90.4 | DK120: 90.4 | DL120: -3.75 | DM120: 0.255 | DN120: 0.756 | DO120: 0.193 | DP120: 0.817 | DQ120: -0.088 | DR120: 0.397 | DS120: -0.09 | DT120: 0.801 | DU120: -0.265 | DV120: -0.276 | DW120: 1.153 | DX120: 1.413 | DY120: 1.277 | DZ120: 1.895 | EA120: 1.146 | EB120: 1.691
A121: 2012-12-17T09:00:00 | B121: -0.42 | C121: 0.584 | D121: -0.435 | E121: 0.572 | F121: 1.527 | H121: 1.012 | J121: 860 | K121: 12.3 | L121: 63.53 | M121: 16.3 | N121: 8.24 | O121: 21 | P121: 592.3 | Q121: 12.8 | R121: 1.772 | S121: 26 | T121: 3.994 | U121: 23.2 | V121: 740.6 | W121: 12.5 | X121: 10.81 | Y121: 20.3 | Z121: 1.269 | AA121: 27.3 | AB121: 89.9 | AC121: 15.6 | AD121: 0.769 | AE121: 29.5 | AF121: 0.045 | AG121: 48.2 | AH121: 357.2 | AI121: 13.6 | AJ121: 0.705 | AK121: 29.9 | AL121: 0.202 | AM121: 36.7 | AN121: 6699 | AO121: 10.1 | AP121: 1711 | AQ121: 11.5 | AR121: 2908 | AS121: 10.9 | AT121: 127.3 | AU121: 14.9 | AV121: 31.12 | AW121: 17.6 | AX121: 7.223 | AY121: 21.2 | AZ121: 87.6 | BA121: 15.6 | BB121: 6.142 | BC121: 21.7 | BD121: 0.39 | BE121: 32.6 | BF121: 28.1 | BG121: 18 | BH121: 0.014 | BI121: 61.5 | BJ121: 1.306 | BK121: 27.3 | BL121: 644.8 | BM121: 12.7 | BN121: 541.6 | BO121: 13 | BP121: 702.8 | BQ121: 12.7 | BR121: 7891 | BS121: 9.9 | BT121: 1584 | BU121: 11.5 | BV121: 90.4 | BW121: 85.76 | BX121: -1.72 | BY121: 113.9 | BZ121: 100 | CA121: 0.12 | CB121: 115.2 | CC121: 100 | CD121: -0.08 | CE121: 114.9 | CF121: 100 | CG121: -0.05 | CH121: 124.2 | CI121: 100 | CJ121: -0.23 | CK121: 78.61 | CL121: 74.7 | CM121: -2.69 | CN121: 92.6 | CO121: 88.02 | CP121: -0.47 | CQ121: 107.2 | CR121: 100 | CS121: 1.06 | CT121: 113 | CU121: 100 | CV121: -0.37 | CW121: 90.4 | CX121: 85.64 | CY121: -2.39 | CZ121: 62.69 | DA121: 59.63 | DB121: -5.16 | DC121: 73.94 | DD121: 70.26 | DE121: -3.54 | DI121: -1.938 | DJ121: 91 | DK121: 91 | DL121: -3.21 | DM121: 0.206 | DN121: 0.729 | DO121: 0.145 | DP121: 0.792 | DQ121: -0.141 | DR121: 0.348 | DS121: -0.119 | DT121: 0.778 | DU121: -0.288 | DV121: -0.271 | DW121: 1.077 | DX121: 1.37 | DY121: 1.195 | DZ121: 1.843 | EA121: 1.074 | EB121: 1.636
A122: 2012-12-17T10:00:00 | B122: -0.468 | C122: 0.541 | D122: -0.485 | E122: 0.574 | F122: 1.449 | H122: 1.093 | J122: 857 | K122: 12.3 | L122: 63.54 | M122: 16.4 | N122: 8.26 | O122: 21 | P122: 579.2 | Q122: 12.8 | R122: 1.773 | S122: 26 | T122: 3.999 | U122: 23.2 | V122: 734.1 | W122: 12.5 | X122: 10.77 | Y122: 20.3 | Z122: 1.272 | AA122: 27.3 | AB122: 89.8 | AC122: 15.6 | AD122: 0.774 | AE122: 29.4 | AF122: 0.045 | AG122: 48.2 | AH122: 353.1 | AI122: 13.6 | AJ122: 0.706 | AK122: 29.9 | AL122: 0.203 | AM122: 36.6 | AN122: 6686 | AO122: 10.1 | AP122: 1722 | AQ122: 11.5 | AR122: 2897 | AS122: 10.9 | AT122: 128.5 | AU122: 14.9 | AV122: 31.58 | AW122: 17.6 | AX122: 7.414 | AY122: 21.2 | AZ122: 87.9 | BA122: 15.6 | BB122: 6.184 | BC122: 21.7 | BD122: 0.392 | BE122: 32.5 | BF122: 28.12 | BG122: 18 | BH122: 0.014 | BI122: 61.6 | BJ122: 1.318 | BK122: 27.2 | BL122: 640.1 | BM122: 12.7 | BN122: 544.4 | BO122: 13 | BP122: 707.2 | BQ122: 12.7 | BR122: 7944 | BS122: 9.9 | BT122: 1597 | BU122: 11.5 | BV122: 90.4 | BW122: 85.75 | BX122: -1.76 | BY122: 113.9 | BZ122: 100 | CA122: 0.08 | CB122: 115.2 | CC122: 100 | CD122: -0.12 | CE122: 114.9 | CF122: 100 | CG122: -0.08 | CH122: 124.3 | CI122: 100 | CJ122: -0.24 | CK122: 78.39 | CL122: 74.49 | CM122: -2.79 | CN122: 92.5 | CO122: 87.91 | CP122: -0.55 | CQ122: 107.1 | CR122: 100 | CS122: 0.99 | CT122: 113.1 | CU122: 100 | CV122: -0.43 | CW122: 90.5 | CX122: 85.73 | CY122: -2.43 | CZ122: 62.81 | DA122: 59.74 | DB122: -5.21 | DC122: 74.95 | DD122: 71.23 | DE122: -3.29 | DI122: -1.587 | DJ122: 92.8 | DK122: 92.8 | DL122: -2.59 | DM122: 0.166 | DN122: 0.697 | DO122: 0.107 | DP122: 0.783 | DQ122: -0.183 | DR122: 0.31 | DS122: -0.148 | DT122: 0.764 | DU122: -0.295 | DV122: -0.23 | DW122: 1.015 | DX122: 1.353 | DY122: 1.122 | DZ122: 1.8 | EA122: 1.009 | EB122: 1.593
A123: 2012-12-17T11:00:00 | B123: -0.496 | C123: 0.526 | D123: -0.512 | E123: 0.598 | F123: 1.392 | H123: 1.192 | J123: 858 | K123: 12.3 | L123: 63.37 | M123: 16.4 | N123: 8.29 | O123: 21 | P123: 552.5 | Q123: 12.9 | R123: 1.775 | S123: 26 | T123: 3.988 | U123: 23.2 | V123: 729.6 | W123: 12.6 | X123: 10.75 | Y123: 20.4 | Z123: 1.274 | AA123: 27.3 | AB123: 89.5 | AC123: 15.7 | AD123: 0.779 | AE123: 29.4 | AF123: 0.045 | AG123: 48.2 | AH123: 348.6 | AI123: 13.6 | AJ123: 0.707 | AK123: 29.9 | AL123: 0.203 | AM123: 36.6 | AN123: 6540 | AO123: 10.1 | AP123: 1718 | AQ123: 11.5 | AR123: 2905 | AS123: 10.9 | AT123: 129.9 | AU123: 14.9 | AV123: 32.06 | AW123: 17.6 | AX123: 7.655 | AY123: 21.1 | AZ123: 87.9 | BA123: 15.6 | BB123: 6.233 | BC123: 21.7 | BD123: 0.395 | BE123: 32.5 | BF123: 28.16 | BG123: 18 | BH123: 0.014 | BI123: 61.6 | BJ123: 1.332 | BK123: 27.2 | BL123: 636.6 | BM123: 12.7 | BN123: 545.9 | BO123: 13 | BP123: 711.7 | BQ123: 12.7 | BR123: 7313 | BS123: 10 | BT123: 1540 | BU123: 11.6 | BV123: 90.5 | BW123: 85.84 | BX123: -1.78 | BY123: 114 | BZ123: 100 | CA123: 0.04 | CB123: 115.2 | CC123: 100 | CD123: -0.15 | CE123: 115 | CF123: 100 | CG123: -0.11 | CH123: 124.2 | CI123: 100 | CJ123: -0.23 | CK123: 77.97 | CL123: 74.08 | CM123: -2.9 | CN123: 91.8 | CO123: 87.24 | CP123: -0.71 | CQ123: 107.2 | CR123: 100 | CS123: 0.93 | CT123: 113.1 | CU123: 100 | CV123: -0.46 | CW123: 90.8 | CX123: 86.01 | CY123: -2.42 | CZ123: 62.86 | DA123: 59.78 | DB123: -5.26 | DC123: 76.06 | DD123: 72.3 | DE123: -3 | DI123: -1.125 | DJ123: 92.9 | DK123: 92.9 | DL123: -2.08 | DM123: 0.133 | DN123: 0.667 | DO123: 0.07 | DP123: 0.766 | DQ123: -0.215 | DR123: 0.287 | DS123: -0.177 | DT123: 0.761 | DU123: -0.286 | DV123: -0.167 | DW123: 0.969 | DX123: 1.352 | DY123: 1.06 | DZ123: 1.78 | EA123: 0.945 | EB123: 1.561
A124: 2012-12-17T12:00:00 | B124: -0.489 | C124: 0.528 | D124: -0.511 | E124: 0.637 | F124: 1.36 | H124: 1.284 | J124: 853 | K124: 12.3 | L124: 63.28 | M124: 16.4 | N124: 8.32 | O124: 21 | P124: 550.7 | Q124: 12.9 | R124: 1.778 | S124: 26 | T124: 3.987 | U124: 23.2 | V124: 720.5 | W124: 12.6 | X124: 10.7 | Y124: 20.4 | Z124: 1.274 | AA124: 27.3 | AB124: 89 | AC124: 15.7 | AD124: 0.783 | AE124: 29.4 | AF124: 0.045 | AG124: 48.2 | AH124: 343.7 | AI124: 13.6 | AJ124: 0.703 | AK124: 29.9 | AL124: 0.204 | AM124: 36.6 | AN124: 6344 | AO124: 10.1 | AP124: 1741 | AQ124: 11.5 | AR124: 2898 | AS124: 10.9 | AT124: 130.2 | AU124: 14.9 | AV124: 32.4 | AW124: 17.6 | AX124: 7.827 | AY124: 21 | AZ124: 87.8 | BA124: 15.6 | BB124: 6.268 | BC124: 21.7 | BD124: 0.396 | BE124: 32.5 | BF124: 28.09 | BG124: 18 | BH124: 0.014 | BI124: 61.6 | BJ124: 1.341 | BK124: 27.2 | BL124: 626.4 | BM124: 12.7 | BN124: 543.7 | BO124: 13 | BP124: 705.9 | BQ124: 12.7 | BR124: 7239 | BS124: 10 | BT124: 1564 | BU124: 11.5 | BV124: 90.6 | BW124: 85.93 | BX124: -1.8 | BY124: 114 | BZ124: 100 | CA124: 0.02 | CB124: 115.2 | CC124: 100 | CD124: -0.18 | CE124: 115 | CF124: 100 | CG124: -0.14 | CH124: 124.3 | CI124: 100 | CJ124: -0.21 | CK124: 77.87 | CL124: 73.98 | CM124: -2.95 | CN124: 91.8 | CO124: 87.23 | CP124: -0.76 | CQ124: 107 | CR124: 100 | CS124: 0.88 | CT124: 113.2 | CU124: 100 | CV124: -0.45 | CW124: 90.8 | CX124: 86.01 | CY124: -2.42 | CZ124: 63.01 | DA124: 59.91 | DB124: -5.26 | DC124: 76.95 | DD124: 73.16 | DE124: -2.77 | DI124: -0.672 | DJ124: 93.3 | DK124: 93.3 | DL124: -1.54 | DM124: 0.101 | DN124: 0.644 | DO124: 0.051 | DP124: 0.761 | DQ124: -0.238 | DR124: 0.268 | DS124: -0.198 | DT124: 0.781 | DU124: -0.27 | DV124: -0.096 | DW124: 0.934 | DX124: 1.356 | DY124: 1.004 | DZ124: 1.776 | EA124: 0.894 | EB124: 1.54
A125: 2012-12-17T13:00:00 | B125: -0.465 | C125: 0.544 | D125: -0.484 | E125: 0.695 | F125: 1.364 | H125: 1.395 | J125: 855 | K125: 12.3 | L125: 63.14 | M125: 16.4 | N125: 8.33 | O125: 21 | P125: 552.9 | Q125: 12.9 | R125: 1.779 | S125: 26 | T125: 3.987 | U125: 23.2 | V125: 712.4 | W125: 12.6 | X125: 10.68 | Y125: 20.4 | Z125: 1.276 | AA125: 27.3 | AB125: 88.6 | AC125: 15.7 | AD125: 0.788 | AE125: 29.4 | AF125: 0.045 | AG125: 48.2 | AH125: 339.4 | AI125: 13.6 | AJ125: 0.708 | AK125: 29.9 | AL125: 0.205 | AM125: 36.6 | AN125: 6366 | AO125: 10.1 | AP125: 1764 | AQ125: 11.4 | AR125: 2924 | AS125: 10.9 | AT125: 130.6 | AU125: 14.9 | AV125: 32.77 | AW125: 17.6 | AX125: 8.02 | AY125: 21 | AZ125: 87.6 | BA125: 15.6 | BB125: 6.298 | BC125: 21.7 | BD125: 0.398 | BE125: 32.5 | BF125: 27.98 | BG125: 18 | BH125: 0.014 | BI125: 61.6 | BJ125: 1.348 | BK125: 27.1 | BL125: 616.7 | BM125: 12.7 | BN125: 540.6 | BO125: 13 | BP125: 698.5 | BQ125: 12.7 | BR125: 7789 | BS125: 9.9 | BT125: 1593 | BU125: 11.5 | BV125: 90.6 | BW125: 85.92 | BX125: -1.82 | BY125: 114 | BZ125: 100 | CA125: 0.01 | CB125: 115.3 | CC125: 100 | CD125: -0.19 | CE125: 115 | CF125: 100 | CG125: -0.14 | CH125: 124.2 | CI125: 100 | CJ125: -0.19 | CK125: 77.74 | CL125: 73.85 | CM125: -2.99 | CN125: 91.9 | CO125: 87.32 | CP125: -0.78 | CQ125: 106.9 | CR125: 100 | CS125: 0.85 | CT125: 113.3 | CU125: 100 | CV125: -0.42 | CW125: 90.8 | CX125: 86.01 | CY125: -2.39 | CZ125: 63.2 | DA125: 60.1 | DB125: -5.21 | DC125: 77.35 | DD125: 73.56 | DE125: -2.6 | DI125: -0.324 | DJ125: 93.3 | DK125: 93.3 | DL125: -1.17 | DM125: 0.077 | DN125: 0.624 | DO125: 0.035 | DP125: 0.741 | DQ125: -0.245 | DR125: 0.265 | DS125: -0.203 | DT125: 0.813 | DU125: -0.247 | DV125: -0.018 | DW125: 0.914 | DX125: 1.376 | DY125: 0.968 | DZ125: 1.781 | EA125: 0.864 | EB125: 1.536
A126: 2012-12-17T14:00:00 | B126: -0.417 | C126: 0.58 | D126: -0.434 | E126: 0.778 | F126: 1.384 | H126: 1.513 | J126: 851 | K126: 12.3 | L126: 62.95 | M126: 16.4 | N126: 8.34 | O126: 21 | P126: 573 | Q126: 12.8 | R126: 1.784 | S126: 26 | T126: 3.995 | U126: 23.2 | V126: 701.9 | W126: 12.6 | X126: 10.64 | Y126: 20.4 | Z126: 1.277 | AA126: 27.3 | AB126: 87.7 | AC126: 15.7 | AD126: 0.791 | AE126: 29.4 | AF126: 0.045 | AG126: 48.2 | AH126: 334.7 | AI126: 13.6 | AJ126: 0.707 | AK126: 29.9 | AL126: 0.205 | AM126: 36.5 | AN126: 6423 | AO126: 10.1 | AP126: 1778 | AQ126: 11.4 | AR126: 2942 | AS126: 10.9 | AT126: 130.3 | AU126: 14.9 | AV126: 33.02 | AW126: 17.6 | AX126: 8.14 | AY126: 20.9 | AZ126: 87.4 | BA126: 15.6 | BB126: 6.316 | BC126: 21.7 | BD126: 0.399 | BE126: 32.5 | BF126: 27.83 | BG126: 18 | BH126: 0.014 | BI126: 61.5 | BJ126: 1.353 | BK126: 27.1 | BL126: 608.1 | BM126: 12.7 | BN126: 537.7 | BO126: 13 | BP126: 697.2 | BQ126: 12.7 | BR126: 7722 | BS126: 9.9 | BT126: 1588 | BU126: 11.5 | BV126: 90.6 | BW126: 85.92 | BX126: -1.83 | BY126: 114 | BZ126: 100 | CA126: 0.09 | CB126: 115.3 | CC126: 100 | CD126: -0.18 | CE126: 114.9 | CF126: 100 | CG126: -0.14 | CH126: 124.2 | CI126: 100 | CJ126: -0.16 | CK126: 77.63 | CL126: 73.75 | CM126: -3.02 | CN126: 91.9 | CO126: 87.31 | CP126: -0.8 | CQ126: 106.8 | CR126: 100 | CS126: 0.82 | CT126: 113.3 | CU126: 100 | CV126: -0.37 | CW126: 90.6 | CX126: 85.83 | CY126: -2.36 | CZ126: 63.34 | DA126: 60.23 | DB126: -5.17 | DC126: 77.57 | DD126: 73.78 | DE126: -2.45 | DI126: 0.002 | DJ126: 92.9 | DK126: 92.9 | DL126: -0.88 | DM126: 0.07 | DN126: 0.569 | DO126: 0.028 | DP126: 0.686 | DQ126: -0.24 | DR126: 0.277 | DS126: -0.202 | DT126: 0.85 | DU126: -0.22 | DV126: 0.059 | DW126: 0.899 | DX126: 1.4 | DY126: 0.944 | DZ126: 1.793 | EA126: 0.838 | EB126: 1.537
A127: 2012-12-17T15:00:00 | B127: -0.36 | C127: 0.629 | D127: -0.358 | E127: 0.851 | F127: 1.43 | H127: 1.609 | J127: 851 | K127: 12.3 | L127: 62.55 | M127: 16.4 | N127: 8.38 | O127: 21 | P127: 558.2 | Q127: 12.9 | R127: 1.785 | S127: 26 | T127: 3.995 | U127: 23.2 | V127: 692.2 | W127: 12.6 | X127: 10.61 | Y127: 20.4 | Z127: 1.278 | AA127: 27.3 | AB127: 87.5 | AC127: 15.7 | AD127: 0.793 | AE127: 29.3 | AF127: 0.045 | AG127: 48.2 | AH127: 330.2 | AI127: 13.6 | AJ127: 0.711 | AK127: 29.8 | AL127: 0.205 | AM127: 36.5 | AN127: 6310 | AO127: 10.1 | AP127: 1801 | AQ127: 11.4 | AR127: 2929 | AS127: 10.9 | AT127: 130 | AU127: 14.9 | AV127: 33.29 | AW127: 17.5 | AX127: 8.31 | AY127: 20.9 | AZ127: 87 | BA127: 15.6 | BB127: 6.337 | BC127: 21.6 | BD127: 0.401 | BE127: 32.5 | BF127: 27.61 | BG127: 18 | BH127: 0.014 | BI127: 61.5 | BJ127: 1.356 | BK127: 27.1 | BL127: 599.2 | BM127: 12.8 | BN127: 533.6 | BO127: 13 | BP127: 694.2 | BQ127: 12.7 | BR127: 7721 | BS127: 9.9 | BT127: 1582 | BU127: 11.5 | BV127: 90.7 | BW127: 86.02 | BX127: -1.82 | BY127: 114.1 | BZ127: 100 | CA127: 0 | CB127: 115.4 | CC127: 100 | CD127: -0.16 | CE127: 115 | CF127: 100 | CG127: -0.14 | CH127: 124.1 | CI127: 100 | CJ127: -0.13 | CK127: 77.56 | CL127: 73.68 | CM127: -3.03 | CN127: 92.1 | CO127: 87.5 | CP127: -0.79 | CQ127: 106.7 | CR127: 100 | CS127: 0.81 | CT127: 113.4 | CU127: 100 | CV127: -0.31 | CW127: 90.5 | CX127: 85.75 | CY127: -2.29 | CZ127: 63.53 | DA127: 60.42 | DB127: -5.08 | DC127: 77.82 | DD127: 74.03 | DE127: -2.32 | DI127: 0.22 | DJ127: 93.5 | DK127: 93.5 | DL127: -0.6 | DM127: 0.067 | DN127: 0.548 | DO127: 0.033 | DP127: 0.664 | DQ127: -0.219 | DR127: 0.307 | DS127: -0.201 | DT127: 0.888 | DU127: -0.193 | DV127: 0.125 | DW127: 0.899 | DX127: 1.43 | DY127: 0.93 | DZ127: 1.807 | EA127: 0.826 | EB127: 1.548
A128: 2012-12-17T16:00:00 | B128: -0.288 | C128: 0.671 | D128: -0.275 | E128: 0.909 | F128: 1.492 | H128: 1.639 | J128: 841 | K128: 12.3 | L128: 62.04 | M128: 16.4 | N128: 8.35 | O128: 21 | P128: 543.5 | Q128: 12.9 | R128: 1.779 | S128: 26 | T128: 3.981 | U128: 23.2 | V128: 678.3 | W128: 12.6 | X128: 10.5 | Y128: 20.4 | Z128: 1.273 | AA128: 27.3 | AB128: 86.6 | AC128: 15.7 | AD128: 0.793 | AE128: 29.3 | AF128: 0.045 | AG128: 48.2 | AH128: 325.7 | AI128: 13.7 | AJ128: 0.704 | AK128: 29.9 | AL128: 0.206 | AM128: 36.5 | AN128: 6244 | AO128: 10.1 | AP128: 1794 | AQ128: 11.4 | AR128: 2928 | AS128: 10.9 | AT128: 129.2 | AU128: 14.9 | AV128: 33.43 | AW128: 17.5 | AX128: 8.37 | AY128: 20.9 | AZ128: 86.6 | BA128: 15.6 | BB128: 6.349 | BC128: 21.6 | BD128: 0.403 | BE128: 32.4 | BF128: 27.32 | BG128: 18 | BH128: 0.014 | BI128: 61.5 | BJ128: 1.353 | BK128: 27.1 | BL128: 588.9 | BM128: 12.8 | BN128: 529.4 | BO128: 13 | BP128: 682.8 | BQ128: 12.7 | BR128: 7418 | BS128: 10 | BT128: 1540 | BU128: 11.5 | BV128: 90.8 | BW128: 86.11 | BX128: -1.8 | BY128: 114.1 | BZ128: 100 | CA128: 0.01 | CB128: 115.4 | CC128: 100 | CD128: -0.13 | CE128: 115 | CF128: 100 | CG128: -0.13 | CH128: 124.2 | CI128: 100 | CJ128: -0.1 | CK128: 77.4 | CL128: 73.53 | CM128: -3.05 | CN128: 91.9 | CO128: 87.31 | CP128: -0.82 | CQ128: 106.6 | CR128: 100 | CS128: 0.79 | CT128: 113.4 | CU128: 100 | CV128: -0.23 | CW128: 90.8 | CX128: 86.05 | CY128: -2.16 | CZ128: 63.63 | DA128: 60.52 | DB128: -5.01 | DC128: 79.13 | DD128: 75.29 | DE128: -2.07 | DI128: 0.233 | DJ128: 94.1 | DK128: 94.1 | DL128: -0.5 | DM128: 0.069 | DN128: 0.573 | DO128: 0.04 | DP128: 0.677 | DQ128: -0.194 | DR128: 0.341 | DS128: -0.195 | DT128: 0.922 | DU128: -0.164 | DV128: 0.202 | DW128: 0.904 | DX128: 1.464 | DY128: 0.927 | DZ128: 1.831 | EA128: 0.811 | EB128: 1.565
A129: 2012-12-17T17:00:00 | B129: -0.219 | C129: 0.714 | D129: -0.19 | E129: 0.965 | F129: 1.555 | H129: 1.698 | J129: 836 | K129: 12.4 | L129: 61.5 | M129: 16.4 | N129: 8.35 | O129: 21 | P129: 545.5 | Q129: 12.9 | R129: 1.783 | S129: 26 | T129: 3.969 | U129: 23.2 | V129: 664.7 | W129: 12.7 | X129: 10.44 | Y129: 20.4 | Z129: 1.274 | AA129: 27.3 | AB129: 86.2 | AC129: 15.7 | AD129: 0.793 | AE129: 29.3 | AF129: 0.045 | AG129: 48.2 | AH129: 321 | AI129: 13.7 | AJ129: 0.71 | AK129: 29.8 | AL129: 0.206 | AM129: 36.5 | AN129: 6201 | AO129: 10.1 | AP129: 1800 | AQ129: 11.4 | AR129: 2891 | AS129: 10.9 | AT129: 128.3 | AU129: 14.9 | AV129: 33.56 | AW129: 17.5 | AX129: 8.5 | AY129: 20.8 | AZ129: 86.2 | BA129: 15.6 | BB129: 6.362 | BC129: 21.6 | BD129: 0.404 | BE129: 32.4 | BF129: 26.99 | BG129: 18 | BH129: 0.014 | BI129: 61.5 | BJ129: 1.351 | BK129: 27.1 | BL129: 582.1 | BM129: 12.8 | BN129: 525.8 | BO129: 13 | BP129: 680.2 | BQ129: 12.7 | BR129: 7283 | BS129: 10 | BT129: 1533 | BU129: 11.5 | BV129: 90.9 | BW129: 86.21 | BX129: -1.78 | BY129: 114.1 | BZ129: 100 | CA129: 0.03 | CB129: 115.5 | CC129: 100 | CD129: -0.1 | CE129: 115 | CF129: 100 | CG129: -0.12 | CH129: 124.1 | CI129: 100 | CJ129: -0.06 | CK129: 77.41 | CL129: 73.54 | CM129: -3.04 | CN129: 91.9 | CO129: 87.31 | CP129: -0.82 | CQ129: 106.5 | CR129: 100 | CS129: 0.8 | CT129: 113.4 | CU129: 100 | CV129: -0.16 | CW129: 91 | CX129: 86.26 | CY129: -2.04 | CZ129: 63.75 | DA129: 60.64 | DB129: -4.92 | DC129: 79.22 | DD129: 75.38 | DE129: -2 | DI129: 0.371 | DJ129: 94 | DK129: 94 | DL129: -0.39 | DM129: 0.078 | DN129: 0.604 | DO129: 0.058 | DP129: 0.708 | DQ129: -0.161 | DR129: 0.382 | DS129: -0.18 | DT129: 0.959 | DU129: -0.128 | DV129: 0.261 | DW129: 0.921 | DX129: 1.483 | DY129: 0.928 | DZ129: 1.844 | EA129: 0.817 | EB129: 1.578
A130: 2012-12-17T18:00:00 | B130: -0.15 | C130: 0.76 | D130: -0.113 | E130: 1.015 | F130: 1.612 | H130: 1.74 | J130: 822 | K130: 12.4 | L130: 60.86 | M130: 16.4 | N130: 8.34 | O130: 21 | P130: 563 | Q130: 12.8 | R130: 1.779 | S130: 26 | T130: 3.954 | U130: 23.2 | V130: 653.2 | W130: 12.7 | X130: 10.35 | Y130: 20.4 | Z130: 1.271 | AA130: 27.3 | AB130: 84.9 | AC130: 15.7 | AD130: 0.792 | AE130: 29.3 | AF130: 0.045 | AG130: 48.2 | AH130: 316.3 | AI130: 13.7 | AJ130: 0.708 | AK130: 29.8 | AL130: 0.206 | AM130: 36.5 | AN130: 6044 | AO130: 10.1 | AP130: 1806 | AQ130: 11.4 | AR130: 2895 | AS130: 10.9 | AT130: 127.4 | AU130: 14.9 | AV130: 33.67 | AW130: 17.5 | AX130: 8.65 | AY130: 20.8 | AZ130: 85.6 | BA130: 15.6 | BB130: 6.362 | BC130: 21.6 | BD130: 0.404 | BE130: 32.4 | BF130: 26.74 | BG130: 18 | BH130: 0.014 | BI130: 61.4 | BJ130: 1.351 | BK130: 27.1 | BL130: 574.5 | BM130: 12.8 | BN130: 522.2 | BO130: 13 | BP130: 673.4 | BQ130: 12.7 | BR130: 7638 | BS130: 9.9 | BT130: 1548 | BU130: 11.5 | BV130: 91 | BW130: 86.31 | BX130: -1.74 | BY130: 114.2 | BZ130: 100 | CA130: 0.05 | CB130: 115.5 | CC130: 100 | CD130: -0.06 | CE130: 115 | CF130: 100 | CG130: -0.11 | CH130: 124.1 | CI130: 100 | CJ130: -0.03 | CK130: 77.22 | CL130: 73.36 | CM130: -3.05 | CN130: 91.6 | CO130: 87.03 | CP130: -0.85 | CQ130: 106.3 | CR130: 100 | CS130: 0.8 | CT130: 113.4 | CU130: 100 | CV130: -0.09 | CW130: 91.1 | CX130: 86.36 | CY130: -1.94 | CZ130: 63.86 | DA130: 60.75 | DB130: -4.85 | DC130: 80.1 | DD130: 76.22 | DE130: -1.82 | DI130: 0.454 | DJ130: 94.8 | DK130: 94.8 | DL130: -0.2 | DM130: 0.106 | DN130: 0.63 | DO130: 0.081 | DP130: 0.741 | DQ130: -0.125 | DR130: 0.435 | DS130: -0.172 | DT130: 0.997 | DU130: -0.102 | DV130: 0.318 | DW130: 0.942 | DX130: 1.517 | DY130: 0.94 | DZ130: 1.865 | EA130: 0.814 | EB130: 1.597
A131: 2012-12-17T19:00:00 | B131: -0.088 | C131: 0.803 | D131: -0.034 | E131: 1.062 | F131: 1.654 | H131: 1.788 | J131: 816 | K131: 12.4 | L131: 60.18 | M131: 16.5 | N131: 8.31 | O131: 21 | P131: 528.6 | Q131: 12.9 | R131: 1.776 | S131: 26 | T131: 3.936 | U131: 23.2 | V131: 639.3 | W131: 12.7 | X131: 10.27 | Y131: 20.5 | Z131: 1.267 | AA131: 27.3 | AB131: 84.1 | AC131: 15.7 | AD131: 0.79 | AE131: 29.4 | AF131: 0.045 | AG131: 48.2 | AH131: 312.3 | AI131: 13.7 | AJ131: 0.709 | AK131: 29.8 | AL131: 0.206 | AM131: 36.5 | AN131: 5984 | AO131: 10.1 | AP131: 1826 | AQ131: 11.4 | AR131: 2905 | AS131: 10.9 | AT131: 126.5 | AU131: 14.9 | AV131: 33.75 | AW131: 17.5 | AX131: 8.79 | AY131: 20.7 | AZ131: 85.1 | BA131: 15.6 | BB131: 6.371 | BC131: 21.6 | BD131: 0.405 | BE131: 32.4 | BF131: 26.44 | BG131: 18.1 | BH131: 0.014 | BI131: 61.4 | BJ131: 1.352 | BK131: 27.1 | BL131: 567.2 | BM131: 12.8 | BN131: 518.3 | BO131: 13 | BP131: 668.9 | BQ131: 12.7 | BR131: 7639 | BS131: 9.9 | BT131: 1549 | BU131: 11.5 | BV131: 91.1 | BW131: 86.41 | BX131: -1.7 | BY131: 114.2 | BZ131: 100 | CA131: 0.08 | CB131: 115.5 | CC131: 100 | CD131: -0.02 | CE131: 115 | CF131: 100 | CG131: -0.08 | CH131: 124.1 | CI131: 100 | CJ131: 0.01 | CK131: 77.25 | CL131: 73.4 | CM131: -3.02 | CN131: 91.4 | CO131: 86.84 | CP131: -0.86 | CQ131: 106.3 | CR131: 100 | CS131: 0.8 | CT131: 113.5 | CU131: 100 | CV131: -0.02 | CW131: 91.3 | CX131: 86.57 | CY131: -1.83 | CZ131: 63.93 | DA131: 60.83 | DB131: -4.79 | DC131: 80.6 | DD131: 76.71 | DE131: -1.69 | DI131: 0.505 | DJ131: 94.8 | DK131: 94.8 | DL131: -0.15 | DM131: 0.13 | DN131: 0.67 | DO131: 0.108 | DP131: 0.789 | DQ131: -0.093 | DR131: 0.482 | DS131: -0.149 | DT131: 1.037 | DU131: -0.063 | DV131: 0.374 | DW131: 0.97 | DX131: 1.55 | DY131: 0.956 | DZ131: 1.889 | EA131: 0.821 | EB131: 1.612
A132: 2012-12-17T20:00:00 | B132: -0.029 | C132: 0.857 | D132: 0.045 | E132: 1.107 | F132: 1.692 | H132: 1.838 | J132: 806 | K132: 12.4 | L132: 59.63 | M132: 16.5 | N132: 8.29 | O132: 21 | P132: 539.6 | Q132: 12.9 | R132: 1.771 | S132: 26 | T132: 3.931 | U132: 23.2 | V132: 627.8 | W132: 12.7 | X132: 10.21 | Y132: 20.5 | Z132: 1.268 | AA132: 27.3 | AB132: 83.1 | AC132: 15.7 | AD132: 0.788 | AE132: 29.4 | AF132: 0.045 | AG132: 48.2 | AH132: 307.8 | AI132: 13.7 | AJ132: 0.709 | AK132: 29.8 | AL132: 0.206 | AM132: 36.5 | AN132: 5953 | AO132: 10.2 | AP132: 1811 | AQ132: 11.4 | AR132: 2909 | AS132: 10.9 | AT132: 125.1 | AU132: 14.9 | AV132: 33.76 | AW132: 17.5 | AX132: 8.78 | AY132: 20.7 | AZ132: 84.5 | BA132: 15.6 | BB132: 6.38 | BC132: 21.6 | BD132: 0.404 | BE132: 32.4 | BF132: 26.19 | BG132: 18.1 | BH132: 0.014 | BI132: 61.4 | BJ132: 1.354 | BK132: 27 | BL132: 559 | BM132: 12.8 | BN132: 514.9 | BO132: 13 | BP132: 659.7 | BQ132: 12.7 | BR132: 7855 | BS132: 9.9 | BT132: 1547 | BU132: 11.5 | BV132: 91.2 | BW132: 86.51 | BX132: -1.66 | BY132: 114.2 | BZ132: 100 | CA132: 0.11 | CB132: 115.5 | CC132: 100 | CD132: 0.01 | CE132: 115 | CF132: 100 | CG132: -0.05 | CH132: 124.1 | CI132: 100 | CJ132: 0.04 | CK132: 77.25 | CL132: 73.4 | CM132: -2.99 | CN132: 91.9 | CO132: 87.31 | CP132: -0.79 | CQ132: 106.1 | CR132: 100 | CS132: 0.82 | CT132: 113.4 | CU132: 100 | CV132: 0.04 | CW132: 91.2 | CX132: 86.49 | CY132: -1.77 | CZ132: 64.11 | DA132: 61 | DB132: -4.72 | DC132: 80.5 | DD132: 76.62 | DE132: -1.66 | DI132: 0.623 | DJ132: 95.2 | DK132: 95.2 | DL132: 0.02 | DM132: 0.158 | DN132: 0.722 | DO132: 0.133 | DP132: 0.836 | DQ132: -0.059 | DR132: 0.535 | DS132: -0.12 | DT132: 1.076 | DU132: -0.034 | DV132: 0.417 | DW132: 1 | DX132: 1.576 | DY132: 0.961 | DZ132: 1.9 | EA132: 0.835 | EB132: 1.627
A133: 2012-12-17T21:00:00 | B133: 0.026 | C133: 0.897 | D133: 0.113 | E133: 1.164 | F133: 1.715 | H133: 1.896 | J133: 797.5 | K133: 12.4 | L133: 58.98 | M133: 16.5 | N133: 8.29 | O133: 21 | P133: 504 | Q133: 13 | R133: 1.767 | S133: 26 | T133: 3.915 | U133: 23.2 | V133: 615.1 | W133: 12.7 | X133: 10.12 | Y133: 20.5 | Z133: 1.262 | AA133: 27.3 | AB133: 82.4 | AC133: 15.8 | AD133: 0.786 | AE133: 29.4 | AF133: 0.045 | AG133: 48.2 | AH133: 305.4 | AI133: 13.7 | AJ133: 0.709 | AK133: 29.8 | AL133: 0.207 | AM133: 36.4 | AN133: 5847 | AO133: 10.2 | AP133: 1820 | AQ133: 11.4 | AR133: 2867 | AS133: 10.9 | AT133: 124.3 | AU133: 14.9 | AV133: 33.83 | AW133: 17.5 | AX133: 8.92 | AY133: 20.7 | AZ133: 84 | BA133: 15.7 | BB133: 6.386 | BC133: 21.6 | BD133: 0.406 | BE133: 32.4 | BF133: 25.94 | BG133: 18.1 | BH133: 0.014 | BI133: 61.4 | BJ133: 1.357 | BK133: 27 | BL133: 552.7 | BM133: 12.8 | BN133: 511 | BO133: 13 | BP133: 657.9 | BQ133: 12.7 | BR133: 7589 | BS133: 9.9 | BT133: 1539 | BU133: 11.5 | BV133: 91.3 | BW133: 86.61 | BX133: -1.62 | BY133: 114.1 | BZ133: 100 | CA133: 0.13 | CB133: 115.5 | CC133: 100 | CD133: 0.05 | CE133: 115 | CF133: 100 | CG133: -0.04 | CH133: 124.1 | CI133: 100 | CJ133: 0.07 | CK133: 77.21 | CL133: 73.37 | CM133: -2.97 | CN133: 91.4 | CO133: 86.84 | CP133: -0.84 | CQ133: 106 | CR133: 100 | CS133: 0.83 | CT133: 113.4 | CU133: 100 | CV133: 0.09 | CW133: 91.3 | CX133: 86.59 | CY133: -1.69 | CZ133: 64.16 | DA133: 61.05 | DB133: -4.69 | DC133: 81.3 | DD133: 77.39 | DE133: -1.48 | DI133: 0.809 | DJ133: 95.4 | DK133: 95.4 | DL133: 0.13 | DM133: 0.184 | DN133: 0.756 | DO133: 0.159 | DP133: 0.868 | DQ133: -0.028 | DR133: 0.592 | DS133: -0.107 | DT133: 1.11 | DU133: -0.005 | DV133: 0.461 | DW133: 1.03 | DX133: 1.612 | DY133: 0.983 | DZ133: 1.923 | EA133: 0.849 | EB133: 1.647
A134: 2012-12-17T22:00:00 | B134: 0.078 | C134: 0.942 | D134: 0.177 | E134: 1.212 | F134: 1.74 | H134: 1.961 | J134: 786.7 | K134: 12.4 | L134: 58.34 | M134: 16.5 | N134: 8.28 | O134: 21 | P134: 488.7 | Q134: 13 | R134: 1.759 | S134: 26 | T134: 3.889 | U134: 23.2 | V134: 602.7 | W134: 12.8 | X134: 10.06 | Y134: 20.5 | Z134: 1.26 | AA134: 27.3 | AB134: 81.4 | AC134: 15.8 | AD134: 0.784 | AE134: 29.4 | AF134: 0.044 | AG134: 48.4 | AH134: 300.1 | AI134: 13.7 | AJ134: 0.71 | AK134: 29.8 | AL134: 0.207 | AM134: 36.4 | AN134: 5744 | AO134: 10.2 | AP134: 1819 | AQ134: 11.4 | AR134: 2874 | AS134: 10.9 | AT134: 122.9 | AU134: 15 | AV134: 33.86 | AW134: 17.5 | AX134: 9.01 | AY134: 20.6 | AZ134: 83.4 | BA134: 15.7 | BB134: 6.39 | BC134: 21.6 | BD134: 0.407 | BE134: 32.4 | BF134: 25.65 | BG134: 18.1 | BH134: 0.014 | BI134: 61.3 | BJ134: 1.359 | BK134: 27 | BL134: 545.3 | BM134: 12.8 | BN134: 508.9 | BO134: 13 | BP134: 653.3 | BQ134: 12.7 | BR134: 7770 | BS134: 9.9 | BT134: 1533 | BU134: 11.5 | BV134: 91.3 | BW134: 86.61 | BX134: -1.59 | BY134: 114.1 | BZ134: 100 | CA134: 0.16 | CB134: 115.5 | CC134: 100 | CD134: 0.07 | CE134: 115 | CF134: 100 | CG134: -0.02 | CH134: 124 | CI134: 100 | CJ134: 0.09 | CK134: 77.21 | CL134: 73.37 | CM134: -2.93 | CN134: 91.4 | CO134: 86.85 | CP134: -0.82 | CQ134: 105.9 | CR134: 100 | CS134: 0.85 | CT134: 113.4 | CU134: 100 | CV134: 0.05 | CW134: 91.3 | CX134: 86.6 | CY134: -1.63 | CZ134: 64.28 | DA134: 61.17 | DB134: -4.64 | DC134: 81.7 | DD134: 77.78 | DE134: -1.35 | DI134: 0.863 | DJ134: 95.5 | DK134: 95.5 | DL134: 0.2 | DM134: 0.212 | DN134: 0.818 | DO134: 0.187 | DP134: 0.92 | DQ134: 0.004 | DR134: 0.638 | DS134: -0.091 | DT134: 1.142 | DU134: 0.02 | DV134: 0.509 | DW134: 1.066 | DX134: 1.649 | DY134: 1.004 | DZ134: 1.95 | EA134: 0.866 | EB134: 1.674
A135: 2012-12-17T23:00:00 | B135: 0.136 | C135: 0.99 | D135: 0.243 | E135: 1.257 | F135: 1.763 | H135: 2.001 | J135: 779.7 | K135: 12.4 | L135: 57.78 | M135: 16.5 | N135: 8.29 | O135: 21 | P135: 493.9 | Q135: 13 | R135: 1.763 | S135: 26 | T135: 3.89 | U135: 23.2 | V135: 590.2 | W135: 12.8 | X135: 10.04 | Y135: 20.5 | Z135: 1.26 | AA135: 27.3 | AB135: 80.4 | AC135: 15.8 | AD135: 0.783 | AE135: 29.4 | AF135: 0.044 | AG135: 48.4 | AH135: 296.4 | AI135: 13.8 | AJ135: 0.716 | AK135: 29.8 | AL135: 0.208 | AM135: 36.4 | AN135: 5591 | AO135: 10.2 | AP135: 1811 | AQ135: 11.4 | AR135: 2844 | AS135: 10.9 | AT135: 121.3 | AU135: 15 | AV135: 33.8 | AW135: 17.5 | AX135: 9.08 | AY135: 20.6 | AZ135: 82.8 | BA135: 15.7 | BB135: 6.393 | BC135: 21.6 | BD135: 0.406 | BE135: 32.4 | BF135: 25.35 | BG135: 18.1 | BH135: 0.014 | BI135: 61.3 | BJ135: 1.363 | BK135: 27 | BL135: 543.2 | BM135: 12.8 | BN135: 506.5 | BO135: 13 | BP135: 656.1 | BQ135: 12.7 | BR135: 7573 | BS135: 9.9 | BT135: 1532 | BU135: 11.5 | BV135: 91.3 | BW135: 86.62 | BX135: -1.56 | BY135: 114.2 | BZ135: 100 | CA135: 0.19 | CB135: 115.5 | CC135: 100 | CD135: 0.01 | CE135: 114.9 | CF135: 100 | CG135: 0 | CH135: 124 | CI135: 100 | CJ135: 0.03 | CK135: 77.2 | CL135: 73.37 | CM135: -2.9 | CN135: 91.5 | CO135: 86.94 | CP135: -0.79 | CQ135: 105.8 | CR135: 100 | CS135: 0.87 | CT135: 113.4 | CU135: 100 | CV135: 0.11 | CW135: 91.3 | CX135: 86.62 | CY135: -1.56 | CZ135: 64.41 | DA135: 61.3 | DB135: -4.59 | DC135: 82 | DD135: 78.07 | DE135: -1.27 | DI135: 0.973 | DJ135: 95.4 | DK135: 95.4 | DL135: 0.3 | DM135: 0.247 | DN135: 0.871 | DO135: 0.215 | DP135: 0.972 | DQ135: 0.036 | DR135: 0.688 | DS135: -0.068 | DT135: 1.18 | DU135: 0.058 | DV135: 0.554 | DW135: 1.101 | DX135: 1.677 | DY135: 1.018 | DZ135: 1.974 | EA135: 0.888 | EB135: 1.694
A136: 2012-12-18 | B136: 0.197 | C136: 1.036 | D136: 0.306 | E136: 1.316 | F136: 1.783 | H136: 2.057 | J136: 768.7 | K136: 12.4 | L136: 57.23 | M136: 16.5 | N136: 8.26 | O136: 21 | P136: 500.8 | Q136: 13 | R136: 1.76 | S136: 26 | T136: 3.876 | U136: 23.2 | V136: 578.5 | W136: 12.8 | X136: 9.97 | Y136: 20.5 | Z136: 1.256 | AA136: 27.3 | AB136: 79.5 | AC136: 15.8 | AD136: 0.783 | AE136: 29.4 | AF136: 0.044 | AG136: 48.4 | AH136: 291.4 | AI136: 13.8 | AJ136: 0.713 | AK136: 29.8 | AL136: 0.208 | AM136: 36.4 | AN136: 5514 | AO136: 10.2 | AP136: 1804 | AQ136: 11.4 | AR136: 2842 | AS136: 10.9 | AT136: 120 | AU136: 15 | AV136: 33.76 | AW136: 17.5 | AX136: 9.16 | AY136: 20.6 | AZ136: 82.2 | BA136: 15.7 | BB136: 6.394 | BC136: 21.6 | BD136: 0.408 | BE136: 32.3 | BF136: 25.1 | BG136: 18.1 | BH136: 0.014 | BI136: 61.3 | BJ136: 1.369 | BK136: 27 | BL136: 532.7 | BM136: 12.9 | BN136: 502.3 | BO136: 13 | BP136: 648.8 | BQ136: 12.7 | BR136: 7356 | BS136: 9.9 | BT136: 1516 | BU136: 11.5 | BV136: 91.5 | BW136: 86.81 | BX136: -1.5 | BY136: 114.2 | BZ136: 100 | CA136: 0.22 | CB136: 115.5 | CC136: 100 | CD136: 0.04 | CE136: 115 | CF136: 100 | CG136: 0.01 | CH136: 124 | CI136: 100 | CJ136: 0.05 | CK136: 77.11 | CL136: 73.29 | CM136: -2.88 | CN136: 91.1 | CO136: 86.57 | CP136: -0.81 | CQ136: 105.7 | CR136: 100 | CS136: 0.89 | CT136: 113.4 | CU136: 100 | CV136: 0.17 | CW136: 91.6 | CX136: 86.91 | CY136: -1.46 | CZ136: 64.46 | DA136: 61.35 | DB136: -4.57 | DC136: 83 | DD136: 79.04 | DE136: -1.06 | DI136: 1.186 | DJ136: 95.3 | DK136: 95.3 | DL136: 0.5 | DM136: 0.276 | DN136: 0.91 | DO136: 0.243 | DP136: 1.014 | DQ136: 0.067 | DR136: 0.748 | DS136: -0.059 | DT136: 1.202 | DU136: 0.083 | DV136: 0.611 | DW136: 1.139 | DX136: 1.72 | DY136: 1.059 | DZ136: 2.008 | EA136: 0.908 | EB136: 1.727
A137: 2012-12-18T01:00:00 | B137: 0.26 | C137: 1.093 | D137: 0.373 | E137: 1.366 | F137: 1.81 | H137: 2.117 | J137: 756.8 | K137: 12.4 | L137: 56.68 | M137: 16.6 | N137: 8.27 | O137: 21 | P137: 488.2 | Q137: 13 | R137: 1.757 | S137: 26 | T137: 3.87 | U137: 23.2 | V137: 567.3 | W137: 12.8 | X137: 9.91 | Y137: 20.5 | Z137: 1.255 | AA137: 27.3 | AB137: 78.32 | AC137: 15.8 | AD137: 0.78 | AE137: 29.4 | AF137: 0.044 | AG137: 48.4 | AH137: 287.6 | AI137: 13.8 | AJ137: 0.714 | AK137: 29.8 | AL137: 0.208 | AM137: 36.4 | AN137: 5431 | AO137: 10.2 | AP137: 1804 | AQ137: 11.4 | AR137: 2818 | AS137: 10.9 | AT137: 118.5 | AU137: 15 | AV137: 33.72 | AW137: 17.5 | AX137: 9.21 | AY137: 20.6 | AZ137: 81.5 | BA137: 15.7 | BB137: 6.396 | BC137: 21.6 | BD137: 0.408 | BE137: 32.3 | BF137: 24.81 | BG137: 18.2 | BH137: 0.014 | BI137: 61.3 | BJ137: 1.374 | BK137: 26.9 | BL137: 525.2 | BM137: 12.9 | BN137: 499 | BO137: 13 | BP137: 646.1 | BQ137: 12.7 | BR137: 7494 | BS137: 9.9 | BT137: 1517 | BU137: 11.5 | BV137: 91.5 | BW137: 86.82 | BX137: -1.47 | BY137: 114.2 | BZ137: 100 | CA137: 0.25 | CB137: 115.4 | CC137: 100 | CD137: 0.07 | CE137: 115 | CF137: 100 | CG137: 0.05 | CH137: 123.9 | CI137: 100 | CJ137: 0.1 | CK137: 77.15 | CL137: 73.33 | CM137: -2.84 | CN137: 91.2 | CO137: 86.67 | CP137: -0.78 | CQ137: 105.6 | CR137: 100 | CS137: 0.91 | CT137: 113.4 | CU137: 100 | CV137: 0.23 | CW137: 91.6 | CX137: 86.92 | CY137: -1.4 | CZ137: 64.64 | DA137: 61.52 | DB137: -4.51 | DC137: 83.2 | DD137: 79.24 | DE137: -0.97 | DI137: 1.376 | DJ137: 95.4 | DK137: 95.4 | DL137: 0.7 | DM137: 0.31 | DN137: 0.968 | DO137: 0.271 | DP137: 1.058 | DQ137: 0.094 | DR137: 0.791 | DS137: -0.026 | DT137: 1.255 | DU137: 0.125 | DV137: 0.668 | DW137: 1.176 | DX137: 1.76 | DY137: 1.069 | DZ137: 2.041 | EA137: 0.932 | EB137: 1.754
A138: 2012-12-18T02:00:00 | B138: 0.334 | C138: 1.149 | D138: 0.445 | E138: 1.417 | F138: 1.837 | H138: 2.19 | J138: 746.1 | K138: 12.5 | L138: 56.18 | M138: 16.6 | N138: 8.24 | O138: 21 | P138: 480 | Q138: 13 | R138: 1.757 | S138: 26 | T138: 3.865 | U138: 23.2 | V138: 553.9 | W138: 12.9 | X138: 9.86 | Y138: 20.5 | Z138: 1.253 | AA138: 27.3 | AB138: 77.44 | AC138: 15.8 | AD138: 0.779 | AE138: 29.4 | AF138: 0.044 | AG138: 48.4 | AH138: 283.2 | AI138: 13.8 | AJ138: 0.716 | AK138: 29.7 | AL138: 0.209 | AM138: 36.3 | AN138: 5342 | AO138: 10.2 | AP138: 1798 | AQ138: 11.4 | AR138: 2813 | AS138: 10.9 | AT138: 116.8 | AU138: 15 | AV138: 33.7 | AW138: 17.5 | AX138: 9.21 | AY138: 20.6 | AZ138: 80.9 | BA138: 15.7 | BB138: 6.395 | BC138: 21.6 | BD138: 0.408 | BE138: 32.3 | BF138: 24.56 | BG138: 18.2 | BH138: 0.014 | BI138: 61.3 | BJ138: 1.381 | BK138: 26.9 | BL138: 518.2 | BM138: 12.9 | BN138: 496.3 | BO138: 13 | BP138: 637.9 | BQ138: 12.7 | BR138: 7557 | BS138: 9.9 | BT138: 1501 | BU138: 11.5 | BV138: 91.5 | BW138: 86.82 | BX138: -1.44 | BY138: 114.2 | BZ138: 100 | CA138: 0.27 | CB138: 115.5 | CC138: 100 | CD138: 0.1 | CE138: 115 | CF138: 100 | CG138: 0.07 | CH138: 123.9 | CI138: 100 | CJ138: 0.14 | CK138: 77.18 | CL138: 73.37 | CM138: -2.79 | CN138: 91.4 | CO138: 86.86 | CP138: -0.73 | CQ138: 105.4 | CR138: 100 | CS138: 0.94 | CT138: 113.4 | CU138: 100 | CV138: 0.31 | CW138: 91.7 | CX138: 87.03 | CY138: -1.31 | CZ138: 64.77 | DA138: 61.65 | DB138: -4.45 | DC138: 83.5 | DD138: 79.53 | DE138: -0.86 | DI138: 1.553 | DJ138: 95.1 | DK138: 95.1 | DL138: 0.84 | DM138: 0.343 | DN138: 1.026 | DO138: 0.3 | DP138: 1.115 | DQ138: 0.129 | DR138: 0.845 | DS138: 0.007 | DT138: 1.296 | DU138: 0.168 | DV138: 0.725 | DW138: 1.218 | DX138: 1.798 | DY138: 1.091 | DZ138: 2.068 | EA138: 0.954 | EB138: 1.777
A139: 2012-12-18T03:00:00 | B139: 0.406 | C139: 1.214 | D139: 0.519 | E139: 1.473 | F139: 1.864 | H139: 2.261 | J139: 737 | K139: 12.5 | L139: 55.67 | M139: 16.6 | N139: 8.23 | O139: 21 | P139: 488.5 | Q139: 13 | R139: 1.752 | S139: 26 | T139: 3.861 | U139: 23.2 | V139: 541.6 | W139: 12.9 | X139: 9.83 | Y139: 20.5 | Z139: 1.25 | AA139: 27.3 | AB139: 76.73 | AC139: 15.9 | AD139: 0.78 | AE139: 29.4 | AF139: 0.044 | AG139: 48.4 | AH139: 280.1 | AI139: 13.8 | AJ139: 0.719 | AK139: 29.7 | AL139: 0.21 | AM139: 36.3 | AN139: 5271 | AO139: 10.2 | AP139: 1789 | AQ139: 11.4 | AR139: 2809 | AS139: 10.9 | AT139: 115 | AU139: 15.1 | AV139: 33.55 | AW139: 17.5 | AX139: 9.15 | AY139: 20.6 | AZ139: 80.2 | BA139: 15.7 | BB139: 6.394 | BC139: 21.6 | BD139: 0.409 | BE139: 32.3 | BF139: 24.41 | BG139: 18.2 | BH139: 0.014 | BI139: 61.2 | BJ139: 1.393 | BK139: 26.8 | BL139: 511.9 | BM139: 12.9 | BN139: 492.3 | BO139: 13 | BP139: 633 | BQ139: 12.7 | BR139: 7398 | BS139: 9.9 | BT139: 1502 | BU139: 11.5 | BV139: 91.5 | BW139: 86.83 | BX139: -1.4 | BY139: 114.1 | BZ139: 100 | CA139: 0.31 | CB139: 115.5 | CC139: 100 | CD139: 0.13 | CE139: 115 | CF139: 100 | CG139: 0.02 | CH139: 123.9 | CI139: 100 | CJ139: 0.18 | CK139: 77.26 | CL139: 73.45 | CM139: -2.74 | CN139: 91.8 | CO139: 87.25 | CP139: -0.66 | CQ139: 105.4 | CR139: 100 | CS139: 0.97 | CT139: 113.5 | CU139: 100 | CV139: 0.38 | CW139: 91.5 | CX139: 86.86 | CY139: -1.27 | CZ139: 64.97 | DA139: 61.84 | DB139: -4.39 | DC139: 83 | DD139: 79.07 | DE139: -0.87 | DI139: 1.805 | DJ139: 95.4 | DK139: 95.4 | DL139: 1.13 | DM139: 0.381 | DN139: 1.088 | DO139: 0.334 | DP139: 1.166 | DQ139: 0.161 | DR139: 0.898 | DS139: 0.051 | DT139: 1.346 | DU139: 0.203 | DV139: 0.777 | DW139: 1.258 | DX139: 1.833 | DY139: 1.11 | DZ139: 2.09 | EA139: 0.983 | EB139: 1.805
A140: 2012-12-18T04:00:00 | B140: 0.487 | C140: 1.271 | D140: 0.607 | E140: 1.542 | F140: 1.888 | H140: 2.358 | J140: 722.2 | K140: 12.5 | L140: 55.19 | M140: 16.6 | N140: 8.21 | O140: 21 | P140: 458.5 | Q140: 13.1 | R140: 1.748 | S140: 26 | T140: 3.852 | U140: 23.2 | V140: 528.3 | W140: 12.9 | X140: 9.78 | Y140: 20.5 | Z140: 1.248 | AA140: 27.3 | AB140: 75.94 | AC140: 15.9 | AD140: 0.781 | AE140: 29.4 | AF140: 0.044 | AG140: 48.4 | AH140: 277.4 | AI140: 13.8 | AJ140: 0.724 | AK140: 29.7 | AL140: 0.211 | AM140: 36.3 | AN140: 5144 | AO140: 10.3 | AP140: 1776 | AQ140: 11.4 | AR140: 2790 | AS140: 10.9 | AT140: 113.1 | AU140: 15.1 | AV140: 33.4 | AW140: 17.5 | AX140: 9.17 | AY140: 20.6 | AZ140: 79.53 | BA140: 15.7 | BB140: 6.388 | BC140: 21.6 | BD140: 0.408 | BE140: 32.3 | BF140: 24.41 | BG140: 18.2 | BH140: 0.014 | BI140: 61.2 | BJ140: 1.414 | BK140: 26.8 | BL140: 503.2 | BM140: 12.9 | BN140: 488.7 | BO140: 13 | BP140: 630.5 | BQ140: 12.7 | BR140: 7671 | BS140: 9.9 | BT140: 1492 | BU140: 11.5 | BV140: 91.6 | BW140: 86.93 | BX140: -1.36 | BY140: 114.2 | BZ140: 100 | CA140: 0.34 | CB140: 115.4 | CC140: 100 | CD140: 0.17 | CE140: 114.9 | CF140: 100 | CG140: 0.05 | CH140: 123.9 | CI140: 100 | CJ140: 0.21 | CK140: 77.22 | CL140: 73.42 | CM140: -2.71 | CN140: 91.6 | CO140: 87.06 | CP140: -0.66 | CQ140: 105.3 | CR140: 100 | CS140: 0.99 | CT140: 113.5 | CU140: 100 | CV140: 0.46 | CW140: 91.6 | CX140: 86.97 | CY140: -1.17 | CZ140: 65.11 | DA140: 61.98 | DB140: -4.34 | DC140: 83.4 | DD140: 79.47 | DE140: -0.71 | DI140: 2.104 | DJ140: 95.8 | DK140: 95.8 | DL140: 1.49 | DM140: 0.414 | DN140: 1.144 | DO140: 0.366 | DP140: 1.227 | DQ140: 0.198 | DR140: 0.961 | DS140: 0.08 | DT140: 1.394 | DU140: 0.241 | DV140: 0.836 | DW140: 1.301 | DX140: 1.871 | DY140: 1.14 | DZ140: 2.126 | EA140: 1.007 | EB140: 1.831
A141: 2012-12-18T05:00:00 | B141: 0.575 | C141: 1.34 | D141: 0.693 | E141: 1.625 | F141: 1.918 | H141: 2.473 | J141: 712.4 | K141: 12.5 | L141: 54.71 | M141: 16.6 | N141: 8.18 | O141: 21 | P141: 442.8 | Q141: 13.1 | R141: 1.745 | S141: 26 | T141: 3.844 | U141: 23.2 | V141: 515.9 | W141: 12.9 | X141: 9.73 | Y141: 20.6 | Z141: 1.247 | AA141: 27.3 | AB141: 75 | AC141: 15.9 | AD141: 0.78 | AE141: 29.4 | AF141: 0.044 | AG141: 48.3 | AH141: 273.4 | AI141: 13.8 | AJ141: 0.727 | AK141: 29.6 | AL141: 0.212 | AM141: 36.2 | AN141: 5049 | AO141: 10.3 | AP141: 1767 | AQ141: 11.4 | AR141: 2755 | AS141: 10.9 | AT141: 111.4 | AU141: 15.1 | AV141: 33.22 | AW141: 17.5 | AX141: 9.17 | AY141: 20.6 | AZ141: 78.78 | BA141: 15.7 | BB141: 6.378 | BC141: 21.6 | BD141: 0.408 | BE141: 32.3 | BF141: 24.2 | BG141: 18.2 | BH141: 0.014 | BI141: 61.2 | BJ141: 1.429 | BK141: 26.7 | BL141: 491.9 | BM141: 12.9 | BN141: 481.8 | BO141: 13.1 | BP141: 623.4 | BQ141: 12.7 | BR141: 7312 | BS141: 9.9 | BT141: 1487 | BU141: 11.5 | BV141: 91.6 | BW141: 86.94 | BX141: -1.31 | BY141: 114.1 | BZ141: 100 | CA141: 0.38 | CB141: 115.4 | CC141: 100 | CD141: 0.21 | CE141: 114.9 | CF141: 100 | CG141: 0.09 | CH141: 123.8 | CI141: 100 | CJ141: 0.26 | CK141: 77.23 | CL141: 73.43 | CM141: -2.66 | CN141: 91.5 | CO141: 86.97 | CP141: -0.64 | CQ141: 105.2 | CR141: 99.97 | CS141: 1.02 | CT141: 113.5 | CU141: 100 | CV141: 0.55 | CW141: 91.8 | CX141: 87.17 | CY141: -1.06 | CZ141: 65.29 | DA141: 62.15 | DB141: -4.28 | DC141: 83.4 | DD141: 79.48 | DE141: -0.6 | DI141: 2.334 | DJ141: 96.3 | DK141: 96.3 | DL141: 1.8 | DM141: 0.458 | DN141: 1.216 | DO141: 0.403 | DP141: 1.295 | DQ141: 0.235 | DR141: 1.033 | DS141: 0.117 | DT141: 1.449 | DU141: 0.289 | DV141: 0.908 | DW141: 1.348 | DX141: 1.928 | DY141: 1.175 | DZ141: 2.172 | EA141: 1.037 | EB141: 1.873
A142: 2012-12-18T06:00:00 | B142: 0.67 | C142: 1.416 | D142: 0.8 | E142: 1.696 | F142: 1.959 | H142: 2.582 | J142: 698.4 | K142: 12.5 | L142: 54.24 | M142: 16.6 | N142: 8.18 | O142: 21 | P142: 447 | Q142: 13.1 | R142: 1.744 | S142: 26 | T142: 3.842 | U142: 23.2 | V142: 502.9 | W142: 13 | X142: 9.7 | Y142: 20.6 | Z142: 1.247 | AA142: 27.3 | AB142: 74.11 | AC142: 15.9 | AD142: 0.779 | AE142: 29.4 | AF142: 0.044 | AG142: 48.3 | AH142: 269.9 | AI142: 13.8 | AJ142: 0.732 | AK142: 29.6 | AL142: 0.214 | AM142: 36.2 | AN142: 5028 | AO142: 10.3 | AP142: 1773 | AQ142: 11.4 | AR142: 2753 | AS142: 10.9 | AT142: 109.1 | AU142: 15.1 | AV142: 33.05 | AW142: 17.5 | AX142: 9.15 | AY142: 20.6 | AZ142: 77.94 | BA142: 15.8 | BB142: 6.361 | BC142: 21.6 | BD142: 0.408 | BE142: 32.3 | BF142: 24.26 | BG142: 18.2 | BH142: 0.014 | BI142: 61.1 | BJ142: 1.457 | BK142: 26.6 | BL142: 478.4 | BM142: 13 | BN142: 471 | BO142: 13.1 | BP142: 616.9 | BQ142: 12.7 | BR142: 7464 | BS142: 9.9 | BT142: 1491 | BU142: 11.5 | BV142: 91.6 | BW142: 86.95 | BX142: -1.27 | BY142: 114.1 | BZ142: 100 | CA142: 0.42 | CB142: 115.5 | CC142: 100 | CD142: 0.25 | CE142: 114.9 | CF142: 100 | CG142: 0.14 | CH142: 123.8 | CI142: 100 | CJ142: 0.31 | CK142: 77.25 | CL142: 73.46 | CM142: -2.61 | CN142: 91.6 | CO142: 87.07 | CP142: -0.59 | CQ142: 105.1 | CR142: 99.88 | CS142: 1.04 | CT142: 113.5 | CU142: 100 | CV142: 0.65 | CW142: 91.8 | CX142: 87.19 | CY142: -0.96 | CZ142: 65.47 | DA142: 62.33 | DB142: -4.2 | DC142: 83.8 | DD142: 79.88 | DE142: -0.44 | DI142: 2.88 | DJ142: 96.9 | DK142: 96.9 | DL142: 2.44 | DM142: 0.499 | DN142: 1.308 | DO142: 0.448 | DP142: 1.358 | DQ142: 0.28 | DR142: 1.09 | DS142: 0.167 | DT142: 1.517 | DU142: 0.335 | DV142: 0.996 | DW142: 1.403 | DX142: 1.99 | DY142: 1.212 | DZ142: 2.219 | EA142: 1.077 | EB142: 1.918
A143: 2012-12-18T07:00:00 | B143: 0.769 | C143: 1.505 | D143: 0.922 | E143: 1.849 | F143: 1.994 | H143: 2.712 | J143: 673.9 | K143: 12.5 | L143: 53.7 | M143: 16.6 | N143: 8.17 | O143: 21 | P143: 435 | Q143: 13.1 | R143: 1.743 | S143: 26 | T143: 3.855 | U143: 23.2 | V143: 486 | W143: 13 | X143: 9.68 | Y143: 20.6 | Z143: 1.247 | AA143: 27.3 | AB143: 72.74 | AC143: 15.9 | AD143: 0.778 | AE143: 29.3 | AF143: 0.044 | AG143: 48.3 | AH143: 266.7 | AI143: 13.8 | AJ143: 0.736 | AK143: 29.6 | AL143: 0.215 | AM143: 36.1 | AN143: 4858 | AO143: 10.3 | AP143: 1755 | AQ143: 11.4 | AR143: 2726 | AS143: 10.9 | AT143: 106.7 | AU143: 15.2 | AV143: 32.85 | AW143: 17.5 | AX143: 9.06 | AY143: 20.6 | AZ143: 77.06 | BA143: 15.8 | BB143: 6.341 | BC143: 21.6 | BD143: 0.408 | BE143: 32.3 | BF143: 24.17 | BG143: 18.2 | BH143: 0.014 | BI143: 61.1 | BJ143: 1.481 | BK143: 26.5 | BL143: 450.6 | BM143: 13 | BN143: 458.6 | BO143: 13.1 | BP143: 607.7 | BQ143: 12.7 | BR143: 7590 | BS143: 9.9 | BT143: 1488 | BU143: 11.5 | BV143: 91.6 | BW143: 86.96 | BX143: -1.22 | BY143: 114.1 | BZ143: 100 | CA143: 0.47 | CB143: 115.4 | CC143: 100 | CD143: 0.31 | CE143: 114.8 | CF143: 100 | CG143: 0.21 | CH143: 123.7 | CI143: 100 | CJ143: 0.37 | CK143: 77.27 | CL143: 73.49 | CM143: -2.55 | CN143: 91.8 | CO143: 87.27 | CP143: -0.52 | CQ143: 105 | CR143: 99.79 | CS143: 1.07 | CT143: 113.5 | CU143: 100 | CV143: 0.75 | CW143: 91.6 | CX143: 87.02 | CY143: -0.87 | CZ143: 65.73 | DA143: 62.58 | DB143: -4.12 | DC143: 83.3 | DD143: 79.43 | DE143: -0.39 | DI143: 5.172 | DJ143: 98.5 | DK143: 98.5 | DL143: 4.97 | DM143: 0.56 | DN143: 1.461 | DO143: 0.496 | DP143: 1.414 | DQ143: 0.332 | DR143: 1.198 | DS143: 0.232 | DT143: 1.595 | DU143: 0.39 | DV143: 1.094 | DW143: 1.457 | DX143: 2.036 | DY143: 1.254 | DZ143: 2.27 | EA143: 1.116 | EB143: 1.971
A144: 2012-12-18T08:00:00 | B144: 0.904 | C144: 1.593 | D144: 1.094 | E144: 2.149 | F144: 2.046 | H144: 2.88 | J144: 657.8 | K144: 12.5 | L144: 53.13 | M144: 16.6 | N144: 8.15 | O144: 21 | P144: 435 | Q144: 13.1 | R144: 1.739 | S144: 26 | T144: 3.869 | U144: 23.2 | V144: 471.6 | W144: 13 | X144: 9.65 | Y144: 20.5 | Z144: 1.249 | AA144: 27.3 | AB144: 71.79 | AC144: 15.9 | AD144: 0.773 | AE144: 29.4 | AF144: 0.044 | AG144: 48.3 | AH144: 263.7 | AI144: 13.9 | AJ144: 0.739 | AK144: 29.5 | AL144: 0.215 | AM144: 36.1 | AN144: 4819 | AO144: 10.3 | AP144: 1768 | AQ144: 11.4 | AR144: 2697 | AS144: 10.9 | AT144: 104.6 | AU144: 15.2 | AV144: 32.63 | AW144: 17.5 | AX144: 9.04 | AY144: 20.6 | AZ144: 76.2 | BA144: 15.8 | BB144: 6.316 | BC144: 21.6 | BD144: 0.408 | BE144: 32.3 | BF144: 24.09 | BG144: 18.2 | BH144: 0.014 | BI144: 61 | BJ144: 1.497 | BK144: 26.5 | BL144: 439.5 | BM144: 13 | BN144: 447 | BO144: 13.1 | BP144: 601.2 | BQ144: 12.7 | BR144: 7606 | BS144: 9.9 | BT144: 1494 | BU144: 11.5 | BV144: 91.4 | BW144: 86.78 | BX144: -1.17 | BY144: 114.1 | BZ144: 100 | CA144: 0.53 | CB144: 115.4 | CC144: 100 | CD144: 0.37 | CE144: 114.8 | CF144: 100 | CG144: 0.28 | CH144: 123.7 | CI144: 100 | CJ144: 0.43 | CK144: 77.27 | CL144: 73.5 | CM144: -2.49 | CN144: 91.7 | CO144: 87.18 | CP144: -0.49 | CQ144: 104.9 | CR144: 99.71 | CS144: 1.1 | CT144: 113.6 | CU144: 100 | CV144: 0.89 | CW144: 91.3 | CX144: 86.77 | CY144: -0.75 | CZ144: 66.09 | DA144: 62.93 | DB144: -4 | DC144: 80.1 | DD144: 76.4 | DE144: -0.74 | DI144: 6.947 | DJ144: 96.5 | DK144: 96.5 | DL144: 6.45 | DM144: 0.634 | DN144: 1.634 | DO144: 0.557 | DP144: 1.537 | DQ144: 0.392 | DR144: 1.366 | DS144: 0.305 | DT144: 1.69 | DU144: 0.449 | DV144: 1.161 | DW144: 1.52 | DX144: 2.11 | DY144: 1.3 | DZ144: 2.333 | EA144: 1.159 | EB144: 2.018
A145: 2012-12-18T09:00:00 | B145: 1.107 | C145: 1.71 | D145: 1.35 | E145: 2.506 | F145: 2.138 | H145: 3.036 | J145: 636 | K145: 12.6 | L145: 52.54 | M145: 16.6 | N145: 8.11 | O145: 21 | P145: 420 | Q145: 13.1 | R145: 1.731 | S145: 26 | T145: 3.862 | U145: 23.2 | V145: 454.6 | W145: 13.1 | X145: 9.59 | Y145: 20.6 | Z145: 1.246 | AA145: 27.3 | AB145: 69.83 | AC145: 16 | AD145: 0.77 | AE145: 29.4 | AF145: 0.043 | AG145: 48.5 | AH145: 258.8 | AI145: 13.9 | AJ145: 0.741 | AK145: 29.5 | AL145: 0.216 | AM145: 36 | AN145: 4806 | AO145: 10.3 | AP145: 1775 | AQ145: 11.4 | AR145: 2689 | AS145: 10.9 | AT145: 102.6 | AU145: 15.2 | AV145: 32.36 | AW145: 17.5 | AX145: 9.04 | AY145: 20.6 | AZ145: 74.89 | BA145: 15.8 | BB145: 6.272 | BC145: 21.6 | BD145: 0.408 | BE145: 32.3 | BF145: 23.67 | BG145: 18.2 | BH145: 0.014 | BI145: 61 | BJ145: 1.508 | BK145: 26.4 | BL145: 409.3 | BM145: 13.1 | BN145: 426.2 | BO145: 13.2 | BP145: 586.3 | BQ145: 12.7 | BR145: 7590 | BS145: 9.9 | BT145: 1500 | BU145: 11.5 | BV145: 91.3 | BW145: 86.7 | BX145: -1.11 | BY145: 114 | BZ145: 100 | CA145: 0.61 | CB145: 115.4 | CC145: 100 | CD145: 0.45 | CE145: 114.7 | CF145: 100 | CG145: 0.34 | CH145: 123.6 | CI145: 100 | CJ145: 0.49 | CK145: 77.36 | CL145: 73.59 | CM145: -2.41 | CN145: 91.7 | CO145: 87.2 | CP145: -0.43 | CQ145: 104.8 | CR145: 99.62 | CS145: 1.14 | CT145: 113.7 | CU145: 100 | CV145: 1.09 | CW145: 91.2 | CX145: 86.72 | CY145: -0.51 | CZ145: 66.34 | DA145: 63.18 | DB145: -3.86 | DC145: 80.3 | DD145: 76.62 | DE145: -0.56 | DI145: 7.205 | DJ145: 96.9 | DK145: 96.9 | DL145: 6.77 | DM145: 0.713 | DN145: 1.785 | DO145: 0.628 | DP145: 1.661 | DQ145: 0.47 | DR145: 1.463 | DS145: 0.366 | DT145: 1.782 | DU145: 0.517 | DV145: 1.291 | DW145: 1.588 | DX145: 2.198 | DY145: 1.363 | DZ145: 2.396 | EA145: 1.208 | EB145: 2.085
A146: 2012-12-18T10:00:00 | B146: 1.356 | C146: 1.851 | D146: 1.673 | E146: 2.725 | F146: 2.277 | H146: 3.141 | J146: 616.3 | K146: 12.6 | L146: 51.79 | M146: 16.7 | N146: 8.08 | O146: 21 | P146: 411.9 | Q146: 13.2 | R146: 1.727 | S146: 26 | T146: 3.861 | U146: 23.2 | V146: 439.7 | W146: 13.1 | X146: 9.54 | Y146: 20.6 | Z146: 1.249 | AA146: 27.3 | AB146: 69.13 | AC146: 16 | AD146: 0.764 | AE146: 29.4 | AF146: 0.043 | AG146: 48.5 | AH146: 256.1 | AI146: 13.9 | AJ146: 0.742 | AK146: 29.5 | AL146: 0.217 | AM146: 36 | AN146: 4749 | AO146: 10.3 | AP146: 1765 | AQ146: 11.4 | AR146: 2671 | AS146: 10.9 | AT146: 100.7 | AU146: 15.2 | AV146: 32.13 | AW146: 17.6 | AX146: 9.06 | AY146: 20.6 | AZ146: 74.14 | BA146: 15.8 | BB146: 6.25 | BC146: 21.6 | BD146: 0.409 | BE146: 32.3 | BF146: 23.2 | BG146: 18.2 | BH146: 0.014 | BI146: 60.9 | BJ146: 1.509 | BK146: 26.4 | BL146: 391 | BM146: 13.1 | BN146: 413.5 | BO146: 13.2 | BP146: 567.7 | BQ146: 12.7 | BR146: 7326 | BS146: 9.9 | BT146: 1450 | BU146: 11.5 | BV146: 91.2 | BW146: 86.62 | BX146: -1.03 | BY146: 113.9 | BZ146: 100 | CA146: 0.7 | CB146: 115.4 | CC146: 100 | CD146: 0.55 | CE146: 114.6 | CF146: 100 | CG146: 0.43 | CH146: 123.6 | CI146: 100 | CJ146: 0.58 | CK146: 77.45 | CL146: 73.69 | CM146: -2.32 | CN146: 91.7 | CO146: 87.21 | CP146: -0.37 | CQ146: 104.7 | CR146: 99.54 | CS146: 1.19 | CT146: 113.7 | CU146: 100 | CV146: 1.34 | CW146: 91.1 | CX146: 86.68 | CY146: -0.22 | CZ146: 66.67 | DA146: 63.51 | DB146: -3.67 | DC146: 80.1 | DD146: 76.44 | DE146: -0.49 | DI146: 7.55 | DJ146: 97.1 | DK146: 97.1 | DL146: 7.15 | DM146: 0.81 | DN146: 1.97 | DO146: 0.72 | DP146: 1.798 | DQ146: 0.572 | DR146: 1.637 | DS146: 0.458 | DT146: 1.863 | DU146: 0.602 | DV146: 1.402 | DW146: 1.671 | DX146: 2.3 | DY146: 1.432 | DZ146: 2.467 | EA146: 1.265 | EB146: 2.149
A147: 2012-12-18T11:00:00 | B147: 1.635 | C147: 2.048 | D147: 2.039 | E147: 3.067 | F147: 2.449 | H147: 3.29 | J147: 589.5 | K147: 12.6 | L147: 50.98 | M147: 16.7 | N147: 7.987 | O147: 21 | P147: 398.6 | Q147: 13.2 | R147: 1.709 | S147: 26 | T147: 3.833 | U147: 23.2 | V147: 419 | W147: 13.1 | X147: 9.42 | Y147: 20.6 | Z147: 1.236 | AA147: 27.3 | AB147: 67.74 | AC147: 16 | AD147: 0.758 | AE147: 29.4 | AF147: 0.043 | AG147: 48.4 | AH147: 251.5 | AI147: 13.9 | AJ147: 0.742 | AK147: 29.5 | AL147: 0.217 | AM147: 36 | AN147: 4579 | AO147: 10.3 | AP147: 1758 | AQ147: 11.4 | AR147: 2620 | AS147: 10.9 | AT147: 98.6 | AU147: 15.3 | AV147: 31.81 | AW147: 17.6 | AX147: 9.06 | AY147: 20.5 | AZ147: 73.14 | BA147: 15.8 | BB147: 6.215 | BC147: 21.6 | BD147: 0.409 | BE147: 32.2 | BF147: 22.37 | BG147: 18.3 | BH147: 0.014 | BI147: 60.8 | BJ147: 1.504 | BK147: 26.3 | BL147: 370.5 | BM147: 13.2 | BN147: 395.4 | BO147: 13.2 | BP147: 548.1 | BQ147: 12.7 | BR147: 7223 | BS147: 9.9 | BT147: 1422 | BU147: 11.5 | BV147: 91.1 | BW147: 86.55 | BX147: -0.94 | BY147: 113.9 | BZ147: 100 | CA147: 0.82 | CB147: 115.4 | CC147: 100 | CD147: 0.68 | CE147: 114.7 | CF147: 100 | CG147: 0.53 | CH147: 123.5 | CI147: 100 | CJ147: 0.68 | CK147: 77.55 | CL147: 73.8 | CM147: -2.21 | CN147: 91.7 | CO147: 87.22 | CP147: -0.28 | CQ147: 104.7 | CR147: 99.55 | CS147: 1.26 | CT147: 113.8 | CU147: 100 | CV147: 1.63 | CW147: 91.1 | CX147: 86.75 | CY147: 0.04 | CZ147: 66.98 | DA147: 63.83 | DB147: -3.45 | DC147: 80.8 | DD147: 77.14 | DE147: -0.24 | DI147: 8.13 | DJ147: 97.4 | DK147: 97.4 | DL147: 7.77 | DM147: 0.924 | DN147: 2.158 | DO147: 0.839 | DP147: 1.989 | DQ147: 0.702 | DR147: 1.77 | DS147: 0.553 | DT147: 1.902 | DU147: 0.696 | DV147: 1.506 | DW147: 1.77 | DX147: 2.408 | DY147: 1.52 | DZ147: 2.542 | EA147: 1.339 | EB147: 2.21
A148: 2012-12-18T12:00:00 | B148: 1.937 | C148: 2.303 | D148: 2.44 | E148: 3.427 | F148: 2.647 | H148: 3.48 | J148: 564 | K148: 12.7 | L148: 50.11 | M148: 16.7 | N148: 7.905 | O148: 21 | P148: 386.5 | Q148: 13.2 | R148: 1.695 | S148: 26 | T148: 3.81 | U148: 23.2 | V148: 396.5 | W148: 13.2 | X148: 9.28 | Y148: 20.6 | Z148: 1.228 | AA148: 27.3 | AB148: 66.15 | AC148: 16 | AD148: 0.752 | AE148: 29.4 | AF148: 0.042 | AG148: 48.6 | AH148: 246.8 | AI148: 13.9 | AJ148: 0.738 | AK148: 29.5 | AL148: 0.217 | AM148: 36 | AN148: 4510 | AO148: 10.3 | AP148: 1714 | AQ148: 11.4 | AR148: 2575 | AS148: 10.9 | AT148: 96.6 | AU148: 15.3 | AV148: 31.49 | AW148: 17.6 | AX148: 9.05 | AY148: 20.5 | AZ148: 72.03 | BA148: 15.9 | BB148: 6.167 | BC148: 21.6 | BD148: 0.41 | BE148: 32.2 | BF148: 21.36 | BG148: 18.3 | BH148: 0.014 | BI148: 60.7 | BJ148: 1.499 | BK148: 26.3 | BL148: 348.8 | BM148: 13.2 | BN148: 376 | BO148: 13.2 | BP148: 524.8 | BQ148: 12.8 | BR148: 7165 | BS148: 9.9 | BT148: 1401 | BU148: 11.5 | BV148: 91.1 | BW148: 86.57 | BX148: -0.81 | BY148: 113.9 | BZ148: 100 | CA148: 0.96 | CB148: 115.4 | CC148: 100 | CD148: 0.84 | CE148: 114.7 | CF148: 100 | CG148: 0.64 | CH148: 123.5 | CI148: 100 | CJ148: 0.78 | CK148: 77.63 | CL148: 73.9 | CM148: -2.08 | CN148: 91.8 | CO148: 87.34 | CP148: -0.17 | CQ148: 104.6 | CR148: 99.48 | CS148: 1.34 | CT148: 113.8 | CU148: 100 | CV148: 1.93 | CW148: 91.1 | CX148: 86.82 | CY148: 0.45 | CZ148: 67.19 | DA148: 64.06 | DB148: -3.22 | DC148: 83.5 | DD148: 79.75 | DE148: 0.29 | DI148: 8.69 | DJ148: 97.4 | DK148: 97.4 | DL148: 8.33 | DM148: 1.061 | DN148: 2.346 | DO148: 0.977 | DP148: 2.195 | DQ148: 0.857 | DR148: 1.999 | DS148: 0.661 | DT148: 1.999 | DU148: 0.799 | DV148: 1.639 | DW148: 1.892 | DX148: 2.547 | DY148: 1.625 | DZ148: 2.641 | EA148: 1.428 | EB148: 2.289
A149: 2012-12-18T13:00:00 | B149: 2.258 | C149: 2.602 | D149: 2.872 | E149: 3.781 | F149: 2.882 | H149: 3.66 | J149: 532.7 | K149: 12.7 | L149: 49.1 | M149: 16.7 | N149: 7.825 | O149: 21 | P149: 375.1 | Q149: 13.2 | R149: 1.679 | S149: 26 | T149: 3.773 | U149: 23.2 | V149: 374.3 | W149: 13.2 | X149: 9.14 | Y149: 20.6 | Z149: 1.217 | AA149: 27.3 | AB149: 65.15 | AC149: 16.1 | AD149: 0.745 | AE149: 29.4 | AF149: 0.042 | AG149: 48.6 | AH149: 240.6 | AI149: 13.9 | AJ149: 0.736 | AK149: 29.5 | AL149: 0.217 | AM149: 35.9 | AN149: 4362 | AO149: 10.3 | AP149: 1707 | AQ149: 11.4 | AR149: 2550 | AS149: 10.9 | AT149: 93.9 | AU149: 15.3 | AV149: 31.05 | AW149: 17.6 | AX149: 9.02 | AY149: 20.5 | AZ149: 70.76 | BA149: 15.9 | BB149: 6.114 | BC149: 21.6 | BD149: 0.409 | BE149: 32.2 | BF149: 20.15 | BG149: 18.4 | BH149: 0.014 | BI149: 60.5 | BJ149: 1.48 | BK149: 26.3 | BL149: 331.2 | BM149: 13.2 | BN149: 357 | BO149: 13.2 | BP149: 499.4 | BQ149: 12.8 | BR149: 7356 | BS149: 9.8 | BT149: 1385 | BU149: 11.5 | BV149: 91.1 | BW149: 86.6 | BX149: -0.66 | BY149: 113.9 | BZ149: 100 | CA149: 1.12 | CB149: 115.4 | CC149: 100 | CD149: 1.02 | CE149: 114.6 | CF149: 100 | CG149: 0.76 | CH149: 123.4 | CI149: 100 | CJ149: 0.9 | CK149: 77.8 | CL149: 74.08 | CM149: -1.92 | CN149: 91.8 | CO149: 87.36 | CP149: -0.05 | CQ149: 104.5 | CR149: 99.4 | CS149: 1.44 | CT149: 113.8 | CU149: 100 | CV149: 2.25 | CW149: 91 | CX149: 86.8 | CY149: 0.88 | CZ149: 67.5 | DA149: 64.39 | DB149: -2.94 | DC149: 84.5 | DD149: 80.73 | DE149: 0.64 | DI149: 9.21 | DJ149: 96.9 | DK149: 96.9 | DL149: 8.77 | DM149: 1.21 | DN149: 2.579 | DO149: 1.138 | DP149: 2.473 | DQ149: 1.035 | DR149: 2.287 | DS149: 0.783 | DT149: 2.079 | DU149: 0.922 | DV149: 1.814 | DW149: 2.027 | DX149: 2.704 | DY149: 1.75 | DZ149: 2.751 | EA149: 1.536 | EB149: 2.387
A150: 2012-12-18T14:00:00 | B150: 2.621 | C150: 2.944 | D150: 3.325 | E150: 4.17 | F150: 3.157 | H150: 3.829 | J150: 501.3 | K150: 12.8 | L150: 48.11 | M150: 16.7 | N150: 7.705 | O150: 21 | P150: 356.8 | Q150: 13.2 | R150: 1.657 | S150: 26 | T150: 3.73 | U150: 23.2 | V150: 351.7 | W150: 13.3 | X150: 8.93 | Y150: 20.6 | Z150: 1.199 | AA150: 27.3 | AB150: 63.91 | AC150: 16.1 | AD150: 0.737 | AE150: 29.5 | AF150: 0.042 | AG150: 48.5 | AH150: 234.1 | AI150: 13.9 | AJ150: 0.73 | AK150: 29.5 | AL150: 0.216 | AM150: 35.9 | AN150: 4219 | AO150: 10.4 | AP150: 1685 | AQ150: 11.4 | AR150: 2518 | AS150: 10.9 | AT150: 91.3 | AU150: 15.4 | AV150: 30.63 | AW150: 17.6 | AX150: 8.85 | AY150: 20.6 | AZ150: 69.5 | BA150: 15.9 | BB150: 6.054 | BC150: 21.6 | BD150: 0.406 | BE150: 32.2 | BF150: 18.66 | BG150: 18.5 | BH150: 0.014 | BI150: 60.4 | BJ150: 1.457 | BK150: 26.3 | BL150: 311.1 | BM150: 13.3 | BN150: 337.5 | BO150: 13.3 | BP150: 474.8 | BQ150: 12.8 | BR150: 6999 | BT150: 1351 | BU150: 11.5 | BV150: 91 | BW150: 86.53 | BX150: -0.51 | BY150: 113.8 | BZ150: 100 | CA150: 1.31 | CB150: 115.5 | CC150: 100 | CD150: 1.23 | CE150: 114.7 | CF150: 100 | CG150: 0.89 | CH150: 123.3 | CI150: 100 | CJ150: 1.05 | CK150: 77.93 | CL150: 74.23 | CM150: -1.76 | CN150: 92.1 | CO150: 87.67 | CP150: 0.03 | CQ150: 104.4 | CR150: 99.33 | CS150: 1.56 | CT150: 113.8 | CU150: 100 | CV150: 2.62 | CW150: 90.8 | CX150: 86.69 | CY150: 1.31 | CZ150: 67.81 | DA150: 64.72 | DB150: -2.63 | DC150: 85.7 | DD150: 81.91 | DE150: 1.01 | DI150: 9.3 | DJ150: 96.5 | DK150: 96.5 | DL150: 8.8 | DM150: 1.388 | DN150: 2.828 | DO150: 1.328 | DP150: 2.764 | DQ150: 1.243 | DR150: 2.59 | DS150: 0.905 | DT150: 2.195 | DU150: 1.07 | DV150: 1.993 | DW150: 2.173 | DX150: 2.868 | DY150: 1.885 | DZ150: 2.869 | EA150: 1.665 | EB150: 2.496
A151: 2012-12-18T15:00:00 | B151: 2.996 | C151: 3.285 | D151: 3.782 | E151: 4.493 | F151: 3.469 | H151: 3.96 | J151: 471.9 | K151: 12.8 | L151: 46.98 | M151: 16.8 | N151: 7.568 | O151: 21 | P151: 330.9 | Q151: 13.3 | R151: 1.635 | S151: 26 | T151: 3.674 | U151: 23.2 | V151: 329.7 | W151: 13.3 | X151: 8.72 | Y151: 20.7 | Z151: 1.185 | AA151: 27.3 | AB151: 62.66 | AC151: 16.1 | AD151: 0.728 | AE151: 29.5 | AF151: 0.041 | AG151: 48.7 | AH151: 223.9 | AI151: 14 | AJ151: 0.726 | AK151: 29.5 | AL151: 0.215 | AM151: 35.9 | AN151: 4075 | AO151: 10.4 | AP151: 1658 | AQ151: 11.4 | AR151: 2490 | AS151: 10.9 | AT151: 88.5 | AU151: 15.4 | AV151: 30.05 | AW151: 17.6 | AX151: 8.39 | AY151: 20.7 | AZ151: 68.17 | BA151: 15.9 | BB151: 5.986 | BC151: 21.7 | BD151: 0.399 | BE151: 32.3 | BF151: 17.33 | BG151: 18.7 | BH151: 0.014 | BI151: 60.3 | BJ151: 1.421 | BK151: 26.3 | BL151: 292.9 | BM151: 13.3 | BN151: 320.8 | BO151: 13.3 | BP151: 452.8 | BQ151: 12.8 | BR151: 6892 | BS151: 9.8 | BT151: 1296 | BU151: 11.5 | BV151: 91 | BW151: 86.57 | BX151: -0.32 | BY151: 113.8 | BZ151: 100 | CA151: 1.53 | CB151: 115.5 | CC151: 100 | CD151: 1.46 | CE151: 114.6 | CF151: 100 | CG151: 1.03 | CH151: 123.2 | CI151: 100 | CJ151: 1.22 | CK151: 77.95 | CL151: 74.27 | CM151: -1.61 | CN151: 93.5 | CO151: 89.03 | CP151: 0.39 | CQ151: 104.6 | CR151: 99.56 | CS151: 1.76 | CT151: 113.7 | CU151: 100 | CV151: 3 | CW151: 90.5 | CX151: 86.48 | CY151: 1.73 | CZ151: 68.07 | DA151: 65.01 | DB151: -2.29 | DC151: 86.8 | DD151: 82.98 | DE151: 1.32 | DI151: 8.02 | DJ151: 96.1 | DK151: 96.1 | DL151: 7.46 | DM151: 1.587 | DN151: 3.075 | DO151: 1.543 | DP151: 3.056 | DQ151: 1.476 | DR151: 2.904 | DS151: 1.046 | DT151: 2.319 | DU151: 1.238 | DV151: 2.188 | DW151: 2.334 | DX151: 3.031 | DY151: 2.029 | DZ151: 2.961 | EA151: 1.833 | EB151: 2.606
A152: 2012-12-18T16:00:00 | B152: 3.349 | C152: 3.559 | D152: 4.197 | E152: 4.721 | F152: 3.787 | H152: 4.064 | J152: 442.4 | K152: 12.9 | L152: 46.13 | M152: 16.8 | N152: 7.41 | O152: 21.1 | P152: 322.5 | Q152: 13.3 | R152: 1.604 | S152: 26 | T152: 3.622 | U152: 23.2 | V152: 310.5 | W152: 13.4 | X152: 8.51 | Y152: 20.7 | Z152: 1.165 | AA152: 27.3 | AB152: 60.14 | AC152: 16.2 | AD152: 0.717 | AE152: 29.5 | AF152: 0.041 | AG152: 48.7 | AH152: 217.9 | AI152: 14 | AJ152: 0.715 | AK152: 29.5 | AL152: 0.213 | AM152: 35.9 | AN152: 3963 | AO152: 10.4 | AP152: 1647 | AQ152: 11.4 | AR152: 2463 | AS152: 10.9 | AT152: 84.7 | AU152: 15.5 | AV152: 29.24 | AW152: 17.6 | AX152: 7.877 | AY152: 20.8 | AZ152: 66.48 | BA152: 15.9 | BB152: 5.909 | BC152: 21.7 | BD152: 0.393 | BE152: 32.3 | BF152: 16.07 | BG152: 18.8 | BH152: 0.014 | BI152: 60.1 | BJ152: 1.379 | BK152: 26.3 | BL152: 284.1 | BM152: 13.4 | BN152: 309.9 | BO152: 13.3 | BP152: 437.2 | BQ152: 12.8 | BR152: 6505 | BS152: 9.9 | BT152: 1262 | BU152: 11.5 | BV152: 91.1 | BW152: 86.7 | BX152: -0.1 | BY152: 113.7 | BZ152: 100 | CA152: 1.78 | CB152: 115.5 | CC152: 100 | CD152: 1.72 | CE152: 114.6 | CF152: 100 | CG152: 1.18 | CH152: 123.1 | CI152: 100 | CJ152: 1.42 | CK152: 78.01 | CL152: 74.35 | CM152: -1.44 | CN152: 94.7 | CO152: 90.21 | CP152: 0.77 | CQ152: 104.8 | CR152: 99.79 | CS152: 1.98 | CT152: 113.7 | CU152: 100 | CV152: 3.35 | CW152: 90.4 | CX152: 86.46 | CY152: 2.14 | CZ152: 68.19 | DA152: 65.17 | DB152: -1.96 | DC152: 88 | DD152: 84.14 | DE152: 1.62 | DI152: 7.375 | DJ152: 95.7 | DK152: 95.7 | DL152: 6.76 | DM152: 1.799 | DN152: 3.246 | DO152: 1.785 | DP152: 3.281 | DQ152: 1.73 | DR152: 3.146 | DS152: 1.196 | DT152: 2.463 | DU152: 1.435 | DV152: 2.414 | DW152: 2.506 | DX152: 3.194 | DY152: 2.225 | DZ152: 3.071 | EA152: 2.017 | EB152: 2.746
A153: 2012-12-18T17:00:00 | B153: 3.66 | C153: 3.767 | D153: 4.546 | E153: 4.891 | F153: 4.086 | H153: 4.125 | J153: 414.7 | K153: 13 | L153: 44.93 | M153: 16.8 | N153: 7.241 | O153: 21.1 | P153: 290.6 | Q153: 13.5 | R153: 1.573 | S153: 26.1 | T153: 3.564 | U153: 23.2 | V153: 291 | W153: 13.5 | X153: 8.28 | Y153: 20.7 | Z153: 1.141 | AA153: 27.4 | AB153: 59.16 | AC153: 16.2 | AD153: 0.706 | AE153: 29.6 | AF153: 0.04 | AG153: 48.9 | AH153: 210.8 | AI153: 14 | AJ153: 0.702 | AK153: 29.5 | AL153: 0.211 | AM153: 35.9 | AN153: 3783 | AO153: 10.4 | AP153: 1604 | AQ153: 11.4 | AR153: 2420 | AS153: 10.9 | AT153: 81.4 | AU153: 15.5 | AV153: 28.52 | AW153: 17.7 | AX153: 7.456 | AY153: 20.9 | AZ153: 65.04 | BA153: 16 | BB153: 5.825 | BC153: 21.7 | BD153: 0.386 | BE153: 32.4 | BF153: 15.12 | BG153: 18.9 | BH153: 0.014 | BI153: 60 | BJ153: 1.337 | BK153: 26.4 | BL153: 276.4 | BM153: 13.4 | BN153: 303.1 | BO153: 13.3 | BP153: 422.5 | BQ153: 12.8 | BR153: 6507 | BS153: 9.8 | BT153: 1211 | BU153: 11.6 | BV153: 91.1 | BW153: 86.74 | BX153: 0.02 | BY153: 113.7 | BZ153: 100 | CA153: 2.03 | CB153: 115.5 | CC153: 100 | CD153: 1.98 | CE153: 114.7 | CF153: 100 | CG153: 1.34 | CH153: 123.1 | CI153: 100 | CJ153: 1.63 | CK153: 78.09 | CL153: 74.46 | CM153: -1.25 | CN153: 95.3 | CO153: 90.82 | CP153: 1.06 | CQ153: 105 | CR153: 100 | CS153: 2.21 | CT153: 113.6 | CU153: 100 | CV153: 3.67 | CW153: 90.3 | CX153: 86.43 | CY153: 2.48 | CZ153: 68.3 | DA153: 65.31 | DB153: -1.67 | DC153: 88.2 | DD153: 84.35 | DE153: 1.72 | DI153: 6.312 | DJ153: 94.7 | DK153: 94.7 | DL153: 5.54 | DM153: 2.027 | DN153: 3.413 | DO153: 2.036 | DP153: 3.469 | DQ153: 1.983 | DR153: 3.34 | DS153: 1.348 | DT153: 2.57 | DU153: 1.643 | DV153: 2.557 | DW153: 2.682 | DX153: 3.341 | DY153: 2.421 | DZ153: 3.193 | EA153: 2.212 | EB153: 2.894
A154: 2012-12-18T18:00:00 | B154: 3.89 | C154: 3.914 | D154: 4.816 | E154: 4.991 | F154: 4.33 | H154: 4.193 | J154: 394.1 | K154: 13 | L154: 43.97 | M154: 16.8 | N154: 7.091 | O154: 21.1 | P154: 278.1 | Q154: 13.5 | R154: 1.544 | S154: 26.1 | T154: 3.516 | U154: 23.2 | V154: 274.6 | W154: 13.5 | X154: 8.08 | Y154: 20.8 | Z154: 1.122 | AA154: 27.4 | AB154: 57.91 | AC154: 16.2 | AD154: 0.694 | AE154: 29.6 | AF154: 0.04 | AG154: 48.8 | AH154: 205.1 | AI154: 14.1 | AJ154: 0.695 | AK154: 29.5 | AL154: 0.209 | AM154: 35.9 | AN154: 3705 | AO154: 10.4 | AP154: 1589 | AQ154: 11.4 | AR154: 2398 | AS154: 10.9 | AT154: 78.17 | AU154: 15.6 | AV154: 27.75 | AW154: 17.7 | AX154: 6.984 | AY154: 21.1 | AZ154: 63.6 | BA154: 16 | BB154: 5.741 | BC154: 21.7 | BD154: 0.379 | BE154: 32.4 | BF154: 14.36 | BG154: 19 | BH154: 0.014 | BI154: 59.9 | BJ154: 1.302 | BK154: 26.5 | BL154: 272.1 | BM154: 13.4 | BN154: 298.3 | BO154: 13.3 | BP154: 413.8 | BQ154: 12.8 | BR154: 6321 | BS154: 9.8 | BT154: 1188 | BU154: 11.6 | BV154: 91.1 | BW154: 86.78 | BX154: 0.25 | BY154: 113.7 | BZ154: 100 | CA154: 2.27 | CB154: 115.5 | CC154: 100 | CD154: 2.22 | CE154: 114.7 | CF154: 100 | CG154: 1.49 | CH154: 123.1 | CI154: 100 | CJ154: 1.84 | CK154: 78.17 | CL154: 74.56 | CM154: -1.08 | CN154: 96.3 | CO154: 91.81 | CP154: 1.43 | CQ154: 105.2 | CR154: 100 | CS154: 2.41 | CT154: 113.5 | CU154: 100 | CV154: 3.9 | CW154: 90.2 | CX154: 86.38 | CY154: 2.74 | CZ154: 68.31 | DA154: 65.35 | DB154: -1.44 | DC154: 88.6 | DD154: 84.74 | DE154: 1.85 | DI154: 5.571 | DJ154: 94.9 | DK154: 94.9 | DL154: 4.83 | DM154: 2.247 | DN154: 3.513 | DO154: 2.277 | DP154: 3.606 | DQ154: 2.22 | DR154: 3.498 | DS154: 1.503 | DT154: 2.705 | DU154: 1.848 | DV154: 2.686 | DW154: 2.856 | DX154: 3.457 | DY154: 2.635 | DZ154: 3.308 | EA154: 2.415 | EB154: 3.04
A155: 2012-12-18T19:00:00 | B155: 4.064 | C155: 4.023 | D155: 5.015 | E155: 5.041 | F155: 4.529 | H155: 4.238 | J155: 378 | K155: 13.1 | L155: 43.13 | M155: 16.8 | N155: 6.947 | O155: 21.1 | P155: 272.3 | Q155: 13.5 | R155: 1.519 | S155: 26.1 | T155: 3.471 | U155: 23.2 | V155: 260.3 | W155: 13.6 | X155: 7.906 | Y155: 20.8 | Z155: 1.103 | AA155: 27.4 | AB155: 56.59 | AC155: 16.2 | AD155: 0.683 | AE155: 29.7 | AF155: 0.039 | AG155: 49 | AH155: 199.8 | AI155: 14.1 | AJ155: 0.685 | AK155: 29.6 | AL155: 0.207 | AM155: 36 | AN155: 3563 | AO155: 10.5 | AP155: 1564 | AQ155: 11.4 | AR155: 2346 | AS155: 10.9 | AT155: 74.63 | AU155: 15.7 | AV155: 26.84 | AW155: 17.7 | AX155: 6.422 | AY155: 21.3 | AZ155: 62.18 | BA155: 16 | BB155: 5.656 | BC155: 21.7 | BD155: 0.371 | BE155: 32.5 | BF155: 13.77 | BG155: 19.1 | BH155: 0.014 | BI155: 59.9 | BJ155: 1.274 | BK155: 26.5 | BL155: 268 | BM155: 13.4 | BN155: 293.8 | BO155: 13.3 | BP155: 404 | BQ155: 12.8 | BR155: 6168 | BS155: 9.9 | BT155: 1165 | BU155: 11.6 | BV155: 91.3 | BW155: 87.01 | BX155: 0.49 | BY155: 113.7 | BZ155: 100 | CA155: 2.49 | CB155: 115.4 | CC155: 100 | CD155: 2.43 | CE155: 114.7 | CF155: 100 | CG155: 1.65 | CH155: 123.1 | CI155: 100 | CJ155: 2.04 | CK155: 78.3 | CL155: 74.71 | CM155: -0.9 | CN155: 97.9 | CO155: 93.38 | CP155: 1.89 | CQ155: 105.4 | CR155: 100 | CS155: 2.62 | CT155: 113.4 | CU155: 100 | CV155: 4.07 | CW155: 90.1 | CX155: 86.32 | CY155: 2.93 | CZ155: 68.34 | DA155: 65.41 | DB155: -1.25 | DC155: 88.9 | DD155: 85.04 | DE155: 1.94 | DI155: 5.142 | DJ155: 95.3 | DK155: 95.3 | DL155: 4.47 | DM155: 2.45 | DN155: 3.583 | DO155: 2.489 | DP155: 3.709 | DQ155: 2.434 | DR155: 3.615 | DS155: 1.656 | DT155: 2.839 | DU155: 2.043 | DV155: 2.801 | DW155: 3.018 | DX155: 3.555 | DY155: 2.861 | DZ155: 3.435 | EA155: 2.62 | EB155: 3.187
A156: 2012-12-18T20:00:00 | B156: 4.179 | C156: 4.111 | D156: 5.139 | E156: 5.063 | F156: 4.672 | H156: 4.283 | J156: 364.5 | K156: 13.1 | L156: 42.32 | M156: 16.8 | N156: 6.81 | O156: 21.2 | P156: 261.6 | Q156: 13.6 | R156: 1.498 | S156: 26.1 | T156: 3.437 | U156: 23.2 | V156: 247.2 | W156: 13.7 | X156: 7.766 | Y156: 20.8 | Z156: 1.088 | AA156: 27.4 | AB156: 55.57 | AC156: 16.3 | AD156: 0.674 | AE156: 29.7 | AF156: 0.039 | AG156: 49 | AH156: 194.8 | AI156: 14.1 | AJ156: 0.679 | AK156: 29.6 | AL156: 0.205 | AM156: 36 | AN156: 3479 | AO156: 10.5 | AP156: 1523 | AQ156: 11.4 | AR156: 2341 | AS156: 10.9 | AT156: 71.58 | AU156: 15.7 | AV156: 26.07 | AW156: 17.8 | AX156: 5.952 | AY156: 21.5 | AZ156: 60.87 | BA156: 16 | BB156: 5.58 | BC156: 21.7 | BD156: 0.365 | BE156: 32.5 | BF156: 13.33 | BG156: 19.2 | BH156: 0.014 | BI156: 59.8 | BJ156: 1.252 | BK156: 26.6 | BL156: 265.4 | BM156: 13.4 | BN156: 291.8 | BO156: 13.3 | BP156: 401.4 | BQ156: 12.8 | BR156: 6075 | BS156: 9.9 | BT156: 1152 | BU156: 11.6 | BV156: 91.4 | BW156: 87.14 | BX156: 0.7 | BY156: 113.7 | BZ156: 100 | CA156: 2.68 | CB156: 115.5 | CC156: 100 | CD156: 2.62 | CE156: 114.7 | CF156: 100 | CG156: 1.8 | CH156: 123 | CI156: 100 | CJ156: 2.22 | CK156: 78.42 | CL156: 74.85 | CM156: -0.74 | CN156: 98.7 | CO156: 94.18 | CP156: 2.2 | CQ156: 105.6 | CR156: 100 | CS156: 2.82 | CT156: 113.2 | CU156: 100 | CV156: 4.19 | CW156: 90 | CX156: 86.25 | CY156: 3.04 | CZ156: 68.29 | DA156: 65.38 | DB156: -1.12 | DC156: 88.7 | DD156: 84.85 | DE156: 1.96 | DI156: 4.945 | DJ156: 95 | DK156: 95 | DL156: 4.22 | DM156: 2.643 | DN156: 3.683 | DO156: 2.681 | DP156: 3.796 | DQ156: 2.621 | DR156: 3.715 | DS156: 1.806 | DT156: 2.961 | DU156: 2.224 | DV156: 2.896 | DW156: 3.168 | DX156: 3.647 | DY156: 3.044 | DZ156: 3.556 | EA156: 2.817 | EB156: 3.338
A157: 2012-12-18T21:00:00 | B157: 4.25 | C157: 4.194 | D157: 5.214 | E157: 5.094 | F157: 4.768 | H157: 4.323 | J157: 352.7 | K157: 13.2 | L157: 41.56 | M157: 16.8 | N157: 6.686 | O157: 21.2 | P157: 249.8 | Q157: 13.6 | R157: 1.476 | S157: 26.2 | T157: 3.404 | U157: 23.2 | V157: 235.7 | W157: 13.7 | X157: 7.607 | Y157: 20.8 | Z157: 1.071 | AA157: 27.5 | AB157: 54.75 | AC157: 16.3 | AD157: 0.664 | AE157: 29.7 | AF157: 0.039 | AG157: 48.9 | AH157: 190.4 | AI157: 14.1 | AJ157: 0.668 | AK157: 29.6 | AL157: 0.202 | AM157: 36 | AN157: 3422 | AO157: 10.5 | AP157: 1503 | AQ157: 11.4 | AR157: 2307 | AS157: 10.9 | AT157: 68.88 | AU157: 15.8 | AV157: 25.28 | AW157: 17.8 | AX157: 5.555 | AY157: 21.7 | AZ157: 59.76 | BA157: 16.1 | BB157: 5.495 | BC157: 21.7 | BD157: 0.359 | BE157: 32.6 | BF157: 12.99 | BG157: 19.2 | BH157: 0.014 | BI157: 59.8 | BJ157: 1.235 | BK157: 26.6 | BL157: 263.3 | BM157: 13.4 | BN157: 289.9 | BO157: 13.3 | BP157: 396.4 | BQ157: 12.8 | BR157: 5993 | BS157: 9.9 | BT157: 1144 | BU157: 11.6 | BV157: 91.4 | BW157: 87.17 | BX157: 0.88 | BY157: 113.8 | BZ157: 100 | CA157: 2.84 | CB157: 115.4 | CC157: 100 | CD157: 2.78 | CE157: 114.7 | CF157: 100 | CG157: 1.93 | CH157: 123.1 | CI157: 100 | CJ157: 2.38 | CK157: 78.54 | CL157: 74.98 | CM157: -0.59 | CN157: 98.9 | CO157: 94.4 | CP157: 2.38 | CQ157: 105.7 | CR157: 100 | CS157: 2.99 | CT157: 113.1 | CU157: 100 | CV157: 4.26 | CW157: 89.9 | CX157: 86.17 | CY157: 3.1 | CZ157: 68.25 | DA157: 65.35 | DB157: -1.04 | DC157: 88.4 | DD157: 84.57 | DE157: 1.95 | DI157: 4.837 | DJ157: 94.7 | DK157: 94.7 | DL157: 4.07 | DM157: 2.819 | DN157: 3.785 | DO157: 2.841 | DP157: 3.873 | DQ157: 2.78 | DR157: 3.798 | DS157: 1.941 | DT157: 3.06 | DU157: 2.387 | DV157: 2.964 | DW157: 3.304 | DX157: 3.727 | DY157: 3.193 | DZ157: 3.677 | EA157: 2.985 | EB157: 3.473
A158: 2012-12-18T22:00:00 | B158: 4.297 | C158: 4.265 | D158: 5.249 | E158: 5.108 | F158: 4.834 | H158: 4.365 | J158: 343 | K158: 13.2 | L158: 40.91 | M158: 16.9 | N158: 6.594 | O158: 21.2 | P158: 247.1 | Q158: 13.6 | R158: 1.457 | S158: 26.2 | T158: 3.376 | U158: 23.2 | V158: 227 | W158: 13.8 | X158: 7.5 | Y158: 20.9 | Z158: 1.057 | AA158: 27.5 | AB158: 54 | AC158: 16.3 | AD158: 0.656 | AE158: 29.8 | AF158: 0.038 | AG158: 49.2 | AH158: 186.6 | AI158: 14.2 | AJ158: 0.66 | AK158: 29.6 | AL158: 0.2 | AM158: 36.1 | AN158: 3345 | AO158: 10.5 | AP158: 1489 | AQ158: 11.4 | AR158: 2282 | AS158: 10.9 | AT158: 66.13 | AU158: 15.8 | AV158: 24.51 | AW158: 17.9 | AX158: 5.177 | AY158: 21.8 | AZ158: 58.55 | BA158: 16.1 | BB158: 5.419 | BC158: 21.7 | BD158: 0.354 | BE158: 32.6 | BF158: 12.66 | BG158: 19.3 | BH158: 0.014 | BI158: 59.8 | BJ158: 1.221 | BK158: 26.7 | BL158: 260.6 | BM158: 13.4 | BN158: 286.4 | BO158: 13.3 | BP158: 396 | BQ158: 12.8 | BR158: 5894 | BS158: 9.9 | BT158: 1131 | BU158: 11.6 | BV158: 91.6 | BW158: 87.39 | BX158: 1.07 | BY158: 113.7 | BZ158: 100 | CA158: 2.98 | CB158: 115.3 | CC158: 100 | CD158: 2.91 | CE158: 114.8 | CF158: 100 | CG158: 2.07 | CH158: 123 | CI158: 100 | CJ158: 2.53 | CK158: 78.56 | CL158: 75.02 | CM158: -0.48 | CN158: 100 | CO158: 95.48 | CP158: 2.72 | CQ158: 105.9 | CR158: 100 | CS158: 3.15 | CT158: 113 | CU158: 100 | CV158: 4.31 | CW158: 89.7 | CX158: 85.98 | CY158: 3.1 | CZ158: 68.21 | DA158: 65.33 | DB158: -0.99 | DC158: 89.1 | DD158: 85.25 | DE158: 2.1 | DI158: 4.759 | DJ158: 94.5 | DK158: 94.5 | DL158: 3.96 | DM158: 2.973 | DN158: 3.845 | DO158: 2.981 | DP158: 3.944 | DQ158: 2.911 | DR158: 3.87 | DS158: 2.071 | DT158: 3.161 | DU158: 2.529 | DV158: 3.068 | DW158: 3.422 | DX158: 3.813 | DY158: 3.368 | DZ158: 3.787 | EA158: 3.147 | EB158: 3.593
A159: 2012-12-18T23:00:00 | B159: 4.328 | C159: 4.329 | D159: 5.258 | E159: 5.116 | F159: 4.883 | H159: 4.417 | J159: 336.2 | K159: 13.2 | L159: 40.34 | M159: 16.9 | N159: 6.511 | O159: 21.2 | P159: 241.3 | Q159: 13.7 | R159: 1.446 | S159: 26.2 | T159: 3.357 | U159: 23.2 | V159: 219.7 | W159: 13.8 | X159: 7.417 | Y159: 20.9 | Z159: 1.05 | AA159: 27.5 | AB159: 53.38 | AC159: 16.3 | AD159: 0.649 | AE159: 29.8 | AF159: 0.038 | AG159: 49.1 | AH159: 183.2 | AI159: 14.2 | AJ159: 0.655 | AK159: 29.6 | AL159: 0.199 | AM159: 36.1 | AN159: 3349 | AO159: 10.5 | AP159: 1498 | AQ159: 11.4 | AR159: 2283 | AS159: 10.9 | AT159: 63.83 | AU159: 15.9 | AV159: 23.81 | AW159: 17.9 | AX159: 4.859 | AY159: 22 | AZ159: 57.56 | BA159: 16.1 | BB159: 5.35 | BC159: 21.8 | BD159: 0.349 | BE159: 32.7 | BF159: 12.4 | BG159: 19.3 | BH159: 0.014 | BI159: 59.8 | BJ159: 1.211 | BK159: 26.7 | BL159: 259.6 | BM159: 13.4 | BN159: 286.2 | BO159: 13.3 | BP159: 398 | BQ159: 12.8 | BR159: 6097 | BS159: 9.8 | BT159: 1137 | BU159: 11.6 | BV159: 91.6 | BW159: 87.41 | BX159: 1.21 | BY159: 113.7 | BZ159: 100 | CA159: 3.1 | CB159: 115.2 | CC159: 100 | CD159: 3.03 | CE159: 114.7 | CF159: 100 | CG159: 2.18 | CH159: 123 | CI159: 100 | CJ159: 2.66 | CK159: 78.61 | CL159: 75.08 | CM159: -0.37 | CN159: 100.6 | CO159: 96.08 | CP159: 2.93 | CQ159: 106.2 | CR159: 100 | CS159: 3.3 | CT159: 112.9 | CU159: 100 | CV159: 4.34 | CW159: 89.6 | CX159: 85.89 | CY159: 3.1 | CZ159: 68.15 | DA159: 65.27 | DB159: -0.95 | DC159: 89.6 | DD159: 85.74 | DE159: 2.24 | DI159: 4.823 | DJ159: 93.8 | DK159: 93.8 | DL159: 3.92 | DM159: 3.108 | DN159: 3.926 | DO159: 3.101 | DP159: 4.017 | DQ159: 3.026 | DR159: 3.948 | DS159: 2.187 | DT159: 3.258 | DU159: 2.663 | DV159: 3.167 | DW159: 3.533 | DX159: 3.891 | DY159: 3.492 | DZ159: 3.895 | EA159: 3.292 | EB159: 3.712
A160: 2012-12-19 | B160: 4.355 | C160: 4.387 | D160: 5.247 | E160: 5.127 | F160: 4.917 | H160: 4.471 | J160: 328.8 | K160: 13.2 | L160: 39.76 | M160: 16.9 | N160: 6.438 | O160: 21.2 | P160: 240.1 | Q160: 13.7 | R160: 1.431 | S160: 26.2 | T160: 3.333 | U160: 23.2 | V160: 212.6 | W160: 13.9 | X160: 7.323 | Y160: 20.9 | Z160: 1.039 | AA160: 27.5 | AB160: 52.68 | AC160: 16.3 | AD160: 0.642 | AE160: 29.8 | AF160: 0.038 | AG160: 49.1 | AH160: 179.5 | AI160: 14.2 | AJ160: 0.647 | AK160: 29.7 | AL160: 0.197 | AM160: 36.1 | AN160: 3274 | AO160: 10.5 | AP160: 1489 | AQ160: 11.4 | AR160: 2257 | AS160: 10.9 | AT160: 61.64 | AU160: 15.9 | AV160: 23.18 | AW160: 18 | AX160: 4.568 | AY160: 22.2 | AZ160: 56.58 | BA160: 16.1 | BB160: 5.276 | BC160: 21.8 | BD160: 0.345 | BE160: 32.7 | BF160: 12.15 | BG160: 19.4 | BH160: 0.014 | BI160: 59.8 | BJ160: 1.203 | BK160: 26.7 | BL160: 257.9 | BM160: 13.5 | BN160: 284.8 | BO160: 13.3 | BP160: 399.8 | BQ160: 12.8 | BR160: 6157 | BS160: 9.8 | BT160: 1137 | BU160: 11.6 | BV160: 91.8 | BW160: 87.63 | BX160: 1.36 | BY160: 113.7 | BZ160: 100 | CA160: 3.21 | CB160: 115.2 | CC160: 100 | CD160: 3.13 | CE160: 114.7 | CF160: 100 | CG160: 2.29 | CH160: 122.9 | CI160: 100 | CJ160: 2.79 | CK160: 78.63 | CL160: 75.12 | CM160: -0.27 | CN160: 101.3 | CO160: 96.77 | CP160: 3.15 | CQ160: 106.3 | CR160: 100 | CS160: 3.42 | CT160: 112.8 | CU160: 100 | CV160: 4.37 | CW160: 89.5 | CX160: 85.79 | CY160: 3.07 | CZ160: 68.16 | DA160: 65.29 | DB160: -0.92 | DC160: 89.5 | DD160: 85.65 | DE160: 2.28 | DI160: 4.884 | DJ160: 93.8 | DK160: 93.8 | DL160: 3.98 | DM160: 3.227 | DN160: 4.004 | DO160: 3.206 | DP160: 4.088 | DQ160: 3.128 | DR160: 4.012 | DS160: 2.294 | DT160: 3.349 | DU160: 2.785 | DV160: 3.264 | DW160: 3.632 | DX160: 3.971 | DY160: 3.609 | DZ160: 3.993 | EA160: 3.414 | EB160: 3.814
A161: 2012-12-19T01:00:00 | B161: 4.375 | C161: 4.452 | D161: 5.23 | E161: 5.141 | F161: 4.931 | H161: 4.545 | J161: 324.9 | K161: 13.2 | L161: 39.1 | M161: 16.9 | N161: 6.38 | O161: 21.2 | P161: 226.5 | Q161: 13.7 | R161: 1.421 | S161: 26.2 | T161: 3.304 | U161: 23.2 | V161: 207.2 | W161: 13.9 | X161: 7.269 | Y161: 20.9 | Z161: 1.037 | AA161: 27.5 | AB161: 52.03 | AC161: 16.3 | AD161: 0.636 | AE161: 29.8 | AF161: 0.037 | AG161: 49.3 | AH161: 174.5 | AI161: 14.2 | AJ161: 0.639 | AK161: 29.7 | AL161: 0.196 | AM161: 36.1 | AN161: 3184 | AO161: 10.5 | AP161: 1472 | AQ161: 11.4 | AR161: 2243 | AS161: 10.9 | AT161: 59.57 | AU161: 16 | AV161: 22.55 | AW161: 18 | AX161: 4.309 | AY161: 22.3 | AZ161: 55.49 | BA161: 16.1 | BB161: 5.207 | BC161: 21.8 | BD161: 0.341 | BE161: 32.7 | BF161: 11.88 | BG161: 19.4 | BH161: 0.014 | BI161: 59.7 | BJ161: 1.196 | BK161: 26.7 | BL161: 254.7 | BM161: 13.5 | BN161: 283.4 | BO161: 13.3 | BP161: 400.7 | BQ161: 12.8 | BR161: 6136 | BS161: 9.8 | BT161: 1136 | BU161: 11.6 | BV161: 91.9 | BW161: 87.74 | BX161: 1.49 | BY161: 113.7 | BZ161: 100 | CA161: 3.3 | CB161: 115.1 | CC161: 100 | CD161: 3.22 | CE161: 114.7 | CF161: 100 | CG161: 2.39 | CH161: 122.9 | CI161: 100 | CJ161: 2.91 | CK161: 78.62 | CL161: 75.12 | CM161: -0.19 | CN161: 101.9 | CO161: 97.36 | CP161: 3.33 | CQ161: 106.5 | CR161: 100 | CS161: 3.53 | CT161: 112.7 | CU161: 100 | CV161: 4.39 | CW161: 89.2 | CX161: 85.5 | CY161: 3 | CZ161: 68.11 | DA161: 65.24 | DB161: -0.92 | DC161: 89.7 | DD161: 85.86 | DE161: 2.38 | DI161: 4.999 | DJ161: 92.1 | DK161: 92.1 | DL161: 3.83 | DM161: 3.34 | DN161: 4.062 | DO161: 3.298 | DP161: 4.152 | DQ161: 3.213 | DR161: 4.074 | DS161: 2.391 | DT161: 3.429 | DU161: 2.903 | DV161: 3.386 | DW161: 3.722 | DX161: 4.047 | DY161: 3.708 | DZ161: 4.084 | EA161: 3.521 | EB161: 3.911
A162: 2012-12-19T02:00:00 | B162: 4.392 | C162: 4.508 | D162: 5.205 | E162: 5.159 | F162: 4.945 | H162: 4.595 | J162: 319.7 | K162: 13.3 | L162: 38.57 | M162: 16.9 | N162: 6.328 | O162: 21.2 | P162: 217.1 | Q162: 13.8 | R162: 1.409 | S162: 26.3 | T162: 3.281 | U162: 23.3 | V162: 201.3 | W162: 13.9 | X162: 7.166 | Y162: 20.9 | Z162: 1.023 | AA162: 27.6 | AB162: 51.41 | AC162: 16.3 | AD162: 0.632 | AE162: 29.9 | AF162: 0.037 | AG162: 49.3 | AH162: 170.5 | AI162: 14.3 | AJ162: 0.633 | AK162: 29.7 | AL162: 0.194 | AM162: 36.1 | AN162: 3143 | AO162: 10.5 | AP162: 1461 | AQ162: 11.4 | AR162: 2245 | AS162: 10.9 | AT162: 58.15 | AU162: 16 | AV162: 22.16 | AW162: 18 | AX162: 4.138 | AY162: 22.5 | AZ162: 54.72 | BA162: 16.2 | BB162: 5.162 | BC162: 21.8 | BD162: 0.338 | BE162: 32.8 | BF162: 11.66 | BG162: 19.5 | BH162: 0.014 | BI162: 59.7 | BJ162: 1.193 | BK162: 26.7 | BL162: 251.6 | BM162: 13.5 | BN162: 282.2 | BO162: 13.3 | BP162: 404.2 | BQ162: 12.8 | BR162: 6056 | BS162: 9.8 | BT162: 1132 | BU162: 11.6 | BV162: 92 | BW162: 87.86 | BX162: 1.61 | BY162: 113.6 | BZ162: 100 | CA162: 3.38 | CB162: 115 | CC162: 100 | CD162: 3.3 | CE162: 114.7 | CF162: 100 | CG162: 2.48 | CH162: 122.8 | CI162: 100 | CJ162: 3.02 | CK162: 78.59 | CL162: 75.11 | CM162: -0.12 | CN162: 101.7 | CO162: 97.19 | CP162: 3.37 | CQ162: 106.5 | CR162: 100 | CS162: 3.62 | CT162: 112.7 | CU162: 100 | CV162: 4.41 | CW162: 89 | CX162: 85.3 | CY162: 2.94 | CZ162: 68.12 | DA162: 65.25 | DB162: -0.9 | DC162: 90.2 | DD162: 86.34 | DE162: 2.51 | DI162: 4.856 | DJ162: 95.2 | DK162: 95.2 | DL162: 4.17 | DM162: 3.438 | DN162: 4.132 | DO162: 3.379 | DP162: 4.215 | DQ162: 3.297 | DR162: 4.136 | DS162: 2.486 | DT162: 3.518 | DU162: 3.016 | DV162: 3.508 | DW162: 3.804 | DX162: 4.122 | DY162: 3.771 | DZ162: 4.17 | EA162: 3.61 | EB162: 4
A163: 2012-12-19T03:00:00 | B163: 4.42 | C163: 4.567 | D163: 5.182 | E163: 5.185 | F163: 4.948 | H163: 4.678 | J163: 315.6 | K163: 13.3 | L163: 37.93 | M163: 16.9 | N163: 6.278 | O163: 21.3 | P163: 210.2 | Q163: 13.8 | R163: 1.4 | S163: 26.3 | T163: 3.253 | U163: 23.3 | V163: 195.7 | W163: 14 | X163: 7.1 | Y163: 20.9 | Z163: 1.015 | AA163: 27.6 | AB163: 50.72 | AC163: 16.4 | AD163: 0.628 | AE163: 29.9 | AF163: 0.037 | AG163: 49.3 | AH163: 166.4 | AI163: 14.3 | AJ163: 0.625 | AK163: 29.8 | AL163: 0.192 | AM163: 36.2 | AN163: 3072 | AO163: 10.5 | AP163: 1445 | AQ163: 11.4 | AR163: 2213 | AS163: 10.9 | AT163: 56.92 | AU163: 16.1 | AV163: 21.83 | AW163: 18.1 | AX163: 3.995 | AY163: 22.6 | AZ163: 53.95 | BA163: 16.2 | BB163: 5.108 | BC163: 21.8 | BD163: 0.335 | BE163: 32.8 | BF163: 11.37 | BG163: 19.5 | BH163: 0.014 | BI163: 59.7 | BJ163: 1.188 | BK163: 26.7 | BL163: 246.8 | BM163: 13.5 | BN163: 280.3 | BO163: 13.3 | BP163: 405.2 | BQ163: 12.8 | BR163: 6146 | BS163: 9.8 | BT163: 1131 | BU163: 11.6 | BV163: 92.2 | BW163: 88.06 | BX163: 1.73 | BY163: 113.6 | BZ163: 100 | CA163: 3.46 | CB163: 114.9 | CC163: 100 | CD163: 3.38 | CE163: 114.7 | CF163: 100 | CG163: 2.57 | CH163: 122.8 | CI163: 100 | CJ163: 3.12 | CK163: 78.6 | CL163: 75.13 | CM163: -0.04 | CN163: 101.5 | CO163: 97.01 | CP163: 3.4 | CQ163: 106.6 | CR163: 100 | CS163: 3.7 | CT163: 112.6 | CU163: 100 | CV163: 4.43 | CW163: 88.7 | CX163: 85.01 | CY163: 2.87 | CZ163: 68.1 | DA163: 65.24 | DB163: -0.9 | DC163: 90.3 | DD163: 86.45 | DE163: 2.61 | DI163: 5.097 | DJ163: 94.1 | DK163: 94.1 | DL163: 4.24 | DM163: 3.525 | DN163: 4.203 | DO163: 3.454 | DP163: 4.277 | DQ163: 3.371 | DR163: 4.198 | DS163: 2.572 | DT163: 3.596 | DU163: 3.117 | DV163: 3.62 | DW163: 3.879 | DX163: 4.199 | DY163: 3.828 | DZ163: 4.248 | EA163: 3.688 | EB163: 4.088
A164: 2012-12-19T04:00:00 | B164: 4.437 | C164: 4.612 | D164: 5.169 | E164: 5.19 | F164: 4.958 | H164: 4.726 | J164: 311.4 | K164: 13.3 | L164: 37.51 | M164: 16.9 | N164: 6.242 | O164: 21.3 | P164: 219.4 | Q164: 13.8 | R164: 1.392 | S164: 26.3 | T164: 3.238 | U164: 23.3 | V164: 191.2 | W164: 14 | X164: 7.04 | Y164: 20.9 | Z164: 1.009 | AA164: 27.6 | AB164: 50.04 | AC164: 16.4 | AD164: 0.622 | AE164: 29.9 | AF164: 0.037 | AG164: 49.2 | AH164: 162.6 | AI164: 14.3 | AJ164: 0.619 | AK164: 29.8 | AL164: 0.19 | AM164: 36.2 | AN164: 3028 | AO164: 10.6 | AP164: 1437 | AQ164: 11.4 | AR164: 2209 | AS164: 10.9 | AT164: 55.34 | AU164: 16.1 | AV164: 21.28 | AW164: 18.1 | AX164: 3.816 | AY164: 22.7 | AZ164: 53.11 | BA164: 16.2 | BB164: 5.041 | BC164: 21.9 | BD164: 0.332 | BE164: 32.8 | BF164: 11.15 | BG164: 19.6 | BH164: 0.014 | BI164: 59.7 | BJ164: 1.179 | BK164: 26.8 | BL164: 247 | BM164: 13.5 | BN164: 281 | BO164: 13.3 | BP164: 407.7 | BQ164: 12.8 | BR164: 6178 | BS164: 9.8 | BT164: 1132 | BU164: 11.6 | BV164: 92.3 | BW164: 88.17 | BX164: 1.83 | BY164: 113.6 | BZ164: 100 | CA164: 3.53 | CB164: 114.9 | CC164: 100 | CD164: 3.45 | CE164: 114.7 | CF164: 100 | CG164: 2.66 | CH164: 122.7 | CI164: 100 | CJ164: 3.22 | CK164: 78.62 | CL164: 75.16 | CM164: 0.03 | CN164: 102.2 | CO164: 97.69 | CP164: 3.59 | CQ164: 106.7 | CR164: 100 | CS164: 3.78 | CT164: 112.6 | CU164: 100 | CV164: 4.45 | CW164: 88.5 | CX164: 84.82 | CY164: 2.83 | CZ164: 68.1 | DA164: 65.24 | DB164: -0.89 | DC164: 90.5 | DD164: 86.65 | DE164: 2.69 | DI164: 5.233 | DJ164: 89.4 | DK164: 89.4 | DL164: 3.64 | DM164: 3.61 | DN164: 4.289 | DO164: 3.525 | DP164: 4.335 | DQ164: 3.439 | DR164: 4.251 | DS164: 2.661 | DT164: 3.68 | DU164: 3.215 | DV164: 3.707 | DW164: 3.951 | DX164: 4.263 | DY164: 3.913 | DZ164: 4.319 | EA164: 3.768 | EB164: 4.157
A165: 2012-12-19T05:00:00 | B165: 4.465 | C165: 4.635 | D165: 5.143 | E165: 5.159 | F165: 4.966 | H165: 4.757 | J165: 310 | K165: 13.3 | L165: 36.73 | M165: 17 | N165: 6.181 | O165: 21.3 | P165: 205.2 | Q165: 13.9 | R165: 1.382 | S165: 26.3 | T165: 3.195 | U165: 23.3 | V165: 186.6 | W165: 14 | X165: 6.94 | Y165: 21 | Z165: 1.002 | AA165: 27.6 | AB165: 49.32 | AC165: 16.4 | AD165: 0.615 | AE165: 29.9 | AF165: 0.037 | AG165: 49.2 | AH165: 158.9 | AI165: 14.3 | AJ165: 0.612 | AK165: 29.8 | AL165: 0.189 | AM165: 36.2 | AN165: 2956 | AO165: 10.6 | AP165: 1433 | AQ165: 11.4 | AR165: 2206 | AS165: 10.9 | AT165: 53.5 | AU165: 16.2 | AV165: 20.75 | AW165: 18.2 | AX165: 3.633 | AY165: 22.8 | AZ165: 52.19 | BA165: 16.2 | BB165: 4.974 | BC165: 21.9 | BD165: 0.329 | BE165: 32.9 | BF165: 10.91 | BG165: 19.6 | BH165: 0.014 | BI165: 59.7 | BJ165: 1.166 | BK165: 26.8 | BL165: 246.4 | BM165: 13.5 | BN165: 282 | BO165: 13.3 | BP165: 407.8 | BQ165: 12.8 | BR165: 6139 | BS165: 9.8 | BT165: 1130 | BU165: 11.6 | BV165: 92.6 | BW165: 88.47 | BX165: 1.95 | BY165: 113.6 | BZ165: 100 | CA165: 3.59 | CB165: 114.8 | CC165: 100 | CD165: 3.51 | CE165: 114.7 | CF165: 100 | CG165: 2.74 | CH165: 122.7 | CI165: 100 | CJ165: 3.31 | CK165: 78.62 | CL165: 75.17 | CM165: 0.09 | CN165: 103.1 | CO165: 98.57 | CP165: 3.8 | CQ165: 107 | CR165: 100 | CS165: 3.85 | CT165: 112.6 | CU165: 100 | CV165: 4.48 | CW165: 88.2 | CX165: 84.52 | CY165: 2.75 | CZ165: 68.06 | DA165: 65.2 | DB165: -0.89 | DC165: 90.4 | DD165: 86.56 | DE165: 2.71 | DI165: 4.839 | DJ165: 88 | DK165: 88 | DL165: 3.03 | DM165: 3.685 | DN165: 4.304 | DO165: 3.586 | DP165: 4.369 | DQ165: 3.507 | DR165: 4.289 | DS165: 2.74 | DT165: 3.73 | DU165: 3.304 | DV165: 3.782 | DW165: 4.013 | DX165: 4.32 | DY165: 4 | DZ165: 4.392 | EA165: 3.84 | EB165: 4.221
A166: 2012-12-19T06:00:00 | B166: 4.486 | C166: 4.643 | D166: 5.11 | E166: 5.094 | F166: 4.972 | H166: 4.738 | J166: 308.8 | K166: 13.3 | L166: 36.11 | M166: 17 | N166: 6.133 | O166: 21.3 | P166: 200 | Q166: 13.9 | R166: 1.373 | S166: 26.3 | T166: 3.163 | U166: 23.3 | V166: 183 | W166: 14.1 | X166: 6.869 | Y166: 21 | Z166: 0.997 | AA166: 27.6 | AB166: 48.68 | AC166: 16.4 | AD166: 0.61 | AE166: 30 | AF166: 0.036 | AG166: 49.5 | AH166: 156 | AI166: 14.4 | AJ166: 0.606 | AK166: 29.9 | AL166: 0.187 | AM166: 36.3 | AN166: 2923 | AO166: 10.6 | AP166: 1422 | AQ166: 11.4 | AR166: 2186 | AS166: 10.9 | AT166: 51.87 | AU166: 16.2 | AV166: 20.25 | AW166: 18.2 | AX166: 3.458 | AY166: 23 | AZ166: 51.28 | BA166: 16.2 | BB166: 4.91 | BC166: 21.9 | BD166: 0.326 | BE166: 32.9 | BF166: 10.75 | BG166: 19.6 | BH166: 0.014 | BI166: 59.7 | BJ166: 1.154 | BK166: 26.8 | BL166: 249.4 | BM166: 13.5 | BN166: 285.1 | BO166: 13.3 | BP166: 408.7 | BQ166: 12.8 | BR166: 6105 | BS166: 9.8 | BT166: 1124 | BU166: 11.6 | BV166: 92.8 | BW166: 88.68 | BX166: 2.05 | BY166: 113.6 | BZ166: 100 | CA166: 3.66 | CB166: 114.8 | CC166: 100 | CD166: 3.58 | CE166: 114.7 | CF166: 100 | CG166: 2.82 | CH166: 122.7 | CI166: 100 | CJ166: 3.39 | CK166: 78.72 | CL166: 75.27 | CM166: 0.06 | CN166: 103.5 | CO166: 98.96 | CP166: 3.92 | CQ166: 107.2 | CR166: 100 | CS166: 3.91 | CT166: 112.5 | CU166: 100 | CV166: 4.5 | CW166: 88.1 | CX166: 84.42 | CY166: 2.7 | CZ166: 68.08 | DA166: 65.22 | DB166: -0.88 | DC166: 91.4 | DD166: 87.52 | DE166: 2.85 | DI166: 4.511 | DJ166: 85.7 | DK166: 85.7 | DL166: 2.32 | DM166: 3.746 | DN166: 4.336 | DO166: 3.649 | DP166: 4.391 | DQ166: 3.569 | DR166: 4.304 | DS166: 2.819 | DT166: 3.795 | DU166: 3.388 | DV166: 3.836 | DW166: 4.067 | DX166: 4.367 | DY166: 4.061 | DZ166: 4.455 | EA166: 3.905 | EB166: 4.281
A167: 2012-12-19T07:00:00 | B167: 4.494 | C167: 4.635 | D167: 5.067 | E167: 4.984 | F167: 4.971 | H167: 4.732 | J167: 307.6 | K167: 13.3 | L167: 35.4 | M167: 17 | N167: 6.092 | O167: 21.3 | P167: 195.1 | Q167: 13.9 | R167: 1.364 | S167: 26.3 | T167: 3.125 | U167: 23.4 | V167: 180.2 | W167: 14.1 | X167: 6.765 | Y167: 21 | Z167: 0.991 | AA167: 27.6 | AB167: 48 | AC167: 16.4 | AD167: 0.604 | AE167: 30 | AF167: 0.036 | AG167: 49.4 | AH167: 154.5 | AI167: 14.4 | AJ167: 0.601 | AK167: 29.9 | AL167: 0.186 | AM167: 36.3 | AN167: 2859 | AO167: 10.6 | AP167: 1410 | AQ167: 11.4 | AR167: 2157 | AS167: 10.9 | AT167: 50.56 | AU167: 16.2 | AV167: 19.86 | AW167: 18.2 | AX167: 3.307 | AY167: 23.1 | AZ167: 50.54 | BA167: 16.3 | BB167: 4.853 | BC167: 21.9 | BD167: 0.323 | BE167: 32.9 | BF167: 10.63 | BG167: 19.7 | BH167: 0.014 | BI167: 59.7 | BJ167: 1.142 | BK167: 26.9 | BL167: 253.9 | BM167: 13.5 | BN167: 288.8 | BO167: 13.3 | BP167: 410.3 | BQ167: 12.8 | BR167: 6129 | BS167: 9.8 | BT167: 1132 | BU167: 11.6 | BV167: 93.2 | BW167: 89.07 | BX167: 2.17 | BY167: 113.6 | BZ167: 100 | CA167: 3.71 | CB167: 114.8 | CC167: 100 | CD167: 3.63 | CE167: 114.7 | CF167: 100 | CG167: 2.89 | CH167: 122.7 | CI167: 100 | CJ167: 3.47 | CK167: 78.86 | CL167: 75.41 | CM167: 0.14 | CN167: 103.9 | CO167: 99.36 | CP167: 4.03 | CQ167: 107.4 | CR167: 100 | CS167: 3.97 | CT167: 112.5 | CU167: 100 | CV167: 4.51 | CW167: 87.7 | CX167: 84.03 | CY167: 2.6 | CZ167: 67.92 | DA167: 65.07 | DB167: -0.91 | DC167: 90 | DD167: 86.18 | DE167: 2.62 | DI167: 4.437 | DJ167: 80.2 | DK167: 80.2 | DL167: 1.31 | DM167: 3.804 | DN167: 4.325 | DO167: 3.706 | DP167: 4.396 | DQ167: 3.623 | DR167: 4.294 | DS167: 2.889 | DT167: 3.814 | DU167: 3.459 | DV167: 3.848 | DW167: 4.123 | DX167: 4.403 | DY167: 4.108 | DZ167: 4.502 | EA167: 3.959 | EB167: 4.323
A168: 2012-12-19T08:00:00 | B168: 4.484 | C168: 4.601 | D168: 5.001 | E168: 4.869 | F168: 4.964 | H168: 4.709 | J168: 304.1 | K168: 13.3 | L168: 34.69 | M168: 17.1 | N168: 6.055 | O168: 21.3 | P168: 195.4 | Q168: 13.9 | R168: 1.356 | S168: 26.3 | T168: 3.084 | U168: 23.4 | V168: 178.8 | W168: 14.1 | X168: 6.647 | Y168: 21.1 | Z168: 0.985 | AA168: 27.7 | AB168: 47.19 | AC168: 16.5 | AD168: 0.598 | AE168: 30 | AF168: 0.036 | AG168: 49.4 | AH168: 154.1 | AI168: 14.4 | AJ168: 0.596 | AK168: 29.9 | AL168: 0.185 | AM168: 36.3 | AN168: 2816 | AO168: 10.6 | AP168: 1412 | AQ168: 11.4 | AR168: 2136 | AS168: 10.9 | AT168: 49.14 | AU168: 16.3 | AV168: 19.47 | AW168: 18.3 | AX168: 3.167 | AY168: 23.2 | AZ168: 49.59 | BA168: 16.3 | BB168: 4.788 | BC168: 22 | BD168: 0.321 | BE168: 33 | BF168: 10.61 | BG168: 19.7 | BH168: 0.014 | BI168: 59.7 | BJ168: 1.132 | BK168: 26.9 | BL168: 259.3 | BM168: 13.5 | BN168: 293.2 | BO168: 13.3 | BP168: 413.5 | BQ168: 12.8 | BR168: 6203 | BS168: 9.8 | BT168: 1117 | BU168: 11.6 | BV168: 93.5 | BW168: 89.36 | BX168: 2.26 | BY168: 113.6 | BZ168: 100 | CA168: 3.76 | CB168: 114.8 | CC168: 100 | CD168: 3.67 | CE168: 114.8 | CF168: 100 | CG168: 2.95 | CH168: 122.7 | CI168: 100 | CJ168: 3.52 | CK168: 79.09 | CL168: 75.64 | CM168: 0.23 | CN168: 104.2 | CO168: 99.65 | CP168: 4.1 | CQ168: 107.6 | CR168: 100 | CS168: 4.02 | CT168: 112.5 | CU168: 100 | CV168: 4.5 | CW168: 87.5 | CX168: 83.83 | CY168: 2.5 | CZ168: 67.8 | DA168: 64.95 | DB168: -0.94 | DC168: 88.7 | DD168: 84.93 | DE168: 2.39 | DI168: 4.406 | DJ168: 75.61 | DK168: 75.61 | DL168: 0.46 | DM168: 3.853 | DN168: 4.32 | DO168: 3.749 | DP168: 4.382 | DQ168: 3.664 | DR168: 4.265 | DS168: 2.949 | DT168: 3.823 | DU168: 3.516 | DV168: 3.827 | DW168: 4.165 | DX168: 4.43 | DY168: 4.139 | DZ168: 4.525 | EA168: 4.006 | EB168: 4.354
A169: 2012-12-19T09:00:00 | B169: 4.467 | C169: 4.574 | D169: 4.926 | E169: 4.828 | F169: 4.955 | H169: 4.712 | J169: 296.8 | K169: 13.3 | L169: 33.95 | M169: 17.1 | N169: 5.958 | O169: 21.4 | P169: 190 | Q169: 14 | R169: 1.348 | S169: 26.4 | T169: 3.029 | U169: 23.4 | V169: 176.6 | W169: 14.1 | X169: 6.511 | Y169: 21.1 | Z169: 0.979 | AA169: 27.7 | AB169: 45.37 | AC169: 16.5 | AD169: 0.591 | AE169: 30.1 | AF169: 0.035 | AG169: 49.7 | AH169: 153.8 | AI169: 14.4 | AJ169: 0.59 | AK169: 30 | AL169: 0.183 | AM169: 36.4 | AN169: 2780 | AO169: 10.6 | AP169: 1398 | AQ169: 11.4 | AR169: 2130 | AS169: 10.9 | AT169: 47.51 | AU169: 16.3 | AV169: 18.97 | AW169: 18.3 | AX169: 3.039 | AY169: 23.4 | AZ169: 48.36 | BA169: 16.3 | BB169: 4.71 | BC169: 22 | BD169: 0.319 | BE169: 33 | BF169: 10.59 | BG169: 19.7 | BH169: 0.014 | BI169: 59.7 | BJ169: 1.124 | BK169: 27 | BL169: 261.4 | BM169: 13.5 | BN169: 295 | BO169: 13.3 | BP169: 416.3 | BQ169: 12.8 | BR169: 6095 | BS169: 9.8 | BT169: 1106 | BU169: 11.6 | BV169: 93.9 | BW169: 89.75 | BX169: 2.36 | BY169: 113.6 | BZ169: 100 | CA169: 3.79 | CB169: 114.7 | CC169: 100 | CD169: 3.7 | CE169: 114.8 | CF169: 100 | CG169: 3.01 | CH169: 122.7 | CI169: 100 | CJ169: 3.56 | CK169: 79.49 | CL169: 76.03 | CM169: 0.34 | CN169: 104.5 | CO169: 99.94 | CP169: 4.18 | CQ169: 107.9 | CR169: 100 | CS169: 4.06 | CT169: 112.5 | CU169: 100 | CV169: 4.48 | CW169: 87.2 | CX169: 83.53 | CY169: 2.37 | CZ169: 67.77 | DA169: 64.92 | DB169: -0.96 | DC169: 86.2 | DD169: 82.53 | DE169: 1.99 | DI169: 4.443 | DJ169: 71.84 | DK169: 71.84 | DL169: -0.11 | DM169: 3.887 | DN169: 4.328 | DO169: 3.782 | DP169: 4.376 | DQ169: 3.695 | DR169: 4.244 | DS169: 3.005 | DT169: 3.966 | DU169: 3.552 | DV169: 3.788 | DW169: 4.205 | DX169: 4.458 | DY169: 4.176 | DZ169: 4.647 | EA169: 4.052 | EB169: 4.436
A170: 2012-12-19T10:00:00 | B170: 4.442 | C170: 4.608 | D170: 4.863 | E170: 4.878 | F170: 4.958 | H170: 4.763 | J170: 292.7 | K170: 13.4 | L170: 33.38 | M170: 17.1 | N170: 5.939 | O170: 21.4 | P170: 191.6 | Q170: 14 | R170: 1.342 | S170: 26.4 | T170: 2.996 | U170: 23.5 | V170: 175.7 | W170: 14.1 | X170: 6.404 | Y170: 21.2 | Z170: 0.976 | AA170: 27.7 | AB170: 44.56 | AC170: 16.5 | AD170: 0.584 | AE170: 30.1 | AF170: 0.035 | AG170: 49.7 | AH170: 153.4 | AI170: 14.4 | AJ170: 0.582 | AK170: 30 | AL170: 0.182 | AM170: 36.4 | AN170: 2770 | AO170: 10.6 | AP170: 1394 | AQ170: 11.4 | AR170: 2112 | AS170: 10.9 | AT170: 46.56 | AU170: 16.4 | AV170: 18.71 | AW170: 18.4 | AX170: 2.973 | AY170: 23.4 | AZ170: 47.32 | BA170: 16.4 | BB170: 4.638 | BC170: 22.1 | BD170: 0.317 | BE170: 33 | BF170: 10.59 | BG170: 19.7 | BH170: 0.014 | BI170: 59.7 | BJ170: 1.117 | BK170: 27 | BL170: 266.4 | BM170: 13.4 | BN170: 296.4 | BO170: 13.3 | BP170: 418.5 | BQ170: 12.8 | BR170: 6023 | BS170: 9.8 | BT170: 1108 | BU170: 11.6 | BV170: 94.1 | BW170: 89.95 | BX170: 2.42 | BY170: 113.6 | BZ170: 100 | CA170: 3.81 | CB170: 114.7 | CC170: 100 | CD170: 3.72 | CE170: 114.8 | CF170: 100 | CG170: 3.06 | CH170: 122.7 | CI170: 100 | CJ170: 3.58 | CK170: 79.76 | CL170: 76.29 | CM170: 0.42 | CN170: 104.5 | CO170: 99.95 | CP170: 4.21 | CQ170: 107.9 | CR170: 100 | CS170: 4.12 | CT170: 112.5 | CU170: 100 | CV170: 4.46 | CW170: 87 | CX170: 83.33 | CY170: 2.28 | CZ170: 67.73 | DA170: 64.88 | DB170: -0.96 | DC170: 84.4 | DD170: 80.82 | DE170: 1.74 | DI170: 4.825 | DJ170: 67.97 | DK170: 67.97 | DL170: -0.48 | DM170: 3.915 | DN170: 4.371 | DO170: 3.803 | DP170: 4.415 | DQ170: 3.709 | DR170: 4.276 | DS170: 3.058 | DT170: 4.139 | DU170: 3.576 | DV170: 3.781 | DW170: 4.238 | DX170: 4.494 | DY170: 4.204 | DZ170: 4.689 | EA170: 4.109 | EB170: 4.562
A171: 2012-12-19T11:00:00 | B171: 4.443 | C171: 4.681 | D171: 4.835 | E171: 5.033 | F171: 4.987 | H171: 4.945 | J171: 287.5 | K171: 13.4 | L171: 32.86 | M171: 17.2 | N171: 5.932 | O171: 21.4 | P171: 190.4 | Q171: 14 | R171: 1.334 | S171: 26.4 | T171: 2.955 | U171: 23.5 | V171: 174.3 | W171: 14.1 | X171: 6.292 | Y171: 21.2 | Z171: 0.972 | AA171: 27.7 | AB171: 43.7 | AC171: 16.6 | AD171: 0.58 | AE171: 30.1 | AF171: 0.035 | AG171: 49.7 | AH171: 152.5 | AI171: 14.4 | AJ171: 0.575 | AK171: 30.1 | AL171: 0.181 | AM171: 36.4 | AN171: 2759 | AO171: 10.6 | AP171: 1389 | AQ171: 11.4 | AR171: 2113 | AS171: 10.9 | AT171: 45.58 | AU171: 16.4 | AV171: 18.34 | AW171: 18.4 | AX171: 2.914 | AY171: 23.5 | AZ171: 46.58 | BA171: 16.4 | BB171: 4.574 | BC171: 22.1 | BD171: 0.315 | BE171: 33 | BF171: 10.5 | BG171: 19.7 | BH171: 0.014 | BI171: 59.7 | BJ171: 1.11 | BK171: 27 | BL171: 263.5 | BM171: 13.4 | BN171: 293.3 | BO171: 13.3 | BP171: 417.7 | BQ171: 12.8 | BR171: 6006 | BS171: 9.8 | BT171: 1107 | BU171: 11.6 | BV171: 94.3 | BW171: 90.14 | BX171: 2.47 | BY171: 113.6 | BZ171: 100 | CA171: 3.83 | CB171: 114.7 | CC171: 100 | CD171: 3.73 | CE171: 114.7 | CF171: 100 | CG171: 3.12 | CH171: 122.7 | CI171: 100 | CJ171: 3.61 | CK171: 80.1 | CL171: 76.62 | CM171: 0.51 | CN171: 104.2 | CO171: 99.67 | CP171: 4.19 | CQ171: 107.9 | CR171: 100 | CS171: 4.16 | CT171: 112.4 | CU171: 100 | CV171: 4.46 | CW171: 86.8 | CX171: 83.13 | CY171: 2.21 | CZ171: 67.95 | DA171: 65.1 | DB171: -0.89 | DC171: 82.3 | DD171: 78.84 | DE171: 1.57 | DI171: 5.666 | DJ171: 63.12 | DK171: 63.12 | DL171: -0.68 | DM171: 3.938 | DN171: 4.436 | DO171: 3.821 | DP171: 4.475 | DQ171: 3.721 | DR171: 4.351 | DS171: 3.112 | DT171: 4.25 | DU171: 3.6 | DV171: 3.833 | DW171: 4.271 | DX171: 4.536 | DY171: 4.222 | DZ171: 4.706 | EA171: 4.153 | EB171: 4.651
A172: 2012-12-19T12:00:00 | B172: 4.478 | C172: 4.835 | D172: 4.874 | E172: 5.423 | F172: 5.19 | H172: 5.209 | J172: 280.1 | K172: 13.4 | L172: 32.25 | M172: 17.2 | N172: 5.891 | O172: 21.4 | P172: 186.3 | Q172: 14 | R172: 1.33 | S172: 26.4 | T172: 2.93 | U172: 23.5 | V172: 172.1 | W172: 14.1 | X172: 6.141 | Y172: 21.3 | Z172: 0.969 | AA172: 27.7 | AB172: 43.12 | AC172: 16.6 | AD172: 0.575 | AE172: 30.2 | AF172: 0.035 | AG172: 49.6 | AH172: 151.4 | AI172: 14.4 | AJ172: 0.571 | AK172: 30.1 | AL172: 0.179 | AM172: 36.5 | AN172: 2726 | AO172: 10.6 | AP172: 1380 | AQ172: 11.4 | AR172: 2087 | AS172: 10.9 | AT172: 45.18 | AU172: 16.4 | AV172: 18.18 | AW172: 18.4 | AX172: 2.913 | AY172: 23.5 | AZ172: 45.92 | BA172: 16.4 | BB172: 4.517 | BC172: 22.1 | BD172: 0.316 | BE172: 33 | BF172: 10.35 | BG172: 19.7 | BH172: 0.014 | BI172: 59.7 | BJ172: 1.099 | BK172: 27 | BL172: 258.9 | BM172: 13.4 | BN172: 284.3 | BO172: 13.3 | BP172: 414.1 | BQ172: 12.8 | BR172: 6268 | BS172: 9.8 | BT172: 1088 | BU172: 11.6 | BV172: 94.4 | BW172: 90.25 | BX172: 2.53 | BY172: 113.5 | BZ172: 100 | CA172: 3.85 | CB172: 114.7 | CC172: 100 | CD172: 3.75 | CE172: 114.8 | CF172: 100 | CG172: 3.17 | CH172: 122.7 | CI172: 100 | CJ172: 3.65 | CK172: 80.6 | CL172: 77.11 | CM172: 0.64 | CN172: 104 | CO172: 99.48 | CP172: 4.2 | CQ172: 108 | CR172: 100 | CS172: 4.21 | CT172: 112.5 | CU172: 100 | CV172: 4.49 | CW172: 86.4 | CX172: 82.75 | CY172: 2.19 | CZ172: 68.02 | DA172: 65.19 | DB172: -0.69 | DC172: 80.8 | DD172: 77.44 | DE172: 1.58 | DI172: 6.325 | DJ172: 59.26 | DK172: 59.26 | DL172: -0.91 | DM172: 3.981 | DN172: 4.62 | DO172: 3.844 | DP172: 4.617 | DQ172: 3.745 | DR172: 4.491 | DS172: 3.167 | DT172: 4.327 | DU172: 3.639 | DV172: 3.99 | DW172: 4.309 | DX172: 4.621 | DY172: 4.263 | DZ172: 4.763 | EA172: 4.196 | EB172: 4.721
A173: 2012-12-19T13:00:00 | B173: 4.562 | C173: 4.991 | D173: 4.972 | E173: 5.662 | F173: 5.667 | H173: 5.36 | J173: 273.1 | K173: 13.4 | L173: 31.63 | M173: 17.2 | N173: 5.865 | O173: 21.4 | P173: 190.3 | Q173: 13.9 | R173: 1.324 | S173: 26.4 | T173: 2.9 | U173: 23.6 | V173: 170.5 | W173: 14.1 | X173: 6.037 | Y173: 21.3 | Z173: 0.965 | AA173: 27.7 | AB173: 42.47 | AC173: 16.6 | AD173: 0.57 | AE173: 30.2 | AF173: 0.034 | AG173: 49.9 | AH173: 152.1 | AI173: 14.4 | AJ173: 0.566 | AK173: 30.1 | AL173: 0.178 | AM173: 36.5 | AN173: 2709 | AO173: 10.6 | AP173: 1360 | AQ173: 11.4 | AR173: 2055 | AS173: 10.9 | AT173: 44.69 | AU173: 16.4 | AV173: 18.01 | AW173: 18.4 | AX173: 2.907 | AY173: 23.5 | AZ173: 45.03 | BA173: 16.4 | BB173: 4.445 | BC173: 22.2 | BD173: 0.314 | BE173: 33 | BF173: 10.25 | BG173: 19.7 | BH173: 0.014 | BI173: 59.7 | BJ173: 1.087 | BK173: 27.1 | BL173: 255.9 | BM173: 13.4 | BN173: 279.2 | BO173: 13.4 | BP173: 409.4 | BQ173: 12.8 | BR173: 6158 | BS173: 9.8 | BT173: 1018 | BU173: 11.6 | BV173: 94.4 | BW173: 90.26 | BX173: 2.59 | BY173: 113.5 | BZ173: 100 | CA173: 3.9 | CB173: 114.6 | CC173: 100 | CD173: 3.8 | CE173: 114.7 | CF173: 100 | CG173: 3.25 | CH173: 122.6 | CI173: 100 | CJ173: 3.7 | CK173: 80.9 | CL173: 77.41 | CM173: 0.76 | CN173: 103.9 | CO173: 99.4 | CP173: 4.24 | CQ173: 107.9 | CR173: 100 | CS173: 4.26 | CT173: 112.4 | CU173: 100 | CV173: 4.58 | CW173: 86.5 | CX173: 82.87 | CY173: 2.3 | CZ173: 68.54 | DA173: 65.75 | DB173: -0.15 | DC173: 81 | DD173: 77.66 | DE173: 1.77 | DI173: 6.583 | DJ173: 57.36 | DK173: 57.36 | DL173: -1.1 | DM173: 4.044 | DN173: 4.795 | DO173: 3.892 | DP173: 4.771 | DQ173: 3.792 | DR173: 4.621 | DS173: 3.249 | DT173: 4.484 | DU173: 3.692 | DV173: 4.136 | DW173: 4.382 | DX173: 4.732 | DY173: 4.311 | DZ173: 4.857 | EA173: 4.249 | EB173: 4.842
